Workbook

Sheet Input
E1: Input Sheet | M1: Input Sheet
E3: CYCLE COMBINE GAS 2X400 MW Emile Huchet
A6: =D9 -> Scen SOREGIES spot 2005-Scen Gaz SOREGIES CATA | D6: 3 | F6: =IRR!A14 -> Project IRR | G6: = | H6: =IRR!C14 -> 0.09025597814
F7: Equity IRR | G7: = | H7: =IRR!C24 -> 0.0902423538
A9: Name of Cases | D9: =INDEX($E$9:$T$9,1,$D$6) -> Scen SOREGIES spot 2005-Scen Gaz SOREGIES CATA | E9: =E80&"-"&E82 -> Scen SOREGIES spot 2005-Scen Gaz SOREGIES CATA | F9: 4200 h - meilleurs H8-H24 -brent ENDESA | G9: Scen SOREGIES spot 2005-Scen Gaz SOREGIES CATA | H9: 4200 h - Hypothèse Moyenne-brent ENDESA | I9: 4200 h - Hypothèse Moyenne-brent ENDESA | J9: 4200 h - Hypothèse Moyenne-ZEE | K9: scénario ENDESA POA-PM-Scen ENDESA POA-PM | L9: ENDESA EU-ENDESA EU | M9: =M80&"-"&M82 -> 4200 h - meilleurs H8-H24 -ZEE | N9: 4200 h - scénario 1 SOR-Scen Gas 8 | O9: =O80&"-"&O82 -> 4500 h - scénario 2 SOR-Scen Gas 8 | P9: 4200 h - scénario 1 SOR-Scen Gas 9 | Q9: =Q80&"-"&Q82 -> 4500 h - scénario 2 SOR-Scen Gas 9
A10: Number | D10: =INDEX(E10:T10,1,$D$6) -> 3 | E10: 1 | F10: 2 | G10: 3 | H10: 4 | I10: 5 | J10: 6 | K10: 7 | L10: 8 | M10: 9 | N10: 10 | O10: 11 | P10: 12 | Q10: 13
A12: Construction
A13: Completion Year | D13: =INDEX(E13:T13,1,$D$6) -> 2010 | E13: 2010 | F13: 2010 | G13: 2010 | H13: 2010 | I13: 2010 | J13: 2010 | K13: 2010 | L13: 2010 | M13: 2010 | N13: 2010 | O13: 2010 | P13: 2010 | Q13: 2010
A14: Completion month | D14: 7 | E14: 7 | F14: 7 | G14: 7 | H14: 7 | I14: 7 | J14: 7 | K14: 7 | L14: 7 | M14: 7 | N14: 7 | O14: 7 | P14: 7 | Q14: 7
A15: Start of construction | D15: 2006 | E15: 2006 | F15: 2006 | G15: 2006 | H15: 2006 | I15: 2006 | J15: 2006 | K15: 2006 | L15: 2006 | M15: 2006 | N15: 2006 | O15: 2006 | P15: 2006 | Q15: 2006
A16: Project life | D16: 25 | E16: 25 | F16: 25 | G16: 25 | H16: 25 | I16: 25 | J16: 25 | K16: 25 | L16: 25 | M16: 25 | N16: 25 | O16: 25 | P16: 25 | Q16: 25
A17: Depreciation Period | D17: 25 | E17: 25 | F17: 25 | G17: 25 | H17: 25 | I17: 25 | J17: 25 | K17: 25 | L17: 25 | M17: 25 | N17: 25 | O17: 25 | P17: 25 | Q17: 25
A19: Development
A20: Maîtrise d'ouvrage | D20: =INDEX(E20:T20,1,$D$6) -> 1000000 | E20: 1000000 | F20: 1000000 | G20: 1000000 | H20: 1000000 | I20: 1000000 | J20: 1000000 | K20: 1000000 | L20: 1000000 | M20: 1000000 | N20: 1000000 | O20: 1000000 | P20: 1000000 | Q20: 1000000
A21: Assistant MO | D21: 200000 | E21: 200000 | F21: 200000 | G21: 200000 | H21: 200000 | I21: 200000 | J21: 200000 | K21: 200000 | L21: 200000 | M21: 200000 | N21: 200000 | O21: 200000 | P21: 200000 | Q21: 200000
A22: Autorisations administratives | D22: 50000 | E22: 50000 | F22: 50000 | G22: 50000 | H22: 50000 | I22: 50000 | J22: 50000 | K22: 50000 | L22: 50000 | M22: 50000 | N22: 50000 | O22: 50000 | P22: 50000 | Q22: 50000
A23: Cabinet juridique | D23: 50000 | E23: 50000 | F23: 50000 | G23: 50000 | H23: 50000 | I23: 50000 | J23: 50000 | K23: 50000 | L23: 50000 | M23: 50000 | N23: 50000 | O23: 50000 | P23: 50000 | Q23: 50000
A24: Etudes diverses | D24: 200000 | E24: 200000 | F24: 200000 | G24: 200000 | H24: 200000 | I24: 200000 | J24: 200000 | K24: 200000 | L24: 200000 | M24: 200000 | N24: 200000 | O24: 200000 | P24: 200000 | Q24: 200000
A25: Aléas développement | D25: 100000 | E25: 100000 | F25: 100000 | G25: 100000 | H25: 100000 | I25: 100000 | J25: 100000 | K25: 100000 | L25: 100000 | M25: 100000 | N25: 100000 | O25: 100000 | P25: 100000 | Q25: 100000
A26: Total Development | D26: 1600000 | E26: =SUM(E20:E25) -> 1600000 | F26: 1600000 | G26: 1600000 | H26: 1600000 | I26: 1600000 | J26: 1600000 | K26: 1600000 | L26: 1600000 | M26: =SUM(M20:M25) -> 1600000 | N26: 1600000 | O26: =SUM(O20:O25) -> 1600000 | P26: 1600000 | Q26: =SUM(Q20:Q25) -> 1600000
A27: Realisation
A28: Maîtrise d'ouvrage | D28: =INDEX(E28:T28,1,$D$6) -> 2000000 | E28: 2000000 | F28: 2000000 | G28: 2000000 | H28: 2000000 | I28: 2000000 | J28: 2000000 | K28: 2000000 | L28: 2000000 | M28: 2000000 | N28: 2000000 | O28: 2000000 | P28: 2000000 | Q28: 2000000
A29: Etudes diverses & Assistant MO | D29: 352659 | E29: 352659 | F29: 352659 | G29: 352659 | H29: 352659 | I29: 352659 | J29: 352659 | K29: 352659 | L29: 352659 | M29: 352659 | N29: 352659 | O29: 352659 | P29: 352659 | Q29: 352659
A30: Bureau de Contrôle | D30: 0 | E30: 0 | F30: 0 | G30: 0 | H30: 0 | I30: 0 | J30: 0 | K30: 0 | L30: 0 | M30: 0 | N30: 0 | O30: 0 | P30: 0 | Q30: 0
A31: Approvisionnement en eau | D31: 1487000 | E31: 1487000 | F31: 1487000 | G31: 1487000 | H31: 1487000 | I31: 1487000 | J31: 1487000 | K31: 1487000 | L31: 1487000 | M31: 1487000 | N31: 1487000 | O31: 1487000 | P31: 1487000 | Q31: 1487000
A32: Raccordement GAZ | D32: 24120000 | E32: 24120000 | F32: 24120000 | G32: 24120000 | H32: 24120000 | I32: 24120000 | J32: 24120000 | K32: 24120000 | L32: 24120000 | M32: 24120000 | N32: 24120000 | O32: 24120000 | P32: 24120000 | Q32: 24120000
A33: Raccordement RTE | D33: 9186000 | E33: 9186000 | F33: 9186000 | G33: 9186000 | H33: 9186000 | I33: 9186000 | J33: 9186000 | K33: 9186000 | L33: 9186000 | M33: 9186000 | N33: 9186000 | O33: 9186000 | P33: 9186000 | Q33: 9186000
A34: Raccordement électrique SNET | D34: 300000 | E34: 300000 | F34: 300000 | G34: 300000 | H34: 300000 | I34: 300000 | J34: 300000 | K34: 300000 | L34: 300000 | M34: 300000 | N34: 300000 | O34: 300000 | P34: 300000 | Q34: 300000
A35: Assurance construction | D35: 3000000 | E35: 3000000 | F35: 3000000 | G35: 3000000 | H35: 3000000 | I35: 3000000 | J35: 3000000 | K35: 3000000 | L35: 3000000 | M35: 3000000 | N35: 3000000 | O35: 3000000 | P35: 3000000 | Q35: 3000000
A36: Aménagement de site | D36: 2524315 | E36: 5200000 | F36: 2524315 | G36: 2524315 | H36: 2524315 | I36: 2524315 | J36: 2524315 | K36: 2524315 | L36: 2524315 | M36: 2524315 | N36: 2524315 | O36: 2524315 | P36: 2524315 | Q36: 2524315
A37: Raccordement des utilités | D37: 0 | E37: 0 | F37: 0 | G37: 0 | H37: 0 | I37: 0 | J37: 0 | K37: 0 | L37: 0 | M37: 0 | N37: 0 | O37: 0 | P37: 0 | Q37: 0
A38: Contrat EPC | D38: 411432200 | E38: 415000000 | F38: 411432200 | G38: 411432200 | H38: 411432200 | I38: 411432200 | J38: 411432200 | K38: 411432200 | L38: 411432200 | M38: 411432200 | N38: 411432200 | O38: 411432200 | P38: 411432200 | Q38: 411432200
A39: Options du contrat EPC | D39: 2037000 | E39: 3000000 | F39: 2037000 | G39: 2037000 | H39: 2037000 | I39: 2037000 | J39: 2037000 | K39: 2037000 | L39: 2037000 | M39: 2037000 | N39: 2037000 | O39: 2037000 | P39: 2037000 | Q39: 2037000
A40: Achat de terrain | D40: 0 | E40: 0 | F40: 0 | G40: 0 | H40: 0 | I40: 0 | J40: 0 | K40: 0 | L40: 0 | M40: 0 | N40: 0 | O40: 0 | P40: 0 | Q40: 0
A41: Stock de pièces de rechange EPC | D41: 0 | E41: 0 | F41: 0 | G41: 0 | H41: 0 | I41: 0 | J41: 0 | K41: 0 | L41: 0 | M41: 0 | N41: 0 | O41: 0 | P41: 0 | Q41: 0
A42: Stock initial de pièces de rechange LTSA | D42: 9900000 | E42: 9900000 | F42: 9900000 | G42: 9900000 | H42: 9900000 | I42: 9900000 | J42: 9900000 | K42: 9900000 | L42: 9900000 | M42: 9900000 | N42: 9900000 | O42: 9900000 | P42: 9900000 | Q42: 9900000
A43: Combustibles pour essais | D43: 0 | E43: 0 | F43: 0 | G43: 0 | H43: 0 | I43: 0 | J43: 0 | K43: 0 | L43: 0 | M43: 0 | N43: 0 | O43: 0 | P43: 0 | Q43: 0
A44: Mobilisation personnel + formation | D44: 660000 | E44: 660000 | F44: 660000 | G44: 660000 | H44: 660000 | I44: 660000 | J44: 660000 | K44: 660000 | L44: 660000 | M44: 660000 | N44: 660000 | O44: 660000 | P44: 660000 | Q44: 660000
A45: Aléas de réalisation | D45: 3100000 | E45: 3300000 | F45: 3100000 | G45: 3100000 | H45: 3100000 | I45: 3100000 | J45: 3100000 | K45: 3100000 | L45: 3100000 | M45: 3100000 | N45: 3100000 | O45: 3100000 | P45: 3100000 | Q45: 3100000
A46: Total Réalisation | D46: 470099174 | E46: =SUM(E28:E45) -> 477505659 | F46: 470099174 | G46: 470099174 | H46: 470099174 | I46: 470099174 | J46: 470099174 | K46: 470099174 | L46: 470099174 | M46: =SUM(M28:M45) -> 470099174 | N46: 470099174 | O46: =SUM(O28:O45) -> 470099174 | P46: 470099174 | Q46: =SUM(Q28:Q45) -> 470099174
A47: Investment | D47: 471699174 | E47: =(E46+E26) -> 479105659 | F47: 471699174 | G47: 471699174 | H47: 471699174 | I47: 471699174 | J47: 471699174 | K47: 471699174 | L47: 471699174 | M47: =(M46+M26) -> 471699174 | N47: 471699174 | O47: =(O46+O26) -> 471699174 | P47: 471699174 | Q47: =(Q46+Q26) -> 471699174
A49: Financial Data
A51: Equity
A52: Maximum Amount | D52: =INDEX(E52:T52,1,$D$6) -> 471699174 | E52: =+E47 -> 479105659 | F52: 471699174 | G52: 471699174 | H52: 471699174 | I52: 471699174 | J52: 471699174 | K52: =+K47 -> 471699174 | L52: =+L47 -> 471699174 | M52: =+M47 -> 471699174 | N52: 471699174 | O52: =+O47 -> 471699174 | P52: 471699174 | Q52: =+Q47 -> 471699174
A54: Debt
A55: Loan amount | D55: =INDEX(E55:T55,1,$D$6) -> 0 | E55: 0 | F55: 0 | G55: 0 | H55: 0 | I55: 0 | J55: 0 | K55: 0 | L55: 0 | M55: 0 | N55: 0 | O55: 0 | P55: 0 | Q55: 0
A56: Debt Ratio | D56: 0 | E56: =E55/(E55+E52) -> 0 | F56: 0 | G56: 0 | H56: 0 | I56: 0 | J56: 0 | K56: 0 | L56: 0 | M56: =M55/(M55+M52) -> 0 | N56: 0 | O56: =O55/(O55+O52) -> 0 | P56: 0 | Q56: =Q55/(Q55+Q52) -> 0
A57: Financial close | D57: 2009 | E57: 2009 | F57: 2009 | G57: 2009 | H57: 2009 | I57: 2009 | J57: 2009 | K57: 2009 | L57: 2009 | M57: 2009 | N57: 2009 | O57: 2009 | P57: 2009 | Q57: 2009
A58: Repayment Period (Years) | D58: 15 | E58: 15 | F58: 15 | G58: 15 | H58: 15 | I58: 15 | J58: 15 | K58: 15 | L58: 15 | M58: 15 | N58: 15 | O58: 15 | P58: 15 | Q58: 15
A59: Drawdown Period in Years | D59: 3 | E59: 3 | F59: 3 | G59: 3 | H59: 3 | I59: 3 | J59: 3 | K59: 3 | L59: 3 | M59: 3 | N59: 3 | O59: 3 | P59: 3 | Q59: 3
A60: Interest rate % p.a. (nominal)* | D60: 0.065 | E60: 0.065 | F60: 0.065 | G60: 0.065 | H60: 0.065 | I60: 0.065 | J60: 0.065 | K60: 0.065 | L60: 0.065 | M60: 0.065 | N60: 0.065 | O60: 0.065 | P60: 0.065 | Q60: 0.065
A61: Interest on DSRA p.a. | D61: 0.03 | E61: 0.03 | F61: 0.03 | G61: 0.03 | H61: 0.03 | I61: 0.03 | J61: 0.03 | K61: 0.03 | L61: 0.03 | M61: 0.03 | N61: 0.03 | O61: 0.03 | P61: 0.03 | Q61: 0.03
A62: Insurance | D62: 0.006 | E62: 0.006 | F62: 0.006 | G62: 0.006 | H62: 0.006 | I62: 0.006 | J62: 0.006 | K62: 0.003 | L62: 0.003 | M62: 0.006 | N62: 0.006 | O62: 0.006 | P62: 0.006 | Q62: 0.006
A63: Arranging Fee | D63: 0 | E63: 0 | F63: 0 | G63: 0 | H63: 0 | I63: 0 | J63: 0 | K63: 0 | L63: 0 | M63: 0 | N63: 0 | O63: 0 | P63: 0 | Q63: 0
A64: Agency Fee | D64: 0 | E64: 0 | F64: 0 | G64: 0 | H64: 0 | I64: 0 | J64: 0 | K64: 0 | L64: 0 | M64: 0 | N64: 0 | O64: 0 | P64: 0 | Q64: 0
A65: Commitment Fee | D65: 0 | E65: 0 | F65: 0 | G65: 0 | H65: 0 | I65: 0 | J65: 0 | K65: 0 | L65: 0 | M65: 0 | N65: 0 | O65: 0 | P65: 0 | Q65: 0
A66: Actualisation rate | D66: 0.07 | E66: 0.07 | F66: 0.07 | G66: 0.07 | H66: 0.07 | I66: 0.07 | J66: 0.07 | K66: 0.07 | L66: 0.07 | M66: 0.07 | N66: 0.07 | O66: 0.07 | P66: 0.07 | Q66: 0.07
A68: Tax & Accouting Data
A69: Land Tax Rate | D69: =INDEX(E69:T69,1,$D$6) -> 0.001 | E69: 0.001 | F69: 0.001 | G69: 0.001 | H69: 0.001 | I69: 0.001 | J69: 0.001 | K69: 0.001 | L69: 0.001 | M69: 0.001 | N69: 0.001 | O69: 0.001 | P69: 0.001 | Q69: 0.001
A70: Trade Tax Rate | D70: 0.035 | E70: 0.035 | F70: 0.035 | G70: 0.035 | H70: 0.035 | I70: 0.035 | J70: 0.035 | K70: 0.035 | L70: 0.035 | M70: 0.035 | N70: 0.035 | O70: 0.035 | P70: 0.035 | Q70: 0.035
A71: Icome Tax Rate | D71: 0.3493 | E71: 0.3493 | F71: 0.3493 | G71: 0.3493 | H71: 0.3493 | I71: 0.3493 | J71: 0.3493 | K71: 0.3493 | L71: 0.3493 | M71: 0.3493 | N71: 0.3493 | O71: 0.3493 | P71: 0.3493 | Q71: 0.3493
A72: Organic Tax Rate | D72: 0.035 | E72: 0.035 | F72: 0.035 | G72: 0.035 | H72: 0.035 | I72: 0.035 | J72: 0.035 | K72: 0.035 | L72: 0.035 | M72: 0.035 | N72: 0.035 | O72: 0.035 | P72: 0.035 | Q72: 0.035
A73: NO2 (€/ton) | D73: 45.73 | E73: 45.73 | F73: 45.73 | G73: 45.73 | H73: 45.73 | I73: 45.73 | J73: 45.73 | K73: 45.73 | L73: 45.73 | M73: 45.73 | N73: 45.73 | O73: 45.73 | P73: 45.73 | Q73: 45.73
A74: SO2 (€/ton) | D74: 38.11 | E74: 38.11 | F74: 38.11 | G74: 38.11 | H74: 38.11 | I74: 38.11 | J74: 38.11 | K74: 38.11 | L74: 38.11 | M74: 38.11 | N74: 38.11 | O74: 38.11 | P74: 38.11 | Q74: 38.11
A75: Term of Payment for Receivables (months) | D75: =INDEX(E75:T75,1,$D$6) -> 1 | E75: 1 | F75: 1 | G75: 1 | H75: 1 | I75: 1 | J75: 1 | K75: 1 | L75: 1 | M75: 1 | N75: 1 | O75: 1 | P75: 1 | Q75: 1
A76: Term of Payment for Payables (months) | D76: 1 | E76: 1 | F76: 1 | G76: 1 | H76: 1 | I76: 1 | J76: 1 | K76: 1 | L76: 1 | M76: 1 | N76: 1 | O76: 1 | P76: 1 | Q76: 1
A78: Economic Data Cases
A79: N° of operational Case | D79: =INDEX(E79:T79,1,$D$6) -> 9 | E79: 9 | F79: 6 | G79: 9 | H79: 8 | I79: 8 | J79: 8 | K79: 10 | L79: 11 | M79: 6 | N79: 4 | O79: 5 | P79: 12 | Q79: 13
A80: Name of operational Case | D80: =INDEX(E80:T80,1,$D$6) -> Scen SOREGIES spot 2005 | E80: =CHOOSE(E79,'Sale Prices'!$A$43,'Sale Prices'!$A$44,'Sale Prices'!$A$45,'Sale Prices'!$A$46,'Sale Prices'!$A$47,'Sale Prices'!$A$48,'Sale Prices'!$A$49,'Sale Prices'!$A$50,'Sale Prices'!$A$51,'Sale Prices'!$A$52,'Sale Prices'!$A$53,'Sale Prices'!$A$54,'Sale Prices'!$A$55,'Sale Prices'!$A$56,'Sale Prices'!$A$57,'Sale Prices'!$A$58,'Sale Prices'!$A$59,'Sale Prices'!$A$60,'Sale Prices'!$A$61,'Sale Prices'!$A$62,'Sale Prices'!$A$63,'Sale Prices'!#REF!,'Sale Prices'!#REF!,'Sale Prices'!$A$64) -> Scen SOREGIES spot 2005 | F80: =CHOOSE(F79,'Sale Prices'!$A$43,'Sale Prices'!$A$44,'Sale Prices'!$A$45,'Sale Prices'!$A$46,'Sale Prices'!$A$47,'Sale Prices'!$A$48,'Sale Prices'!$A$49,'Sale Prices'!$A$50,'Sale Prices'!$A$51,'Sale Prices'!$A$52,'Sale Prices'!$A$53,'Sale Prices'!$A$54,'Sale Prices'!$A$55,'Sale Prices'!$A$56,'Sale Prices'!$A$57,'Sale Prices'!$A$58,'Sale Prices'!$A$59,'Sale Prices'!$A$60,'Sale Prices'!$A$61,'Sale Prices'!$A$62,'Sale Prices'!$A$63,'Sale Prices'!#REF!,'Sale Prices'!#REF!,'Sale Prices'!$A$64) -> 4200 h - meilleurs H8-H24 | G80: =CHOOSE(G79,'Sale Prices'!$A$43,'Sale Prices'!$A$44,'Sale Prices'!$A$45,'Sale Prices'!$A$46,'Sale Prices'!$A$47,'Sale Prices'!$A$48,'Sale Prices'!$A$49,'Sale Prices'!$A$50,'Sale Prices'!$A$51,'Sale Prices'!$A$52,'Sale Prices'!$A$53,'Sale Prices'!$A$54,'Sale Prices'!$A$55,'Sale Prices'!$A$56,'Sale Prices'!$A$57,'Sale Prices'!$A$58,'Sale Prices'!$A$59,'Sale Prices'!$A$60,'Sale Prices'!$A$61,'Sale Prices'!$A$62,'Sale Prices'!$A$63,'Sale Prices'!#REF!,'Sale Prices'!#REF!,'Sale Prices'!$A$64) -> Scen SOREGIES spot 2005 | H80: =CHOOSE(H79,'Sale Prices'!$A$43,'Sale Prices'!$A$44,'Sale Prices'!$A$45,'Sale Prices'!$A$46,'Sale Prices'!$A$47,'Sale Prices'!$A$48,'Sale Prices'!$A$49,'Sale Prices'!$A$50,'Sale Prices'!$A$51,'Sale Prices'!$A$52,'Sale Prices'!$A$53,'Sale Prices'!$A$54,'Sale Prices'!$A$55,'Sale Prices'!$A$56,'Sale Prices'!$A$57,'Sale Prices'!$A$58,'Sale Prices'!$A$59,'Sale Prices'!$A$60,'Sale Prices'!$A$61,'Sale Prices'!$A$62,'Sale Prices'!$A$63,'Sale Prices'!#REF!,'Sale Prices'!#REF!,'Sale Prices'!$A$64) -> 4200 h - Hypothèse Moyenne | I80: =CHOOSE(I79,'Sale Prices'!$A$43,'Sale Prices'!$A$44,'Sale Prices'!$A$45,'Sale Prices'!$A$46,'Sale Prices'!$A$47,'Sale Prices'!$A$48,'Sale Prices'!$A$49,'Sale Prices'!$A$50,'Sale Prices'!$A$51,'Sale Prices'!$A$52,'Sale Prices'!$A$53,'Sale Prices'!$A$54,'Sale Prices'!$A$55,'Sale Prices'!$A$56,'Sale Prices'!$A$57,'Sale Prices'!$A$58,'Sale Prices'!$A$59,'Sale Prices'!$A$60,'Sale Prices'!$A$61,'Sale Prices'!$A$62,'Sale Prices'!$A$63,'Sale Prices'!#REF!,'Sale Prices'!#REF!,'Sale Prices'!$A$64) -> 4200 h - Hypothèse Moyenne | J80: =CHOOSE(J79,'Sale Prices'!$A$43,'Sale Prices'!$A$44,'Sale Prices'!$A$45,'Sale Prices'!$A$46,'Sale Prices'!$A$47,'Sale Prices'!$A$48,'Sale Prices'!$A$49,'Sale Prices'!$A$50,'Sale Prices'!$A$51,'Sale Prices'!$A$52,'Sale Prices'!$A$53,'Sale Prices'!$A$54,'Sale Prices'!$A$55,'Sale Prices'!$A$56,'Sale Prices'!$A$57,'Sale Prices'!$A$58,'Sale Prices'!$A$59,'Sale Prices'!$A$60,'Sale Prices'!$A$61,'Sale Prices'!$A$62,'Sale Prices'!$A$63,'Sale Prices'!#REF!,'Sale Prices'!#REF!,'Sale Prices'!$A$64) -> 4200 h - Hypothèse Moyenne | K80: =CHOOSE(K79,'Sale Prices'!$A$43,'Sale Prices'!$A$44,'Sale Prices'!$A$45,'Sale Prices'!$A$46,'Sale Prices'!$A$47,'Sale Prices'!$A$48,'Sale Prices'!$A$49,'Sale Prices'!$A$50,'Sale Prices'!$A$51,'Sale Prices'!$A$52,'Sale Prices'!$A$53,'Sale Prices'!$A$54,'Sale Prices'!$A$55,'Sale Prices'!$A$56,'Sale Prices'!$A$57,'Sale Prices'!$A$58,'Sale Prices'!$A$59,'Sale Prices'!$A$60,'Sale Prices'!$A$61,'Sale Prices'!$A$62,'Sale Prices'!$A$63,'Sale Prices'!#REF!,'Sale Prices'!#REF!,'Sale Prices'!$A$64) -> scénario ENDESA POA-PM | L80: =CHOOSE(L79,'Sale Prices'!$A$43,'Sale Prices'!$A$44,'Sale Prices'!$A$45,'Sale Prices'!$A$46,'Sale Prices'!$A$47,'Sale Prices'!$A$48,'Sale Prices'!$A$49,'Sale Prices'!$A$50,'Sale Prices'!$A$51,'Sale Prices'!$A$52,'Sale Prices'!$A$53,'Sale Prices'!$A$54,'Sale Prices'!$A$55,'Sale Prices'!$A$56,'Sale Prices'!$A$57,'Sale Prices'!$A$58,'Sale Prices'!$A$59,'Sale Prices'!$A$60,'Sale Prices'!$A$61,'Sale Prices'!$A$62,'Sale Prices'!$A$63,'Sale Prices'!#REF!,'Sale Prices'!#REF!,'Sale Prices'!$A$64) -> ENDESA EU | M80: =CHOOSE(M79,'Sale Prices'!$A$43,'Sale Prices'!$A$44,'Sale Prices'!$A$45,'Sale Prices'!$A$46,'Sale Prices'!$A$47,'Sale Prices'!$A$48,'Sale Prices'!$A$49,'Sale Prices'!$A$50,'Sale Prices'!$A$51,'Sale Prices'!$A$52,'Sale Prices'!$A$53,'Sale Prices'!$A$54,'Sale Prices'!$A$55,'Sale Prices'!$A$56,'Sale Prices'!$A$57,'Sale Prices'!$A$58,'Sale Prices'!$A$59,'Sale Prices'!$A$60,'Sale Prices'!$A$61,'Sale Prices'!$A$62,'Sale Prices'!$A$63,'Sale Prices'!#REF!,'Sale Prices'!#REF!,'Sale Prices'!$A$64) -> 4200 h - meilleurs H8-H24 | N80: =CHOOSE(N79,'Sale Prices'!$A$43,'Sale Prices'!$A$44,'Sale Prices'!$A$45,'Sale Prices'!$A$46,'Sale Prices'!$A$47,'Sale Prices'!$A$48,'Sale Prices'!$A$49,'Sale Prices'!$A$50,'Sale Prices'!$A$51,'Sale Prices'!$A$52,'Sale Prices'!$A$53,'Sale Prices'!$A$54,'Sale Prices'!$A$55,'Sale Prices'!$A$56,'Sale Prices'!$A$57,'Sale Prices'!$A$58,'Sale Prices'!$A$59,'Sale Prices'!$A$60,'Sale Prices'!$A$61,'Sale Prices'!$A$62,'Sale Prices'!$A$63,'Sale Prices'!#REF!,'Sale Prices'!#REF!,'Sale Prices'!$A$64) -> 4200 h - scénario 1 SOR | O80: =CHOOSE(O79,'Sale Prices'!$A$43,'Sale Prices'!$A$44,'Sale Prices'!$A$45,'Sale Prices'!$A$46,'Sale Prices'!$A$47,'Sale Prices'!$A$48,'Sale Prices'!$A$49,'Sale Prices'!$A$50,'Sale Prices'!$A$51,'Sale Prices'!$A$52,'Sale Prices'!$A$53,'Sale Prices'!$A$54,'Sale Prices'!$A$55,'Sale Prices'!$A$56,'Sale Prices'!$A$57,'Sale Prices'!$A$58,'Sale Prices'!$A$59,'Sale Prices'!$A$60,'Sale Prices'!$A$61,'Sale Prices'!$A$62,'Sale Prices'!$A$63,'Sale Prices'!#REF!,'Sale Prices'!#REF!,'Sale Prices'!$A$64) -> 4500 h - scénario 2 SOR | P80: =CHOOSE(P79,'Sale Prices'!$A$43,'Sale Prices'!$A$44,'Sale Prices'!$A$45,'Sale Prices'!$A$46,'Sale Prices'!$A$47,'Sale Prices'!$A$48,'Sale Prices'!$A$49,'Sale Prices'!$A$50,'Sale Prices'!$A$51,'Sale Prices'!$A$52,'Sale Prices'!$A$53,'Sale Prices'!$A$54,'Sale Prices'!$A$55,'Sale Prices'!$A$56,'Sale Prices'!$A$57,'Sale Prices'!$A$58,'Sale Prices'!$A$59,'Sale Prices'!$A$60,'Sale Prices'!$A$61,'Sale Prices'!$A$62,'Sale Prices'!$A$63,'Sale Prices'!#REF!,'Sale Prices'!#REF!,'Sale Prices'!$A$64) -> 4200 h - scénario 1 SOR | Q80: =CHOOSE(Q79,'Sale Prices'!$A$43,'Sale Prices'!$A$44,'Sale Prices'!$A$45,'Sale Prices'!$A$46,'Sale Prices'!$A$47,'Sale Prices'!$A$48,'Sale Prices'!$A$49,'Sale Prices'!$A$50,'Sale Prices'!$A$51,'Sale Prices'!$A$52,'Sale Prices'!$A$53,'Sale Prices'!$A$54,'Sale Prices'!$A$55,'Sale Prices'!$A$56,'Sale Prices'!$A$57,'Sale Prices'!$A$58,'Sale Prices'!$A$59,'Sale Prices'!$A$60,'Sale Prices'!$A$61,'Sale Prices'!$A$62,'Sale Prices'!$A$63,'Sale Prices'!#REF!,'Sale Prices'!#REF!,'Sale Prices'!$A$64) -> 4500 h - scénario 2 SOR
A81: N° of the Fuel Price Case | D81: =INDEX(E81:T81,1,$D$6) -> 2 | E81: 2 | F81: 3 | G81: 2 | H81: 3 | I81: 3 | J81: 5 | K81: 7 | L81: 10 | M81: 5 | N81: 8 | O81: 8 | P81: 9 | Q81: 9
A82: Name of the Fuel Price Case | D82: Scen Gaz SOREGIES CATA | E82: =INDEX('Fuel Prices'!$A$8:$A$17,Input!E$81,1) -> Scen Gaz SOREGIES CATA | F82: =INDEX('Fuel Prices'!$A$8:$A$17,Input!F$81,1) -> brent ENDESA | G82: =INDEX('Fuel Prices'!$A$8:$A$17,Input!G$81,1) -> Scen Gaz SOREGIES CATA | H82: =INDEX('Fuel Prices'!$A$8:$A$17,Input!H$81,1) -> brent ENDESA | I82: =INDEX('Fuel Prices'!$A$8:$A$17,Input!I$81,1) -> brent ENDESA | J82: =INDEX('Fuel Prices'!$A$8:$A$17,Input!J$81,1) -> ZEE | K82: =INDEX('Fuel Prices'!$A$8:$A$17,Input!K$81,1) -> Scen ENDESA POA-PM | L82: =INDEX('Fuel Prices'!$A$8:$A$17,Input!L$81,1) -> ENDESA EU | M82: =INDEX('Fuel Prices'!$A$8:$A$17,Input!M$81,1) -> ZEE | N82: =INDEX('Fuel Prices'!$A$8:$A$17,Input!N$81,1) -> Scen Gas 8 | O82: =INDEX('Fuel Prices'!$A$8:$A$17,Input!O$81,1) -> Scen Gas 8 | P82: =INDEX('Fuel Prices'!$A$8:$A$17,Input!P$81,1) -> Scen Gas 9 | Q82: =INDEX('Fuel Prices'!$A$8:$A$17,Input!Q$81,1) -> Scen Gas 9
A83: Gaz Flexibility Cost | D83: 0 | E83: 0 | F83: 2000000 | G83: 0 | H83: 2000000 | I83: 2000000 | J83: 2000000 | K83: 2000000 | L83: 2000000 | M83: 2000000 | N83: 2000000 | O83: 2000000 | P83: 2000000 | Q83: 2000000
A84: Gaz Transport Cost | D84: 2985000 | E84: 2985000 | F84: 2985000 | G84: 2985000 | H84: 2985000 | I84: 2985000 | J84: 2985000 | K84: 2985000 | L84: 2985000 | M84: 2985000 | N84: 2985000 | O84: 2985000 | P84: 2985000 | Q84: 2985000
A85: CO2 allocation Case | D85: 1 | E85: 1 | F85: 1 | G85: 1 | H85: 1 | I85: 1 | J85: 1 | K85: 1 | L85: 1 | M85: 1 | N85: 1 | O85: 1 | P85: 1 | Q85: 1
A86: CO2 costs Case | D86: 1 | E86: 1 | F86: 1 | G86: 1 | H86: 1 | I86: 1 | J86: 1 | K86: 1 | L86: 3 | M86: 3 | N86: 1 | O86: 1 | P86: 1 | Q86: 1
A88: Macroeconomic Data
A89: Start of Inflation | D89: =INDEX(E89:T89,1,$D$6) -> 2010 | E89: 2010 | F89: 2010 | G89: 2010 | H89: 2010 | I89: 2010 | J89: 2010 | K89: 2010 | L89: 2010 | M89: 2010 | N89: 2010 | O89: 2010 | P89: 2010 | Q89: 2010
A90: Inflation | D90: 0.015 | E90: 0.015 | F90: 0.015 | G90: 0.015 | H90: 0.015 | I90: 0.015 | J90: 0.015 | K90: 0.015 | L90: 0.015 | M90: 0.015 | N90: 0.015 | O90: 0.015 | P90: 0.015 | Q90: 0.015
A91: Labour Inflation | D91: 0.02 | E91: 0.02 | F91: 0.02 | G91: 0.02 | H91: 0.02 | I91: 0.02 | J91: 0.02 | K91: 0.02 | L91: 0.02 | M91: 0.02 | N91: 0.02 | O91: 0.02 | P91: 0.02 | Q91: 0.02
A93: CCGT Data
A94: Production case | D94: =INDEX(E94:T94,1,$D$6) -> 1 | E94: 1 | F94: 1 | G94: 1 | H94: 1 | I94: 1 | J94: 1 | K94: 1 | L94: 1 | M94: 1 | N94: 1 | O94: 1 | P94: 1 | Q94: 1
A95: Net Power (MW) | D95: 827 | E95: 827 | F95: 827 | G95: 827 | H95: 827 | I95: 827 | J95: 827 | K95: 827 | L95: 827 | M95: 827 | N95: 827 | O95: 827 | P95: 827 | Q95: 827
A96: Average Net Efficiency | D96: 0.577 | E96: 0.577 | F96: 0.577 | G96: 0.577 | H96: 0.577 | I96: 0.577 | J96: 0.577 | K96: 0.577 | L96: 0.577 | M96: 0.577 | N96: 0.577 | O96: 0.577 | P96: 0.577 | Q96: 0.577
A97: Utilisation Rate | D97: 0 | E97: =E98/8760 -> 0 | F97: 0 | G97: 0 | H97: 0 | I97: 0 | J97: 0 | K97: 0 | L97: 0 | M97: 0 | N97: 0 | O97: 0 | P97: 0 | Q97: 0
A98: PCN Hours | D98: 0 | E98: =(E99*E95+E100*E101)/E95 -> 0 | F98: =(F99*F95+F100*F101)/F95 -> 0 | G98: 0 | H98: 0 | I98: 0 | J98: 0 | K98: 0 | L98: 0 | M98: =(M99*M95+M100*M101)/M95 -> 0 | N98: =(N99*N95+N100*N101)/N95 -> 0 | O98: =(O99*O95+O100*O101)/O95 -> 0 | P98: =(P99*P95+P100*P101)/P95 -> 0 | Q98: =(Q99*Q95+Q100*Q101)/Q95 -> 0
A99: Pmax Hours | D99: 0 | E99: 0 | F99: 0 | G99: 0 | H99: 0 | I99: 0 | J99: 0 | K99: 0 | L99: 0 | M99: 0 | N99: 0 | O99: 0 | P99: 0 | Q99: 0
A100: MSG Hours | D100: 0 | E100: 0 | F100: 0 | G100: 0 | H100: 0 | I100: 0 | J100: 0 | K100: 0 | L100: 0 | M100: 0 | N100: 0 | O100: 0 | P100: 0 | Q100: 0
A101: MW MSG | D101: 0 | E101: 0 | F101: 0 | G101: 0 | H101: 0 | I101: 0 | J101: 0 | K101: 0 | L101: 0 | M101: 0 | N101: 0 | O101: 0 | P101: 0 | Q101: 0
A102: Efficiency at Pmax | D102: 0 | E102: 0 | F102: 0 | G102: 0 | H102: 0 | I102: 0 | J102: 0 | K102: 0 | L102: 0 | M102: 0 | N102: 0 | O102: 0 | P102: 0 | Q102: 0
A103: Efficiency at MSG | D103: 0 | E103: 0 | F103: 0 | G103: 0 | H103: 0 | I103: 0 | J103: 0 | K103: 0 | L103: 0 | M103: 0 | N103: 0 | O103: 0 | P103: 0 | Q103: 0
A104: Hot Start up (After 8hours) MWh Of Gas | D104: 680 | E104: 680 | F104: 680 | G104: 680 | H104: 680 | I104: 680 | J104: 680 | K104: 612 | L104: 612 | M104: 680 | N104: 680 | O104: 680 | P104: 680 | Q104: 680
A105: Warm Start up (After 48 hours) MWh Of Gas | D105: 1320 | E105: 1320 | F105: 1320 | G105: 1320 | H105: 1320 | I105: 1320 | J105: 1320 | K105: 1188 | L105: 1188 | M105: 1320 | N105: 1320 | O105: 1320 | P105: 1320 | Q105: 1320
A106: Cold Start up (After 50 hours) MWh Of Gas | D106: 0 | E106: 0 | F106: 0 | G106: 0 | H106: 0 | I106: 0 | J106: 0 | K106: 0 | L106: 0 | M106: 0 | N106: 0 | O106: 0 | P106: 0 | Q106: 0
A107: Number of hot Start up | D107: 150 | E107: 150 | F107: 150 | G107: 150 | H107: 150 | I107: 150 | J107: 150 | K107: 150 | L107: 150 | M107: 150 | N107: 150 | O107: 150 | P107: 150 | Q107: 150
A108: Number of Warm Start up | D108: 50 | E108: 50 | F108: 50 | G108: 50 | H108: 50 | I108: 50 | J108: 50 | K108: 50 | L108: 50 | M108: 50 | N108: 50 | O108: 50 | P108: 50 | Q108: 50
A109: Number of Cold Start up | D109: 0 | E109: 0 | F109: 0 | G109: 0 | H109: 0 | I109: 0 | J109: 0 | K109: 0 | L109: 0 | M109: 0 | N109: 0 | O109: 0 | P109: 0 | Q109: 0
A110: NO2 emission (mg/Nm3.s) | D110: 50 | E110: 50 | F110: 50 | G110: 50 | H110: 50 | I110: 50 | J110: 50 | K110: 50 | L110: 50 | M110: 50 | N110: 50 | O110: 50 | P110: 50 | Q110: 50
A111: SO2 emission (mg/Nm3.s) | D111: 0 | E111: 0 | F111: 0 | G111: 0 | H111: 0 | I111: 0 | J111: 0 | K111: 0 | L111: 0 | M111: 0 | N111: 0 | O111: 0 | P111: 0 | Q111: 0
A112: CO2 emission (g/kwh) | D112: 365 | E112: 365 | F112: 365 | G112: 365 | H112: 365 | I112: 365 | J112: 365 | K112: 365 | L112: 365 | M112: 365 | N112: 365 | O112: 365 | P112: 365 | Q112: 365
A114: Operating Costs p.a.
A115: Maintenance Rate | D115: =INDEX(E115:T115,1,$D$6) -> 0.0173515098 | E115: 0.0189 | F115: 0.0173515098 | G115: 0.0173515098 | H115: 0.0173515098 | I115: 0.0173515098 | J115: 0.0173515098 | K115: 0.0173515098 | L115: 0.0173515098 | M115: 0.0173515098 | N115: 0.0173515098 | O115: 0.0173515098 | P115: 0.0173515098 | Q115: 0.0173515098
A116: GaS connexion fee (€/an) | D116: 539655 | E116: 539655 | F116: 539655 | G116: 539655 | H116: 539655 | I116: 539655 | J116: 539655 | K116: 539655 | L116: 539655 | M116: 539655 | N116: 539655 | O116: 539655 | P116: 539655 | Q116: 539655
A117: GER Price | D117: 0 | E117: 0 | F117: 0 | G117: 0 | H117: 0 | I117: 0 | J117: 0 | K117: 0 | L117: 0 | M117: 0 | N117: 0 | O117: 0 | P117: 0 | Q117: 0
A118: GER Frequency (/a) | D118: 1 | E118: 1 | F118: 1 | G118: 1 | H118: 1 | I118: 1 | J118: 1 | K118: 1 | L118: 1 | M118: 1 | N118: 1 | O118: 1 | P118: 1 | Q118: 1
A119: Employees | D119: IEG status | E119: IEG status | F119: IEG status | G119: IEG status | H119: IEG status | I119: IEG status | J119: IEG status | K119: IEG status | L119: IEG status | M119: IEG status | N119: IEG status | O119: IEG status | P119: IEG status | Q119: IEG status
A120: Number of employees (Synergies Sites Existants Inclues) | D120: 50 | E120: 50 | F120: 50 | G120: 50 | H120: 50 | I120: 50 | J120: 50 | K120: 50 | L120: 50 | M120: 50 | N120: 50 | O120: 50 | P120: 50 | Q120: 50
A121: Employees Average Cost € / a | D121: 65000 | E121: 65000 | F121: 65000 | G121: 65000 | H121: 65000 | I121: 65000 | J121: 65000 | K121: 65000 | L121: 65000 | M121: 65000 | N121: 65000 | O121: 65000 | P121: 65000 | Q121: 65000
A122: trainings duration (months) | D122: 0 | E122: 0 | F122: 0 | G122: 0 | H122: 0 | I122: 0 | J122: 0 | K122: 0 | L122: 0 | M122: 0 | N122: 0 | O122: 0 | P122: 0 | Q122: 0
A123: Variable Costs €/MWh | D123: 0.2 | E123: 0.2 | F123: 0.2 | G123: 0.2 | H123: 0.2 | I123: 0.2 | J123: 0.2 | K123: 0.2 | L123: 0.2 | M123: 0.2 | N123: 0.2 | O123: 0.2 | P123: 0.2 | Q123: 0.2
A124: Other Expenses (Excepted TT,LT) (€ / a) | D124: 300000 | E124: 300000 | F124: 300000 | G124: 300000 | H124: 300000 | I124: 300000 | J124: 300000 | K124: 300000 | L124: 300000 | M124: 300000 | N124: 300000 | O124: 300000 | P124: 300000 | Q124: 300000
A125: Accidental unavailability | D125: 0.02 | E125: 0.02 | F125: 0.02 | G125: 0.02 | H125: 0.02 | I125: 0.02 | J125: 0.02 | K125: 0.02 | L125: 0.02 | M125: 0.02 | N125: 0.02 | O125: 0.02 | P125: 0.02 | Q125: 0.02
A126: Price of unavailability | D126: 1.25 | E126: 1.25 | F126: 1.25 | G126: 1.25 | H126: 1.25 | I126: 1.25 | J126: 1.25 | K126: 1.25 | L126: 1.25 | M126: 1.25 | N126: 1.25 | O126: 1.25 | P126: 1.25 | Q126: 1.25

Sheet Static Data
A3: Timing Profile | D3: =Input!D15 -> 2006 | E3: =D3+1 -> 2007 | F3: =E3+1 -> 2008 | G3: 2009 | H3: 2010 | I3: 2011 | J3: 2012 | K3: 2013 | L3: 2014 | M3: 2015 | N3: 2016 | O3: 2017 | P3: 2018 | Q3: 2019 | R3: 2020 | S3: 2021 | T3: 2022 | U3: 2023 | V3: 2024 | W3: 2025 | X3: 2026 | Y3: 2027 | Z3: 2028 | AA3: 2029 | AB3: 2030 | AC3: 2031 | AD3: 2032 | AE3: 2033 | AF3: 2034 | AG3: 2035 | AH3: 2036 | AI3: 2037 | AJ3: 2038 | AK3: 2039 | AL3: 2040 | AM3: 2041 | AN3: 2042
A4: Completion in Period | D4: =56720/451811440 -> 0.0001255390966 | E4: 0.1999 | F4: 0.45 | G4: 0.35 | H4: =0/451811440 -> 0 | I4: =0/451811440 -> 0 | J4: =0/451811440 -> 0 | K4: 0 | L4: 0 | M4: 0 | N4: 0 | O4: 0 | P4: 0 | Q4: 0 | R4: 0 | S4: 0 | T4: 0 | U4: 0 | V4: 0 | W4: 0 | X4: 0 | Y4: 0 | Z4: 0 | AA4: 0 | AB4: 0 | AC4: 0 | AD4: 0 | AE4: 0 | AF4: 0 | AG4: 0 | AH4: 0 | AI4: 0 | AJ4: 0 | AK4: 0 | AL4: 0 | AM4: 0 | AN4: 0
A5: GAS connexion payment profil | D5: 0 | E5: 0 | F5: 0 | G5: 0 | H5: 0 | I5: 0 | J5: 0 | K5: 0 | L5: 0 | M5: 0 | N5: 0 | O5: 0 | P5: 0 | Q5: 0 | R5: 0 | S5: 0 | T5: 0 | U5: 0 | V5: 0 | W5: 0 | X5: 0 | Y5: 0 | Z5: 0 | AA5: 0 | AB5: 0 | AC5: 0 | AD5: 0 | AE5: 0 | AF5: 0 | AG5: 0 | AH5: 0 | AI5: 0 | AJ5: 0 | AK5: 0 | AL5: 0 | AM5: 0 | AN5: 0
A7: Efficiency degradations (Siemens data)
A8: Cumulated Hours | D8: 0 | E8: 4150 | F8: 8300 | G8: 12450 | H8: 16600 | I8: 20750 | J8: 25000 | K8: 25001 | L8: 29150 | M8: 33000 | N8: 37450 | O8: 41000 | P8: 45000 | Q8: 50000 | R8: 50001 | S8: 54150
A9: Loss (% of 100% of Efficiency) | D9: 0 | E9: -0.007 | F9: -0.015 | G9: -0.015 | H9: -0.015 | I9: -0.015 | J9: -0.015 | K9: -0.015 | L9: -0.015 | M9: -0.015 | N9: -0.015 | O9: -0.015 | P9: -0.015 | Q9: -0.015 | R9: -0.015 | S9: -0.015
A10: Corrected efficiency | D10: =Input!$D$96*(1+'Static Data'!D9) -> 0.577 | E10: =Input!$D$96*(1+'Static Data'!E9) -> 0.572961 | F10: =Input!$D$96*(1+'Static Data'!F9) -> 0.568345 | G10: =Input!$D$96*(1+'Static Data'!G9) -> 0.568345 | H10: =Input!$D$96*(1+'Static Data'!H9) -> 0.568345 | I10: =Input!$D$96*(1+'Static Data'!I9) -> 0.568345 | J10: =Input!$D$96*(1+'Static Data'!J9) -> 0.568345 | K10: =Input!$D$96*(1+'Static Data'!K9) -> 0.568345 | L10: =Input!$D$96*(1+'Static Data'!L9) -> 0.568345 | M10: =Input!$D$96*(1+'Static Data'!M9) -> 0.568345 | N10: =Input!$D$96*(1+'Static Data'!N9) -> 0.568345 | O10: =Input!$D$96*(1+'Static Data'!O9) -> 0.568345 | P10: =Input!$D$96*(1+'Static Data'!P9) -> 0.568345 | Q10: =Input!$D$96*(1+'Static Data'!Q9) -> 0.568345 | R10: =Input!$D$96*(1+'Static Data'!R9) -> 0.568345 | S10: =Input!$D$96*(1+'Static Data'!S9) -> 0.568345
A11: Corrected Power | B11: =AVERAGE(D11:S11) -> 808.3063542 | D11: =Input!$D$95*(1+'Static Data'!D9/0.6) -> 827 | E11: =Input!$D$95*(1+'Static Data'!E9/0.6) -> 817.3516667 | F11: =Input!$D$95*(1+'Static Data'!F9/0.6) -> 806.325 | G11: =Input!$D$95*(1+'Static Data'!G9/0.6) -> 806.325 | H11: =Input!$D$95*(1+'Static Data'!H9/0.6) -> 806.325 | I11: =Input!$D$95*(1+'Static Data'!I9/0.6) -> 806.325 | J11: =Input!$D$95*(1+'Static Data'!J9/0.6) -> 806.325 | K11: =Input!$D$95*(1+'Static Data'!K9/0.6) -> 806.325 | L11: =Input!$D$95*(1+'Static Data'!L9/0.6) -> 806.325 | M11: =Input!$D$95*(1+'Static Data'!M9/0.6) -> 806.325 | N11: =Input!$D$95*(1+'Static Data'!N9/0.6) -> 806.325 | O11: =Input!$D$95*(1+'Static Data'!O9/0.6) -> 806.325 | P11: =Input!$D$95*(1+'Static Data'!P9/0.6) -> 806.325 | Q11: =Input!$D$95*(1+'Static Data'!Q9/0.6) -> 806.325 | R11: =Input!$D$95*(1+'Static Data'!R9/0.6) -> 806.325 | S11: =Input!$D$95*(1+'Static Data'!S9/0.6) -> 806.325
A13: '"Eps(ilon)" | B13: 1e-06
A15: exchange rate | D15: 2008 | E15: 2009 | F15: 2010 | G15: 2011 | H15: =G15+1 -> 2012 | I15: 2013 | J15: 2014 | K15: 2015 | L15: 2016 | M15: 2017 | N15: 2018 | O15: 2019 | P15: 2020 | Q15: 2021 | R15: 2022 | S15: 2023 | T15: 2024 | U15: 2025 | V15: 2026 | W15: 2027 | X15: 2028 | Y15: 2029 | Z15: 2030 | AA15: 2031 | AB15: 2032 | AC15: 2033 | AD15: 2034
A16: $ pour 1 € | D16: 1.15 | E16: 1.125 | F16: 1.1 | G16: 1.1 | H16: 1.1 | I16: 1.1 | J16: 1.1 | K16: 1.1 | L16: 1.1 | M16: 1.1 | N16: 1.1 | O16: 1.1 | P16: 1.1 | Q16: 1.1 | R16: 1.1 | S16: 1.1 | T16: 1.1 | U16: 1.1 | V16: 1.1 | W16: 1.1 | X16: 1.1 | Y16: 1.1 | Z16: 1.1 | AA16: 1.1 | AB16: 1.1 | AC16: 1.1 | AD16: 1.1
A17: £ pour 1 € | D17: 1.422 | E17: 1.422 | F17: 1.422 | G17: 1.422 | H17: 1.422 | I17: 1.422 | J17: 1.422 | K17: 1.422 | L17: 1.422 | M17: 1.422 | N17: 1.422 | O17: 1.422 | P17: 1.422 | Q17: 1.422 | R17: 1.422 | S17: 1.422 | T17: 1.422 | U17: 1.422 | V17: 1.422 | W17: 1.422 | X17: 1.422 | Y17: 1.422 | Z17: 1.422 | AA17: 1.422 | AB17: 1.422 | AC17: 1.422 | AD17: 1.422
A38: MWh | B38: 2930 | C38: Th
A39: Calorific Power value | B39: 6000 | C39: kCal/Kg
A41: €/MWh | B41: =B38/D17/1000 -> 2.0604782 | C41: p/Th
A44: CO2 | B44: 365 | C44: g/kWh
A46: conversion fumée à 100% eff | B46: 0.72 | C46: Nm3/Kwhe

Sheet Fuel Prices
E1: Fuel Sheet | H1: =Input!H6 -> 0.09025597814
C3: Total
C4: Average | E4: Pre Période | F4: =Input!D15 -> 2006 | G4: =F4+1 -> 2007 | H4: =G4+1 -> 2008 | I4: 2009 | J4: 2010 | K4: 2011 | L4: 2012 | M4: 2013 | N4: 2014 | O4: 2015 | P4: 2016 | Q4: 2017 | R4: 2018 | S4: 2019 | T4: 2020 | U4: 2021 | V4: 2022 | W4: 2023 | X4: 2024 | Y4: 2025 | Z4: 2026 | AA4: 2027 | AB4: 2028 | AC4: 2029 | AD4: 2030 | AE4: 2031 | AF4: 2032 | AG4: 2033 | AH4: 2034 | AI4: 2035 | AJ4: 2036 | AK4: 2037 | AL4: 2038 | AM4: 2039 | AN4: 2040 | AO4: 2041 | AP4: 2042
C5: Maximum | E5: Single Counter | F5: 1 | G5: 2 | H5: 3 | I5: 4 | J5: 5 | K5: 6 | L5: 7 | M5: 8 | N5: 9 | O5: 10 | P5: 11 | Q5: 12 | R5: 13 | S5: 14 | T5: 15 | U5: 16 | V5: 17 | W5: 18 | X5: 19 | Y5: 20 | Z5: 21 | AA5: 22 | AB5: 23 | AC5: 24 | AD5: 25 | AE5: 26 | AF5: 27 | AG5: 28 | AH5: 29 | AI5: 30 | AJ5: 31 | AK5: 32 | AL5: 33 | AM5: 34 | AN5: 35 | AO5: 36 | AP5: 37
A7: GAS (p/Th)
A8: TTF -10% | B8: 1 | F8: =F11/1.01 -> 56.43564356 | G8: =G11/1.01 -> 58.2945913 | H8: 55.54669811 | I8: 52.995083 | J8: 51.03230215 | K8: 49.0695213 | L8: 47.10674044 | M8: 47.10674044 | N8: 47.10674044 | O8: 47.10674044 | P8: 47.10674044 | Q8: 47.10674044 | R8: 47.10674044 | S8: 47.10674044 | T8: 47.10674044 | U8: 47.10674044 | V8: 47.10674044 | W8: 47.10674044 | X8: 47.10674044 | Y8: 47.10674044 | Z8: 47.10674044 | AA8: 47.10674044 | AB8: 47.10674044 | AC8: 47.10674044 | AD8: 47.10674044 | AE8: 47.10674044 | AF8: 47.10674044 | AG8: 47.10674044 | AH8: 47.10674044 | AI8: 47.10674044 | AJ8: 47.10674044 | AK8: 47.10674044 | AL8: 47.10674044 | AM8: 47.10674044 | AN8: 47.10674044 | AO8: 47.10674044 | AP8: 47.10674044
A9: Scen Gaz SOREGIES CATA | B9: 2 | F9: 44.2 | G9: =F9 -> 44.2 | H9: =G9 -> 44.2 | I9: 44.2 | J9: 44.2 | K9: 44.2 | L9: 44.2 | M9: 44.2 | N9: 44.2 | O9: 44.2 | P9: 44.2 | Q9: 44.2 | R9: 44.2 | S9: 44.2 | T9: 44.2 | U9: 44.2 | V9: 44.2 | W9: 44.2 | X9: 44.2 | Y9: 44.2 | Z9: 44.2 | AA9: 44.2 | AB9: 44.2 | AC9: 44.2 | AD9: 44.2 | AE9: 44.2 | AF9: 44.2 | AG9: 44.2 | AH9: 44.2 | AI9: 44.2 | AJ9: 44.2 | AK9: 44.2 | AL9: 44.2 | AM9: 44.2 | AN9: 44.2 | AO9: 44.2 | AP9: 44.2
A10: brent ENDESA | B10: 3 | F10: 34.0899348 | G10: 33.06858543 | H10: 32.36354543 | I10: 31.79972644 | J10: 31.79972644 | K10: 31.79972644 | L10: 31.79972644 | M10: 31.79972644 | N10: =M10 -> 31.79972644 | O10: 31.79972644 | P10: 31.79972644 | Q10: 31.79972644 | R10: 31.79972644 | S10: 31.79972644 | T10: 31.79972644 | U10: 31.79972644 | V10: 31.79972644 | W10: 31.79972644 | X10: 31.79972644 | Y10: 31.79972644 | Z10: 31.79972644 | AA10: 31.79972644 | AB10: 31.79972644 | AC10: 31.79972644 | AD10: 31.79972644 | AE10: 31.79972644 | AF10: 31.79972644 | AG10: 31.79972644 | AH10: 31.79972644 | AI10: 31.79972644 | AJ10: 31.79972644 | AK10: 31.79972644 | AL10: 31.79972644 | AM10: 31.79972644 | AN10: 31.79972644 | AO10: 31.79972644 | AP10: 31.79972644
A11: TTF | B11: 4 | F11: 57 | G11: 58.87753721 | H11: 56.10216509 | I11: 53.52503383 | J11: 51.54262517 | K11: 49.56021651 | L11: 47.57780785 | M11: =L11 -> 47.57780785 | N11: 47.57780785 | O11: 47.57780785 | P11: 47.57780785 | Q11: 47.57780785 | R11: 47.57780785 | S11: 47.57780785 | T11: 47.57780785 | U11: 47.57780785 | V11: 47.57780785 | W11: 47.57780785 | X11: 47.57780785 | Y11: 47.57780785 | Z11: 47.57780785 | AA11: 47.57780785 | AB11: 47.57780785 | AC11: 47.57780785 | AD11: 47.57780785 | AE11: 47.57780785 | AF11: 47.57780785 | AG11: 47.57780785 | AH11: 47.57780785 | AI11: 47.57780785 | AJ11: 47.57780785 | AK11: 47.57780785 | AL11: 47.57780785 | AM11: 47.57780785 | AN11: 47.57780785 | AO11: 47.57780785 | AP11: 47.57780785
A12: ZEE | B12: 5 | F12: 40 | G12: 40 | H12: 40.2 | I12: 40.8 | J12: 41.75 | K12: 42.7 | L12: 42.5 | M12: 42.5 | N12: 42.5 | O12: 42.5 | P12: 42.5 | Q12: 42.5 | R12: 42.5 | S12: 42.5 | T12: 42.5 | U12: 42.5 | V12: 42.5 | W12: 42.5 | X12: 42.5 | Y12: 42.5 | Z12: 42.5 | AA12: 42.5 | AB12: 42.5 | AC12: 42.5 | AD12: 42.5 | AE12: 42.5 | AF12: 42.5 | AG12: 42.5 | AH12: 42.5 | AI12: 42.5 | AJ12: 42.5 | AK12: 42.5 | AL12: 42.5 | AM12: 42.5 | AN12: 42.5 | AO12: 42.5 | AP12: 42.5
A13: NBP | B13: 6 | F13: 66.1 | G13: 60.6 | H13: 57.05 | I13: 53.9 | J13: 51.9 | K13: 49.8 | L13: 48 | M13: =L13 -> 48 | N13: 48 | O13: 48 | P13: 48 | Q13: 48 | R13: 48 | S13: 48 | T13: 48 | U13: 48 | V13: 48 | W13: 48 | X13: 48 | Y13: 48 | Z13: 48 | AA13: 48 | AB13: 48 | AC13: 48 | AD13: 48 | AE13: 48 | AF13: 48 | AG13: 48 | AH13: 48 | AI13: 48 | AJ13: 48 | AK13: 48 | AL13: 48 | AM13: 48 | AN13: 48 | AO13: 48 | AP13: 48
A14: Scen ENDESA POA-PM | B14: 7 | F14: 56.92 | G14: 56.92 | H14: 56.92 | I14: 56.92 | J14: 56.92 | K14: 56.92 | L14: 56.92 | M14: 56.92 | N14: 56.92 | O14: 56.92 | P14: 56.92 | Q14: 56.92 | R14: 56.92 | S14: 56.92 | T14: 56.92 | U14: 56.92 | V14: 56.92 | W14: 56.92 | X14: 56.92 | Y14: 56.92 | Z14: 56.92 | AA14: 56.92 | AB14: 56.92 | AC14: 56.92 | AD14: 56.92 | AE14: 56.92 | AF14: 56.92 | AG14: 56.92 | AH14: 56.92 | AI14: 56.92 | AJ14: 56.92 | AK14: 56.92 | AL14: 56.92 | AM14: 56.92 | AN14: 56.92 | AO14: 56.92 | AP14: 56.92
A15: Scen Gas 8 | B15: 8 | F15: 49.904782 | G15: 49.904782 | H15: 49.904782 | I15: 49.904782 | J15: 49.904782 | K15: 49.904782 | L15: 49.904782 | M15: 49.904782 | N15: 49.904782 | O15: 49.904782 | P15: 49.904782 | Q15: 49.904782 | R15: 49.904782 | S15: 49.904782 | T15: 49.904782 | U15: 49.904782 | V15: 49.904782 | W15: 49.904782 | X15: 49.904782 | Y15: 49.904782 | Z15: 49.904782 | AA15: 49.904782 | AB15: 49.904782 | AC15: 49.904782 | AD15: 49.904782 | AE15: 49.904782 | AF15: 49.904782 | AG15: 49.904782 | AH15: 49.904782 | AI15: 49.904782 | AJ15: 49.904782 | AK15: 49.904782 | AL15: 49.904782 | AM15: 49.904782 | AN15: 49.904782 | AO15: 49.904782 | AP15: 49.904782
A16: Scen Gas 9 | B16: 9 | F16: 32.57616034 | G16: 32.57616034 | H16: 32.57616034 | I16: 32.57616034 | J16: 32.57616034 | K16: 32.57616034 | L16: 32.57616034 | M16: 32.57616034 | N16: 32.57616034 | O16: 32.57616034 | P16: 32.57616034 | Q16: 32.57616034 | R16: 32.57616034 | S16: 32.57616034 | T16: 32.57616034 | U16: 32.57616034 | V16: 32.57616034 | W16: 32.57616034 | X16: 32.57616034 | Y16: 32.57616034 | Z16: 32.57616034 | AA16: 32.57616034 | AB16: 32.57616034 | AC16: 32.57616034 | AD16: 32.57616034 | AE16: 32.57616034 | AF16: 32.57616034 | AG16: 32.57616034 | AH16: 32.57616034 | AI16: 32.57616034 | AJ16: 32.57616034 | AK16: 32.57616034 | AL16: 32.57616034 | AM16: 32.57616034 | AN16: 32.57616034 | AO16: 32.57616034 | AP16: 32.57616034
A17: ENDESA EU | B17: 10 | F17: 0 | G17: 0 | H17: 0 | I17: 0 | J17: 47.97331802 | K17: 49.36252327 | L17: 50.0437552 | M17: 50.1540383 | N17: 50.04056676 | O17: 50.30790081 | P17: 50.27844891 | Q17: 49.97579566 | R17: 50.16237539 | S17: 50.33370471 | T17: 49.94398563 | U17: 49.94398563 | V17: 50.09764412 | W17: 49.94398563 | X17: 49.94398563 | Y17: 49.94547904 | Z17: 49.94547904 | AA17: 49.94547904 | AB17: 49.94547904 | AC17: 49.94547904 | AD17: 49.94547904 | AE17: 49.94547904 | AF17: 49.94547904 | AG17: 49.94547904 | AH17: 49.94547904 | AI17: 49.94547904 | AJ17: 49.94547904 | AK17: 49.94547904 | AL17: 49.94547904 | AM17: 49.94547904 | AN17: 49.94547904 | AO17: 49.94547904 | AP17: 49.94547904
A19: TICGN (€/MWh) | F19: 0 | G19: 0 | H19: 0 | I19: 0 | J19: 0 | K19: 0 | L19: 0 | M19: 0 | N19: 0 | O19: 0 | P19: 0 | Q19: 0 | R19: 0 | S19: 0 | T19: 0 | U19: 0 | V19: 0 | W19: 0 | X19: 0 | Y19: 0 | Z19: 0 | AA19: 0 | AB19: 0 | AC19: 0 | AD19: 0 | AE19: 0 | AF19: 0 | AG19: 0 | AH19: 0 | AI19: 0 | AJ19: 0 | AK19: 0 | AL19: 0 | AM19: 0 | AN19: 0 | AO19: 0 | AP19: 0
A20: Total Gas Price (€/MWh) | B20: =INDEX(B8:B17,Input!D81) -> 2 | C20: =AVERAGE(J20:AP20) -> 21.45133106 | F20: =INDEX($F$8:$AP$17,$B$20,F$5)/'Static Data'!$B$41 -> 21.45133106 | G20: =INDEX($F$8:$AP$17,$B$20,G$5)/'Static Data'!$B$41 -> 21.45133106 | H20: =INDEX($F$8:$AP$17,$B$20,H$5)/'Static Data'!$B$41 -> 21.45133106 | I20: =INDEX($F$8:$AP$17,$B$20,I$5)/'Static Data'!$B$41 -> 21.45133106 | J20: =INDEX($F$8:$AP$17,$B$20,J$5)/'Static Data'!$B$41 -> 21.45133106 | K20: =INDEX($F$8:$AP$17,$B$20,K$5)/'Static Data'!$B$41 -> 21.45133106 | L20: =INDEX($F$8:$AP$17,$B$20,L$5)/'Static Data'!$B$41 -> 21.45133106 | M20: =INDEX($F$8:$AP$17,$B$20,M$5)/'Static Data'!$B$41 -> 21.45133106 | N20: =INDEX($F$8:$AP$17,$B$20,N$5)/'Static Data'!$B$41 -> 21.45133106 | O20: =INDEX($F$8:$AP$17,$B$20,O$5)/'Static Data'!$B$41 -> 21.45133106 | P20: =INDEX($F$8:$AP$17,$B$20,P$5)/'Static Data'!$B$41 -> 21.45133106 | Q20: =INDEX($F$8:$AP$17,$B$20,Q$5)/'Static Data'!$B$41 -> 21.45133106 | R20: =INDEX($F$8:$AP$17,$B$20,R$5)/'Static Data'!$B$41 -> 21.45133106 | S20: =INDEX($F$8:$AP$17,$B$20,S$5)/'Static Data'!$B$41 -> 21.45133106 | T20: =INDEX($F$8:$AP$17,$B$20,T$5)/'Static Data'!$B$41 -> 21.45133106 | U20: =INDEX($F$8:$AP$17,$B$20,U$5)/'Static Data'!$B$41 -> 21.45133106 | V20: =INDEX($F$8:$AP$17,$B$20,V$5)/'Static Data'!$B$41 -> 21.45133106 | W20: =INDEX($F$8:$AP$17,$B$20,W$5)/'Static Data'!$B$41 -> 21.45133106 | X20: =INDEX($F$8:$AP$17,$B$20,X$5)/'Static Data'!$B$41 -> 21.45133106 | Y20: =INDEX($F$8:$AP$17,$B$20,Y$5)/'Static Data'!$B$41 -> 21.45133106 | Z20: =INDEX($F$8:$AP$17,$B$20,Z$5)/'Static Data'!$B$41 -> 21.45133106 | AA20: =INDEX($F$8:$AP$17,$B$20,AA$5)/'Static Data'!$B$41 -> 21.45133106 | AB20: =INDEX($F$8:$AP$17,$B$20,AB$5)/'Static Data'!$B$41 -> 21.45133106 | AC20: =INDEX($F$8:$AP$17,$B$20,AC$5)/'Static Data'!$B$41 -> 21.45133106 | AD20: =INDEX($F$8:$AP$17,$B$20,AD$5)/'Static Data'!$B$41 -> 21.45133106 | AE20: =INDEX($F$8:$AP$17,$B$20,AE$5)/'Static Data'!$B$41 -> 21.45133106 | AF20: =INDEX($F$8:$AP$17,$B$20,AF$5)/'Static Data'!$B$41 -> 21.45133106 | AG20: =INDEX($F$8:$AP$17,$B$20,AG$5)/'Static Data'!$B$41 -> 21.45133106 | AH20: =INDEX($F$8:$AP$17,$B$20,AH$5)/'Static Data'!$B$41 -> 21.45133106 | AI20: =INDEX($F$8:$AP$17,$B$20,AI$5)/'Static Data'!$B$41 -> 21.45133106 | AJ20: =INDEX($F$8:$AP$17,$B$20,AJ$5)/'Static Data'!$B$41 -> 21.45133106 | AK20: =INDEX($F$8:$AP$17,$B$20,AK$5)/'Static Data'!$B$41 -> 21.45133106 | AL20: =INDEX($F$8:$AP$17,$B$20,AL$5)/'Static Data'!$B$41 -> 21.45133106 | AM20: =INDEX($F$8:$AP$17,$B$20,AM$5)/'Static Data'!$B$41 -> 21.45133106 | AN20: =INDEX($F$8:$AP$17,$B$20,AN$5)/'Static Data'!$B$41 -> 21.45133106 | AO20: =INDEX($F$8:$AP$17,$B$20,AO$5)/'Static Data'!$B$41 -> 21.45133106 | AP20: =INDEX($F$8:$AP$17,$B$20,AP$5)/'Static Data'!$B$41 -> 21.45133106
A22: CO2 allocation rate (t/an)
A23: PNAQ2 | B23: 1 | H23: =4500*Input!$D$95*'Static Data'!$B$44/1000 -> 1358347.5 | I23: =4500*Input!$D$95*'Static Data'!$B$44/1000 -> 1358347.5 | J23: =4500*Input!$D$95*'Static Data'!$B$44/1000 -> 1358347.5 | K23: =4500*Input!$D$95*'Static Data'!$B$44/1000 -> 1358347.5 | L23: =4500*Input!$D$95*'Static Data'!$B$44/1000 -> 1358347.5 | M23: =4500*Input!$D$95*'Static Data'!$B$44/1000 -> 1358347.5 | N23: =4500*Input!$D$95*'Static Data'!$B$44/1000 -> 1358347.5 | O23: =4500*Input!$D$95*'Static Data'!$B$44/1000 -> 1358347.5 | P23: =4500*Input!$D$95*'Static Data'!$B$44/1000 -> 1358347.5 | Q23: =4500*Input!$D$95*'Static Data'!$B$44/1000 -> 1358347.5 | R23: =4500*Input!$D$95*'Static Data'!$B$44/1000 -> 1358347.5 | S23: =4500*Input!$D$95*'Static Data'!$B$44/1000 -> 1358347.5 | T23: =4500*Input!$D$95*'Static Data'!$B$44/1000 -> 1358347.5 | U23: =4500*Input!$D$95*'Static Data'!$B$44/1000 -> 1358347.5 | V23: =4500*Input!$D$95*'Static Data'!$B$44/1000 -> 1358347.5 | W23: =4500*Input!$D$95*'Static Data'!$B$44/1000 -> 1358347.5 | X23: =4500*Input!$D$95*'Static Data'!$B$44/1000 -> 1358347.5 | Y23: =4500*Input!$D$95*'Static Data'!$B$44/1000 -> 1358347.5 | Z23: =4500*Input!$D$95*'Static Data'!$B$44/1000 -> 1358347.5 | AA23: =4500*Input!$D$95*'Static Data'!$B$44/1000 -> 1358347.5 | AB23: =4500*Input!$D$95*'Static Data'!$B$44/1000 -> 1358347.5 | AC23: =4500*Input!$D$95*'Static Data'!$B$44/1000 -> 1358347.5 | AD23: =4500*Input!$D$95*'Static Data'!$B$44/1000 -> 1358347.5 | AE23: =4500*Input!$D$95*'Static Data'!$B$44/1000 -> 1358347.5 | AF23: =4500*Input!$D$95*'Static Data'!$B$44/1000 -> 1358347.5 | AG23: =4500*Input!$D$95*'Static Data'!$B$44/1000 -> 1358347.5 | AH23: =4500*Input!$D$95*'Static Data'!$B$44/1000 -> 1358347.5 | AI23: =4500*Input!$D$95*'Static Data'!$B$44/1000 -> 1358347.5 | AJ23: =4500*Input!$D$95*'Static Data'!$B$44/1000 -> 1358347.5 | AK23: =4500*Input!$D$95*'Static Data'!$B$44/1000 -> 1358347.5 | AL23: =4500*Input!$D$95*'Static Data'!$B$44/1000 -> 1358347.5 | AM23: =4500*Input!$D$95*'Static Data'!$B$44/1000 -> 1358347.5 | AN23: =4500*Input!$D$95*'Static Data'!$B$44/1000 -> 1358347.5 | AO23: =4500*Input!$D$95*'Static Data'!$B$44/1000 -> 1358347.5 | AP23: =4500*Input!$D$95*'Static Data'!$B$44/1000 -> 1358347.5
A24: Prudence | B24: 2 | H24: 1168000 | I24: 1168000 | J24: 1168000 | K24: 1168000 | L24: 1168000 | M24: 1168000 | N24: 1168000 | O24: 1168000 | P24: 1168000 | Q24: 1168000 | R24: 1168000 | S24: 1168000 | T24: 1168000 | U24: 1168000 | V24: 1168000 | W24: 1168000 | X24: 1168000 | Y24: 1168000 | Z24: 1168000 | AA24: 1168000 | AB24: 1168000 | AC24: 1168000 | AD24: 1168000 | AE24: 1168000 | AF24: 1168000 | AG24: 1168000 | AH24: 1168000 | AI24: 1168000 | AJ24: 1168000 | AK24: 1168000 | AL24: 1168000 | AM24: 1168000 | AN24: 1168000 | AO24: 1168000 | AP24: 1168000
A25: 60% en 2034 | B25: 3 | H25: 1343565 | I25: 1343565 | J25: 1343565 | K25: =($J$25-$AH$25)/($J$5-$AH$5)*K5+($J$5*$AH$25-$AH$5*$J$25)/($J$5-$AH$5) -> 1321172.25 | L25: =($J$25-$AH$25)/($J$5-$AH$5)*L5+($J$5*$AH$25-$AH$5*$J$25)/($J$5-$AH$5) -> 1298779.5 | M25: 1276386.75 | N25: 1253994 | O25: 1231601.25 | P25: 1209208.5 | Q25: 1186815.75 | R25: 1164423 | S25: 1142030.25 | T25: 1119637.5 | U25: 1097244.75 | V25: 1074852 | W25: 1052459.25 | X25: 1030066.5 | Y25: 1007673.75 | Z25: 985281 | AA25: 962888.25 | AB25: 940495.5 | AC25: 918102.75 | AD25: 895710 | AE25: 873317.25 | AF25: 850924.5 | AG25: 828531.75 | AH25: 806139 | AI25: 806139 | AJ25: 806139 | AK25: 806139 | AL25: 806139 | AM25: 806139 | AN25: 806139 | AO25: 806139 | AP25: 806139
A26: ENDESA EU | B26: 4 | H26: =4500*Input!$D$95*'Static Data'!$B$44/1000 -> 1358347.5 | I26: =4500*Input!$D$95*'Static Data'!$B$44/1000 -> 1358347.5 | J26: =4500*Input!$D$95*'Static Data'!$B$44/1000 -> 1358347.5 | K26: =4500*Input!$D$95*'Static Data'!$B$44/1000 -> 1358347.5 | L26: =4500*Input!$D$95*'Static Data'!$B$44/1000 -> 1358347.5 | M26: =$L$26/2 -> 679173.75 | N26: =$L$26/2 -> 679173.75 | O26: 679173.75 | P26: 679173.75 | Q26: 679173.75 | R26: 679173.75 | S26: 679173.75 | T26: 679173.75 | U26: 679173.75 | V26: 679173.75 | W26: 679173.75 | X26: 679173.75 | Y26: 679173.75 | Z26: 679173.75 | AA26: 679173.75 | AB26: 679173.75 | AC26: 679173.75 | AD26: 679173.75 | AE26: 679173.75 | AF26: 679173.75 | AG26: 679173.75 | AH26: 679173.75 | AI26: 679173.75 | AJ26: 679173.75 | AK26: 679173.75 | AL26: 679173.75 | AM26: 679173.75 | AN26: 679173.75 | AO26: 679173.75 | AP26: 679173.75
B27: 5
B28: 6
B29: 7
B30: 8
B31: 9
B32: 10
A34: Allocation profil for operation sheet | B34: =Input!D85 -> 1 | C34: =AVERAGE(J34:AP34) -> 1358347.5 | F34: =INDEX($F$23:$AP$32,$B$34,F$5) -> 0 | G34: 0 | H34: 1358347.5 | I34: 1358347.5 | J34: 1358347.5 | K34: 1358347.5 | L34: 1358347.5 | M34: 1358347.5 | N34: 1358347.5 | O34: 1358347.5 | P34: 1358347.5 | Q34: 1358347.5 | R34: 1358347.5 | S34: 1358347.5 | T34: 1358347.5 | U34: 1358347.5 | V34: 1358347.5 | W34: 1358347.5 | X34: 1358347.5 | Y34: 1358347.5 | Z34: 1358347.5 | AA34: 1358347.5 | AB34: 1358347.5 | AC34: 1358347.5 | AD34: 1358347.5 | AE34: 1358347.5 | AF34: 1358347.5 | AG34: 1358347.5 | AH34: 1358347.5 | AI34: 1358347.5 | AJ34: 1358347.5 | AK34: 1358347.5 | AL34: 1358347.5 | AM34: 1358347.5 | AN34: 1358347.5 | AO34: 1358347.5 | AP34: 1358347.5
A36: CO2 market prices (€/t)
A37: tendance PWNXT 2007 | B37: 1 | F37: 17.3 | G37: 15 | H37: 15 | I37: 15.5 | J37: 16.6 | K37: 17.4 | L37: 18 | M37: 17.9 | N37: 17.9 | O37: 17.7 | P37: 17.9 | Q37: 16.9 | R37: 17.4 | S37: 17.6 | T37: 17.6 | U37: 17.2 | V37: 17.9 | W37: 18.2 | X37: 18.7 | Y37: 19.3 | Z37: 19.3 | AA37: 19.3 | AB37: 20 | AC37: 20.3 | AD37: 21.2 | AE37: 21.4 | AF37: 21.2 | AG37: 21.5 | AH37: 21.7 | AI37: 21.2 | AJ37: 21.5 | AK37: 21.9 | AL37: 22.5 | AM37: 21.7 | AN37: 22.8 | AO37: 22.8 | AP37: 23
A38: coût captage/stockage | B38: 2 | F38: 17.3 | G38: 15 | H38: 15 | I38: =((I5-$H$5)*$T$38+($T$5-I5)*$H$38)/($T$5-$H$5) -> 16.66666667 | J38: =((J5-$H$5)*$T$38+($T$5-J5)*$H$38)/($T$5-$H$5) -> 18.33333333 | K38: 20 | L38: 21.66666667 | M38: 23.33333333 | N38: 25 | O38: 26.66666667 | P38: 28.33333333 | Q38: 30 | R38: 31.66666667 | S38: 33.33333333 | T38: 35 | U38: 35 | V38: 35 | W38: 35 | X38: 35 | Y38: 35 | Z38: 35 | AA38: 35 | AB38: 35 | AC38: 35 | AD38: 35 | AE38: 35 | AF38: 35 | AG38: 35 | AH38: 35 | AI38: 35 | AJ38: 35 | AK38: 35 | AL38: 35 | AM38: 35 | AN38: 35 | AO38: 35 | AP38: 35
A39: ENDESA EU | B39: 3 | F39: 0 | G39: 0 | H39: 0 | I39: 0 | J39: 27.4782411 | K39: 27.99466849 | L39: 27.99466849 | M39: 27.99466849 | N39: 27.99466849 | O39: 27.99466849 | P39: 27.99466849 | Q39: 27.99466849 | R39: 27.99466849 | S39: 27.99466849 | T39: 27.99466849 | U39: 27.99466849 | V39: 27.99466849 | W39: 27.99466849 | X39: 27.99466849 | Y39: 27.99466849 | Z39: 27.99466849 | AA39: 27.99466849 | AB39: 27.99466849 | AC39: 27.99466849 | AD39: 27.99466849 | AE39: 27.99466849 | AF39: 27.99466849 | AG39: 27.99466849 | AH39: 27.99466849 | AI39: 27.99466849 | AJ39: 27.99466849 | AK39: 27.99466849 | AL39: 27.99466849 | AM39: 27.99466849 | AN39: 27.99466849 | AO39: 27.99466849 | AP39: 27.99466849
B40: 4
B41: 5
B42: 6
B43: 7
B44: 8
B45: 9
B46: 10
A48: CO2 cost profil for operation sheet | B48: =Input!D86 -> 1 | C48: =AVERAGE(J48:AP48) -> 19.62121212 | F48: =INDEX($F$37:$AP$46,$B$48,F$5) -> 17.3 | G48: 15 | H48: 15 | I48: 15.5 | J48: 16.6 | K48: 17.4 | L48: 18 | M48: 17.9 | N48: 17.9 | O48: 17.7 | P48: 17.9 | Q48: 16.9 | R48: 17.4 | S48: 17.6 | T48: 17.6 | U48: 17.2 | V48: 17.9 | W48: 18.2 | X48: 18.7 | Y48: 19.3 | Z48: 19.3 | AA48: 19.3 | AB48: 20 | AC48: 20.3 | AD48: 21.2 | AE48: 21.4 | AF48: 21.2 | AG48: 21.5 | AH48: 21.7 | AI48: 21.2 | AJ48: 21.5 | AK48: 21.9 | AL48: 22.5 | AM48: 21.7 | AN48: 22.8 | AO48: 22.8 | AP48: 23

Sheet Sale Prices
E1: Sales Sheet | G1: =Input!H6 -> 0.09025597814 | I1: 0.9346193688
C3: Total
C4: Average | E4: Pre Période | F4: =Input!D15 -> 2006 | G4: =F4+1 -> 2007 | H4: =G4+1 -> 2008 | I4: 2009 | J4: 2010 | K4: 2011 | L4: 2012 | M4: 2013 | N4: 2014 | O4: 2015 | P4: 2016 | Q4: 2017 | R4: 2018 | S4: 2019 | T4: 2020 | U4: 2021 | V4: 2022 | W4: 2023 | X4: 2024 | Y4: =X4+1 -> 2025 | Z4: 2026 | AA4: 2027 | AB4: =AA4+1 -> 2028 | AC4: 2029 | AD4: 2030 | AE4: 2031 | AF4: 2032 | AG4: 2033 | AH4: 2034 | AI4: 2035 | AJ4: 2036 | AK4: 2037 | AL4: 2038 | AM4: 2039 | AN4: 2040 | AO4: 2041 | AP4: 2042
C5: Maximum | E5: Single Counter | F5: 1 | G5: 2 | H5: 3 | I5: 4 | J5: 5 | K5: 6 | L5: 7 | M5: 8 | N5: 9 | O5: 10 | P5: 11 | Q5: 12 | R5: 13 | S5: 14 | T5: 15 | U5: 16 | V5: 17 | W5: 18 | X5: 19 | Y5: 20 | Z5: 21 | AA5: 22 | AB5: 23 | AC5: 24 | AD5: 25 | AE5: 26 | AF5: 27 | AG5: 28 | AH5: 29 | AI5: 30 | AJ5: 31 | AK5: 32 | AL5: 33 | AM5: 34 | AN5: 35 | AO5: 36 | AP5: 37
A7: Electricity
A9: Balancing Market
A10: Upwards | C10: 0
A11: Downwards | C11: 0
A12: Upwards-probability existence | C12: 0
A13: Downwards-probaility existence | C13: 0
A14: Probaility being dispatched | C14: 0
A16: SSY Market in € | F16: 0 | G16: =F16 -> 0 | H16: =G16 -> 0 | I16: 0 | J16: 0 | K16: 0 | L16: 0 | M16: 0 | N16: 0 | O16: 0 | P16: 0 | Q16: 0 | R16: 0 | S16: 0 | T16: 0 | U16: 0 | V16: 0 | W16: 0 | X16: 0 | Y16: 0 | Z16: 0 | AA16: 0 | AB16: 0 | AC16: 0 | AD16: 0 | AE16: 0 | AF16: 0 | AG16: 0 | AH16: 0 | AI16: 0 | AJ16: 0 | AK16: 0 | AL16: 0 | AM16: 0 | AN16: 0 | AO16: 0 | AP16: 0
A19: Equivalent hours at maximum power (2 weeks maintenance considered, no accidental unavailability considered)
A21: 4500 h - meilleurs Base LOAD | B21: 1 | F21: 0 | G21: 0 | H21: 0 | I21: 4500 | J21: 4500 | K21: 4500 | L21: 4500 | M21: 4500 | N21: 4500 | O21: 4500 | P21: 4500 | Q21: 4500 | R21: 4500 | S21: 4500 | T21: 4500 | U21: 4500 | V21: 4500 | W21: 4500 | X21: 4500 | Y21: 4500 | Z21: 4500 | AA21: 4500 | AB21: 4500 | AC21: 4500 | AD21: 4500 | AE21: 4500 | AF21: 4500 | AG21: 4500 | AH21: 4500 | AI21: 4500 | AJ21: 4500 | AK21: 4500 | AL21: 4500 | AM21: 4500 | AN21: 4500 | AO21: 4500 | AP21: 4500
A22: 4500 h - Hypothèse Moyenne | B22: 2 | F22: 0 | G22: 0 | H22: 0 | I22: 4500 | J22: 4500 | K22: 4500 | L22: 4500 | M22: 4500 | N22: 4500 | O22: 4500 | P22: 4500 | Q22: 4500 | R22: 4500 | S22: 4500 | T22: 4500 | U22: 4500 | V22: 4500 | W22: 4500 | X22: 4500 | Y22: 4500 | Z22: 4500 | AA22: 4500 | AB22: 4500 | AC22: 4500 | AD22: 4500 | AE22: 4500 | AF22: 4500 | AG22: 4500 | AH22: 4500 | AI22: 4500 | AJ22: 4500 | AK22: 4500 | AL22: 4500 | AM22: 4500 | AN22: 4500 | AO22: 4500 | AP22: 4500
A23: 4500 h - meilleurs H8-H24 | B23: 3 | F23: 0 | G23: 0 | H23: 0 | I23: 4500 | J23: 4500 | K23: 4500 | L23: 4500 | M23: 4500 | N23: 4500 | O23: 4500 | P23: 4500 | Q23: 4500 | R23: 4500 | S23: 4500 | T23: 4500 | U23: 4500 | V23: 4500 | W23: 4500 | X23: 4500 | Y23: 4500 | Z23: 4500 | AA23: 4500 | AB23: 4500 | AC23: 4500 | AD23: 4500 | AE23: 4500 | AF23: 4500 | AG23: 4500 | AH23: 4500 | AI23: 4500 | AJ23: 4500 | AK23: 4500 | AL23: 4500 | AM23: 4500 | AN23: 4500 | AO23: 4500 | AP23: 4500
A24: 4500 h - scénario 1 SDM | B24: 4 | F24: 0 | G24: 0 | H24: 0 | I24: 4500 | J24: 4500 | K24: 4500 | L24: 4500 | M24: 4500 | N24: 4500 | O24: 4500 | P24: 4500 | Q24: 4500 | R24: 4500 | S24: 4500 | T24: 4500 | U24: 4500 | V24: 4500 | W24: 4500 | X24: 4500 | Y24: 4500 | Z24: 4500 | AA24: 4500 | AB24: 4500 | AC24: 4500 | AD24: 4500 | AE24: 4500 | AF24: 4500 | AG24: 4500 | AH24: 4500 | AI24: 4500 | AJ24: 4500 | AK24: 4500 | AL24: 4500 | AM24: 4500 | AN24: 4500 | AO24: 4500 | AP24: 4500
A25: 4500 h - scénario 2 SDM | B25: 5 | F25: 0 | G25: 0 | H25: 0 | I25: 4500 | J25: 4500 | K25: 4500 | L25: 4500 | M25: 4500 | N25: 4500 | O25: 4500 | P25: 4500 | Q25: 4500 | R25: 4500 | S25: 4500 | T25: 4500 | U25: 4500 | V25: 4500 | W25: 4500 | X25: 4500 | Y25: 4500 | Z25: 4500 | AA25: 4500 | AB25: 4500 | AC25: 4500 | AD25: 4500 | AE25: 4500 | AF25: 4500 | AG25: 4500 | AH25: 4500 | AI25: 4500 | AJ25: 4500 | AK25: 4500 | AL25: 4500 | AM25: 4500 | AN25: 4500 | AO25: 4500 | AP25: 4500
A26: 4200 h - meilleurs H8-H24 | B26: 6 | F26: 0 | G26: 0 | H26: 0 | I26: 4200 | J26: 4200 | K26: 4200 | L26: 4200 | M26: 4200 | N26: 4200 | O26: 4200 | P26: 4200 | Q26: 4200 | R26: 4200 | S26: 4200 | T26: 4200 | U26: 4200 | V26: 4200 | W26: 4200 | X26: 4200 | Y26: 4200 | Z26: 4200 | AA26: 4200 | AB26: 4200 | AC26: 4200 | AD26: 4200 | AE26: 4200 | AF26: 4200 | AG26: 4200 | AH26: 4200 | AI26: 4200 | AJ26: 4200 | AK26: 4200 | AL26: 4200 | AM26: 4200 | AN26: 4200 | AO26: 4200 | AP26: 4200
A27: 4200 h - meilleurs Base LOAD | B27: 7 | F27: 0 | G27: 0 | H27: 0 | I27: 4200 | J27: 4200 | K27: 4200 | L27: 4200 | M27: 4200 | N27: 4200 | O27: 4200 | P27: 4200 | Q27: 4200 | R27: 4200 | S27: 4200 | T27: 4200 | U27: 4200 | V27: 4200 | W27: 4200 | X27: 4200 | Y27: 4200 | Z27: 4200 | AA27: 4200 | AB27: 4200 | AC27: 4200 | AD27: 4200 | AE27: 4200 | AF27: 4200 | AG27: 4200 | AH27: 4200 | AI27: 4200 | AJ27: 4200 | AK27: 4200 | AL27: 4200 | AM27: 4200 | AN27: 4200 | AO27: 4200 | AP27: 4200
A28: 4200 h - Hypothèse Moyenne | B28: 8 | F28: 0 | G28: 0 | H28: 0 | I28: 4200 | J28: 4200 | K28: 4200 | L28: 4200 | M28: 4200 | N28: 4200 | O28: 4200 | P28: 4200 | Q28: 4200 | R28: 4200 | S28: 4200 | T28: 4200 | U28: 4200 | V28: 4200 | W28: 4200 | X28: 4200 | Y28: 4200 | Z28: 4200 | AA28: 4200 | AB28: 4200 | AC28: 4200 | AD28: 4200 | AE28: 4200 | AF28: 4200 | AG28: 4200 | AH28: 4200 | AI28: 4200 | AJ28: 4200 | AK28: 4200 | AL28: 4200 | AM28: 4200 | AN28: 4200 | AO28: 4200 | AP28: 4200
A29: Scen SOREGIES spot 2005 | B29: 9 | F29: 0 | G29: 0 | H29: 0 | I29: 4500 | J29: 4500 | K29: 4500 | L29: 4500 | M29: 4500 | N29: 4500 | O29: 4500 | P29: 4500 | Q29: 4500 | R29: 4500 | S29: 4500 | T29: 4500 | U29: 4500 | V29: 4500 | W29: 4500 | X29: 4500 | Y29: 4500 | Z29: 4500 | AA29: 4500 | AB29: 4500 | AC29: 4500 | AD29: 4500 | AE29: 4500 | AF29: 4500 | AG29: 4500 | AH29: 4500 | AI29: 4500 | AJ29: 4500 | AK29: 4500 | AL29: 4500 | AM29: 4500 | AN29: 4500 | AO29: 4500 | AP29: 4500
A30: scénario ENDESA POA-PM | B30: 10 | F30: 0 | G30: 0 | H30: 0 | I30: 3139.971531 | J30: 3139.971531 | K30: 3253.855479 | L30: 3253.855479 | M30: 3141.855479 | N30: 3271.855479 | O30: 3395.855479 | P30: 3436.605744 | Q30: 3477.845013 | R30: 3519.579153 | S30: 3589.970736 | T30: 3633.050385 | U30: 3669.380889 | V30: 3706.074698 | W30: 3743.135445 | X30: 3780.5668 | Y30: 3818.372468 | Z30: 3856.556192 | AA30: 3895.121754 | AB30: 3934.072972 | AC30: 3973.413701 | AD30: 4013.147838 | AE30: 4053.279317 | AF30: 4093.81211 | AG30: 4134.750231 | AH30: =AG30*1.01 -> 4176.097733 | AI30: 0 | AJ30: 0 | AK30: 0 | AL30: 0 | AM30: 0 | AN30: 0 | AO30: 0 | AP30: 0
A31: ENDESA EU | B31: 11 | F31: 0 | G31: 0 | H31: 0 | I31: 0 | J31: 3088.976982 | K31: 3271.832536 | L31: 3350.642339 | M31: 3889.176404 | N31: 4178.414441 | O31: 3555.454363 | P31: 3614.828248 | Q31: 4363.657866 | R31: 3869.496346 | S31: 3505.015 | T31: 4460.78152 | U31: 4460.78152 | V31: 4027.741143 | W31: 4460.78152 | X31: 4460.78152 | Y31: 4456.125172 | Z31: 4456.125172 | AA31: 4456.125172 | AB31: 4456.125172 | AC31: 4456.125172 | AD31: 4456.125172 | AE31: 4456.125172 | AF31: 4456.125172 | AG31: 4456.125172 | AH31: 4456.125172
A32: 4200 h - scénario 1 SOR | B32: 12 | F32: 0 | G32: 0 | H32: 0 | I32: 4200 | J32: 4200 | K32: 4200 | L32: 4200 | M32: 4200 | N32: 4200 | O32: 4200 | P32: 4200 | Q32: 4200 | R32: 4200 | S32: 4200 | T32: 4200 | U32: 4200 | V32: 4200 | W32: 4200 | X32: 4200 | Y32: 4200 | Z32: 4200 | AA32: 4200 | AB32: 4200 | AC32: 4200 | AD32: 4200 | AE32: 4200 | AF32: 4200 | AG32: 4200 | AH32: 4200 | AI32: 4200 | AJ32: 4200 | AK32: 4200 | AL32: 4200 | AM32: 4200 | AN32: 4200 | AO32: 4200 | AP32: 4200
A33: 4500 h - scénario 2 SOR | B33: 13 | F33: 0 | G33: 0 | H33: 0 | I33: 4500 | J33: 4500 | K33: 4500 | L33: 4500 | M33: 4500 | N33: 4500 | O33: 4500 | P33: 4500 | Q33: 4500 | R33: 4500 | S33: 4500 | T33: 4500 | U33: 4500 | V33: 4500 | W33: 4500 | X33: 4500 | Y33: 4500 | Z33: 4500 | AA33: 4500 | AB33: 4500 | AC33: 4500 | AD33: 4500 | AE33: 4500 | AF33: 4500 | AG33: 4500 | AH33: 4500 | AI33: 4500 | AJ33: 4500 | AK33: 4500 | AL33: 4500 | AM33: 4500 | AN33: 4500 | AO33: 4500 | AP33: 4500
B34: 14
B35: 15
B36: 16
B37: 17
B38: 18
B39: 19
A40: Hourly profil for Operation sheet | B40: =INDEX(B21:B39,Input!$D$79) -> 9 | F40: =INDEX($F$21:$AP$39,MATCH(Input!$D$79,$B$21:$B$39),F5) -> 0 | G40: =INDEX($F$21:$AP$39,MATCH(Input!$D$79,$B$21:$B$39),G5) -> 0 | H40: =INDEX($F$21:$AP$39,MATCH(Input!$D$79,$B$21:$B$39),H5) -> 0 | I40: =INDEX($F$21:$AP$39,MATCH(Input!$D$79,$B$21:$B$39),I5) -> 4500 | J40: =INDEX($F$21:$AP$39,MATCH(Input!$D$79,$B$21:$B$39),J5) -> 4500 | K40: =INDEX($F$21:$AP$39,MATCH(Input!$D$79,$B$21:$B$39),K5) -> 4500 | L40: =INDEX($F$21:$AP$39,MATCH(Input!$D$79,$B$21:$B$39),L5) -> 4500 | M40: =INDEX($F$21:$AP$39,MATCH(Input!$D$79,$B$21:$B$39),M5) -> 4500 | N40: =INDEX($F$21:$AP$39,MATCH(Input!$D$79,$B$21:$B$39),N5) -> 4500 | O40: =INDEX($F$21:$AP$39,MATCH(Input!$D$79,$B$21:$B$39),O5) -> 4500 | P40: =INDEX($F$21:$AP$39,MATCH(Input!$D$79,$B$21:$B$39),P5) -> 4500 | Q40: =INDEX($F$21:$AP$39,MATCH(Input!$D$79,$B$21:$B$39),Q5) -> 4500 | R40: =INDEX($F$21:$AP$39,MATCH(Input!$D$79,$B$21:$B$39),R5) -> 4500 | S40: =INDEX($F$21:$AP$39,MATCH(Input!$D$79,$B$21:$B$39),S5) -> 4500 | T40: =INDEX($F$21:$AP$39,MATCH(Input!$D$79,$B$21:$B$39),T5) -> 4500 | U40: =INDEX($F$21:$AP$39,MATCH(Input!$D$79,$B$21:$B$39),U5) -> 4500 | V40: =INDEX($F$21:$AP$39,MATCH(Input!$D$79,$B$21:$B$39),V5) -> 4500 | W40: =INDEX($F$21:$AP$39,MATCH(Input!$D$79,$B$21:$B$39),W5) -> 4500 | X40: =INDEX($F$21:$AP$39,MATCH(Input!$D$79,$B$21:$B$39),X5) -> 4500 | Y40: =INDEX($F$21:$AP$39,MATCH(Input!$D$79,$B$21:$B$39),Y5) -> 4500 | Z40: =INDEX($F$21:$AP$39,MATCH(Input!$D$79,$B$21:$B$39),Z5) -> 4500 | AA40: =INDEX($F$21:$AP$39,MATCH(Input!$D$79,$B$21:$B$39),AA5) -> 4500 | AB40: =INDEX($F$21:$AP$39,MATCH(Input!$D$79,$B$21:$B$39),AB5) -> 4500 | AC40: =INDEX($F$21:$AP$39,MATCH(Input!$D$79,$B$21:$B$39),AC5) -> 4500 | AD40: =INDEX($F$21:$AP$39,MATCH(Input!$D$79,$B$21:$B$39),AD5) -> 4500 | AE40: =INDEX($F$21:$AP$39,MATCH(Input!$D$79,$B$21:$B$39),AE5) -> 4500 | AF40: =INDEX($F$21:$AP$39,MATCH(Input!$D$79,$B$21:$B$39),AF5) -> 4500 | AG40: =INDEX($F$21:$AP$39,MATCH(Input!$D$79,$B$21:$B$39),AG5) -> 4500 | AH40: =INDEX($F$21:$AP$39,MATCH(Input!$D$79,$B$21:$B$39),AH5) -> 4500 | AI40: =INDEX($F$21:$AP$39,MATCH(Input!$D$79,$B$21:$B$39),AI5) -> 4500 | AJ40: =INDEX($F$21:$AP$39,MATCH(Input!$D$79,$B$21:$B$39),AJ5) -> 4500 | AK40: =INDEX($F$21:$AP$39,MATCH(Input!$D$79,$B$21:$B$39),AK5) -> 4500 | AL40: =INDEX($F$21:$AP$39,MATCH(Input!$D$79,$B$21:$B$39),AL5) -> 4500 | AM40: =INDEX($F$21:$AP$39,MATCH(Input!$D$79,$B$21:$B$39),AM5) -> 4500 | AN40: =INDEX($F$21:$AP$39,MATCH(Input!$D$79,$B$21:$B$39),AN5) -> 4500 | AO40: =INDEX($F$21:$AP$39,MATCH(Input!$D$79,$B$21:$B$39),AO5) -> 4500 | AP40: =INDEX($F$21:$AP$39,MATCH(Input!$D$79,$B$21:$B$39),AP5) -> 4500
A43: 4500 h - meilleurs Base LOAD | B43: 1 | C43: =AVERAGE(F43:AP43) -> 59.81258442 | F43: 61.18311901 | G43: 49.09377654 | H43: 62.10362732 | I43: 61.0112908 | J43: 61.12175179 | K43: 60.43034777 | L43: 59.93941001 | M43: =L43 -> 59.93941001 | N43: =M43 -> 59.93941001 | O43: 59.93941001 | P43: 59.93941001 | Q43: 59.93941001 | R43: 59.93941001 | S43: 59.93941001 | T43: 59.93941001 | U43: 59.93941001 | V43: 59.93941001 | W43: 59.93941001 | X43: 59.93941001 | Y43: 59.93941001 | Z43: 59.93941001 | AA43: 59.93941001 | AB43: 59.93941001 | AC43: 59.93941001 | AD43: 59.93941001 | AE43: 59.93941001 | AF43: 59.93941001 | AG43: 59.93941001 | AH43: 59.93941001 | AI43: 59.93941001 | AJ43: 59.93941001 | AK43: 59.93941001 | AL43: 59.93941001 | AM43: 59.93941001 | AN43: 59.93941001 | AO43: 59.93941001 | AP43: 59.93941001
A44: 4500 h - Hypothèse Moyenne | B44: 2 | C44: =AVERAGE(F44:AP44) -> 64.64662662 | F44: =AVERAGE(F45,F43) -> 64.0722082 | G44: =AVERAGE(G45,G43) -> 55.34750444 | H44: 66.294059 | I44: 65.13438987 | J44: 65.27884005 | K44: 64.9848349 | L44: 64.86494673 | M44: =AVERAGE(M43,M45) -> 64.86494673 | N44: =AVERAGE(N43,N45) -> 64.86494673 | O44: 64.86494673 | P44: 64.86494673 | Q44: 64.86494673 | R44: 64.86494673 | S44: 64.86494673 | T44: 64.86494673 | U44: 64.86494673 | V44: 64.86494673 | W44: 64.86494673 | X44: 64.86494673 | Y44: 64.86494673 | Z44: 64.86494673 | AA44: 64.86494673 | AB44: 64.86494673 | AC44: 64.86494673 | AD44: 64.86494673 | AE44: 64.86494673 | AF44: 64.86494673 | AG44: 64.86494673 | AH44: 64.86494673 | AI44: 64.86494673 | AJ44: 64.86494673 | AK44: 64.86494673 | AL44: 64.86494673 | AM44: 64.86494673 | AN44: 64.86494673 | AO44: 64.86494673 | AP44: 64.86494673
A45: 4500 h - meilleurs H8-H24 | B45: 3 | C45: =AVERAGE(F45:AP45) -> 69.48066883 | F45: 66.96129738 | G45: 61.60123234 | H45: 70.48449067 | I45: 69.25748895 | J45: 69.43592832 | K45: 69.53932203 | L45: 69.79048345 | M45: =L45 -> 69.79048345 | N45: =M45 -> 69.79048345 | O45: 69.79048345 | P45: 69.79048345 | Q45: 69.79048345 | R45: 69.79048345 | S45: 69.79048345 | T45: 69.79048345 | U45: 69.79048345 | V45: 69.79048345 | W45: 69.79048345 | X45: 69.79048345 | Y45: 69.79048345 | Z45: 69.79048345 | AA45: 69.79048345 | AB45: 69.79048345 | AC45: 69.79048345 | AD45: 69.79048345 | AE45: 69.79048345 | AF45: 69.79048345 | AG45: 69.79048345 | AH45: 69.79048345 | AI45: 69.79048345 | AJ45: 69.79048345 | AK45: 69.79048345 | AL45: 69.79048345 | AM45: 69.79048345 | AN45: 69.79048345 | AO45: 69.79048345 | AP45: 69.79048345
A46: 4200 h - scénario 1 SOR | B46: 4 | C46: 72.45 | F46: 72.45 | G46: 72.45 | H46: 72.45 | I46: 72.45 | J46: 72.45 | K46: 72.45 | L46: 72.45 | M46: 72.45 | N46: 72.45 | O46: 72.45 | P46: 72.45 | Q46: 72.45 | R46: 72.45 | S46: 72.45 | T46: 72.45 | U46: 72.45 | V46: 72.45 | W46: 72.45 | X46: 72.45 | Y46: 72.45 | Z46: 72.45 | AA46: 72.45 | AB46: 72.45 | AC46: 72.45 | AD46: 72.45 | AE46: 72.45 | AF46: 72.45 | AG46: 72.45 | AH46: 72.45 | AI46: 72.45 | AJ46: 72.45 | AK46: 72.45 | AL46: 72.45 | AM46: 72.45 | AN46: 72.45 | AO46: 72.45 | AP46: 72.45
A47: 4500 h - scénario 2 SOR | B47: 5 | C47: 70.67 | F47: 70.67 | G47: 70.67 | H47: 70.67 | I47: 70.67 | J47: 70.67 | K47: 70.67 | L47: 70.67 | M47: 70.67 | N47: 70.67 | O47: 70.67 | P47: 70.67 | Q47: 70.67 | R47: 70.67 | S47: 70.67 | T47: 70.67 | U47: 70.67 | V47: 70.67 | W47: 70.67 | X47: 70.67 | Y47: 70.67 | Z47: 70.67 | AA47: 70.67 | AB47: 70.67 | AC47: 70.67 | AD47: 70.67 | AE47: 70.67 | AF47: 70.67 | AG47: 70.67 | AH47: 70.67 | AI47: 70.67 | AJ47: 70.67 | AK47: 70.67 | AL47: 70.67 | AM47: 70.67 | AN47: 70.67 | AO47: 70.67 | AP47: 70.67
A48: 4200 h - meilleurs H8-H24 | B48: 6 | C48: 70.73542333 | F48: 67.85548077 | G48: 62.3569359 | H48: 71.42427815 | I48: 70.31684463 | J48: 70.59251714 | K48: 70.68108314 | L48: 71.0962427 | M48: 71.0962427 | N48: =M48 -> 71.0962427 | O48: 71.0962427 | P48: 71.0962427 | Q48: 71.0962427 | R48: 71.0962427 | S48: 71.0962427 | T48: 71.0962427 | U48: 71.0962427 | V48: 71.0962427 | W48: 71.0962427 | X48: 71.0962427 | Y48: 71.0962427 | Z48: 71.0962427 | AA48: 71.0962427 | AB48: 71.0962427 | AC48: 71.0962427 | AD48: 71.0962427 | AE48: 71.0962427 | AF48: 71.0962427 | AG48: 71.0962427 | AH48: 71.0962427 | AI48: 71.0962427 | AJ48: 71.0962427 | AK48: 71.0962427 | AL48: 71.0962427 | AM48: 71.0962427 | AN48: 71.0962427 | AO48: 71.0962427 | AP48: 71.0962427
A49: 4200 h - meilleurs Base LOAD | B49: 7 | C49: 60.76260427 | F49: 62.15490745 | G49: 49.8735466 | H49: 63.09003644 | I49: 61.98035003 | J49: 62.09256551 | K49: 61.39017973 | L49: 60.89144427 | M49: 60.89144427 | N49: 60.89144427 | O49: 60.89144427 | P49: 60.89144427 | Q49: 60.89144427 | R49: 60.89144427 | S49: 60.89144427 | T49: 60.89144427 | U49: 60.89144427 | V49: 60.89144427 | W49: 60.89144427 | X49: 60.89144427 | Y49: 60.89144427 | Z49: 60.89144427 | AA49: 60.89144427 | AB49: 60.89144427 | AC49: 60.89144427 | AD49: 60.89144427 | AE49: 60.89144427 | AF49: 60.89144427 | AG49: 60.89144427 | AH49: 60.89144427 | AI49: 60.89144427 | AJ49: 60.89144427 | AK49: 60.89144427 | AL49: 60.89144427 | AM49: 60.89144427 | AN49: 60.89144427 | AO49: 60.89144427 | AP49: 60.89144427
A50: 4200 h - Hypothèse Moyenne | B50: 8 | C50: 65.7490138 | F50: =AVERAGE(F48,F49) -> 65.00519411 | G50: =AVERAGE(G48,G49) -> 56.11524125 | H50: 67.2571573 | I50: 66.14859733 | J50: 66.34254133 | K50: 66.03563143 | L50: 65.99384348 | M50: 65.99384348 | N50: 65.99384348 | O50: 65.99384348 | P50: 65.99384348 | Q50: 65.99384348 | R50: 65.99384348 | S50: 65.99384348 | T50: 65.99384348 | U50: 65.99384348 | V50: 65.99384348 | W50: 65.99384348 | X50: 65.99384348 | Y50: 65.99384348 | Z50: 65.99384348 | AA50: 65.99384348 | AB50: 65.99384348 | AC50: 65.99384348 | AD50: 65.99384348 | AE50: 65.99384348 | AF50: 65.99384348 | AG50: 65.99384348 | AH50: 65.99384348 | AI50: 65.99384348 | AJ50: 65.99384348 | AK50: 65.99384348 | AL50: 65.99384348 | AM50: 65.99384348 | AN50: 65.99384348 | AO50: 65.99384348 | AP50: 65.99384348
A51: Scen SOREGIES spot 2005 | B51: 9 | C51: 66.42 | F51: 66.42 | G51: 66.42 | H51: 66.42 | I51: 66.42 | J51: 66.42 | K51: 66.42 | L51: 66.42 | M51: 66.42 | N51: 66.42 | O51: 66.42 | P51: 66.42 | Q51: 66.42 | R51: 66.42 | S51: 66.42 | T51: 66.42 | U51: 66.42 | V51: 66.42 | W51: 66.42 | X51: 66.42 | Y51: 66.42 | Z51: 66.42 | AA51: 66.42 | AB51: 66.42 | AC51: 66.42 | AD51: 66.42 | AE51: 66.42 | AF51: 66.42 | AG51: 66.42 | AH51: 66.42 | AI51: 66.42 | AJ51: 66.42 | AK51: 66.42 | AL51: 66.42 | AM51: 66.42 | AN51: 66.42 | AO51: 66.42 | AP51: 66.42
A52: scénario ENDESA POA-PM | B52: 10 | C52: 91.59912336 | F52: 86.22899262 | G52: 86.22899262 | H52: 86.22899262 | I52: 86.22899262 | J52: 86.22899262 | K52: 86.42996153 | L52: 86.19198863 | M52: 87.44286733 | N52: 92.7795358 | O52: 93.72667302 | P52: 95.9852574 | Q52: 88.63129682 | R52: 94.37936414 | S52: 92.50207811 | T52: 93.04145992 | U52: 93.04145992 | V52: 93.04145992 | W52: 93.04145992 | X52: 93.04145992 | Y52: 93.04145992 | Z52: 93.04145992 | AA52: 93.04145992 | AB52: 93.04145992 | AC52: 93.04145992 | AD52: 93.04145992 | AE52: 93.04145992 | AF52: 93.04145992 | AG52: 93.04145992 | AH52: 93.04145992 | AI52: 93.04145992 | AJ52: 93.04145992 | AK52: 93.04145992 | AL52: 93.04145992 | AM52: 93.04145992 | AN52: 93.04145992 | AO52: 93.04145992 | AP52: 93.04145992
A53: ENDESA EU | B53: 11 | C53: 80.87888377 | J53: 75.7843662 | K53: 73.47814456 | L53: 77.39819646 | M53: 80.70290105 | N53: 81.59128063 | O53: 77.00381023 | P53: 79.06388397 | Q53: 82.77053683 | R53: 85.93490695 | S53: 80.88132974 | T53: 81.49538295 | U53: 81.49538295 | V53: 81.49538295 | W53: 81.49538295 | X53: 81.49538295 | Y53: 81.49538295 | Z53: 81.49538295 | AA53: 81.49538295 | AB53: 81.49538295 | AC53: 81.49538295 | AD53: 81.49538295 | AE53: 81.49538295 | AF53: 81.49538295 | AG53: 81.49538295 | AH53: 81.49538295 | AI53: 81.49538295 | AJ53: 81.49538295 | AK53: 81.49538295 | AL53: 81.49538295 | AM53: 81.49538295 | AN53: 81.49538295 | AO53: 81.49538295 | AP53: 81.49538295
A54: 4200 h - scénario 1 SOR | B54: 12 | C54: 53.99 | F54: 53.99 | G54: 53.99 | H54: 53.99 | I54: 53.99 | J54: 53.99 | K54: 53.99 | L54: 53.99 | M54: 53.99 | N54: 53.99 | O54: 53.99 | P54: 53.99 | Q54: 53.99 | R54: 53.99 | S54: 53.99 | T54: 53.99 | U54: 53.99 | V54: 53.99 | W54: 53.99 | X54: 53.99 | Y54: 53.99 | Z54: 53.99 | AA54: 53.99 | AB54: 53.99 | AC54: 53.99 | AD54: 53.99 | AE54: 53.99 | AF54: 53.99 | AG54: 53.99 | AH54: 53.99 | AI54: 53.99 | AJ54: 53.99 | AK54: 53.99 | AL54: 53.99 | AM54: 53.99 | AN54: 53.99 | AO54: 53.99 | AP54: 53.99
A55: 4500 h - scénario 2 SOR | B55: 13 | C55: 52.62 | F55: 52.62 | G55: 52.62 | H55: 52.62 | I55: 52.62 | J55: 52.62 | K55: 52.62 | L55: 52.62 | M55: 52.62 | N55: 52.62 | O55: 52.62 | P55: 52.62 | Q55: 52.62 | R55: 52.62 | S55: 52.62 | T55: 52.62 | U55: 52.62 | V55: 52.62 | W55: 52.62 | X55: 52.62 | Y55: 52.62 | Z55: 52.62 | AA55: 52.62 | AB55: 52.62 | AC55: 52.62 | AD55: 52.62 | AE55: 52.62 | AF55: 52.62 | AG55: 52.62 | AH55: 52.62 | AI55: 52.62 | AJ55: 52.62 | AK55: 52.62 | AL55: 52.62 | AM55: 52.62 | AN55: 52.62 | AO55: 52.62 | AP55: 52.62
B56: 14
B57: 15
B58: 16
B59: 17
B60: 18
B61: 19
A62: Elec Price for Operation Sheet | B62: =INDEX(B43:B61,Input!$D$79) -> 9 | F62: =INDEX($F$43:$AP$61,MATCH(Input!$D$79,$B$43:$B$61),F5) -> 66.42 | G62: =INDEX($F$43:$AP$61,MATCH(Input!$D$79,$B$43:$B$61),G5) -> 66.42 | H62: =INDEX($F$43:$AP$61,MATCH(Input!$D$79,$B$43:$B$61),H5) -> 66.42 | I62: =INDEX($F$43:$AP$61,MATCH(Input!$D$79,$B$43:$B$61),I5) -> 66.42 | J62: =INDEX($F$43:$AP$61,MATCH(Input!$D$79,$B$43:$B$61),J5) -> 66.42 | K62: =INDEX($F$43:$AP$61,MATCH(Input!$D$79,$B$43:$B$61),K5) -> 66.42 | L62: =INDEX($F$43:$AP$61,MATCH(Input!$D$79,$B$43:$B$61),L5) -> 66.42 | M62: =INDEX($F$43:$AP$61,MATCH(Input!$D$79,$B$43:$B$61),M5) -> 66.42 | N62: =INDEX($F$43:$AP$61,MATCH(Input!$D$79,$B$43:$B$61),N5) -> 66.42 | O62: =INDEX($F$43:$AP$61,MATCH(Input!$D$79,$B$43:$B$61),O5) -> 66.42 | P62: =INDEX($F$43:$AP$61,MATCH(Input!$D$79,$B$43:$B$61),P5) -> 66.42 | Q62: =INDEX($F$43:$AP$61,MATCH(Input!$D$79,$B$43:$B$61),Q5) -> 66.42 | R62: =INDEX($F$43:$AP$61,MATCH(Input!$D$79,$B$43:$B$61),R5) -> 66.42 | S62: =INDEX($F$43:$AP$61,MATCH(Input!$D$79,$B$43:$B$61),S5) -> 66.42 | T62: =INDEX($F$43:$AP$61,MATCH(Input!$D$79,$B$43:$B$61),T5) -> 66.42 | U62: =INDEX($F$43:$AP$61,MATCH(Input!$D$79,$B$43:$B$61),U5) -> 66.42 | V62: =INDEX($F$43:$AP$61,MATCH(Input!$D$79,$B$43:$B$61),V5) -> 66.42 | W62: =INDEX($F$43:$AP$61,MATCH(Input!$D$79,$B$43:$B$61),W5) -> 66.42 | X62: =INDEX($F$43:$AP$61,MATCH(Input!$D$79,$B$43:$B$61),X5) -> 66.42 | Y62: =INDEX($F$43:$AP$61,MATCH(Input!$D$79,$B$43:$B$61),Y5) -> 66.42 | Z62: =INDEX($F$43:$AP$61,MATCH(Input!$D$79,$B$43:$B$61),Z5) -> 66.42 | AA62: =INDEX($F$43:$AP$61,MATCH(Input!$D$79,$B$43:$B$61),AA5) -> 66.42 | AB62: =INDEX($F$43:$AP$61,MATCH(Input!$D$79,$B$43:$B$61),AB5) -> 66.42 | AC62: =INDEX($F$43:$AP$61,MATCH(Input!$D$79,$B$43:$B$61),AC5) -> 66.42 | AD62: =INDEX($F$43:$AP$61,MATCH(Input!$D$79,$B$43:$B$61),AD5) -> 66.42 | AE62: =INDEX($F$43:$AP$61,MATCH(Input!$D$79,$B$43:$B$61),AE5) -> 66.42 | AF62: =INDEX($F$43:$AP$61,MATCH(Input!$D$79,$B$43:$B$61),AF5) -> 66.42 | AG62: =INDEX($F$43:$AP$61,MATCH(Input!$D$79,$B$43:$B$61),AG5) -> 66.42 | AH62: =INDEX($F$43:$AP$61,MATCH(Input!$D$79,$B$43:$B$61),AH5) -> 66.42 | AI62: =INDEX($F$43:$AP$61,MATCH(Input!$D$79,$B$43:$B$61),AI5) -> 66.42 | AJ62: =INDEX($F$43:$AP$61,MATCH(Input!$D$79,$B$43:$B$61),AJ5) -> 66.42 | AK62: =INDEX($F$43:$AP$61,MATCH(Input!$D$79,$B$43:$B$61),AK5) -> 66.42 | AL62: =INDEX($F$43:$AP$61,MATCH(Input!$D$79,$B$43:$B$61),AL5) -> 66.42 | AM62: =INDEX($F$43:$AP$61,MATCH(Input!$D$79,$B$43:$B$61),AM5) -> 66.42 | AN62: =INDEX($F$43:$AP$61,MATCH(Input!$D$79,$B$43:$B$61),AN5) -> 66.42 | AO62: =INDEX($F$43:$AP$61,MATCH(Input!$D$79,$B$43:$B$61),AO5) -> 66.42 | AP62: =INDEX($F$43:$AP$61,MATCH(Input!$D$79,$B$43:$B$61),AP5) -> 66.42
A65: INCOME in M€
A67: =A94 -> 4500 h - meilleurs Base LOAD | B67: 1 | F67: =F99 -> 0 | G67: =G99 -> 0 | H67: 0 | I67: 227053518.7 | J67: 224810845.6 | K67: 219269250.8 | L67: 217487901.5 | M67: 217487901.5 | N67: 217487901.5 | O67: 217487901.5 | P67: 217487901.5 | Q67: 217487901.5 | R67: 217487901.5 | S67: 217487901.5 | T67: 217487901.5 | U67: 217487901.5 | V67: 217487901.5 | W67: 217487901.5 | X67: 217487901.5 | Y67: 217487901.5 | Z67: 217487901.5 | AA67: 217487901.5 | AB67: 217487901.5 | AC67: 217487901.5 | AD67: 217487901.5 | AE67: 217487901.5 | AF67: 217487901.5 | AG67: 217487901.5 | AH67: 217487901.5 | AI67: 217487901.5 | AJ67: 217487901.5 | AK67: 217487901.5 | AL67: 217487901.5 | AM67: 217487901.5 | AN67: 217487901.5 | AO67: 217487901.5 | AP67: 217487901.5
A68: =A101 -> 4500 h - Hypothèse Moyenne | B68: 2 | F68: =F106 -> 0 | G68: =G106 -> 0 | H68: 0 | I68: 242397631.9 | J68: 240100959.2 | K68: 235795036.5 | L68: 235360026.8 | M68: 235360026.8 | N68: 235360026.8 | O68: 235360026.8 | P68: 235360026.8 | Q68: 235360026.8 | R68: 235360026.8 | S68: 235360026.8 | T68: 235360026.8 | U68: 235360026.8 | V68: 235360026.8 | W68: 235360026.8 | X68: 235360026.8 | Y68: 235360026.8 | Z68: 235360026.8 | AA68: 235360026.8 | AB68: 235360026.8 | AC68: 235360026.8 | AD68: 235360026.8 | AE68: 235360026.8 | AF68: 235360026.8 | AG68: 235360026.8 | AH68: 235360026.8 | AI68: 235360026.8 | AJ68: 235360026.8 | AK68: 235360026.8 | AL68: 235360026.8 | AM68: 235360026.8 | AN68: 235360026.8 | AO68: 235360026.8 | AP68: 235360026.8
A69: =A108 -> 4500 h - meilleurs H8-H24 | B69: 3 | F69: =F113 -> 0 | G69: =G113 -> 0 | H69: 0 | I69: 257741745.1 | J69: 255391072.8 | K69: 252320822.2 | L69: 253232152.1 | M69: 253232152.1 | N69: 253232152.1 | O69: 253232152.1 | P69: 253232152.1 | Q69: 253232152.1 | R69: 253232152.1 | S69: 253232152.1 | T69: 253232152.1 | U69: 253232152.1 | V69: 253232152.1 | W69: 253232152.1 | X69: 253232152.1 | Y69: 253232152.1 | Z69: 253232152.1 | AA69: 253232152.1 | AB69: 253232152.1 | AC69: 253232152.1 | AD69: 253232152.1 | AE69: 253232152.1 | AF69: 253232152.1 | AG69: 253232152.1 | AH69: 253232152.1 | AI69: 253232152.1 | AJ69: 253232152.1 | AK69: 253232152.1 | AL69: 253232152.1 | AM69: 253232152.1 | AN69: 253232152.1 | AO69: 253232152.1 | AP69: 253232152.1
A70: =A115 -> 4200 h - scénario 1 SOR | B70: 4 | F70: =F120 -> 0 | G70: =G120 -> 0 | H70: 0 | I70: 269622675 | J70: 266477077.1 | K70: 262882108.1 | L70: 262882108.1 | M70: 262882108.1 | N70: 262882108.1 | O70: 262882108.1 | P70: 262882108.1 | Q70: 262882108.1 | R70: 262882108.1 | S70: 262882108.1 | T70: 262882108.1 | U70: 262882108.1 | V70: 262882108.1 | W70: 262882108.1 | X70: 262882108.1 | Y70: 262882108.1 | Z70: 262882108.1 | AA70: 262882108.1 | AB70: 262882108.1 | AC70: 262882108.1 | AD70: 262882108.1 | AE70: 262882108.1 | AF70: 262882108.1 | AG70: 262882108.1 | AH70: 262882108.1 | AI70: 262882108.1 | AJ70: 262882108.1 | AK70: 262882108.1 | AL70: 262882108.1 | AM70: 262882108.1 | AN70: 262882108.1 | AO70: 262882108.1 | AP70: 262882108.1
A71: =A122 -> 4500 h - scénario 2 SOR | B71: 5 | F71: =F126 -> 0 | G71: =G126 -> 0 | H71: 0 | I71: 262998405 | J71: 259930090.3 | K71: 256423444.9 | L71: 256423444.9 | M71: 256423444.9 | N71: 256423444.9 | O71: 256423444.9 | P71: 256423444.9 | Q71: 256423444.9 | R71: 256423444.9 | S71: 256423444.9 | T71: 256423444.9 | U71: 256423444.9 | V71: 256423444.9 | W71: 256423444.9 | X71: 256423444.9 | Y71: 256423444.9 | Z71: 256423444.9 | AA71: 256423444.9 | AB71: 256423444.9 | AC71: 256423444.9 | AD71: 256423444.9 | AE71: 256423444.9 | AF71: 256423444.9 | AG71: 256423444.9 | AH71: 256423444.9 | AI71: 256423444.9 | AJ71: 256423444.9 | AK71: 256423444.9 | AL71: 256423444.9 | AM71: 256423444.9 | AN71: 256423444.9 | AO71: 256423444.9 | AP71: 256423444.9
A72: =A128 -> 4200 h - meilleurs H8-H24 | B72: 6 | F72: =F132 -> 0 | G72: =G132 -> 0 | H72: 0 | I72: 244238528.1 | J72: 242335428.5 | K72: 239366082.3 | L72: 240772047.2 | M72: 240772047.2 | N72: 240772047.2 | O72: 240772047.2 | P72: 240772047.2 | Q72: 240772047.2 | R72: 240772047.2 | S72: 240772047.2 | T72: 240772047.2 | U72: 240772047.2 | V72: 240772047.2 | W72: 240772047.2 | X72: 240772047.2 | Y72: 240772047.2 | Z72: 240772047.2 | AA72: 240772047.2 | AB72: 240772047.2 | AC72: 240772047.2 | AD72: 240772047.2 | AE72: 240772047.2 | AF72: 240772047.2 | AG72: 240772047.2 | AH72: 240772047.2 | AI72: 240772047.2 | AJ72: 240772047.2 | AK72: 240772047.2 | AL72: 240772047.2 | AM72: 240772047.2 | AN72: 240772047.2 | AO72: 240772047.2 | AP72: 240772047.2
A73: =A134 -> 4200 h - meilleurs Base LOAD | B73: 7 | F73: =F138 -> 0 | G73: =G138 -> 0 | H73: 0 | I73: 215282547.8 | J73: 213156140 | K73: 207901834 | L73: 206212833.9 | M73: 206212833.9 | N73: 206212833.9 | O73: 206212833.9 | P73: 206212833.9 | Q73: 206212833.9 | R73: 206212833.9 | S73: 206212833.9 | T73: 206212833.9 | U73: 206212833.9 | V73: 206212833.9 | W73: 206212833.9 | X73: 206212833.9 | Y73: 206212833.9 | Z73: 206212833.9 | AA73: 206212833.9 | AB73: 206212833.9 | AC73: 206212833.9 | AD73: 206212833.9 | AE73: 206212833.9 | AF73: 206212833.9 | AG73: 206212833.9 | AH73: 206212833.9 | AI73: 206212833.9 | AJ73: 206212833.9 | AK73: 206212833.9 | AL73: 206212833.9 | AM73: 206212833.9 | AN73: 206212833.9 | AO73: 206212833.9 | AP73: 206212833.9
A74: =A140 -> 4200 h - Hypothèse Moyenne | B74: 8 | F74: =F144 -> 0 | G74: =G144 -> 0 | H74: 0 | I74: 229760538 | J74: 227745784.2 | K74: 223633958.2 | L74: 223492440.6 | M74: 223492440.6 | N74: 223492440.6 | O74: 223492440.6 | P74: 223492440.6 | Q74: 223492440.6 | R74: 223492440.6 | S74: 223492440.6 | T74: 223492440.6 | U74: 223492440.6 | V74: 223492440.6 | W74: 223492440.6 | X74: 223492440.6 | Y74: 223492440.6 | Z74: 223492440.6 | AA74: 223492440.6 | AB74: 223492440.6 | AC74: 223492440.6 | AD74: 223492440.6 | AE74: 223492440.6 | AF74: 223492440.6 | AG74: 223492440.6 | AH74: 223492440.6 | AI74: 223492440.6 | AJ74: 223492440.6 | AK74: 223492440.6 | AL74: 223492440.6 | AM74: 223492440.6 | AN74: 223492440.6 | AO74: 223492440.6 | AP74: 223492440.6
A75: =A146 -> Scen SOREGIES spot 2005 | B75: 9 | F75: =F150 -> 0 | G75: =G150 -> 0 | H75: 0 | I75: 247182030 | J75: 244298239.6 | K75: 241002479.2 | L75: 241002479.2 | M75: 241002479.2 | N75: 241002479.2 | O75: 241002479.2 | P75: 241002479.2 | Q75: 241002479.2 | R75: 241002479.2 | S75: 241002479.2 | T75: 241002479.2 | U75: 241002479.2 | V75: 241002479.2 | W75: 241002479.2 | X75: 241002479.2 | Y75: 241002479.2 | Z75: 241002479.2 | AA75: 241002479.2 | AB75: 241002479.2 | AC75: 241002479.2 | AD75: 241002479.2 | AE75: 241002479.2 | AF75: 241002479.2 | AG75: 241002479.2 | AH75: 241002479.2 | AI75: 241002479.2 | AJ75: 241002479.2 | AK75: 241002479.2 | AL75: 241002479.2 | AM75: 241002479.2 | AN75: 241002479.2 | AO75: 241002479.2 | AP75: 241002479.2
A76: =A152 -> scénario ENDESA POA-PM | B76: 10 | F76: =F155 -> 0 | G76: =G155 -> 0 | H76: 0 | I76: 223915693.3 | J76: 221303343.6 | K76: 226763266.7 | L76: 226138905.5 | M76: 221523966.7 | N76: 244769010.8 | O76: 256638924 | P76: 265977176.1 | Q76: 248546386.3 | R76: 267841525 | S76: 267764207.2 | T76: 272557453.2 | U76: 275283027.8 | V76: 278035858 | W76: 280816216.6 | X76: 283624378.8 | Y76: 286460622.6 | Z76: 289325228.8 | AA76: 292218481.1 | AB76: 295140665.9 | AC76: 298092072.6 | AD76: 301072993.3 | AE76: 304083723.2 | AF76: 307124560.5 | AG76: 310195806.1 | AH76: 313297764.1 | AI76: 0 | AJ76: 0 | AK76: 0 | AL76: 0 | AM76: 0 | AN76: 0 | AO76: 0 | AP76: 0
A77: =A157 -> ENDESA EU | B77: 11 | G77: =G160 -> 0 | H77: =H160 -> 0 | I77: 0 | J77: 191338888.8 | K77: 193847129 | L77: 209107224.7 | M77: 253079468.7 | N77: 274894081 | O77: 220758507.3 | P77: 230449588.9 | Q77: 291230321.4 | R77: 268123066.2 | S77: 228585295.1 | T77: 293125825.4 | U77: 293125825.4 | V77: 264669978.1 | W77: 293125825.4 | X77: 293125825.4 | Y77: 292819848.6 | Z77: 292819848.6 | AA77: 292819848.6 | AB77: 292819848.6 | AC77: 292819848.6 | AD77: 292819848.6 | AE77: 292819848.6 | AF77: 292819848.6 | AG77: 292819848.6 | AH77: 292819848.6 | AI77: 0 | AJ77: 0 | AK77: 0 | AL77: 0 | AM77: 0 | AN77: 0 | AO77: 0 | AP77: 0
A78: =A162 -> 4200 h - scénario 1 SOR | B78: 12 | F78: =F165 -> 0 | G78: =G165 -> 0 | H78: 0 | I78: 187528866 | J78: 185341029.2 | K78: 182840644.3 | L78: 182840644.3 | M78: 182840644.3 | N78: 182840644.3 | O78: 182840644.3 | P78: 182840644.3 | Q78: 182840644.3 | R78: 182840644.3 | S78: 182840644.3 | T78: 182840644.3 | U78: 182840644.3 | V78: 182840644.3 | W78: 182840644.3 | X78: 182840644.3 | Y78: 182840644.3 | Z78: 182840644.3 | AA78: 182840644.3 | AB78: 182840644.3 | AC78: 182840644.3 | AD78: 182840644.3 | AE78: 182840644.3 | AF78: 182840644.3 | AG78: 182840644.3 | AH78: 182840644.3 | AI78: 182840644.3 | AJ78: 182840644.3 | AK78: 182840644.3 | AL78: 182840644.3 | AM78: 182840644.3 | AN78: 182840644.3 | AO78: 182840644.3 | AP78: 182840644.3
A79: =A162 -> 4200 h - scénario 1 SOR | B79: 13 | F79: =F170 -> 0 | G79: =G170 -> 0 | H79: 0 | I79: 195825330 | J79: 193540701.1 | K79: 190929696.7 | L79: 190929696.7 | M79: 190929696.7 | N79: 190929696.7 | O79: 190929696.7 | P79: 190929696.7 | Q79: 190929696.7 | R79: 190929696.7 | S79: 190929696.7 | T79: 190929696.7 | U79: 190929696.7 | V79: 190929696.7 | W79: 190929696.7 | X79: 190929696.7 | Y79: 190929696.7 | Z79: 190929696.7 | AA79: 190929696.7 | AB79: 190929696.7 | AC79: 190929696.7 | AD79: 190929696.7 | AE79: 190929696.7 | AF79: 190929696.7 | AG79: 190929696.7 | AH79: 190929696.7 | AI79: 190929696.7 | AJ79: 190929696.7 | AK79: 190929696.7 | AL79: 190929696.7 | AM79: 190929696.7 | AN79: 190929696.7 | AO79: 190929696.7 | AP79: 190929696.7
A80: =A178 -> 0 | B80: 14
A81: =A182 -> 0 | B81: 15
A82: =A186 -> 0 | B82: 16
A83: =A190 -> 0 | B83: 17
A84: =A194 -> 0 | B84: 18
A85: =A198 -> 0 | B85: 19
A87: Income for Operation Sheet | B87: =INDEX(B67:B85,Input!$D$79) -> 9 | F87: =INDEX($F$67:$AP$85,MATCH(Input!$D$79,$B$67:$B$85),F5) -> 0 | G87: =INDEX($F$67:$AP$85,MATCH(Input!$D$79,$B$67:$B$85),G5) -> 0 | H87: =INDEX($F$67:$AP$85,MATCH(Input!$D$79,$B$67:$B$85),H5) -> 0 | I87: =INDEX($F$67:$AP$85,MATCH(Input!$D$79,$B$67:$B$85),I5) -> 247182030 | J87: =INDEX($F$67:$AP$85,MATCH(Input!$D$79,$B$67:$B$85),J5) -> 244298239.6 | K87: =INDEX($F$67:$AP$85,MATCH(Input!$D$79,$B$67:$B$85),K5) -> 241002479.2 | L87: =INDEX($F$67:$AP$85,MATCH(Input!$D$79,$B$67:$B$85),L5) -> 241002479.2 | M87: =INDEX($F$67:$AP$85,MATCH(Input!$D$79,$B$67:$B$85),M5) -> 241002479.2 | N87: =INDEX($F$67:$AP$85,MATCH(Input!$D$79,$B$67:$B$85),N5) -> 241002479.2 | O87: =INDEX($F$67:$AP$85,MATCH(Input!$D$79,$B$67:$B$85),O5) -> 241002479.2 | P87: =INDEX($F$67:$AP$85,MATCH(Input!$D$79,$B$67:$B$85),P5) -> 241002479.2 | Q87: =INDEX($F$67:$AP$85,MATCH(Input!$D$79,$B$67:$B$85),Q5) -> 241002479.2 | R87: =INDEX($F$67:$AP$85,MATCH(Input!$D$79,$B$67:$B$85),R5) -> 241002479.2 | S87: =INDEX($F$67:$AP$85,MATCH(Input!$D$79,$B$67:$B$85),S5) -> 241002479.2 | T87: =INDEX($F$67:$AP$85,MATCH(Input!$D$79,$B$67:$B$85),T5) -> 241002479.2 | U87: =INDEX($F$67:$AP$85,MATCH(Input!$D$79,$B$67:$B$85),U5) -> 241002479.2 | V87: =INDEX($F$67:$AP$85,MATCH(Input!$D$79,$B$67:$B$85),V5) -> 241002479.2 | W87: =INDEX($F$67:$AP$85,MATCH(Input!$D$79,$B$67:$B$85),W5) -> 241002479.2 | X87: =INDEX($F$67:$AP$85,MATCH(Input!$D$79,$B$67:$B$85),X5) -> 241002479.2 | Y87: =INDEX($F$67:$AP$85,MATCH(Input!$D$79,$B$67:$B$85),Y5) -> 241002479.2 | Z87: =INDEX($F$67:$AP$85,MATCH(Input!$D$79,$B$67:$B$85),Z5) -> 241002479.2 | AA87: =INDEX($F$67:$AP$85,MATCH(Input!$D$79,$B$67:$B$85),AA5) -> 241002479.2 | AB87: =INDEX($F$67:$AP$85,MATCH(Input!$D$79,$B$67:$B$85),AB5) -> 241002479.2 | AC87: =INDEX($F$67:$AP$85,MATCH(Input!$D$79,$B$67:$B$85),AC5) -> 241002479.2 | AD87: =INDEX($F$67:$AP$85,MATCH(Input!$D$79,$B$67:$B$85),AD5) -> 241002479.2 | AE87: =INDEX($F$67:$AP$85,MATCH(Input!$D$79,$B$67:$B$85),AE5) -> 241002479.2 | AF87: =INDEX($F$67:$AP$85,MATCH(Input!$D$79,$B$67:$B$85),AF5) -> 241002479.2 | AG87: =INDEX($F$67:$AP$85,MATCH(Input!$D$79,$B$67:$B$85),AG5) -> 241002479.2 | AH87: =INDEX($F$67:$AP$85,MATCH(Input!$D$79,$B$67:$B$85),AH5) -> 241002479.2 | AI87: =INDEX($F$67:$AP$85,MATCH(Input!$D$79,$B$67:$B$85),AI5) -> 241002479.2 | AJ87: =INDEX($F$67:$AP$85,MATCH(Input!$D$79,$B$67:$B$85),AJ5) -> 241002479.2 | AK87: =INDEX($F$67:$AP$85,MATCH(Input!$D$79,$B$67:$B$85),AK5) -> 241002479.2 | AL87: =INDEX($F$67:$AP$85,MATCH(Input!$D$79,$B$67:$B$85),AL5) -> 241002479.2 | AM87: =INDEX($F$67:$AP$85,MATCH(Input!$D$79,$B$67:$B$85),AM5) -> 241002479.2 | AN87: =INDEX($F$67:$AP$85,MATCH(Input!$D$79,$B$67:$B$85),AN5) -> 241002479.2 | AO87: =INDEX($F$67:$AP$85,MATCH(Input!$D$79,$B$67:$B$85),AO5) -> 241002479.2 | AP87: =INDEX($F$67:$AP$85,MATCH(Input!$D$79,$B$67:$B$85),AP5) -> 241002479.2
A94: =A43 -> 4500 h - meilleurs Base LOAD
A95: Base price | F95: =F43*F21*Work!F$44 -> 0 | G95: =G43*G21*Work!G$44 -> 0 | H95: =H43*H21*Work!H$44 -> 0 | I95: =I43*I21*Work!I$44 -> 227053518.7 | J95: =J43*J21*Work!J$44 -> 224810845.6 | K95: =K43*K21*Work!K$44 -> 219269250.8 | L95: =L43*L21*Work!L$44 -> 217487901.5 | M95: =M43*M21*Work!M$44 -> 217487901.5 | N95: =N43*N21*Work!N$44 -> 217487901.5 | O95: =O43*O21*Work!O$44 -> 217487901.5 | P95: =P43*P21*Work!P$44 -> 217487901.5 | Q95: =Q43*Q21*Work!Q$44 -> 217487901.5 | R95: =R43*R21*Work!R$44 -> 217487901.5 | S95: =S43*S21*Work!S$44 -> 217487901.5 | T95: =T43*T21*Work!T$44 -> 217487901.5 | U95: =U43*U21*Work!U$44 -> 217487901.5 | V95: =V43*V21*Work!V$44 -> 217487901.5 | W95: =W43*W21*Work!W$44 -> 217487901.5 | X95: =X43*X21*Work!X$44 -> 217487901.5 | Y95: =Y43*Y21*Work!Y$44 -> 217487901.5 | Z95: =Z43*Z21*Work!Z$44 -> 217487901.5 | AA95: =AA43*AA21*Work!AA$44 -> 217487901.5 | AB95: =AB43*AB21*Work!AB$44 -> 217487901.5 | AC95: =AC43*AC21*Work!AC$44 -> 217487901.5 | AD95: =AD43*AD21*Work!AD$44 -> 217487901.5 | AE95: =AE43*AE21*Work!AE$44 -> 217487901.5 | AF95: =AF43*AF21*Work!AF$44 -> 217487901.5 | AG95: =AG43*AG21*Work!AG$44 -> 217487901.5 | AH95: =AH43*AH21*Work!AH$44 -> 217487901.5 | AI95: =AI43*AI21*Work!AI$44 -> 217487901.5 | AJ95: =AJ43*AJ21*Work!AJ$44 -> 217487901.5 | AK95: =AK43*AK21*Work!AK$44 -> 217487901.5 | AL95: =AL43*AL21*Work!AL$44 -> 217487901.5 | AM95: =AM43*AM21*Work!AM$44 -> 217487901.5 | AN95: =AN43*AN21*Work!AN$44 -> 217487901.5 | AO95: =AO43*AO21*Work!AO$44 -> 217487901.5 | AP95: =AP43*AP21*Work!AP$44 -> 217487901.5
A96: =$A$16 -> SSY Market in € | F96: =F$16 -> 0 | G96: =G$16 -> 0 | H96: 0 | I96: 0 | J96: 0 | K96: 0 | L96: 0 | M96: 0 | N96: 0 | O96: 0 | P96: 0 | Q96: 0 | R96: 0 | S96: 0 | T96: 0 | U96: 0 | V96: 0 | W96: 0 | X96: 0 | Y96: 0 | Z96: 0 | AA96: 0 | AB96: 0 | AC96: 0 | AD96: 0 | AE96: 0 | AF96: 0 | AG96: 0 | AH96: 0 | AI96: 0 | AJ96: 0 | AK96: 0 | AL96: 0 | AM96: 0 | AN96: 0 | AO96: 0 | AP96: 0
A99: TOTAL | F99: =SUM(F95:F98) -> 0 | G99: =SUM(G95:G98) -> 0 | H99: 0 | I99: 227053518.7 | J99: 224810845.6 | K99: 219269250.8 | L99: 217487901.5 | M99: 217487901.5 | N99: 217487901.5 | O99: 217487901.5 | P99: 217487901.5 | Q99: 217487901.5 | R99: 217487901.5 | S99: 217487901.5 | T99: 217487901.5 | U99: 217487901.5 | V99: 217487901.5 | W99: 217487901.5 | X99: 217487901.5 | Y99: 217487901.5 | Z99: 217487901.5 | AA99: 217487901.5 | AB99: 217487901.5 | AC99: 217487901.5 | AD99: 217487901.5 | AE99: 217487901.5 | AF99: 217487901.5 | AG99: 217487901.5 | AH99: 217487901.5 | AI99: 217487901.5 | AJ99: 217487901.5 | AK99: 217487901.5 | AL99: 217487901.5 | AM99: 217487901.5 | AN99: 217487901.5 | AO99: 217487901.5 | AP99: 217487901.5
A101: =A44 -> 4500 h - Hypothèse Moyenne
A102: Base price | F102: =F44*Work!F$44*F22 -> 0 | G102: =G44*Work!G$44*G22 -> 0 | H102: =H44*Work!H$44*H22 -> 0 | I102: =I44*Work!I$44*I22 -> 242397631.9 | J102: =J44*Work!J$44*J22 -> 240100959.2 | K102: =K44*Work!K$44*K22 -> 235795036.5 | L102: =L44*Work!L$44*L22 -> 235360026.8 | M102: =M44*Work!M$44*M22 -> 235360026.8 | N102: =N44*Work!N$44*N22 -> 235360026.8 | O102: =O44*Work!O$44*O22 -> 235360026.8 | P102: =P44*Work!P$44*P22 -> 235360026.8 | Q102: =Q44*Work!Q$44*Q22 -> 235360026.8 | R102: =R44*Work!R$44*R22 -> 235360026.8 | S102: =S44*Work!S$44*S22 -> 235360026.8 | T102: =T44*Work!T$44*T22 -> 235360026.8 | U102: =U44*Work!U$44*U22 -> 235360026.8 | V102: =V44*Work!V$44*V22 -> 235360026.8 | W102: =W44*Work!W$44*W22 -> 235360026.8 | X102: =X44*Work!X$44*X22 -> 235360026.8 | Y102: =Y44*Work!Y$44*Y22 -> 235360026.8 | Z102: =Z44*Work!Z$44*Z22 -> 235360026.8 | AA102: =AA44*Work!AA$44*AA22 -> 235360026.8 | AB102: =AB44*Work!AB$44*AB22 -> 235360026.8 | AC102: =AC44*Work!AC$44*AC22 -> 235360026.8 | AD102: =AD44*Work!AD$44*AD22 -> 235360026.8 | AE102: =AE44*Work!AE$44*AE22 -> 235360026.8 | AF102: =AF44*Work!AF$44*AF22 -> 235360026.8 | AG102: =AG44*Work!AG$44*AG22 -> 235360026.8 | AH102: =AH44*Work!AH$44*AH22 -> 235360026.8 | AI102: =AI44*Work!AI$44*AI22 -> 235360026.8 | AJ102: =AJ44*Work!AJ$44*AJ22 -> 235360026.8 | AK102: =AK44*Work!AK$44*AK22 -> 235360026.8 | AL102: =AL44*Work!AL$44*AL22 -> 235360026.8 | AM102: =AM44*Work!AM$44*AM22 -> 235360026.8 | AN102: =AN44*Work!AN$44*AN22 -> 235360026.8 | AO102: =AO44*Work!AO$44*AO22 -> 235360026.8 | AP102: =AP44*Work!AP$44*AP22 -> 235360026.8
A103: =$A$16 -> SSY Market in € | F103: =F$16 -> 0 | G103: =G$16 -> 0 | H103: 0 | I103: 0 | J103: 0 | K103: 0 | L103: 0 | M103: 0 | N103: 0 | O103: 0 | P103: 0 | Q103: 0 | R103: 0 | S103: 0 | T103: 0 | U103: 0 | V103: 0 | W103: 0 | X103: 0 | Y103: 0 | Z103: 0 | AA103: 0 | AB103: 0 | AC103: 0 | AD103: 0 | AE103: 0 | AF103: 0 | AG103: 0 | AH103: 0 | AI103: 0 | AJ103: 0 | AK103: 0 | AL103: 0 | AM103: 0 | AN103: 0 | AO103: 0 | AP103: 0
A106: TOTAL | F106: =SUM(F102:F105) -> 0 | G106: 0 | H106: 0 | I106: 242397631.9 | J106: 240100959.2 | K106: 235795036.5 | L106: 235360026.8 | M106: 235360026.8 | N106: 235360026.8 | O106: 235360026.8 | P106: 235360026.8 | Q106: 235360026.8 | R106: 235360026.8 | S106: 235360026.8 | T106: 235360026.8 | U106: 235360026.8 | V106: 235360026.8 | W106: 235360026.8 | X106: 235360026.8 | Y106: 235360026.8 | Z106: 235360026.8 | AA106: 235360026.8 | AB106: 235360026.8 | AC106: 235360026.8 | AD106: 235360026.8 | AE106: 235360026.8 | AF106: 235360026.8 | AG106: 235360026.8 | AH106: 235360026.8 | AI106: 235360026.8 | AJ106: 235360026.8 | AK106: 235360026.8 | AL106: 235360026.8 | AM106: 235360026.8 | AN106: 235360026.8 | AO106: 235360026.8 | AP106: 235360026.8
A108: =A45 -> 4500 h - meilleurs H8-H24
A109: Base price | F109: =F45*Work!F$44*F23 -> 0 | G109: =G45*Work!G$44*G23 -> 0 | H109: =H45*Work!H$44*H23 -> 0 | I109: =I45*Work!I$44*I23 -> 257741745.1 | J109: =J45*Work!J$44*J23 -> 255391072.8 | K109: =K45*Work!K$44*K23 -> 252320822.2 | L109: =L45*Work!L$44*L23 -> 253232152.1 | M109: =M45*Work!M$44*M23 -> 253232152.1 | N109: =N45*Work!N$44*N23 -> 253232152.1 | O109: =O45*Work!O$44*O23 -> 253232152.1 | P109: =P45*Work!P$44*P23 -> 253232152.1 | Q109: =Q45*Work!Q$44*Q23 -> 253232152.1 | R109: =R45*Work!R$44*R23 -> 253232152.1 | S109: =S45*Work!S$44*S23 -> 253232152.1 | T109: =T45*Work!T$44*T23 -> 253232152.1 | U109: =U45*Work!U$44*U23 -> 253232152.1 | V109: =V45*Work!V$44*V23 -> 253232152.1 | W109: =W45*Work!W$44*W23 -> 253232152.1 | X109: =X45*Work!X$44*X23 -> 253232152.1 | Y109: =Y45*Work!Y$44*Y23 -> 253232152.1 | Z109: =Z45*Work!Z$44*Z23 -> 253232152.1 | AA109: =AA45*Work!AA$44*AA23 -> 253232152.1 | AB109: =AB45*Work!AB$44*AB23 -> 253232152.1 | AC109: =AC45*Work!AC$44*AC23 -> 253232152.1 | AD109: =AD45*Work!AD$44*AD23 -> 253232152.1 | AE109: =AE45*Work!AE$44*AE23 -> 253232152.1 | AF109: =AF45*Work!AF$44*AF23 -> 253232152.1 | AG109: =AG45*Work!AG$44*AG23 -> 253232152.1 | AH109: =AH45*Work!AH$44*AH23 -> 253232152.1 | AI109: =AI45*Work!AI$44*AI23 -> 253232152.1 | AJ109: =AJ45*Work!AJ$44*AJ23 -> 253232152.1 | AK109: =AK45*Work!AK$44*AK23 -> 253232152.1 | AL109: =AL45*Work!AL$44*AL23 -> 253232152.1 | AM109: =AM45*Work!AM$44*AM23 -> 253232152.1 | AN109: =AN45*Work!AN$44*AN23 -> 253232152.1 | AO109: =AO45*Work!AO$44*AO23 -> 253232152.1 | AP109: =AP45*Work!AP$44*AP23 -> 253232152.1
A110: =$A$16 -> SSY Market in € | F110: =F$16 -> 0 | G110: =G$16 -> 0 | H110: 0 | I110: 0 | J110: 0 | K110: 0 | L110: 0 | M110: 0 | N110: 0 | O110: 0 | P110: 0 | Q110: 0 | R110: 0 | S110: 0 | T110: 0 | U110: 0 | V110: 0 | W110: 0 | X110: 0 | Y110: 0 | Z110: 0 | AA110: 0 | AB110: 0 | AC110: 0 | AD110: 0 | AE110: 0 | AF110: 0 | AG110: 0 | AH110: 0 | AI110: 0 | AJ110: 0 | AK110: 0 | AL110: 0 | AM110: 0 | AN110: 0 | AO110: 0 | AP110: 0
F112: =-($H$12-$J$12)*$C$11*$C$13*$C$14*F48*$G$12 -> 0 | G112: 0 | H112: 0 | I112: 0 | J112: 0 | K112: 0 | L112: 0 | M112: 0 | N112: 0 | O112: 0 | P112: 0 | Q112: 0 | R112: 0 | S112: 0 | T112: 0 | U112: 0 | V112: 0 | W112: 0 | X112: 0 | Y112: 0 | Z112: 0 | AA112: 0 | AB112: 0 | AC112: 0 | AD112: 0 | AE112: 0 | AF112: 0 | AG112: 0 | AH112: 0 | AI112: 0 | AJ112: 0 | AK112: 0 | AL112: 0 | AM112: 0 | AN112: 0 | AO112: 0 | AP112: 0
A113: TOTAL | F113: =SUM(F109:F112) -> 0 | G113: 0 | H113: 0 | I113: 257741745.1 | J113: 255391072.8 | K113: 252320822.2 | L113: 253232152.1 | M113: 253232152.1 | N113: 253232152.1 | O113: 253232152.1 | P113: 253232152.1 | Q113: 253232152.1 | R113: 253232152.1 | S113: 253232152.1 | T113: 253232152.1 | U113: 253232152.1 | V113: 253232152.1 | W113: 253232152.1 | X113: 253232152.1 | Y113: 253232152.1 | Z113: 253232152.1 | AA113: 253232152.1 | AB113: 253232152.1 | AC113: 253232152.1 | AD113: 253232152.1 | AE113: 253232152.1 | AF113: 253232152.1 | AG113: 253232152.1 | AH113: 253232152.1 | AI113: 253232152.1 | AJ113: 253232152.1 | AK113: 253232152.1 | AL113: 253232152.1 | AM113: 253232152.1 | AN113: 253232152.1 | AO113: 253232152.1 | AP113: 253232152.1
A115: =A46 -> 4200 h - scénario 1 SOR
A116: Base price | F116: =F46*F24*Work!F$44 -> 0 | G116: =G46*G24*Work!G$44 -> 0 | H116: =H46*H24*Work!H$44 -> 0 | I116: =I46*I24*Work!I$44 -> 269622675 | J116: =J46*J24*Work!J$44 -> 266477077.1 | K116: =K46*K24*Work!K$44 -> 262882108.1 | L116: =L46*L24*Work!L$44 -> 262882108.1 | M116: =M46*M24*Work!M$44 -> 262882108.1 | N116: =N46*N24*Work!N$44 -> 262882108.1 | O116: =O46*O24*Work!O$44 -> 262882108.1 | P116: =P46*P24*Work!P$44 -> 262882108.1 | Q116: =Q46*Q24*Work!Q$44 -> 262882108.1 | R116: =R46*R24*Work!R$44 -> 262882108.1 | S116: =S46*S24*Work!S$44 -> 262882108.1 | T116: =T46*T24*Work!T$44 -> 262882108.1 | U116: =U46*U24*Work!U$44 -> 262882108.1 | V116: =V46*V24*Work!V$44 -> 262882108.1 | W116: =W46*W24*Work!W$44 -> 262882108.1 | X116: =X46*X24*Work!X$44 -> 262882108.1 | Y116: =Y46*Y24*Work!Y$44 -> 262882108.1 | Z116: =Z46*Z24*Work!Z$44 -> 262882108.1 | AA116: =AA46*AA24*Work!AA$44 -> 262882108.1 | AB116: =AB46*AB24*Work!AB$44 -> 262882108.1 | AC116: =AC46*AC24*Work!AC$44 -> 262882108.1 | AD116: =AD46*AD24*Work!AD$44 -> 262882108.1 | AE116: =AE46*AE24*Work!AE$44 -> 262882108.1 | AF116: =AF46*AF24*Work!AF$44 -> 262882108.1 | AG116: =AG46*AG24*Work!AG$44 -> 262882108.1 | AH116: =AH46*AH24*Work!AH$44 -> 262882108.1 | AI116: =AI46*AI24*Work!AI$44 -> 262882108.1 | AJ116: =AJ46*AJ24*Work!AJ$44 -> 262882108.1 | AK116: =AK46*AK24*Work!AK$44 -> 262882108.1 | AL116: =AL46*AL24*Work!AL$44 -> 262882108.1 | AM116: =AM46*AM24*Work!AM$44 -> 262882108.1 | AN116: =AN46*AN24*Work!AN$44 -> 262882108.1 | AO116: =AO46*AO24*Work!AO$44 -> 262882108.1 | AP116: =AP46*AP24*Work!AP$44 -> 262882108.1
A117: =$A$16 -> SSY Market in € | F117: =F$16 -> 0 | G117: =G$16 -> 0 | H117: 0 | I117: 0 | J117: 0 | K117: 0 | L117: 0 | M117: 0 | N117: 0 | O117: 0 | P117: 0 | Q117: 0 | R117: 0 | S117: 0 | T117: 0 | U117: 0 | V117: 0 | W117: 0 | X117: 0 | Y117: 0 | Z117: 0 | AA117: 0 | AB117: 0 | AC117: 0 | AD117: 0 | AE117: 0 | AF117: 0 | AG117: 0 | AH117: 0 | AI117: 0 | AJ117: 0 | AK117: 0 | AL117: 0 | AM117: 0 | AN117: 0 | AO117: 0 | AP117: 0
A120: TOTAL | F120: =SUM(F116:F119) -> 0 | G120: 0 | H120: 0 | I120: 269622675 | J120: 266477077.1 | K120: 262882108.1 | L120: 262882108.1 | M120: 262882108.1 | N120: 262882108.1 | O120: 262882108.1 | P120: 262882108.1 | Q120: 262882108.1 | R120: 262882108.1 | S120: 262882108.1 | T120: 262882108.1 | U120: 262882108.1 | V120: 262882108.1 | W120: 262882108.1 | X120: 262882108.1 | Y120: 262882108.1 | Z120: 262882108.1 | AA120: 262882108.1 | AB120: 262882108.1 | AC120: 262882108.1 | AD120: 262882108.1 | AE120: 262882108.1 | AF120: 262882108.1 | AG120: 262882108.1 | AH120: 262882108.1 | AI120: 262882108.1 | AJ120: 262882108.1 | AK120: 262882108.1 | AL120: 262882108.1 | AM120: 262882108.1 | AN120: 262882108.1 | AO120: 262882108.1 | AP120: 262882108.1
A122: =A47 -> 4500 h - scénario 2 SOR
A123: Base price | F123: =F47*F25*Work!F$44 -> 0 | G123: =G47*G25*Work!G$44 -> 0 | H123: =H47*H25*Work!H$44 -> 0 | I123: =I47*I25*Work!I$44 -> 262998405 | J123: =J47*J25*Work!J$44 -> 259930090.3 | K123: =K47*K25*Work!K$44 -> 256423444.9 | L123: =L47*L25*Work!L$44 -> 256423444.9 | M123: =M47*M25*Work!M$44 -> 256423444.9 | N123: =N47*N25*Work!N$44 -> 256423444.9 | O123: =O47*O25*Work!O$44 -> 256423444.9 | P123: =P47*P25*Work!P$44 -> 256423444.9 | Q123: =Q47*Q25*Work!Q$44 -> 256423444.9 | R123: =R47*R25*Work!R$44 -> 256423444.9 | S123: =S47*S25*Work!S$44 -> 256423444.9 | T123: =T47*T25*Work!T$44 -> 256423444.9 | U123: =U47*U25*Work!U$44 -> 256423444.9 | V123: =V47*V25*Work!V$44 -> 256423444.9 | W123: =W47*W25*Work!W$44 -> 256423444.9 | X123: =X47*X25*Work!X$44 -> 256423444.9 | Y123: =Y47*Y25*Work!Y$44 -> 256423444.9 | Z123: =Z47*Z25*Work!Z$44 -> 256423444.9 | AA123: =AA47*AA25*Work!AA$44 -> 256423444.9 | AB123: =AB47*AB25*Work!AB$44 -> 256423444.9 | AC123: =AC47*AC25*Work!AC$44 -> 256423444.9 | AD123: =AD47*AD25*Work!AD$44 -> 256423444.9 | AE123: =AE47*AE25*Work!AE$44 -> 256423444.9 | AF123: =AF47*AF25*Work!AF$44 -> 256423444.9 | AG123: =AG47*AG25*Work!AG$44 -> 256423444.9 | AH123: =AH47*AH25*Work!AH$44 -> 256423444.9 | AI123: =AI47*AI25*Work!AI$44 -> 256423444.9 | AJ123: =AJ47*AJ25*Work!AJ$44 -> 256423444.9 | AK123: =AK47*AK25*Work!AK$44 -> 256423444.9 | AL123: =AL47*AL25*Work!AL$44 -> 256423444.9 | AM123: =AM47*AM25*Work!AM$44 -> 256423444.9 | AN123: =AN47*AN25*Work!AN$44 -> 256423444.9 | AO123: =AO47*AO25*Work!AO$44 -> 256423444.9 | AP123: =AP47*AP25*Work!AP$44 -> 256423444.9
A124: =$A$16 -> SSY Market in € | F124: =F$16 -> 0 | G124: =G$16 -> 0 | H124: 0 | I124: 0 | J124: 0 | K124: 0 | L124: 0 | M124: 0 | N124: 0 | O124: 0 | P124: 0 | Q124: 0 | R124: 0 | S124: 0 | T124: 0 | U124: 0 | V124: 0 | W124: 0 | X124: 0 | Y124: 0 | Z124: 0 | AA124: 0 | AB124: 0 | AC124: 0 | AD124: 0 | AE124: 0 | AF124: 0 | AG124: 0 | AH124: 0 | AI124: 0 | AJ124: 0 | AK124: 0 | AL124: 0 | AM124: 0 | AN124: 0 | AO124: 0 | AP124: 0
A126: TOTAL | F126: =SUM(F123:F125) -> 0 | G126: 0 | H126: 0 | I126: 262998405 | J126: 259930090.3 | K126: 256423444.9 | L126: 256423444.9 | M126: 256423444.9 | N126: 256423444.9 | O126: 256423444.9 | P126: 256423444.9 | Q126: 256423444.9 | R126: 256423444.9 | S126: 256423444.9 | T126: 256423444.9 | U126: 256423444.9 | V126: 256423444.9 | W126: 256423444.9 | X126: 256423444.9 | Y126: 256423444.9 | Z126: 256423444.9 | AA126: 256423444.9 | AB126: 256423444.9 | AC126: 256423444.9 | AD126: 256423444.9 | AE126: 256423444.9 | AF126: 256423444.9 | AG126: 256423444.9 | AH126: 256423444.9 | AI126: 256423444.9 | AJ126: 256423444.9 | AK126: 256423444.9 | AL126: 256423444.9 | AM126: 256423444.9 | AN126: 256423444.9 | AO126: 256423444.9 | AP126: 256423444.9
A128: =A48 -> 4200 h - meilleurs H8-H24
A129: Base price | F129: =F48*F26*Work!F$44 -> 0 | G129: =G48*G26*Work!G$44 -> 0 | H129: =H48*H26*Work!H$44 -> 0 | I129: =I48*I26*Work!I$44 -> 244238528.1 | J129: =J48*J26*Work!J$44 -> 242335428.5 | K129: =K48*K26*Work!K$44 -> 239366082.3 | L129: =L48*L26*Work!L$44 -> 240772047.2 | M129: =M48*M26*Work!M$44 -> 240772047.2 | N129: =N48*N26*Work!N$44 -> 240772047.2 | O129: =O48*O26*Work!O$44 -> 240772047.2 | P129: =P48*P26*Work!P$44 -> 240772047.2 | Q129: =Q48*Q26*Work!Q$44 -> 240772047.2 | R129: =R48*R26*Work!R$44 -> 240772047.2 | S129: =S48*S26*Work!S$44 -> 240772047.2 | T129: =T48*T26*Work!T$44 -> 240772047.2 | U129: =U48*U26*Work!U$44 -> 240772047.2 | V129: =V48*V26*Work!V$44 -> 240772047.2 | W129: =W48*W26*Work!W$44 -> 240772047.2 | X129: =X48*X26*Work!X$44 -> 240772047.2 | Y129: =Y48*Y26*Work!Y$44 -> 240772047.2 | Z129: =Z48*Z26*Work!Z$44 -> 240772047.2 | AA129: =AA48*AA26*Work!AA$44 -> 240772047.2 | AB129: =AB48*AB26*Work!AB$44 -> 240772047.2 | AC129: =AC48*AC26*Work!AC$44 -> 240772047.2 | AD129: =AD48*AD26*Work!AD$44 -> 240772047.2 | AE129: =AE48*AE26*Work!AE$44 -> 240772047.2 | AF129: =AF48*AF26*Work!AF$44 -> 240772047.2 | AG129: =AG48*AG26*Work!AG$44 -> 240772047.2 | AH129: =AH48*AH26*Work!AH$44 -> 240772047.2 | AI129: =AI48*AI26*Work!AI$44 -> 240772047.2 | AJ129: =AJ48*AJ26*Work!AJ$44 -> 240772047.2 | AK129: =AK48*AK26*Work!AK$44 -> 240772047.2 | AL129: =AL48*AL26*Work!AL$44 -> 240772047.2 | AM129: =AM48*AM26*Work!AM$44 -> 240772047.2 | AN129: =AN48*AN26*Work!AN$44 -> 240772047.2 | AO129: =AO48*AO26*Work!AO$44 -> 240772047.2 | AP129: =AP48*AP26*Work!AP$44 -> 240772047.2
A130: =$A$16 -> SSY Market in € | F130: =F$16 -> 0 | G130: =G$16 -> 0 | H130: 0 | I130: 0 | J130: 0 | K130: 0 | L130: 0 | M130: 0 | N130: 0 | O130: 0 | P130: 0 | Q130: 0 | R130: 0 | S130: 0 | T130: 0 | U130: 0 | V130: 0 | W130: 0 | X130: 0 | Y130: 0 | Z130: 0 | AA130: 0 | AB130: 0 | AC130: 0 | AD130: 0 | AE130: 0 | AF130: 0 | AG130: 0 | AH130: 0 | AI130: 0 | AJ130: 0 | AK130: 0 | AL130: 0 | AM130: 0 | AN130: 0 | AO130: 0 | AP130: 0
A132: TOTAL | F132: =SUM(F129:F131) -> 0 | G132: =SUM(G129:G131) -> 0 | H132: 0 | I132: 244238528.1 | J132: 242335428.5 | K132: 239366082.3 | L132: 240772047.2 | M132: 240772047.2 | N132: 240772047.2 | O132: 240772047.2 | P132: 240772047.2 | Q132: 240772047.2 | R132: 240772047.2 | S132: 240772047.2 | T132: 240772047.2 | U132: 240772047.2 | V132: 240772047.2 | W132: 240772047.2 | X132: 240772047.2 | Y132: 240772047.2 | Z132: 240772047.2 | AA132: 240772047.2 | AB132: 240772047.2 | AC132: 240772047.2 | AD132: 240772047.2 | AE132: 240772047.2 | AF132: 240772047.2 | AG132: 240772047.2 | AH132: 240772047.2 | AI132: 240772047.2 | AJ132: 240772047.2 | AK132: 240772047.2 | AL132: 240772047.2 | AM132: 240772047.2 | AN132: 240772047.2 | AO132: 240772047.2 | AP132: 240772047.2
A134: =A49 -> 4200 h - meilleurs Base LOAD
A135: Base price | F135: =F49*F27*Work!F$44 -> 0 | G135: =G49*G27*Work!G$44 -> 0 | H135: =H49*H27*Work!H$44 -> 0 | I135: =I49*I27*Work!I$44 -> 215282547.8 | J135: =J49*J27*Work!J$44 -> 213156140 | K135: =K49*K27*Work!K$44 -> 207901834 | L135: =L49*L27*Work!L$44 -> 206212833.9 | M135: =M49*M27*Work!M$44 -> 206212833.9 | N135: =N49*N27*Work!N$44 -> 206212833.9 | O135: =O49*O27*Work!O$44 -> 206212833.9 | P135: =P49*P27*Work!P$44 -> 206212833.9 | Q135: =Q49*Q27*Work!Q$44 -> 206212833.9 | R135: =R49*R27*Work!R$44 -> 206212833.9 | S135: =S49*S27*Work!S$44 -> 206212833.9 | T135: =T49*T27*Work!T$44 -> 206212833.9 | U135: =U49*U27*Work!U$44 -> 206212833.9 | V135: =V49*V27*Work!V$44 -> 206212833.9 | W135: =W49*W27*Work!W$44 -> 206212833.9 | X135: =X49*X27*Work!X$44 -> 206212833.9 | Y135: =Y49*Y27*Work!Y$44 -> 206212833.9 | Z135: =Z49*Z27*Work!Z$44 -> 206212833.9 | AA135: =AA49*AA27*Work!AA$44 -> 206212833.9 | AB135: =AB49*AB27*Work!AB$44 -> 206212833.9 | AC135: =AC49*AC27*Work!AC$44 -> 206212833.9 | AD135: =AD49*AD27*Work!AD$44 -> 206212833.9 | AE135: =AE49*AE27*Work!AE$44 -> 206212833.9 | AF135: =AF49*AF27*Work!AF$44 -> 206212833.9 | AG135: =AG49*AG27*Work!AG$44 -> 206212833.9 | AH135: =AH49*AH27*Work!AH$44 -> 206212833.9 | AI135: =AI49*AI27*Work!AI$44 -> 206212833.9 | AJ135: =AJ49*AJ27*Work!AJ$44 -> 206212833.9 | AK135: =AK49*AK27*Work!AK$44 -> 206212833.9 | AL135: =AL49*AL27*Work!AL$44 -> 206212833.9 | AM135: =AM49*AM27*Work!AM$44 -> 206212833.9 | AN135: =AN49*AN27*Work!AN$44 -> 206212833.9 | AO135: =AO49*AO27*Work!AO$44 -> 206212833.9 | AP135: =AP49*AP27*Work!AP$44 -> 206212833.9
A136: =$A$16 -> SSY Market in € | F136: =F$16 -> 0 | G136: =G$16 -> 0 | H136: 0 | I136: 0 | J136: 0 | K136: 0 | L136: 0 | M136: 0 | N136: 0 | O136: 0 | P136: 0 | Q136: 0 | R136: 0 | S136: 0 | T136: 0 | U136: 0 | V136: 0 | W136: 0 | X136: 0 | Y136: 0 | Z136: 0 | AA136: 0 | AB136: 0 | AC136: 0 | AD136: 0 | AE136: 0 | AF136: 0 | AG136: 0 | AH136: 0 | AI136: 0 | AJ136: 0 | AK136: 0 | AL136: 0 | AM136: 0 | AN136: 0 | AO136: 0 | AP136: 0
F137: =-($H$13-$J$13)*$C$11*$C$13*$C$14*$G$13*F58 -> 0 | G137: =-($H$13-$J$13)*$C$11*$C$13*$C$14*$G$13*G58 -> 0 | H137: =-($H$13-$J$13)*$C$11*$C$13*$C$14*$G$13*H58 -> 0 | I137: =-($H$14-$J$14)*$C$11*$C$13*$C$14*$G$14*I58 -> 0 | J137: =-($H$13-$J$13)*$C$11*$C$13*$C$14*$G$13*J58 -> 0 | K137: 0 | L137: 0 | M137: 0 | N137: 0 | O137: 0 | P137: 0 | Q137: 0 | R137: 0 | S137: 0 | T137: 0 | U137: 0 | V137: 0 | W137: 0 | X137: 0 | Y137: 0 | Z137: 0 | AA137: 0 | AB137: 0 | AC137: 0 | AD137: 0 | AE137: 0 | AF137: 0 | AG137: 0 | AH137: 0 | AI137: 0 | AJ137: 0 | AK137: 0 | AL137: 0 | AM137: 0 | AN137: 0 | AO137: 0 | AP137: 0
A138: TOTAL | F138: =SUM(F135:F137) -> 0 | G138: =SUM(G135:G137) -> 0 | H138: =SUM(H135:H137) -> 0 | I138: =SUM(I135:I137) -> 215282547.8 | J138: =SUM(J135:J137) -> 213156140 | K138: 207901834 | L138: 206212833.9 | M138: 206212833.9 | N138: 206212833.9 | O138: 206212833.9 | P138: 206212833.9 | Q138: 206212833.9 | R138: 206212833.9 | S138: 206212833.9 | T138: 206212833.9 | U138: 206212833.9 | V138: 206212833.9 | W138: 206212833.9 | X138: 206212833.9 | Y138: 206212833.9 | Z138: 206212833.9 | AA138: 206212833.9 | AB138: 206212833.9 | AC138: 206212833.9 | AD138: 206212833.9 | AE138: 206212833.9 | AF138: 206212833.9 | AG138: 206212833.9 | AH138: 206212833.9 | AI138: 206212833.9 | AJ138: 206212833.9 | AK138: 206212833.9 | AL138: 206212833.9 | AM138: 206212833.9 | AN138: 206212833.9 | AO138: 206212833.9 | AP138: 206212833.9
A140: =A50 -> 4200 h - Hypothèse Moyenne
A141: Base price | F141: =F50*F28*Work!F$44 -> 0 | G141: =G50*G28*Work!G$44 -> 0 | H141: =H50*H28*Work!H$44 -> 0 | I141: =I50*I28*Work!I$44 -> 229760538 | J141: =J50*J28*Work!J$44 -> 227745784.2 | K141: =K50*K28*Work!K$44 -> 223633958.2 | L141: =L50*L28*Work!L$44 -> 223492440.6 | M141: =M50*M28*Work!M$44 -> 223492440.6 | N141: =N50*N28*Work!N$44 -> 223492440.6 | O141: =O50*O28*Work!O$44 -> 223492440.6 | P141: =P50*P28*Work!P$44 -> 223492440.6 | Q141: =Q50*Q28*Work!Q$44 -> 223492440.6 | R141: =R50*R28*Work!R$44 -> 223492440.6 | S141: =S50*S28*Work!S$44 -> 223492440.6 | T141: =T50*T28*Work!T$44 -> 223492440.6 | U141: =U50*U28*Work!U$44 -> 223492440.6 | V141: =V50*V28*Work!V$44 -> 223492440.6 | W141: =W50*W28*Work!W$44 -> 223492440.6 | X141: =X50*X28*Work!X$44 -> 223492440.6 | Y141: =Y50*Y28*Work!Y$44 -> 223492440.6 | Z141: =Z50*Z28*Work!Z$44 -> 223492440.6 | AA141: =AA50*AA28*Work!AA$44 -> 223492440.6 | AB141: =AB50*AB28*Work!AB$44 -> 223492440.6 | AC141: =AC50*AC28*Work!AC$44 -> 223492440.6 | AD141: =AD50*AD28*Work!AD$44 -> 223492440.6 | AE141: =AE50*AE28*Work!AE$44 -> 223492440.6 | AF141: =AF50*AF28*Work!AF$44 -> 223492440.6 | AG141: =AG50*AG28*Work!AG$44 -> 223492440.6 | AH141: =AH50*AH28*Work!AH$44 -> 223492440.6 | AI141: =AI50*AI28*Work!AI$44 -> 223492440.6 | AJ141: =AJ50*AJ28*Work!AJ$44 -> 223492440.6 | AK141: =AK50*AK28*Work!AK$44 -> 223492440.6 | AL141: =AL50*AL28*Work!AL$44 -> 223492440.6 | AM141: =AM50*AM28*Work!AM$44 -> 223492440.6 | AN141: =AN50*AN28*Work!AN$44 -> 223492440.6 | AO141: =AO50*AO28*Work!AO$44 -> 223492440.6 | AP141: =AP50*AP28*Work!AP$44 -> 223492440.6
A142: =$A$16 -> SSY Market in € | F142: =F$16 -> 0 | G142: =G$16 -> 0 | H142: 0 | I142: 0 | J142: 0 | K142: 0 | L142: 0 | M142: 0 | N142: 0 | O142: 0 | P142: 0 | Q142: 0 | R142: 0 | S142: 0 | T142: 0 | U142: 0 | V142: 0 | W142: 0 | X142: 0 | Y142: 0 | Z142: 0 | AA142: 0 | AB142: 0 | AC142: 0 | AD142: 0 | AE142: 0 | AF142: 0 | AG142: 0 | AH142: 0 | AI142: 0 | AJ142: 0 | AK142: 0 | AL142: 0 | AM142: 0 | AN142: 0 | AO142: 0 | AP142: 0
A144: TOTAL | F144: =SUM(F141:F143) -> 0 | G144: =SUM(G141:G143) -> 0 | H144: 0 | I144: 229760538 | J144: 227745784.2 | K144: 223633958.2 | L144: 223492440.6 | M144: 223492440.6 | N144: 223492440.6 | O144: 223492440.6 | P144: 223492440.6 | Q144: 223492440.6 | R144: 223492440.6 | S144: 223492440.6 | T144: 223492440.6 | U144: 223492440.6 | V144: 223492440.6 | W144: 223492440.6 | X144: 223492440.6 | Y144: 223492440.6 | Z144: 223492440.6 | AA144: 223492440.6 | AB144: 223492440.6 | AC144: 223492440.6 | AD144: 223492440.6 | AE144: 223492440.6 | AF144: 223492440.6 | AG144: 223492440.6 | AH144: 223492440.6 | AI144: 223492440.6 | AJ144: 223492440.6 | AK144: 223492440.6 | AL144: 223492440.6 | AM144: 223492440.6 | AN144: 223492440.6 | AO144: 223492440.6 | AP144: 223492440.6
A146: =A51 -> Scen SOREGIES spot 2005
A147: Base price | F147: =F51*Work!F$44*F29 -> 0 | G147: =G51*Work!G$44*G29 -> 0 | H147: =H51*Work!H$44*H29 -> 0 | I147: =I51*Work!I$44*I29 -> 247182030 | J147: =J51*Work!J$44*J29 -> 244298239.6 | K147: =K51*Work!K$44*K29 -> 241002479.2 | L147: =L51*Work!L$44*L29 -> 241002479.2 | M147: =M51*Work!M$44*M29 -> 241002479.2 | N147: =N51*Work!N$44*N29 -> 241002479.2 | O147: =O51*Work!O$44*O29 -> 241002479.2 | P147: =P51*Work!P$44*P29 -> 241002479.2 | Q147: =Q51*Work!Q$44*Q29 -> 241002479.2 | R147: =R51*Work!R$44*R29 -> 241002479.2 | S147: =S51*Work!S$44*S29 -> 241002479.2 | T147: =T51*Work!T$44*T29 -> 241002479.2 | U147: =U51*Work!U$44*U29 -> 241002479.2 | V147: =V51*Work!V$44*V29 -> 241002479.2 | W147: =W51*Work!W$44*W29 -> 241002479.2 | X147: =X51*Work!X$44*X29 -> 241002479.2 | Y147: =Y51*Work!Y$44*Y29 -> 241002479.2 | Z147: =Z51*Work!Z$44*Z29 -> 241002479.2 | AA147: =AA51*Work!AA$44*AA29 -> 241002479.2 | AB147: =AB51*Work!AB$44*AB29 -> 241002479.2 | AC147: =AC51*Work!AC$44*AC29 -> 241002479.2 | AD147: =AD51*Work!AD$44*AD29 -> 241002479.2 | AE147: =AE51*Work!AE$44*AE29 -> 241002479.2 | AF147: =AF51*Work!AF$44*AF29 -> 241002479.2 | AG147: =AG51*Work!AG$44*AG29 -> 241002479.2 | AH147: =AH51*Work!AH$44*AH29 -> 241002479.2 | AI147: =AI51*Work!AI$44*AI29 -> 241002479.2 | AJ147: =AJ51*Work!AJ$44*AJ29 -> 241002479.2 | AK147: =AK51*Work!AK$44*AK29 -> 241002479.2 | AL147: =AL51*Work!AL$44*AL29 -> 241002479.2 | AM147: =AM51*Work!AM$44*AM29 -> 241002479.2 | AN147: =AN51*Work!AN$44*AN29 -> 241002479.2 | AO147: =AO51*Work!AO$44*AO29 -> 241002479.2 | AP147: =AP51*Work!AP$44*AP29 -> 241002479.2
A148: =$A$16 -> SSY Market in € | F148: =F$16 -> 0 | G148: =G$16 -> 0 | H148: 0 | I148: 0 | J148: 0 | K148: 0 | L148: 0 | M148: 0 | N148: 0 | O148: 0 | P148: 0 | Q148: 0 | R148: 0 | S148: 0 | T148: 0 | U148: 0 | V148: 0 | W148: 0 | X148: 0 | Y148: 0 | Z148: 0 | AA148: 0 | AB148: 0 | AC148: 0 | AD148: 0 | AE148: 0 | AF148: 0 | AG148: 0 | AH148: 0 | AI148: 0 | AJ148: 0 | AK148: 0 | AL148: 0 | AM148: 0 | AN148: 0 | AO148: 0 | AP148: 0
F149: =-$C$11*F55*$G$11*($H$11-$J$11)*$C$13*$C$14 -> 0 | G149: =-$C$11*G55*$G$11*($H$11-$J$11)*$C$13*$C$14 -> 0 | H149: =-$C$11*H55*$G$11*($H$11-$J$11)*$C$13*$C$14 -> 0 | I149: =-$C$11*I55*$G$11*($H$11-$J$11)*$C$13*$C$14 -> 0 | J149: =-$C$11*J55*$G$11*($H$11-$J$11)*$C$13*$C$14 -> 0 | K149: 0 | L149: 0 | M149: 0 | N149: 0 | O149: 0 | P149: 0 | Q149: 0 | R149: 0 | S149: 0 | T149: 0 | U149: 0 | V149: 0 | W149: 0 | X149: 0 | Y149: 0 | Z149: 0 | AA149: 0 | AB149: 0 | AC149: 0 | AD149: 0 | AE149: 0 | AF149: 0 | AG149: 0 | AH149: 0 | AI149: 0 | AJ149: 0 | AK149: 0 | AL149: 0 | AM149: 0 | AN149: 0 | AO149: 0 | AP149: 0
A150: TOTAL | F150: =SUM(F147:F149) -> 0 | G150: 0 | H150: 0 | I150: 247182030 | J150: 244298239.6 | K150: 241002479.2 | L150: 241002479.2 | M150: 241002479.2 | N150: 241002479.2 | O150: 241002479.2 | P150: 241002479.2 | Q150: 241002479.2 | R150: 241002479.2 | S150: 241002479.2 | T150: 241002479.2 | U150: 241002479.2 | V150: 241002479.2 | W150: 241002479.2 | X150: 241002479.2 | Y150: 241002479.2 | Z150: 241002479.2 | AA150: 241002479.2 | AB150: 241002479.2 | AC150: 241002479.2 | AD150: 241002479.2 | AE150: 241002479.2 | AF150: 241002479.2 | AG150: 241002479.2 | AH150: 241002479.2 | AI150: 241002479.2 | AJ150: 241002479.2 | AK150: 241002479.2 | AL150: 241002479.2 | AM150: 241002479.2 | AN150: 241002479.2 | AO150: 241002479.2 | AP150: 241002479.2
A152: =A52 -> scénario ENDESA POA-PM | F152: 0 | G152: 0 | H152: 0 | I152: 2885 | J152: 3139.971531 | K152: 3253.855479 | L152: 3253.855479 | M152: 3141.855479 | N152: 3271.855479 | O152: 3395.855479 | P152: 3436.605744 | Q152: 3477.845013 | R152: 3519.579153 | S152: 3589.970736 | T152: 3633.050385 | U152: 3669.380889 | V152: 3706.074698 | W152: 3743.135445 | X152: 3780.5668 | Y152: 3818.372468 | Z152: 3856.556192 | AA152: 3895.121754 | AB152: 3934.072972 | AC152: 3973.413701 | AD152: 4013.147838 | AE152: 4053.279317 | AF152: 4093.81211 | AG152: 4134.750231 | AH152: =AG152*1.01 -> 4176.097733 | AI152: 0 | AJ152: 0 | AK152: 0 | AL152: 0 | AM152: 0 | AN152: 0 | AO152: 0 | AP152: 0
A153: Base price | F153: =F52*F30*Work!F44 -> 0 | G153: =G52*G30*Work!G44 -> 0 | H153: =H52*H30*Work!H44 -> 0 | I153: =I52*I30*Work!I44 -> 223915693.3 | J153: =J52*J30*Work!J44 -> 221303343.6 | K153: =K52*K30*Work!K44 -> 226763266.7 | L153: =L52*L30*Work!L44 -> 226138905.5 | M153: =M52*M30*Work!M44 -> 221523966.7 | N153: =N52*N30*Work!N44 -> 244769010.8 | O153: =O52*O30*Work!O44 -> 256638924 | P153: =P52*P30*Work!P44 -> 265977176.1 | Q153: =Q52*Q30*Work!Q44 -> 248546386.3 | R153: =R52*R30*Work!R44 -> 267841525 | S153: =S52*S30*Work!S44 -> 267764207.2 | T153: =T52*T30*Work!T44 -> 272557453.2 | U153: =U52*U30*Work!U44 -> 275283027.8 | V153: =V52*V30*Work!V44 -> 278035858 | W153: =W52*W30*Work!W44 -> 280816216.6 | X153: =X52*X30*Work!X44 -> 283624378.8 | Y153: =Y52*Y30*Work!Y44 -> 286460622.6 | Z153: =Z52*Z30*Work!Z44 -> 289325228.8 | AA153: =AA52*AA30*Work!AA44 -> 292218481.1 | AB153: =AB52*AB30*Work!AB44 -> 295140665.9 | AC153: =AC52*AC30*Work!AC44 -> 298092072.6 | AD153: =AD52*AD30*Work!AD44 -> 301072993.3 | AE153: =AE52*AE30*Work!AE44 -> 304083723.2 | AF153: =AF52*AF30*Work!AF44 -> 307124560.5 | AG153: =AG52*AG30*Work!AG44 -> 310195806.1 | AH153: =AH52*AH30*Work!AH44 -> 313297764.1 | AI153: =AI52*AI30*Work!AI44 -> 0 | AJ153: =AJ52*AJ30*Work!AJ44 -> 0 | AK153: =AK52*AK30*Work!AK44 -> 0 | AL153: =AL52*AL30*Work!AL44 -> 0 | AM153: =AM52*AM30*Work!AM44 -> 0 | AN153: =AN52*AN30*Work!AN44 -> 0 | AO153: =AO52*AO30*Work!AO44 -> 0 | AP153: =AP52*AP30*Work!AP44 -> 0
F154: =-($H$12-$J$12)*$C$11*$C$13*$C$14*F56*$G$12 -> 0 | G154: =-($H$12-$J$12)*$C$11*$C$13*$C$14*G56*$G$12 -> 0 | H154: =-($H$12-$J$12)*$C$11*$C$13*$C$14*H56*$G$12 -> 0 | I154: =-($H$12-$J$12)*$C$11*$C$13*$C$14*I56*$G$12 -> 0 | J154: =-($H$12-$J$12)*$C$11*$C$13*$C$14*J56*$G$12 -> 0 | K154: 0 | L154: 0 | M154: 0 | N154: 0 | O154: 0 | P154: 0 | Q154: 0 | R154: 0 | S154: 0 | T154: 0 | U154: 0 | V154: 0 | W154: 0 | X154: 0 | Y154: 0 | Z154: 0 | AA154: 0 | AB154: 0 | AC154: 0 | AD154: 0 | AE154: 0 | AF154: 0 | AG154: 0 | AH154: 0 | AI154: 0 | AJ154: 0 | AK154: 0 | AL154: 0 | AM154: 0 | AN154: 0 | AO154: 0 | AP154: 0
A155: TOTAL | F155: =SUM(F153:F154) -> 0 | G155: 0 | H155: 0 | I155: 223915693.3 | J155: 221303343.6 | K155: 226763266.7 | L155: 226138905.5 | M155: 221523966.7 | N155: 244769010.8 | O155: 256638924 | P155: 265977176.1 | Q155: 248546386.3 | R155: 267841525 | S155: 267764207.2 | T155: 272557453.2 | U155: 275283027.8 | V155: 278035858 | W155: 280816216.6 | X155: 283624378.8 | Y155: 286460622.6 | Z155: 289325228.8 | AA155: 292218481.1 | AB155: 295140665.9 | AC155: 298092072.6 | AD155: 301072993.3 | AE155: 304083723.2 | AF155: 307124560.5 | AG155: 310195806.1 | AH155: 313297764.1 | AI155: 0 | AJ155: 0 | AK155: 0 | AL155: 0 | AM155: 0 | AN155: 0 | AO155: 0 | AP155: 0
A157: =A53 -> ENDESA EU
A158: Base price | F158: =F57*$G$13*$H$13 -> 0 | G158: =G53*Work!G$44*G31 -> 0 | H158: =H53*Work!H$44*H31 -> 0 | I158: =I53*Work!I$44*I31 -> 0 | J158: =J53*Work!J$44*J31 -> 191338888.8 | K158: =K53*Work!K$44*K31 -> 193847129 | L158: =L53*Work!L$44*L31 -> 209107224.7 | M158: =M53*Work!M$44*M31 -> 253079468.7 | N158: =N53*Work!N$44*N31 -> 274894081 | O158: =O53*Work!O$44*O31 -> 220758507.3 | P158: =P53*Work!P$44*P31 -> 230449588.9 | Q158: =Q53*Work!Q$44*Q31 -> 291230321.4 | R158: =R53*Work!R$44*R31 -> 268123066.2 | S158: =S53*Work!S$44*S31 -> 228585295.1 | T158: =T53*Work!T$44*T31 -> 293125825.4 | U158: =U53*Work!U$44*U31 -> 293125825.4 | V158: =V53*Work!V$44*V31 -> 264669978.1 | W158: =W53*Work!W$44*W31 -> 293125825.4 | X158: =X53*Work!X$44*X31 -> 293125825.4 | Y158: =Y53*Work!Y$44*Y31 -> 292819848.6 | Z158: =Z53*Work!Z$44*Z31 -> 292819848.6 | AA158: =AA53*Work!AA$44*AA31 -> 292819848.6 | AB158: =AB53*Work!AB$44*AB31 -> 292819848.6 | AC158: =AC53*Work!AC$44*AC31 -> 292819848.6 | AD158: =AD53*Work!AD$44*AD31 -> 292819848.6 | AE158: =AE53*Work!AE$44*AE31 -> 292819848.6 | AF158: =AF53*Work!AF$44*AF31 -> 292819848.6 | AG158: =AG53*Work!AG$44*AG31 -> 292819848.6 | AH158: =AH53*Work!AH$44*AH31 -> 292819848.6 | AI158: =AI53*Work!AI$44*AI31 -> 0 | AJ158: =AJ53*Work!AJ$44*AJ31 -> 0 | AK158: =AK53*Work!AK$44*AK31 -> 0 | AL158: =AL53*Work!AL$44*AL31 -> 0 | AM158: =AM53*Work!AM$44*AM31 -> 0 | AN158: =AN53*Work!AN$44*AN31 -> 0 | AO158: =AO53*Work!AO$44*AO31 -> 0 | AP158: =AP53*Work!AP$44*AP31 -> 0
F159: =-($H$13-$J$13)*$C$11*$C$13*$C$14*F57*$G$13 -> 0 | G159: =-($H$13-$J$13)*$C$11*$C$13*$C$14*G57*$G$13 -> 0 | H159: =-($H$13-$J$13)*$C$11*$C$13*$C$14*H57*$G$13 -> 0 | I159: =-($H$13-$J$13)*$C$11*$C$13*$C$14*I57*$G$13 -> 0 | J159: =-($H$13-$J$13)*$C$11*$C$13*$C$14*J57*$G$13 -> 0 | K159: 0 | L159: 0 | M159: 0 | N159: 0 | O159: 0 | P159: 0 | Q159: 0 | R159: 0 | S159: 0 | T159: 0 | U159: 0 | V159: 0 | W159: 0 | X159: 0 | Y159: 0 | Z159: 0 | AA159: 0 | AB159: 0 | AC159: 0 | AD159: 0 | AE159: 0 | AF159: 0 | AG159: 0 | AH159: 0 | AI159: 0 | AJ159: 0 | AK159: 0 | AL159: 0 | AM159: 0 | AN159: 0 | AO159: 0 | AP159: 0
A160: TOTAL | F160: =SUM(F158:F159) -> 0 | G160: 0 | H160: 0 | I160: 0 | J160: 191338888.8 | K160: 193847129 | L160: 209107224.7 | M160: 253079468.7 | N160: 274894081 | O160: 220758507.3 | P160: 230449588.9 | Q160: 291230321.4 | R160: 268123066.2 | S160: 228585295.1 | T160: 293125825.4 | U160: 293125825.4 | V160: 264669978.1 | W160: 293125825.4 | X160: 293125825.4 | Y160: 292819848.6 | Z160: 292819848.6 | AA160: 292819848.6 | AB160: 292819848.6 | AC160: 292819848.6 | AD160: 292819848.6 | AE160: 292819848.6 | AF160: 292819848.6 | AG160: 292819848.6 | AH160: 292819848.6 | AI160: 0 | AJ160: 0 | AK160: 0 | AL160: 0 | AM160: 0 | AN160: 0 | AO160: 0 | AP160: 0
A162: =A54 -> 4200 h - scénario 1 SOR
A163: Base price | F163: =F54*Work!F$44*F32 -> 0 | G163: =G54*Work!G$44*G32 -> 0 | H163: =H54*Work!H$44*H32 -> 0 | I163: =I54*Work!I$44*I32 -> 187528866 | J163: =J54*Work!J$44*J32 -> 185341029.2 | K163: =K54*Work!K$44*K32 -> 182840644.3 | L163: =L54*Work!L$44*L32 -> 182840644.3 | M163: =M54*Work!M$44*M32 -> 182840644.3 | N163: =N54*Work!N$44*N32 -> 182840644.3 | O163: =O54*Work!O$44*O32 -> 182840644.3 | P163: =P54*Work!P$44*P32 -> 182840644.3 | Q163: =Q54*Work!Q$44*Q32 -> 182840644.3 | R163: =R54*Work!R$44*R32 -> 182840644.3 | S163: =S54*Work!S$44*S32 -> 182840644.3 | T163: =T54*Work!T$44*T32 -> 182840644.3 | U163: =U54*Work!U$44*U32 -> 182840644.3 | V163: =V54*Work!V$44*V32 -> 182840644.3 | W163: =W54*Work!W$44*W32 -> 182840644.3 | X163: =X54*Work!X$44*X32 -> 182840644.3 | Y163: =Y54*Work!Y$44*Y32 -> 182840644.3 | Z163: =Z54*Work!Z$44*Z32 -> 182840644.3 | AA163: =AA54*Work!AA$44*AA32 -> 182840644.3 | AB163: =AB54*Work!AB$44*AB32 -> 182840644.3 | AC163: =AC54*Work!AC$44*AC32 -> 182840644.3 | AD163: =AD54*Work!AD$44*AD32 -> 182840644.3 | AE163: =AE54*Work!AE$44*AE32 -> 182840644.3 | AF163: =AF54*Work!AF$44*AF32 -> 182840644.3 | AG163: =AG54*Work!AG$44*AG32 -> 182840644.3 | AH163: =AH54*Work!AH$44*AH32 -> 182840644.3 | AI163: =AI54*Work!AI$44*AI32 -> 182840644.3 | AJ163: =AJ54*Work!AJ$44*AJ32 -> 182840644.3 | AK163: =AK54*Work!AK$44*AK32 -> 182840644.3 | AL163: =AL54*Work!AL$44*AL32 -> 182840644.3 | AM163: =AM54*Work!AM$44*AM32 -> 182840644.3 | AN163: =AN54*Work!AN$44*AN32 -> 182840644.3 | AO163: =AO54*Work!AO$44*AO32 -> 182840644.3 | AP163: =AP54*Work!AP$44*AP32 -> 182840644.3
F164: =-($H$13-$J$13)*$C$11*$C$13*$C$14*F62*$G$13 -> 0 | G164: =-($H$13-$J$13)*$C$11*$C$13*$C$14*G62*$G$13 -> 0 | H164: =-($H$13-$J$13)*$C$11*$C$13*$C$14*H62*$G$13 -> 0 | I164: =-($H$13-$J$13)*$C$11*$C$13*$C$14*I62*$G$13 -> 0 | J164: =-($H$13-$J$13)*$C$11*$C$13*$C$14*J62*$G$13 -> 0 | K164: 0 | L164: 0 | M164: 0 | N164: 0 | O164: 0 | P164: 0 | Q164: 0 | R164: 0 | S164: 0 | T164: 0 | U164: 0 | V164: 0 | W164: 0 | X164: 0 | Y164: 0 | Z164: 0 | AA164: 0 | AB164: 0 | AC164: 0 | AD164: 0 | AE164: 0 | AF164: 0 | AG164: 0 | AH164: 0 | AI164: 0 | AJ164: 0 | AK164: 0 | AL164: 0 | AM164: 0 | AN164: 0 | AO164: 0 | AP164: 0
A165: TOTAL | F165: =SUM(F163:F164) -> 0 | G165: 0 | H165: 0 | I165: 187528866 | J165: 185341029.2 | K165: 182840644.3 | L165: 182840644.3 | M165: 182840644.3 | N165: 182840644.3 | O165: 182840644.3 | P165: 182840644.3 | Q165: 182840644.3 | R165: 182840644.3 | S165: 182840644.3 | T165: 182840644.3 | U165: 182840644.3 | V165: 182840644.3 | W165: 182840644.3 | X165: 182840644.3 | Y165: 182840644.3 | Z165: 182840644.3 | AA165: 182840644.3 | AB165: 182840644.3 | AC165: 182840644.3 | AD165: 182840644.3 | AE165: 182840644.3 | AF165: 182840644.3 | AG165: 182840644.3 | AH165: 182840644.3 | AI165: 182840644.3 | AJ165: 182840644.3 | AK165: 182840644.3 | AL165: 182840644.3 | AM165: 182840644.3 | AN165: 182840644.3 | AO165: 182840644.3 | AP165: 182840644.3
A167: =A55 -> 4500 h - scénario 2 SOR
A168: Base price | F168: =F55*Work!F$44*F33 -> 0 | G168: =G55*Work!G$44*G33 -> 0 | H168: =H55*Work!H$44*H33 -> 0 | I168: =I55*Work!I$44*I33 -> 195825330 | J168: =J55*Work!J$44*J33 -> 193540701.1 | K168: =K55*Work!K$44*K33 -> 190929696.7 | L168: =L55*Work!L$44*L33 -> 190929696.7 | M168: =M55*Work!M$44*M33 -> 190929696.7 | N168: =N55*Work!N$44*N33 -> 190929696.7 | O168: =O55*Work!O$44*O33 -> 190929696.7 | P168: =P55*Work!P$44*P33 -> 190929696.7 | Q168: =Q55*Work!Q$44*Q33 -> 190929696.7 | R168: =R55*Work!R$44*R33 -> 190929696.7 | S168: =S55*Work!S$44*S33 -> 190929696.7 | T168: =T55*Work!T$44*T33 -> 190929696.7 | U168: =U55*Work!U$44*U33 -> 190929696.7 | V168: =V55*Work!V$44*V33 -> 190929696.7 | W168: =W55*Work!W$44*W33 -> 190929696.7 | X168: =X55*Work!X$44*X33 -> 190929696.7 | Y168: =Y55*Work!Y$44*Y33 -> 190929696.7 | Z168: =Z55*Work!Z$44*Z33 -> 190929696.7 | AA168: =AA55*Work!AA$44*AA33 -> 190929696.7 | AB168: =AB55*Work!AB$44*AB33 -> 190929696.7 | AC168: =AC55*Work!AC$44*AC33 -> 190929696.7 | AD168: =AD55*Work!AD$44*AD33 -> 190929696.7 | AE168: =AE55*Work!AE$44*AE33 -> 190929696.7 | AF168: =AF55*Work!AF$44*AF33 -> 190929696.7 | AG168: =AG55*Work!AG$44*AG33 -> 190929696.7 | AH168: =AH55*Work!AH$44*AH33 -> 190929696.7 | AI168: =AI55*Work!AI$44*AI33 -> 190929696.7 | AJ168: =AJ55*Work!AJ$44*AJ33 -> 190929696.7 | AK168: =AK55*Work!AK$44*AK33 -> 190929696.7 | AL168: =AL55*Work!AL$44*AL33 -> 190929696.7 | AM168: =AM55*Work!AM$44*AM33 -> 190929696.7 | AN168: =AN55*Work!AN$44*AN33 -> 190929696.7 | AO168: =AO55*Work!AO$44*AO33 -> 190929696.7 | AP168: =AP55*Work!AP$44*AP33 -> 190929696.7
F169: =-($H$13-$J$13)*$C$11*$C$13*$C$14*F67*$G$13 -> 0 | G169: =-($H$13-$J$13)*$C$11*$C$13*$C$14*G67*$G$13 -> 0 | H169: =-($H$13-$J$13)*$C$11*$C$13*$C$14*H67*$G$13 -> 0 | I169: =-($H$13-$J$13)*$C$11*$C$13*$C$14*I67*$G$13 -> 0 | J169: =-($H$13-$J$13)*$C$11*$C$13*$C$14*J67*$G$13 -> 0 | K169: 0 | L169: 0 | M169: 0 | N169: 0 | O169: 0 | P169: 0 | Q169: 0 | R169: 0 | S169: 0 | T169: 0 | U169: 0 | V169: 0 | W169: 0 | X169: 0 | Y169: 0 | Z169: 0 | AA169: 0 | AB169: 0 | AC169: 0 | AD169: 0 | AE169: 0 | AF169: 0 | AG169: 0 | AH169: 0 | AI169: 0 | AJ169: 0 | AK169: 0 | AL169: 0 | AM169: 0 | AN169: 0 | AO169: 0 | AP169: 0
A170: TOTAL | F170: =SUM(F168:F169) -> 0 | G170: 0 | H170: 0 | I170: 195825330 | J170: 193540701.1 | K170: 190929696.7 | L170: 190929696.7 | M170: 190929696.7 | N170: 190929696.7 | O170: 190929696.7 | P170: 190929696.7 | Q170: 190929696.7 | R170: 190929696.7 | S170: 190929696.7 | T170: 190929696.7 | U170: 190929696.7 | V170: 190929696.7 | W170: 190929696.7 | X170: 190929696.7 | Y170: 190929696.7 | Z170: 190929696.7 | AA170: 190929696.7 | AB170: 190929696.7 | AC170: 190929696.7 | AD170: 190929696.7 | AE170: 190929696.7 | AF170: 190929696.7 | AG170: 190929696.7 | AH170: 190929696.7 | AI170: 190929696.7 | AJ170: 190929696.7 | AK170: 190929696.7 | AL170: 190929696.7 | AM170: 190929696.7 | AN170: 190929696.7 | AO170: 190929696.7 | AP170: 190929696.7

Sheet Work
E1: Work Sheet
C3: Total
C4: Average | E4: Pre Période | F4: =Input!D15 -> 2006 | G4: =F4+1 -> 2007 | H4: =G4+1 -> 2008 | I4: 2009 | J4: 2010 | K4: 2011 | L4: 2012 | M4: 2013 | N4: 2014 | O4: 2015 | P4: 2016 | Q4: 2017 | R4: 2018 | S4: 2019 | T4: 2020 | U4: 2021 | V4: 2022 | W4: 2023 | X4: 2024 | Y4: =X4+1 -> 2025 | Z4: 2026 | AA4: 2027 | AB4: =AA4+1 -> 2028 | AC4: 2029 | AD4: 2030 | AE4: 2031 | AF4: 2032 | AG4: 2033 | AH4: =AG4+1 -> 2034 | AI4: 2035 | AJ4: 2036 | AK4: 2037 | AL4: 2038 | AM4: 2039 | AN4: 2040 | AO4: 2041 | AP4: 2042
A5: =Input!$A$6 -> Scen SOREGIES spot 2005-Scen Gaz SOREGIES CATA | C5: Maximum | E5: Single Counter | F5: 1 | G5: 2 | H5: 3 | I5: 4 | J5: 5 | K5: 6 | L5: 7 | M5: 8 | N5: 9 | O5: 10 | P5: 11 | Q5: 12 | R5: 13 | S5: 14 | T5: 15 | U5: 16 | V5: 17 | W5: 18 | X5: 19 | Y5: 20 | Z5: 21 | AA5: 22 | AB5: 23 | AC5: 24 | AD5: 25 | AE5: 26 | AF5: 27 | AG5: 28 | AH5: 29 | AI5: 30 | AJ5: 31 | AK5: 32 | AL5: 33 | AM5: 34 | AN5: 35 | AO5: 36 | AP5: 37
A6: Work
A7: Start of Inflation | C7: =Input!D89 -> 2010
A8: Start of Inflation Mask | C8: =SUM(F8:AP8) -> 1 | F8: =IF($C$7=F4,1,0) -> 0 | G8: 0 | H8: 0 | I8: 0 | J8: 1 | K8: 0 | L8: 0 | M8: 0 | N8: 0 | O8: 0 | P8: 0 | Q8: 0 | R8: 0 | S8: 0 | T8: 0 | U8: 0 | V8: 0 | W8: 0 | X8: 0 | Y8: 0 | Z8: 0 | AA8: 0 | AB8: 0 | AC8: 0 | AD8: 0 | AE8: 0 | AF8: 0 | AG8: 0 | AH8: =IF($C$7=AH4,1,0) -> 0 | AI8: 0 | AJ8: 0 | AK8: 0 | AL8: 0 | AM8: 0 | AN8: 0 | AO8: 0 | AP8: 0
A9: Mask starting at Start of Inflation | C9: =SUM(F9:AP9) -> 33 | F9: =IF(($C$7<=F$4),1,0) -> 0 | G9: =IF(($C$7<=G4),1,0) -> 0 | H9: 0 | I9: 0 | J9: 1 | K9: 1 | L9: 1 | M9: 1 | N9: 1 | O9: 1 | P9: 1 | Q9: 1 | R9: 1 | S9: 1 | T9: 1 | U9: 1 | V9: 1 | W9: 1 | X9: 1 | Y9: 1 | Z9: 1 | AA9: 1 | AB9: 1 | AC9: 1 | AD9: 1 | AE9: 1 | AF9: 1 | AG9: 1 | AH9: =IF(($C$7<=AH4),1,0) -> 1 | AI9: 1 | AJ9: 1 | AK9: 1 | AL9: 1 | AM9: 1 | AN9: 1 | AO9: 1 | AP9: 1
A10: Counter starting at Start of Inflation | C10: =MAX(F10:AP10) -> 33 | F10: =E10+F9 -> 0 | G10: =F10+G9 -> 0 | H10: 0 | I10: 0 | J10: 1 | K10: 2 | L10: 3 | M10: =L10+M9 -> 4 | N10: 5 | O10: 6 | P10: 7 | Q10: 8 | R10: 9 | S10: 10 | T10: 11 | U10: 12 | V10: 13 | W10: 14 | X10: 15 | Y10: 16 | Z10: 17 | AA10: 18 | AB10: 19 | AC10: 20 | AD10: 21 | AE10: 22 | AF10: 23 | AG10: 24 | AH10: =AG10+AH9 -> 25 | AI10: 26 | AJ10: 27 | AK10: 28 | AL10: 29 | AM10: 30 | AN10: 31 | AO10: 32 | AP10: 33
A12: Inflation Factors
A13: Inflation p.a. | F13: =Input!$D$90*Work!F9 -> 0 | G13: =Input!$D$90*Work!G9 -> 0 | H13: =Input!$D$90*Work!H9 -> 0 | I13: =Input!$D$90*Work!I9 -> 0 | J13: =Input!$D$90*Work!J9 -> 0.015 | K13: =Input!$D$90*Work!K9 -> 0.015 | L13: =Input!$D$90*Work!L9 -> 0.015 | M13: =Input!$D$90*Work!M9 -> 0.015 | N13: =Input!$D$90*Work!N9 -> 0.015 | O13: =Input!$D$90*Work!O9 -> 0.015 | P13: =Input!$D$90*Work!P9 -> 0.015 | Q13: =Input!$D$90*Work!Q9 -> 0.015 | R13: =Input!$D$90*Work!R9 -> 0.015 | S13: =Input!$D$90*Work!S9 -> 0.015 | T13: =Input!$D$90*Work!T9 -> 0.015 | U13: =Input!$D$90*Work!U9 -> 0.015 | V13: =Input!$D$90*Work!V9 -> 0.015 | W13: =Input!$D$90*Work!W9 -> 0.015 | X13: =Input!$D$90*Work!X9 -> 0.015 | Y13: =Input!$D$90*Work!Y9 -> 0.015 | Z13: =Input!$D$90*Work!Z9 -> 0.015 | AA13: =Input!$D$90*Work!AA9 -> 0.015 | AB13: =Input!$D$90*Work!AB9 -> 0.015 | AC13: =Input!$D$90*Work!AC9 -> 0.015 | AD13: =Input!$D$90*Work!AD9 -> 0.015 | AE13: =Input!$D$90*Work!AE9 -> 0.015 | AF13: =Input!$D$90*Work!AF9 -> 0.015 | AG13: =Input!$D$90*Work!AG9 -> 0.015 | AH13: =Input!$D$90*Work!AH9 -> 0.015 | AI13: =Input!$D$90*Work!AI9 -> 0.015 | AJ13: =Input!$D$90*Work!AJ9 -> 0.015 | AK13: =Input!$D$90*Work!AK9 -> 0.015 | AL13: =Input!$D$90*Work!AL9 -> 0.015 | AM13: =Input!$D$90*Work!AM9 -> 0.015 | AN13: =Input!$D$90*Work!AN9 -> 0.015 | AO13: =Input!$D$90*Work!AO9 -> 0.015 | AP13: =Input!$D$90*Work!AP9 -> 0.015
A14: Inflation until End of Period | F14: =((1+F13)^F10) -> 1 | G14: =((1+G13)^G10) -> 1 | H14: =((1+H13)^H10) -> 1 | I14: 1 | J14: 1.015 | K14: 1.030225 | L14: 1.045678375 | M14: 1.061363551 | N14: =((1+N13)^N10) -> 1.077284004 | O14: 1.093443264 | P14: 1.109844913 | Q14: 1.126492587 | R14: 1.143389975 | S14: 1.160540825 | T14: 1.177948937 | U14: 1.195618171 | V14: 1.213552444 | W14: 1.231755731 | X14: 1.250232067 | Y14: 1.268985548 | Z14: 1.288020331 | AA14: 1.307340636 | AB14: 1.326950745 | AC14: 1.346855007 | AD14: 1.367057832 | AE14: 1.387563699 | AF14: 1.408377155 | AG14: 1.429502812 | AH14: =((1+AH13)^AH10) -> 1.450945354 | AI14: 1.472709534 | AJ14: 1.494800177 | AK14: 1.51722218 | AL14: 1.539980513 | AM14: 1.56308022 | AN14: 1.586526424 | AO14: 1.61032432 | AP14: 1.634479185
A15: Inflation Labour | F15: =Input!$D$91*Work!F9 -> 0 | G15: =Input!$D$91*Work!G9 -> 0 | H15: =Input!$D$91*Work!H9 -> 0 | I15: =Input!$D$91*Work!I9 -> 0 | J15: =Input!$D$91*Work!J9 -> 0.02 | K15: =Input!$D$91*Work!K9 -> 0.02 | L15: =Input!$D$91*Work!L9 -> 0.02 | M15: =Input!$D$91*Work!M9 -> 0.02 | N15: =Input!$D$91*Work!N9 -> 0.02 | O15: =Input!$D$91*Work!O9 -> 0.02 | P15: =Input!$D$91*Work!P9 -> 0.02 | Q15: =Input!$D$91*Work!Q9 -> 0.02 | R15: =Input!$D$91*Work!R9 -> 0.02 | S15: =Input!$D$91*Work!S9 -> 0.02 | T15: =Input!$D$91*Work!T9 -> 0.02 | U15: =Input!$D$91*Work!U9 -> 0.02 | V15: =Input!$D$91*Work!V9 -> 0.02 | W15: =Input!$D$91*Work!W9 -> 0.02 | X15: =Input!$D$91*Work!X9 -> 0.02 | Y15: =Input!$D$91*Work!Y9 -> 0.02 | Z15: =Input!$D$91*Work!Z9 -> 0.02 | AA15: =Input!$D$91*Work!AA9 -> 0.02 | AB15: =Input!$D$91*Work!AB9 -> 0.02 | AC15: =Input!$D$91*Work!AC9 -> 0.02 | AD15: =Input!$D$91*Work!AD9 -> 0.02 | AE15: =Input!$D$91*Work!AE9 -> 0.02 | AF15: =Input!$D$91*Work!AF9 -> 0.02 | AG15: =Input!$D$91*Work!AG9 -> 0.02 | AH15: =Input!$D$91*Work!AH9 -> 0.02 | AI15: =Input!$D$91*Work!AI9 -> 0.02 | AJ15: =Input!$D$91*Work!AJ9 -> 0.02 | AK15: =Input!$D$91*Work!AK9 -> 0.02 | AL15: =Input!$D$91*Work!AL9 -> 0.02 | AM15: =Input!$D$91*Work!AM9 -> 0.02 | AN15: =Input!$D$91*Work!AN9 -> 0.02 | AO15: =Input!$D$91*Work!AO9 -> 0.02 | AP15: =Input!$D$91*Work!AP9 -> 0.02
A16: Inflation MO until end of periode | F16: =((1+F15)^F10) -> 1 | G16: =((1+G15)^G10) -> 1 | H16: 1 | I16: 1 | J16: 1.02 | K16: 1.0404 | L16: 1.061208 | M16: 1.08243216 | N16: 1.104080803 | O16: 1.126162419 | P16: 1.148685668 | Q16: 1.171659381 | R16: =((1+R15)^R10) -> 1.195092569 | S16: 1.21899442 | T16: 1.243374308 | U16: 1.268241795 | V16: 1.29360663 | W16: 1.319478763 | X16: 1.345868338 | Y16: 1.372785705 | Z16: 1.400241419 | AA16: 1.428246248 | AB16: 1.456811173 | AC16: 1.485947396 | AD16: 1.515666344 | AE16: 1.545979671 | AF16: 1.576899264 | AG16: 1.608437249 | AH16: =((1+AH15)^AH10) -> 1.640605994 | AI16: 1.673418114 | AJ16: 1.706886477 | AK16: 1.741024206 | AL16: 1.77584469 | AM16: 1.811361584 | AN16: 1.847588816 | AO16: 1.884540592 | AP16: 1.922231404
A18: Start of Construction | C18: =Input!D15 -> 2006
A19: Start of Construction Mask | C19: =SUM(F19:AP19) -> 1 | F19: =IF(C18=F4,1,0) -> 1 | G19: 0 | H19: 0 | I19: 0 | J19: 0 | K19: 0 | L19: 0 | M19: 0 | N19: 0 | O19: 0 | P19: 0 | Q19: 0 | R19: 0 | S19: 0 | T19: 0 | U19: 0 | V19: 0 | W19: 0 | X19: 0 | Y19: 0 | Z19: 0 | AA19: 0 | AB19: 0 | AC19: 0 | AD19: 0 | AE19: 0 | AF19: 0 | AG19: 0 | AH19: 0 | AI19: 0 | AJ19: 0 | AK19: 0 | AL19: 0 | AM19: 0 | AN19: 0 | AO19: 0 | AP19: 0
A20: Mask from Start of Construction | C20: =SUM(F20:AP20) -> 37 | F20: =IF(($C$18<=F$4),1,0) -> 1 | G20: 1 | H20: 1 | I20: 1 | J20: 1 | K20: 1 | L20: 1 | M20: 1 | N20: 1 | O20: 1 | P20: 1 | Q20: 1 | R20: 1 | S20: 1 | T20: 1 | U20: 1 | V20: 1 | W20: 1 | X20: 1 | Y20: 1 | Z20: 1 | AA20: 1 | AB20: 1 | AC20: 1 | AD20: 1 | AE20: 1 | AF20: 1 | AG20: 1 | AH20: 1 | AI20: 1 | AJ20: 1 | AK20: 1 | AL20: 1 | AM20: 1 | AN20: 1 | AO20: 1 | AP20: 1
A21: Counter from Start of Construction | C21: =MAX(F21:AP21) -> 37 | F21: =E21+F20 -> 1 | G21: 2 | H21: 3 | I21: 4 | J21: 5 | K21: 6 | L21: 7 | M21: 8 | N21: 9 | O21: 10 | P21: 11 | Q21: 12 | R21: 13 | S21: 14 | T21: 15 | U21: 16 | V21: 17 | W21: 18 | X21: 19 | Y21: 20 | Z21: 21 | AA21: 22 | AB21: 23 | AC21: 24 | AD21: 25 | AE21: 26 | AF21: 27 | AG21: 28 | AH21: =AG21+AH20 -> 29 | AI21: 30 | AJ21: 31 | AK21: 32 | AL21: 33 | AM21: 34 | AN21: 35 | AO21: 36 | AP21: 37
A23: Completion | C23: =Input!D13 -> 2010
A24: Completion Mask | C24: =SUM(F24:AP24) -> 1 | F24: =IF($C$23=F4,1,0) -> 0 | G24: =IF($C$23=G4,1,0) -> 0 | H24: 0 | I24: 0 | J24: 1 | K24: 0 | L24: 0 | M24: 0 | N24: 0 | O24: 0 | P24: 0 | Q24: 0 | R24: 0 | S24: 0 | T24: 0 | U24: 0 | V24: 0 | W24: 0 | X24: 0 | Y24: 0 | Z24: 0 | AA24: 0 | AB24: 0 | AC24: 0 | AD24: 0 | AE24: 0 | AF24: 0 | AG24: 0 | AH24: =IF($C$23=AH4,1,0) -> 0 | AI24: 0 | AJ24: 0 | AK24: 0 | AL24: 0 | AM24: 0 | AN24: 0 | AO24: 0 | AP24: 0
A25: Mask starting at Completion | C25: =SUM(F25:AP25) -> 32.5 | F25: =IF($C$23<=F4,IF($C$23=F4,(12-Input!$D$14+1)/12,1),0) -> 0 | G25: =IF($C$23<=G4,IF($C$23=G4,(12-Input!$D$14+1)/12,1),0) -> 0 | H25: =IF($C$23<=H4,IF($C$23=H4,(12-Input!$D$14+1)/12,1),0) -> 0 | I25: =IF($C$23<=I4,IF($C$23=I4,(12-Input!$D$14+1)/12,1),0) -> 0 | J25: =IF($C$23<=J4,IF($C$23=J4,(12-Input!$D$14+1)/12,1),0) -> 0.5 | K25: =IF($C$23<=K4,IF($C$23=K4,(12-Input!$D$14+1)/12,1),0) -> 1 | L25: =IF($C$23<=L4,IF($C$23=L4,(12-Input!$D$14+1)/12,1),0) -> 1 | M25: =IF($C$23<=M4,IF($C$23=M4,(12-Input!$D$14+1)/12,1),0) -> 1 | N25: =IF($C$23<=N4,IF($C$23=N4,(12-Input!$D$14+1)/12,1),0) -> 1 | O25: =IF($C$23<=O4,IF($C$23=O4,(12-Input!$D$14+1)/12,1),0) -> 1 | P25: =IF($C$23<=P4,IF($C$23=P4,(12-Input!$D$14+1)/12,1),0) -> 1 | Q25: =IF($C$23<=Q4,IF($C$23=Q4,(12-Input!$D$14+1)/12,1),0) -> 1 | R25: =IF($C$23<=R4,IF($C$23=R4,(12-Input!$D$14+1)/12,1),0) -> 1 | S25: =IF($C$23<=S4,IF($C$23=S4,(12-Input!$D$14+1)/12,1),0) -> 1 | T25: =IF($C$23<=T4,IF($C$23=T4,(12-Input!$D$14+1)/12,1),0) -> 1 | U25: =IF($C$23<=U4,IF($C$23=U4,(12-Input!$D$14+1)/12,1),0) -> 1 | V25: =IF($C$23<=V4,IF($C$23=V4,(12-Input!$D$14+1)/12,1),0) -> 1 | W25: =IF($C$23<=W4,IF($C$23=W4,(12-Input!$D$14+1)/12,1),0) -> 1 | X25: =IF($C$23<=X4,IF($C$23=X4,(12-Input!$D$14+1)/12,1),0) -> 1 | Y25: =IF($C$23<=Y4,IF($C$23=Y4,(12-Input!$D$14+1)/12,1),0) -> 1 | Z25: =IF($C$23<=Z4,IF($C$23=Z4,(12-Input!$D$14+1)/12,1),0) -> 1 | AA25: =IF($C$23<=AA4,IF($C$23=AA4,(12-Input!$D$14+1)/12,1),0) -> 1 | AB25: =IF($C$23<=AB4,IF($C$23=AB4,(12-Input!$D$14+1)/12,1),0) -> 1 | AC25: =IF($C$23<=AC4,IF($C$23=AC4,(12-Input!$D$14+1)/12,1),0) -> 1 | AD25: =IF($C$23<=AD4,IF($C$23=AD4,(12-Input!$D$14+1)/12,1),0) -> 1 | AE25: =IF($C$23<=AE4,IF($C$23=AE4,(12-Input!$D$14+1)/12,1),0) -> 1 | AF25: =IF($C$23<=AF4,IF($C$23=AF4,(12-Input!$D$14+1)/12,1),0) -> 1 | AG25: =IF($C$23<=AG4,IF($C$23=AG4,(12-Input!$D$14+1)/12,1),0) -> 1 | AH25: =IF($C$23<=AH4,IF($C$23=AH4,(12-Input!$D$14+1)/12,1),0) -> 1 | AI25: =IF($C$23<=AI4,IF($C$23=AI4,(12-Input!$D$14+1)/12,1),0) -> 1 | AJ25: =IF($C$23<=AJ4,IF($C$23=AJ4,(12-Input!$D$14+1)/12,1),0) -> 1 | AK25: =IF($C$23<=AK4,IF($C$23=AK4,(12-Input!$D$14+1)/12,1),0) -> 1 | AL25: =IF($C$23<=AL4,IF($C$23=AL4,(12-Input!$D$14+1)/12,1),0) -> 1 | AM25: =IF($C$23<=AM4,IF($C$23=AM4,(12-Input!$D$14+1)/12,1),0) -> 1 | AN25: =IF($C$23<=AN4,IF($C$23=AN4,(12-Input!$D$14+1)/12,1),0) -> 1 | AO25: =IF($C$23<=AO4,IF($C$23=AO4,(12-Input!$D$14+1)/12,1),0) -> 1 | AP25: =IF($C$23<=AP4,IF($C$23=AP4,(12-Input!$D$14+1)/12,1),0) -> 1
A26: Counter starting at Completion | C26: =MAX(F26:AP26) -> 32.5 | F26: =E26+F25 -> 0 | G26: =F26+G25 -> 0 | H26: =G26+H25 -> 0 | I26: 0 | J26: 0.5 | K26: 1.5 | L26: 2.5 | M26: 3.5 | N26: 4.5 | O26: 5.5 | P26: =O26+P25 -> 6.5 | Q26: 7.5 | R26: 8.5 | S26: 9.5 | T26: 10.5 | U26: 11.5 | V26: 12.5 | W26: 13.5 | X26: 14.5 | Y26: 15.5 | Z26: 16.5 | AA26: 17.5 | AB26: 18.5 | AC26: 19.5 | AD26: 20.5 | AE26: 21.5 | AF26: 22.5 | AG26: 23.5 | AH26: =AG26+AH25 -> 24.5 | AI26: 25.5 | AJ26: 26.5 | AK26: 27.5 | AL26: 28.5 | AM26: 29.5 | AN26: 30.5 | AO26: 31.5 | AP26: 32.5
A27: End Of Project | C27: =SUM(F27:AP27) -> 1 | F27: =IF(F4=Input!$D$13+Input!$D$16,1,0) -> 0 | G27: =IF(G4=Input!$D$13+Input!$D$16,1,0) -> 0 | H27: =IF(H4=Input!$D$13+Input!$D$16,1,0) -> 0 | I27: =IF(I4=Input!$D$13+Input!$D$16,1,0) -> 0 | J27: =IF(J4=Input!$D$13+Input!$D$16,1,0) -> 0 | K27: =IF(K4=Input!$D$13+Input!$D$16,1,0) -> 0 | L27: =IF(L4=Input!$D$13+Input!$D$16,1,0) -> 0 | M27: =IF(M4=Input!$D$13+Input!$D$16,1,0) -> 0 | N27: =IF(N4=Input!$D$13+Input!$D$16,1,0) -> 0 | O27: =IF(O4=Input!$D$13+Input!$D$16,1,0) -> 0 | P27: =IF(P4=Input!$D$13+Input!$D$16,1,0) -> 0 | Q27: =IF(Q4=Input!$D$13+Input!$D$16,1,0) -> 0 | R27: =IF(R4=Input!$D$13+Input!$D$16,1,0) -> 0 | S27: =IF(S4=Input!$D$13+Input!$D$16,1,0) -> 0 | T27: =IF(T4=Input!$D$13+Input!$D$16,1,0) -> 0 | U27: =IF(U4=Input!$D$13+Input!$D$16,1,0) -> 0 | V27: =IF(V4=Input!$D$13+Input!$D$16,1,0) -> 0 | W27: =IF(W4=Input!$D$13+Input!$D$16,1,0) -> 0 | X27: =IF(X4=Input!$D$13+Input!$D$16,1,0) -> 0 | Y27: =IF(Y4=Input!$D$13+Input!$D$16,1,0) -> 0 | Z27: =IF(Z4=Input!$D$13+Input!$D$16,1,0) -> 0 | AA27: =IF(AA4=Input!$D$13+Input!$D$16,1,0) -> 0 | AB27: =IF(AB4=Input!$D$13+Input!$D$16,1,0) -> 0 | AC27: =IF(AC4=Input!$D$13+Input!$D$16,1,0) -> 0 | AD27: =IF(AD4=Input!$D$13+Input!$D$16,1,0) -> 0 | AE27: =IF(AE4=Input!$D$13+Input!$D$16,1,0) -> 0 | AF27: =IF(AF4=Input!$D$13+Input!$D$16,1,0) -> 0 | AG27: =IF(AG4=Input!$D$13+Input!$D$16,1,0) -> 0 | AH27: =IF(AH4=Input!$D$13+Input!$D$16,1,0) -> 0 | AI27: =IF(AI4=Input!$D$13+Input!$D$16,1,0) -> 1 | AJ27: =IF(AJ4=Input!$D$13+Input!$D$16,1,0) -> 0 | AK27: =IF(AK4=Input!$D$13+Input!$D$16,1,0) -> 0 | AL27: =IF(AL4=Input!$D$13+Input!$D$16,1,0) -> 0 | AM27: =IF(AM4=Input!$D$13+Input!$D$16,1,0) -> 0 | AN27: =IF(AN4=Input!$D$13+Input!$D$16,1,0) -> 0 | AO27: =IF(AO4=Input!$D$13+Input!$D$16,1,0) -> 0 | AP27: =IF(AP4=Input!$D$13+Input!$D$16,1,0) -> 0
A28: Mask until end of project | C28: =SUM(F28:AP28) -> 29.5 | F28: =IF(((Input!$D$13+Input!$D$16)*12+Input!$D$14-1)-F4*12>=12,1,IF(((Input!$D$13+Input!$D$16)*12+Input!$D$14-1)-F4*12>0,(Input!$D$14-1)/12,0)) -> 1 | G28: =IF(((Input!$D$13+Input!$D$16)*12+Input!$D$14-1)-G4*12>=12,1,IF(((Input!$D$13+Input!$D$16)*12+Input!$D$14-1)-G4*12>0,(Input!$D$14-1)/12,0)) -> 1 | H28: =IF(((Input!$D$13+Input!$D$16)*12+Input!$D$14-1)-H4*12>=12,1,IF(((Input!$D$13+Input!$D$16)*12+Input!$D$14-1)-H4*12>0,(Input!$D$14-1)/12,0)) -> 1 | I28: =IF(((Input!$D$13+Input!$D$16)*12+Input!$D$14-1)-I4*12>=12,1,IF(((Input!$D$13+Input!$D$16)*12+Input!$D$14-1)-I4*12>0,(Input!$D$14-1)/12,0)) -> 1 | J28: =IF(((Input!$D$13+Input!$D$16)*12+Input!$D$14-1)-J4*12>=12,1,IF(((Input!$D$13+Input!$D$16)*12+Input!$D$14-1)-J4*12>0,(Input!$D$14-1)/12,0)) -> 1 | K28: =IF(((Input!$D$13+Input!$D$16)*12+Input!$D$14-1)-K4*12>=12,1,IF(((Input!$D$13+Input!$D$16)*12+Input!$D$14-1)-K4*12>0,(Input!$D$14-1)/12,0)) -> 1 | L28: =IF(((Input!$D$13+Input!$D$16)*12+Input!$D$14-1)-L4*12>=12,1,IF(((Input!$D$13+Input!$D$16)*12+Input!$D$14-1)-L4*12>0,(Input!$D$14-1)/12,0)) -> 1 | M28: =IF(((Input!$D$13+Input!$D$16)*12+Input!$D$14-1)-M4*12>=12,1,IF(((Input!$D$13+Input!$D$16)*12+Input!$D$14-1)-M4*12>0,(Input!$D$14-1)/12,0)) -> 1 | N28: =IF(((Input!$D$13+Input!$D$16)*12+Input!$D$14-1)-N4*12>=12,1,IF(((Input!$D$13+Input!$D$16)*12+Input!$D$14-1)-N4*12>0,(Input!$D$14-1)/12,0)) -> 1 | O28: =IF(((Input!$D$13+Input!$D$16)*12+Input!$D$14-1)-O4*12>=12,1,IF(((Input!$D$13+Input!$D$16)*12+Input!$D$14-1)-O4*12>0,(Input!$D$14-1)/12,0)) -> 1 | P28: =IF(((Input!$D$13+Input!$D$16)*12+Input!$D$14-1)-P4*12>=12,1,IF(((Input!$D$13+Input!$D$16)*12+Input!$D$14-1)-P4*12>0,(Input!$D$14-1)/12,0)) -> 1 | Q28: =IF(((Input!$D$13+Input!$D$16)*12+Input!$D$14-1)-Q4*12>=12,1,IF(((Input!$D$13+Input!$D$16)*12+Input!$D$14-1)-Q4*12>0,(Input!$D$14-1)/12,0)) -> 1 | R28: =IF(((Input!$D$13+Input!$D$16)*12+Input!$D$14-1)-R4*12>=12,1,IF(((Input!$D$13+Input!$D$16)*12+Input!$D$14-1)-R4*12>0,(Input!$D$14-1)/12,0)) -> 1 | S28: =IF(((Input!$D$13+Input!$D$16)*12+Input!$D$14-1)-S4*12>=12,1,IF(((Input!$D$13+Input!$D$16)*12+Input!$D$14-1)-S4*12>0,(Input!$D$14-1)/12,0)) -> 1 | T28: =IF(((Input!$D$13+Input!$D$16)*12+Input!$D$14-1)-T4*12>=12,1,IF(((Input!$D$13+Input!$D$16)*12+Input!$D$14-1)-T4*12>0,(Input!$D$14-1)/12,0)) -> 1 | U28: =IF(((Input!$D$13+Input!$D$16)*12+Input!$D$14-1)-U4*12>=12,1,IF(((Input!$D$13+Input!$D$16)*12+Input!$D$14-1)-U4*12>0,(Input!$D$14-1)/12,0)) -> 1 | V28: =IF(((Input!$D$13+Input!$D$16)*12+Input!$D$14-1)-V4*12>=12,1,IF(((Input!$D$13+Input!$D$16)*12+Input!$D$14-1)-V4*12>0,(Input!$D$14-1)/12,0)) -> 1 | W28: =IF(((Input!$D$13+Input!$D$16)*12+Input!$D$14-1)-W4*12>=12,1,IF(((Input!$D$13+Input!$D$16)*12+Input!$D$14-1)-W4*12>0,(Input!$D$14-1)/12,0)) -> 1 | X28: =IF(((Input!$D$13+Input!$D$16)*12+Input!$D$14-1)-X4*12>=12,1,IF(((Input!$D$13+Input!$D$16)*12+Input!$D$14-1)-X4*12>0,(Input!$D$14-1)/12,0)) -> 1 | Y28: =IF(((Input!$D$13+Input!$D$16)*12+Input!$D$14-1)-Y4*12>=12,1,IF(((Input!$D$13+Input!$D$16)*12+Input!$D$14-1)-Y4*12>0,(Input!$D$14-1)/12,0)) -> 1 | Z28: =IF(((Input!$D$13+Input!$D$16)*12+Input!$D$14-1)-Z4*12>=12,1,IF(((Input!$D$13+Input!$D$16)*12+Input!$D$14-1)-Z4*12>0,(Input!$D$14-1)/12,0)) -> 1 | AA28: =IF(((Input!$D$13+Input!$D$16)*12+Input!$D$14-1)-AA4*12>=12,1,IF(((Input!$D$13+Input!$D$16)*12+Input!$D$14-1)-AA4*12>0,(Input!$D$14-1)/12,0)) -> 1 | AB28: =IF(((Input!$D$13+Input!$D$16)*12+Input!$D$14-1)-AB4*12>=12,1,IF(((Input!$D$13+Input!$D$16)*12+Input!$D$14-1)-AB4*12>0,(Input!$D$14-1)/12,0)) -> 1 | AC28: =IF(((Input!$D$13+Input!$D$16)*12+Input!$D$14-1)-AC4*12>=12,1,IF(((Input!$D$13+Input!$D$16)*12+Input!$D$14-1)-AC4*12>0,(Input!$D$14-1)/12,0)) -> 1 | AD28: =IF(((Input!$D$13+Input!$D$16)*12+Input!$D$14-1)-AD4*12>=12,1,IF(((Input!$D$13+Input!$D$16)*12+Input!$D$14-1)-AD4*12>0,(Input!$D$14-1)/12,0)) -> 1 | AE28: =IF(((Input!$D$13+Input!$D$16)*12+Input!$D$14-1)-AE4*12>=12,1,IF(((Input!$D$13+Input!$D$16)*12+Input!$D$14-1)-AE4*12>0,(Input!$D$14-1)/12,0)) -> 1 | AF28: =IF(((Input!$D$13+Input!$D$16)*12+Input!$D$14-1)-AF4*12>=12,1,IF(((Input!$D$13+Input!$D$16)*12+Input!$D$14-1)-AF4*12>0,(Input!$D$14-1)/12,0)) -> 1 | AG28: =IF(((Input!$D$13+Input!$D$16)*12+Input!$D$14-1)-AG4*12>=12,1,IF(((Input!$D$13+Input!$D$16)*12+Input!$D$14-1)-AG4*12>0,(Input!$D$14-1)/12,0)) -> 1 | AH28: =IF(((Input!$D$13+Input!$D$16)*12+Input!$D$14-1)-AH4*12>=12,1,IF(((Input!$D$13+Input!$D$16)*12+Input!$D$14-1)-AH4*12>0,(Input!$D$14-1)/12,0)) -> 1 | AI28: =IF(((Input!$D$13+Input!$D$16)*12+Input!$D$14-1)-AI4*12>=12,1,IF(((Input!$D$13+Input!$D$16)*12+Input!$D$14-1)-AI4*12>0,(Input!$D$14-1)/12,0)) -> 0.5 | AJ28: =IF(((Input!$D$13+Input!$D$16)*12+Input!$D$14-1)-AJ4*12>=12,1,IF(((Input!$D$13+Input!$D$16)*12+Input!$D$14-1)-AJ4*12>0,(Input!$D$14-1)/12,0)) -> 0 | AK28: =IF(((Input!$D$13+Input!$D$16)*12+Input!$D$14-1)-AK4*12>=12,1,IF(((Input!$D$13+Input!$D$16)*12+Input!$D$14-1)-AK4*12>0,(Input!$D$14-1)/12,0)) -> 0 | AL28: =IF(((Input!$D$13+Input!$D$16)*12+Input!$D$14-1)-AL4*12>=12,1,IF(((Input!$D$13+Input!$D$16)*12+Input!$D$14-1)-AL4*12>0,(Input!$D$14-1)/12,0)) -> 0 | AM28: =IF(((Input!$D$13+Input!$D$16)*12+Input!$D$14-1)-AM4*12>=12,1,IF(((Input!$D$13+Input!$D$16)*12+Input!$D$14-1)-AM4*12>0,(Input!$D$14-1)/12,0)) -> 0 | AN28: =IF(((Input!$D$13+Input!$D$16)*12+Input!$D$14-1)-AN4*12>=12,1,IF(((Input!$D$13+Input!$D$16)*12+Input!$D$14-1)-AN4*12>0,(Input!$D$14-1)/12,0)) -> 0 | AO28: =IF(((Input!$D$13+Input!$D$16)*12+Input!$D$14-1)-AO4*12>=12,1,IF(((Input!$D$13+Input!$D$16)*12+Input!$D$14-1)-AO4*12>0,(Input!$D$14-1)/12,0)) -> 0 | AP28: =IF(((Input!$D$13+Input!$D$16)*12+Input!$D$14-1)-AP4*12>=12,1,IF(((Input!$D$13+Input!$D$16)*12+Input!$D$14-1)-AP4*12>0,(Input!$D$14-1)/12,0)) -> 0
A29: Yearly availibility | C29: =SUM(F29:AP29) -> 25 | F29: =F28*F25 -> 0 | G29: 0 | H29: 0 | I29: 0 | J29: 0.5 | K29: 1 | L29: 1 | M29: 1 | N29: 1 | O29: 1 | P29: 1 | Q29: 1 | R29: 1 | S29: 1 | T29: 1 | U29: 1 | V29: 1 | W29: 1 | X29: 1 | Y29: 1 | Z29: 1 | AA29: 1 | AB29: 1 | AC29: 1 | AD29: 1 | AE29: 1 | AF29: 1 | AG29: 1 | AH29: 1 | AI29: 0.5 | AJ29: 0 | AK29: 0 | AL29: 0 | AM29: 0 | AN29: 0 | AO29: 0 | AP29: 0
A30: Mask of project life | C30: =SUM(F30:AP30) -> 26 | F30: =IF(AND(F25<>0,F28<>0),1,0) -> 0 | G30: =IF(AND(G25<>0,G28<>0),1,0) -> 0 | H30: 0 | I30: 0 | J30: 1 | K30: 1 | L30: 1 | M30: 1 | N30: 1 | O30: 1 | P30: 1 | Q30: 1 | R30: 1 | S30: 1 | T30: 1 | U30: 1 | V30: 1 | W30: 1 | X30: 1 | Y30: 1 | Z30: 1 | AA30: 1 | AB30: 1 | AC30: 1 | AD30: 1 | AE30: 1 | AF30: 1 | AG30: 1 | AH30: 1 | AI30: 1 | AJ30: 0 | AK30: 0 | AL30: 0 | AM30: 0 | AN30: 0 | AO30: 0 | AP30: 0
A31: Personnal training | F31: =IF(Input!$D$122<>0,IF(F4=$C$23-1,1,IF(F4=$C$23,0.5,0)),0) -> 0 | G31: =IF(Input!$D$122<>0,IF(G4=$C$23-1,1,IF(G4=$C$23,0.5,0)),0) -> 0 | H31: =IF(Input!$D$122<>0,IF(H4=$C$23-1,1,IF(H4=$C$23,0.5,0)),0) -> 0 | I31: =IF(Input!$D$122<>0,IF(I4=$C$23-1,1,IF(I4=$C$23,0.5,0)),0) -> 0 | J31: =IF(Input!$D$122<>0,IF(J4=$C$23-1,1,IF(J4=$C$23,0.5,0)),0) -> 0 | K31: =IF(Input!$D$122<>0,IF(K4=$C$23-1,1,IF(K4=$C$23,0.5,0)),0) -> 0 | L31: =IF(Input!$D$122<>0,IF(L4=$C$23-1,1,IF(L4=$C$23,0.5,0)),0) -> 0 | M31: =IF(Input!$D$122<>0,IF(M4=$C$23-1,1,IF(M4=$C$23,0.5,0)),0) -> 0 | N31: =IF(Input!$D$122<>0,IF(N4=$C$23-1,1,IF(N4=$C$23,0.5,0)),0) -> 0 | O31: =IF(Input!$D$122<>0,IF(O4=$C$23-1,1,IF(O4=$C$23,0.5,0)),0) -> 0 | P31: =IF(Input!$D$122<>0,IF(P4=$C$23-1,1,IF(P4=$C$23,0.5,0)),0) -> 0 | Q31: =IF(Input!$D$122<>0,IF(Q4=$C$23-1,1,IF(Q4=$C$23,0.5,0)),0) -> 0 | R31: =IF(Input!$D$122<>0,IF(R4=$C$23-1,1,IF(R4=$C$23,0.5,0)),0) -> 0 | S31: =IF(Input!$D$122<>0,IF(S4=$C$23-1,1,IF(S4=$C$23,0.5,0)),0) -> 0 | T31: =IF(Input!$D$122<>0,IF(T4=$C$23-1,1,IF(T4=$C$23,0.5,0)),0) -> 0 | U31: =IF(Input!$D$122<>0,IF(U4=$C$23-1,1,IF(U4=$C$23,0.5,0)),0) -> 0 | V31: =IF(Input!$D$122<>0,IF(V4=$C$23-1,1,IF(V4=$C$23,0.5,0)),0) -> 0 | W31: =IF(Input!$D$122<>0,IF(W4=$C$23-1,1,IF(W4=$C$23,0.5,0)),0) -> 0 | X31: =IF(Input!$D$122<>0,IF(X4=$C$23-1,1,IF(X4=$C$23,0.5,0)),0) -> 0 | Y31: =IF(Input!$D$122<>0,IF(Y4=$C$23-1,1,IF(Y4=$C$23,0.5,0)),0) -> 0 | Z31: =IF(Input!$D$122<>0,IF(Z4=$C$23-1,1,IF(Z4=$C$23,0.5,0)),0) -> 0 | AA31: =IF(Input!$D$122<>0,IF(AA4=$C$23-1,1,IF(AA4=$C$23,0.5,0)),0) -> 0 | AB31: =IF(Input!$D$122<>0,IF(AB4=$C$23-1,1,IF(AB4=$C$23,0.5,0)),0) -> 0 | AC31: =IF(Input!$D$122<>0,IF(AC4=$C$23-1,1,IF(AC4=$C$23,0.5,0)),0) -> 0 | AD31: =IF(Input!$D$122<>0,IF(AD4=$C$23-1,1,IF(AD4=$C$23,0.5,0)),0) -> 0 | AE31: =IF(Input!$D$122<>0,IF(AE4=$C$23-1,1,IF(AE4=$C$23,0.5,0)),0) -> 0 | AF31: =IF(Input!$D$122<>0,IF(AF4=$C$23-1,1,IF(AF4=$C$23,0.5,0)),0) -> 0 | AG31: =IF(Input!$D$122<>0,IF(AG4=$C$23-1,1,IF(AG4=$C$23,0.5,0)),0) -> 0 | AH31: =IF(Input!$D$122<>0,IF(AH4=$C$23-1,1,IF(AH4=$C$23,0.5,0)),0) -> 0 | AI31: =IF(Input!$D$122<>0,IF(AI4=$C$23-1,1,IF(AI4=$C$23,0.5,0)),0) -> 0 | AJ31: =IF(Input!$D$122<>0,IF(AJ4=$C$23-1,1,IF(AJ4=$C$23,0.5,0)),0) -> 0 | AK31: =IF(Input!$D$122<>0,IF(AK4=$C$23-1,1,IF(AK4=$C$23,0.5,0)),0) -> 0 | AL31: =IF(Input!$D$122<>0,IF(AL4=$C$23-1,1,IF(AL4=$C$23,0.5,0)),0) -> 0 | AM31: =IF(Input!$D$122<>0,IF(AM4=$C$23-1,1,IF(AM4=$C$23,0.5,0)),0) -> 0 | AN31: =IF(Input!$D$122<>0,IF(AN4=$C$23-1,1,IF(AN4=$C$23,0.5,0)),0) -> 0 | AO31: =IF(Input!$D$122<>0,IF(AO4=$C$23-1,1,IF(AO4=$C$23,0.5,0)),0) -> 0 | AP31: =IF(Input!$D$122<>0,IF(AP4=$C$23-1,1,IF(AP4=$C$23,0.5,0)),0) -> 0
A33: Depreciation
A34: Basis for Depreciation I | C34: =SUM(F34:AP34) -> 471711220.8 | F34: =Capex!F10 -> 59216.68816 | G34: =Capex!G10 -> 94292664.88 | H34: =Capex!H10 -> 212264628.3 | I34: =Capex!I10 -> 165094710.9 | J34: =Capex!J10 -> 0 | K34: =Capex!K10 -> 0 | L34: =Capex!L10 -> 0 | M34: =Capex!M10 -> 0 | N34: =Capex!N10 -> 0 | O34: =Capex!O10 -> 0 | P34: =Capex!P10 -> 0 | Q34: =Capex!Q10 -> 0 | R34: =Capex!R10 -> 0 | S34: =Capex!S10 -> 0 | T34: =Capex!T10 -> 0 | U34: =Capex!U10 -> 0 | V34: =Capex!V10 -> 0 | W34: =Capex!W10 -> 0 | X34: =Capex!X10 -> 0 | Y34: =Capex!Y10 -> 0 | Z34: =Capex!Z10 -> 0 | AA34: =Capex!AA10 -> 0 | AB34: =Capex!AB10 -> 0 | AC34: =Capex!AC10 -> 0 | AD34: =Capex!AD10 -> 0 | AE34: =Capex!AE10 -> 0 | AF34: =Capex!AF10 -> 0 | AG34: =Capex!AG10 -> 0 | AH34: =Capex!AH10 -> 0 | AI34: =Capex!AI10 -> 0 | AJ34: =Capex!AJ10 -> 0 | AK34: =Capex!AK10 -> 0 | AL34: =Capex!AL10 -> 0 | AM34: =Capex!AM10 -> 0 | AN34: =Capex!AN10 -> 0 | AO34: =Capex!AO10 -> 0 | AP34: =Capex!AP10 -> 0
A35: Capitalized IDC | C35: =SUM(F35:AP35) -> 0 | F35: =Finance!F68*(1-F25) -> 0 | G35: =Finance!G68*(1-G25) -> 0 | H35: =Finance!H68*(1-H25) -> 0 | I35: =Finance!I68*(1-I25) -> 0 | J35: =Finance!J68*(1-J25) -> 0 | K35: =Finance!K68*(1-K25) -> 0 | L35: =Finance!L68*(1-L25) -> 0 | M35: =Finance!M68*(1-M25) -> 0 | N35: =Finance!N68*(1-N25) -> 0
A36: Basis for Depreciation II | C36: =SUM(F36:AP36) -> 471711220.8 | F36: =F24*(SUM($F$34:F34)+SUM($F$35:F35)) -> 0 | G36: =G24*(SUM($F$34:G34)+SUM($F$35:G35)) -> 0 | H36: =H24*(SUM($F$34:H34)+SUM($F$35:H35)) -> 0 | I36: =I24*(SUM($F$34:I34)+SUM($F$35:I35)) -> 0 | J36: =J24*(SUM($F$34:J34)+SUM($F$35:J35)) -> 471711220.8 | K36: =K24*(SUM($F$34:K34)+SUM($F$35:K35)) -> 0 | L36: =L24*(SUM($F$34:L34)+SUM($F$35:L35)) -> 0 | M36: =M24*(SUM($F$34:M34)+SUM($F$35:M35)) -> 0 | N36: =N24*(SUM($F$34:N34)+SUM($F$35:N35)) -> 0 | O36: =O24*(SUM($F$34:O34)+SUM($F$35:O35)) -> 0 | P36: =P24*(SUM($F$34:P34)+SUM($F$35:P35)) -> 0 | Q36: =Q24*(SUM($F$34:Q34)+SUM($F$35:Q35)) -> 0 | R36: =R24*(SUM($F$34:R34)+SUM($F$35:R35)) -> 0 | S36: =S24*(SUM($F$34:S34)+SUM($F$35:S35)) -> 0 | T36: =T24*(SUM($F$34:T34)+SUM($F$35:T35)) -> 0 | U36: =U24*(SUM($F$34:U34)+SUM($F$35:U35)) -> 0 | V36: =V24*(SUM($F$34:V34)+SUM($F$35:V35)) -> 0 | W36: =W24*(SUM($F$34:W34)+SUM($F$35:W35)) -> 0 | X36: =X24*(SUM($F$34:X34)+SUM($F$35:X35)) -> 0 | Y36: =Y24*(SUM($F$34:Y34)+SUM($F$35:Y35)) -> 0 | Z36: =Z24*(SUM($F$34:Z34)+SUM($F$35:Z35)) -> 0 | AA36: =AA24*(SUM($F$34:AA34)+SUM($F$35:AA35)) -> 0 | AB36: =AB24*(SUM($F$34:AB34)+SUM($F$35:AB35)) -> 0 | AC36: =AC24*(SUM($F$34:AC34)+SUM($F$35:AC35)) -> 0 | AD36: =AD24*(SUM($F$34:AD34)+SUM($F$35:AD35)) -> 0 | AE36: =AE24*(SUM($F$34:AE34)+SUM($F$35:AE35)) -> 0 | AF36: =AF24*(SUM($F$34:AF34)+SUM($F$35:AF35)) -> 0 | AG36: =AG24*(SUM($F$34:AG34)+SUM($F$35:AG35)) -> 0 | AH36: =AH24*(SUM($F$34:AH34)+SUM($F$35:AH35)) -> 0 | AI36: =AI24*(SUM($F$34:AI34)+SUM($F$35:AI35)) -> 0 | AJ36: =AJ24*(SUM($F$34:AJ34)+SUM($F$35:AJ35)) -> 0 | AK36: =AK24*(SUM($F$34:AK34)+SUM($F$35:AK35)) -> 0 | AL36: =AL24*(SUM($F$34:AL34)+SUM($F$35:AL35)) -> 0 | AM36: =AM24*(SUM($F$34:AM34)+SUM($F$35:AM35)) -> 0 | AN36: =AN24*(SUM($F$34:AN34)+SUM($F$35:AN35)) -> 0 | AO36: =AO24*(SUM($F$34:AO34)+SUM($F$35:AO35)) -> 0 | AP36: =AP24*(SUM($F$34:AP34)+SUM($F$35:AP35)) -> 0
A37: Depreciation on Material Assets | C37: =SUM(F37:AP37) -> 471711220.8 | F37: =F29*E37/IF(E29<>0,E29,1)+ (F36/(Input!$D$17/IF(F29<>0,F29,1))) -> 0 | G37: =G29*F37/IF(F29<>0,F29,1)+ (G36/(Input!$D$17/IF(G29<>0,G29,1))) -> 0 | H37: =H29*G37/IF(G29<>0,G29,1)+ (H36/(Input!$D$17/IF(H29<>0,H29,1))) -> 0 | I37: =I29*H37/IF(H29<>0,H29,1)+ (I36/(Input!$D$17/IF(I29<>0,I29,1))) -> 0 | J37: =J29*I37/IF(I29<>0,I29,1)+ (J36/(Input!$D$17/IF(J29<>0,J29,1))) -> 9434224.415 | K37: =K29*J37/IF(J29<>0,J29,1)+ (K36/(Input!$D$17/IF(K29<>0,K29,1))) -> 18868448.83 | L37: =L29*K37/IF(K29<>0,K29,1)+ (L36/(Input!$D$17/IF(L29<>0,L29,1))) -> 18868448.83 | M37: =M29*L37/IF(L29<>0,L29,1)+ (M36/(Input!$D$17/IF(M29<>0,M29,1))) -> 18868448.83 | N37: =N29*M37/IF(M29<>0,M29,1)+ (N36/(Input!$D$17/IF(N29<>0,N29,1))) -> 18868448.83 | O37: =O29*N37/IF(N29<>0,N29,1)+ (O36/(Input!$D$17/IF(O29<>0,O29,1))) -> 18868448.83 | P37: =P29*O37/IF(O29<>0,O29,1)+ (P36/(Input!$D$17/IF(P29<>0,P29,1))) -> 18868448.83 | Q37: =Q29*P37/IF(P29<>0,P29,1)+ (Q36/(Input!$D$17/IF(Q29<>0,Q29,1))) -> 18868448.83 | R37: =R29*Q37/IF(Q29<>0,Q29,1)+ (R36/(Input!$D$17/IF(R29<>0,R29,1))) -> 18868448.83 | S37: =S29*R37/IF(R29<>0,R29,1)+ (S36/(Input!$D$17/IF(S29<>0,S29,1))) -> 18868448.83 | T37: =T29*S37/IF(S29<>0,S29,1)+ (T36/(Input!$D$17/IF(T29<>0,T29,1))) -> 18868448.83 | U37: =U29*T37/IF(T29<>0,T29,1)+ (U36/(Input!$D$17/IF(U29<>0,U29,1))) -> 18868448.83 | V37: =V29*U37/IF(U29<>0,U29,1)+ (V36/(Input!$D$17/IF(V29<>0,V29,1))) -> 18868448.83 | W37: =W29*V37/IF(V29<>0,V29,1)+ (W36/(Input!$D$17/IF(W29<>0,W29,1))) -> 18868448.83 | X37: =X29*W37/IF(W29<>0,W29,1)+ (X36/(Input!$D$17/IF(X29<>0,X29,1))) -> 18868448.83 | Y37: =Y29*X37/IF(X29<>0,X29,1)+ (Y36/(Input!$D$17/IF(Y29<>0,Y29,1))) -> 18868448.83 | Z37: =Z29*Y37/IF(Y29<>0,Y29,1)+ (Z36/(Input!$D$17/IF(Z29<>0,Z29,1))) -> 18868448.83 | AA37: =AA29*Z37/IF(Z29<>0,Z29,1)+ (AA36/(Input!$D$17/IF(AA29<>0,AA29,1))) -> 18868448.83 | AB37: =AB29*AA37/IF(AA29<>0,AA29,1)+ (AB36/(Input!$D$17/IF(AB29<>0,AB29,1))) -> 18868448.83 | AC37: =AC29*AB37/IF(AB29<>0,AB29,1)+ (AC36/(Input!$D$17/IF(AC29<>0,AC29,1))) -> 18868448.83 | AD37: =AD29*AC37/IF(AC29<>0,AC29,1)+ (AD36/(Input!$D$17/IF(AD29<>0,AD29,1))) -> 18868448.83 | AE37: =AE29*AD37/IF(AD29<>0,AD29,1)+ (AE36/(Input!$D$17/IF(AE29<>0,AE29,1))) -> 18868448.83 | AF37: =AF29*AE37/IF(AE29<>0,AE29,1)+ (AF36/(Input!$D$17/IF(AF29<>0,AF29,1))) -> 18868448.83 | AG37: =AG29*AF37/IF(AF29<>0,AF29,1)+ (AG36/(Input!$D$17/IF(AG29<>0,AG29,1))) -> 18868448.83 | AH37: =AH29*AG37/IF(AG29<>0,AG29,1)+ (AH36/(Input!$D$17/IF(AH29<>0,AH29,1))) -> 18868448.83 | AI37: =AI29*AH37/IF(AH29<>0,AH29,1)+ (AI36/(Input!$D$17/IF(AI29<>0,AI29,1))) -> 9434224.415 | AJ37: =AJ29*AI37/IF(AI29<>0,AI29,1)+ (AJ36/(Input!$D$17/IF(AJ29<>0,AJ29,1))) -> 0 | AK37: =AK29*AJ37/IF(AJ29<>0,AJ29,1)+ (AK36/(Input!$D$17/IF(AK29<>0,AK29,1))) -> 0 | AL37: =AL29*AK37/IF(AK29<>0,AK29,1)+ (AL36/(Input!$D$17/IF(AL29<>0,AL29,1))) -> 0 | AM37: =AM29*AL37/IF(AL29<>0,AL29,1)+ (AM36/(Input!$D$17/IF(AM29<>0,AM29,1))) -> 0 | AN37: =AN29*AM37/IF(AM29<>0,AM29,1)+ (AN36/(Input!$D$17/IF(AN29<>0,AN29,1))) -> 0 | AO37: =AO29*AN37/IF(AN29<>0,AN29,1)+ (AO36/(Input!$D$17/IF(AO29<>0,AO29,1))) -> 0 | AP37: =AP29*AO37/IF(AO29<>0,AO29,1)+ (AP36/(Input!$D$17/IF(AP29<>0,AP29,1))) -> 0
A39: CGGT Utlisation
A41: Hours per year | F41: ='Sale Prices'!F152 -> 0 | G41: ='Sale Prices'!G152 -> 0 | H41: ='Sale Prices'!H152 -> 0 | I41: ='Sale Prices'!I152 -> 2885 | J41: ='Sale Prices'!J152 -> 3139.971531 | K41: ='Sale Prices'!K152 -> 3253.855479 | L41: ='Sale Prices'!L152 -> 3253.855479 | M41: ='Sale Prices'!M152 -> 3141.855479 | N41: ='Sale Prices'!N152 -> 3271.855479 | O41: ='Sale Prices'!O152 -> 3395.855479 | P41: ='Sale Prices'!P152 -> 3436.605744 | Q41: ='Sale Prices'!Q152 -> 3477.845013 | R41: ='Sale Prices'!R152 -> 3519.579153 | S41: ='Sale Prices'!S152 -> 3589.970736 | T41: ='Sale Prices'!T152 -> 3633.050385 | U41: ='Sale Prices'!U152 -> 3669.380889 | V41: ='Sale Prices'!V152 -> 3706.074698 | W41: ='Sale Prices'!W152 -> 3743.135445 | X41: ='Sale Prices'!X152 -> 3780.5668 | Y41: ='Sale Prices'!Y152 -> 3818.372468 | Z41: ='Sale Prices'!Z152 -> 3856.556192 | AA41: ='Sale Prices'!AA152 -> 3895.121754 | AB41: ='Sale Prices'!AB152 -> 3934.072972 | AC41: ='Sale Prices'!AC152 -> 3973.413701 | AD41: ='Sale Prices'!AD152 -> 4013.147838 | AE41: ='Sale Prices'!AE152 -> 4053.279317 | AF41: ='Sale Prices'!AF152 -> 4093.81211 | AG41: ='Sale Prices'!AG152 -> 4134.750231 | AH41: ='Sale Prices'!AH152 -> 4176.097733 | AI41: ='Sale Prices'!AI152 -> 0 | AJ41: ='Sale Prices'!AJ152 -> 0 | AK41: ='Sale Prices'!AK152 -> 0 | AL41: ='Sale Prices'!AL152 -> 0 | AM41: ='Sale Prices'!AM152 -> 0 | AN41: ='Sale Prices'!AN152 -> 0 | AO41: ='Sale Prices'!AO152 -> 0 | AP41: ='Sale Prices'!AP152 -> 0
A42: Cummulated Hours | F42: =E42+F41 -> 0 | G42: =F42+G41 -> 0 | H42: 0 | I42: =H42+I41 -> 2885 | J42: =I42+J41 -> 6024.971531 | K42: 9278.82701 | L42: 12532.68249 | M42: =L42+M41 -> 15674.53797 | N42: 18946.39345 | O42: 22342.24892 | P42: 25778.85467 | Q42: 29256.69968 | R42: 32776.27884 | S42: 36366.24957 | T42: 39999.29996 | U42: 43668.68085 | V42: 47374.75554 | W42: 51117.89099 | X42: 54898.45779 | Y42: 58716.83026 | Z42: 62573.38645 | AA42: 66468.5082 | AB42: 70402.58117 | AC42: 74375.99488 | AD42: 78389.14271 | AE42: 82442.42203 | AF42: 86536.23414 | AG42: 90670.98437 | AH42: 94847.08211 | AI42: 94847.08211 | AJ42: 94847.08211 | AK42: 94847.08211 | AL42: 94847.08211 | AM42: 94847.08211 | AN42: 94847.08211 | AO42: 94847.08211 | AP42: 94847.08211
A43: Real Efficiency | C43: =AVERAGE(F43:AP43) -> 0.5694054324 | F43: =HLOOKUP(F42,'Static Data'!$D$8:$AD$10,3) -> 0.577 | G43: =HLOOKUP(G42,'Static Data'!$D$8:$AD$10,3) -> 0.577 | H43: =HLOOKUP(H42,'Static Data'!$D$8:$AD$10,3) -> 0.577 | I43: =HLOOKUP(I42,'Static Data'!$D$8:$AD$10,3) -> 0.577 | J43: =HLOOKUP(J42,'Static Data'!$D$8:$AD$10,3) -> 0.572961 | K43: =HLOOKUP(K42,'Static Data'!$D$8:$AD$10,3) -> 0.568345 | L43: =HLOOKUP(L42,'Static Data'!$D$8:$AD$10,3) -> 0.568345 | M43: =HLOOKUP(M42,'Static Data'!$D$8:$AD$10,3) -> 0.568345 | N43: =HLOOKUP(N42,'Static Data'!$D$8:$AD$10,3) -> 0.568345 | O43: =HLOOKUP(O42,'Static Data'!$D$8:$AD$10,3) -> 0.568345 | P43: =HLOOKUP(P42,'Static Data'!$D$8:$AD$10,3) -> 0.568345 | Q43: =HLOOKUP(Q42,'Static Data'!$D$8:$AD$10,3) -> 0.568345 | R43: =HLOOKUP(R42,'Static Data'!$D$8:$AD$10,3) -> 0.568345 | S43: =HLOOKUP(S42,'Static Data'!$D$8:$AD$10,3) -> 0.568345 | T43: =HLOOKUP(T42,'Static Data'!$D$8:$AD$10,3) -> 0.568345 | U43: =HLOOKUP(U42,'Static Data'!$D$8:$AD$10,3) -> 0.568345 | V43: =HLOOKUP(V42,'Static Data'!$D$8:$AD$10,3) -> 0.568345 | W43: =HLOOKUP(W42,'Static Data'!$D$8:$AD$10,3) -> 0.568345 | X43: =HLOOKUP(X42,'Static Data'!$D$8:$AD$10,3) -> 0.568345 | Y43: =HLOOKUP(Y42,'Static Data'!$D$8:$AD$10,3) -> 0.568345 | Z43: =HLOOKUP(Z42,'Static Data'!$D$8:$AD$10,3) -> 0.568345 | AA43: =HLOOKUP(AA42,'Static Data'!$D$8:$AD$10,3) -> 0.568345 | AB43: =HLOOKUP(AB42,'Static Data'!$D$8:$AD$10,3) -> 0.568345 | AC43: =HLOOKUP(AC42,'Static Data'!$D$8:$AD$10,3) -> 0.568345 | AD43: =HLOOKUP(AD42,'Static Data'!$D$8:$AD$10,3) -> 0.568345 | AE43: =HLOOKUP(AE42,'Static Data'!$D$8:$AD$10,3) -> 0.568345 | AF43: =HLOOKUP(AF42,'Static Data'!$D$8:$AD$10,3) -> 0.568345 | AG43: =HLOOKUP(AG42,'Static Data'!$D$8:$AD$10,3) -> 0.568345 | AH43: =HLOOKUP(AH42,'Static Data'!$D$8:$AD$10,3) -> 0.568345 | AI43: =HLOOKUP(AI42,'Static Data'!$D$8:$AD$10,3) -> 0.568345 | AJ43: =HLOOKUP(AJ42,'Static Data'!$D$8:$AD$10,3) -> 0.568345 | AK43: =HLOOKUP(AK42,'Static Data'!$D$8:$AD$10,3) -> 0.568345 | AL43: =HLOOKUP(AL42,'Static Data'!$D$8:$AD$10,3) -> 0.568345 | AM43: =HLOOKUP(AM42,'Static Data'!$D$8:$AD$10,3) -> 0.568345 | AN43: =HLOOKUP(AN42,'Static Data'!$D$8:$AD$10,3) -> 0.568345 | AO43: =HLOOKUP(AO42,'Static Data'!$D$8:$AD$10,3) -> 0.568345 | AP43: =HLOOKUP(AP42,'Static Data'!$D$8:$AD$10,3) -> 0.568345
A44: Real Power | F44: =HLOOKUP(F42,'Static Data'!$D$8:$AD$11,4) -> 827 | G44: =HLOOKUP(G42,'Static Data'!$D$8:$AD$11,4) -> 827 | H44: =HLOOKUP(H42,'Static Data'!$D$8:$AD$11,4) -> 827 | I44: =HLOOKUP(I42,'Static Data'!$D$8:$AD$11,4) -> 827 | J44: =HLOOKUP(J42,'Static Data'!$D$8:$AD$11,4) -> 817.3516667 | K44: =HLOOKUP(K42,'Static Data'!$D$8:$AD$11,4) -> 806.325 | L44: =HLOOKUP(L42,'Static Data'!$D$8:$AD$11,4) -> 806.325 | M44: =HLOOKUP(M42,'Static Data'!$D$8:$AD$11,4) -> 806.325 | N44: =HLOOKUP(N42,'Static Data'!$D$8:$AD$11,4) -> 806.325 | O44: =HLOOKUP(O42,'Static Data'!$D$8:$AD$11,4) -> 806.325 | P44: =HLOOKUP(P42,'Static Data'!$D$8:$AD$11,4) -> 806.325 | Q44: =HLOOKUP(Q42,'Static Data'!$D$8:$AD$11,4) -> 806.325 | R44: =HLOOKUP(R42,'Static Data'!$D$8:$AD$11,4) -> 806.325 | S44: =HLOOKUP(S42,'Static Data'!$D$8:$AD$11,4) -> 806.325 | T44: =HLOOKUP(T42,'Static Data'!$D$8:$AD$11,4) -> 806.325 | U44: =HLOOKUP(U42,'Static Data'!$D$8:$AD$11,4) -> 806.325 | V44: =HLOOKUP(V42,'Static Data'!$D$8:$AD$11,4) -> 806.325 | W44: =HLOOKUP(W42,'Static Data'!$D$8:$AD$11,4) -> 806.325 | X44: =HLOOKUP(X42,'Static Data'!$D$8:$AD$11,4) -> 806.325 | Y44: =HLOOKUP(Y42,'Static Data'!$D$8:$AD$11,4) -> 806.325 | Z44: =HLOOKUP(Z42,'Static Data'!$D$8:$AD$11,4) -> 806.325 | AA44: =HLOOKUP(AA42,'Static Data'!$D$8:$AD$11,4) -> 806.325 | AB44: =HLOOKUP(AB42,'Static Data'!$D$8:$AD$11,4) -> 806.325 | AC44: =HLOOKUP(AC42,'Static Data'!$D$8:$AD$11,4) -> 806.325 | AD44: =HLOOKUP(AD42,'Static Data'!$D$8:$AD$11,4) -> 806.325 | AE44: =HLOOKUP(AE42,'Static Data'!$D$8:$AD$11,4) -> 806.325 | AF44: =HLOOKUP(AF42,'Static Data'!$D$8:$AD$11,4) -> 806.325 | AG44: =HLOOKUP(AG42,'Static Data'!$D$8:$AD$11,4) -> 806.325 | AH44: =HLOOKUP(AH42,'Static Data'!$D$8:$AD$11,4) -> 806.325 | AI44: =HLOOKUP(AI42,'Static Data'!$D$8:$AD$11,4) -> 806.325 | AJ44: =HLOOKUP(AJ42,'Static Data'!$D$8:$AD$11,4) -> 806.325 | AK44: =HLOOKUP(AK42,'Static Data'!$D$8:$AD$11,4) -> 806.325 | AL44: =HLOOKUP(AL42,'Static Data'!$D$8:$AD$11,4) -> 806.325 | AM44: =HLOOKUP(AM42,'Static Data'!$D$8:$AD$11,4) -> 806.325 | AN44: =HLOOKUP(AN42,'Static Data'!$D$8:$AD$11,4) -> 806.325 | AO44: =HLOOKUP(AO42,'Static Data'!$D$8:$AD$11,4) -> 806.325 | AP44: =HLOOKUP(AP42,'Static Data'!$D$8:$AD$11,4) -> 806.325
A47: Finance
A48: Signing/Fin. Close (=FC) | C48: =Input!D15 -> 2006
A49: FC Mask | C49: =SUM(F49:AP49) -> 1 | F49: =IF($C$48=F4,1,0) -> 1 | G49: =IF($C$48=G4,1,0) -> 0 | H49: 0 | I49: 0 | J49: 0 | K49: 0 | L49: 0 | M49: 0 | N49: 0 | O49: 0 | P49: 0 | Q49: 0 | R49: 0 | S49: 0 | T49: 0 | U49: 0 | V49: 0 | W49: 0 | X49: 0 | Y49: 0 | Z49: 0 | AA49: 0 | AB49: 0 | AC49: 0 | AD49: 0 | AE49: 0 | AF49: 0 | AG49: 0 | AH49: 0 | AI49: 0 | AJ49: 0 | AK49: 0 | AL49: 0 | AM49: 0 | AN49: 0 | AO49: 0 | AP49: 0
A50: Mask from FC | C50: =SUM(F50:AP50) -> 37 | F50: =IF($C$48<=F4,1,0) -> 1 | G50: =IF($C$48<=G4,1,0) -> 1 | H50: 1 | I50: 1 | J50: 1 | K50: 1 | L50: 1 | M50: 1 | N50: 1 | O50: 1 | P50: 1 | Q50: 1 | R50: 1 | S50: 1 | T50: 1 | U50: 1 | V50: 1 | W50: 1 | X50: 1 | Y50: 1 | Z50: 1 | AA50: 1 | AB50: 1 | AC50: 1 | AD50: 1 | AE50: 1 | AF50: 1 | AG50: 1 | AH50: 1 | AI50: 1 | AJ50: 1 | AK50: 1 | AL50: 1 | AM50: 1 | AN50: 1 | AO50: 1 | AP50: 1
A51: Counter from FC | C51: =MAX(F51:AP51) -> 37 | F51: =E51+F50 -> 1 | G51: =F51+G50 -> 2 | H51: 3 | I51: 4 | J51: 5 | K51: 6 | L51: 7 | M51: =L51+M50 -> 8 | N51: 9 | O51: 10 | P51: 11 | Q51: 12 | R51: 13 | S51: 14 | T51: 15 | U51: 16 | V51: 17 | W51: 18 | X51: 19 | Y51: 20 | Z51: 21 | AA51: 22 | AB51: 23 | AC51: 24 | AD51: 25 | AE51: 26 | AF51: 27 | AG51: 28 | AH51: 29 | AI51: 30 | AJ51: 31 | AK51: 32 | AL51: 33 | AM51: 34 | AN51: 35 | AO51: 36 | AP51: 37
A52: Mask of debt repayment | C52: =SUM(F52:AP52) -> 15 | F52: =(1-F62)*F57 -> 0 | G52: =(1-G62)*G57 -> 0 | H52: 0 | I52: =(1-I62)*I57 -> 1 | J52: 1 | K52: 1 | L52: 1 | M52: 1 | N52: 1 | O52: 1 | P52: 1 | Q52: 1 | R52: 1 | S52: 1 | T52: 1 | U52: =(1-U62)*U57 -> 1 | V52: 1 | W52: 1 | X52: 0 | Y52: 0 | Z52: =(1-Z62)*Z57 -> 0 | AA52: 0 | AB52: 0 | AC52: 0 | AD52: 0 | AE52: 0 | AF52: 0 | AG52: 0 | AH52: 0 | AI52: 0 | AJ52: 0 | AK52: 0 | AL52: 0 | AM52: 0 | AN52: 0 | AO52: =(1-AO62)*AO57 -> 0 | AP52: 0
A53: Loan Availability Mask | C53: =SUM(F53:AP53) -> 3 | F53: =F50*(1-F57) -> 1 | G53: =G50*(1-G57) -> 1 | H53: 1 | I53: =I50*(1-I57) -> 0 | J53: 0 | K53: 0 | L53: 0 | M53: 0 | N53: 0 | O53: 0 | P53: 0 | Q53: 0 | R53: 0 | S53: 0 | T53: 0 | U53: 0 | V53: 0 | W53: 0 | X53: 0 | Y53: 0 | Z53: 0 | AA53: 0 | AB53: 0 | AC53: 0 | AD53: 0 | AE53: 0 | AF53: 0 | AG53: 0 | AH53: 0 | AI53: 0 | AJ53: 0 | AK53: 0 | AL53: 0 | AM53: 0 | AN53: 0 | AO53: 0 | AP53: 0
A55: End of Availability Period // Start of Repayment | C55: =MIN(C23,C48+Input!D59) -> 2009
A56: End of Availability Mask | C56: =SUM(F56:AP56) -> 1 | F56: =IF($C$55=F4,1,0) -> 0 | G56: =IF($C$55=G4,1,0) -> 0 | H56: 0 | I56: =IF($C$55=I4,1,0) -> 1 | J56: 0 | K56: 0 | L56: 0 | M56: 0 | N56: 0 | O56: 0 | P56: 0 | Q56: 0 | R56: 0 | S56: 0 | T56: 0 | U56: 0 | V56: 0 | W56: 0 | X56: 0 | Y56: 0 | Z56: 0 | AA56: 0 | AB56: 0 | AC56: 0 | AD56: 0 | AE56: 0 | AF56: 0 | AG56: 0 | AH56: 0 | AI56: 0 | AJ56: 0 | AK56: 0 | AL56: 0 | AM56: 0 | AN56: 0 | AO56: 0 | AP56: 0
A57: Mask starting at End of Availability Period | C57: =SUM(F57:AP57) -> 34 | F57: =IF($C$55<=F4,1,0) -> 0 | G57: =IF($C$55<=G4,1,0) -> 0 | H57: =IF($C$55<=H4,1,0) -> 0 | I57: =IF($C$55<=I4,1,0) -> 1 | J57: =IF($C$55<=J4,1,0) -> 1 | K57: 1 | L57: 1 | M57: 1 | N57: 1 | O57: 1 | P57: 1 | Q57: 1 | R57: 1 | S57: 1 | T57: 1 | U57: 1 | V57: 1 | W57: 1 | X57: 1 | Y57: 1 | Z57: 1 | AA57: 1 | AB57: 1 | AC57: 1 | AD57: 1 | AE57: 1 | AF57: 1 | AG57: 1 | AH57: 1 | AI57: 1 | AJ57: 1 | AK57: 1 | AL57: 1 | AM57: 1 | AN57: 1 | AO57: 1 | AP57: 1
A58: Counter starting at End of Availability Period | C58: =MAX(F58:AP58) -> 34 | F58: =E58+F57 -> 0 | G58: =F58+G57 -> 0 | H58: 0 | I58: 1 | J58: 2 | K58: 3 | L58: 4 | M58: =L58+M57 -> 5 | N58: 6 | O58: 7 | P58: 8 | Q58: 9 | R58: 10 | S58: 11 | T58: 12 | U58: 13 | V58: 14 | W58: 15 | X58: 16 | Y58: 17 | Z58: 18 | AA58: 19 | AB58: 20 | AC58: 21 | AD58: 22 | AE58: 23 | AF58: 24 | AG58: 25 | AH58: 26 | AI58: 27 | AJ58: 28 | AK58: 29 | AL58: 30 | AM58: 31 | AN58: 32 | AO58: 33 | AP58: 34
A60: Final Maturity | C60: =C55+Input!D58 -> 2024
A61: =TEXT(A60&" Mask",) -> Final Maturity Mask | C61: =SUM(F61:AP61) -> 1 | F61: =IF($C$60=F4,1,0) -> 0 | G61: =IF($C$60=G4,1,0) -> 0 | H61: 0 | I61: 0 | J61: 0 | K61: 0 | L61: 0 | M61: 0 | N61: 0 | O61: 0 | P61: 0 | Q61: 0 | R61: 0 | S61: =IF($C$60=S4,1,0) -> 0 | T61: 0 | U61: 0 | V61: 0 | W61: 0 | X61: 1 | Y61: 0 | Z61: =IF($C$60=Z4,1,0) -> 0 | AA61: 0 | AB61: 0 | AC61: 0 | AD61: 0 | AE61: 0 | AF61: 0 | AG61: 0 | AH61: 0 | AI61: 0 | AJ61: 0 | AK61: 0 | AL61: 0 | AM61: =IF($C$60=AM4,1,0) -> 0 | AN61: 0 | AO61: 0 | AP61: 0
A62: =TEXT("Mask starting at "&A60,) -> Mask starting at Final Maturity | C62: =SUM(F62:AP62) -> 19 | F62: =IF($C$60<=F4,1,0) -> 0 | G62: =IF($C$60<=G4,1,0) -> 0 | H62: 0 | I62: 0 | J62: 0 | K62: 0 | L62: 0 | M62: 0 | N62: 0 | O62: 0 | P62: 0 | Q62: 0 | R62: 0 | S62: 0 | T62: 0 | U62: 0 | V62: 0 | W62: 0 | X62: 1 | Y62: 1 | Z62: 1 | AA62: 1 | AB62: =IF($C$60<=AB4,1,0) -> 1 | AC62: 1 | AD62: =IF($C$60<=AD4,1,0) -> 1 | AE62: 1 | AF62: 1 | AG62: 1 | AH62: 1 | AI62: 1 | AJ62: 1 | AK62: 1 | AL62: 1 | AM62: 1 | AN62: 1 | AO62: 1 | AP62: 1
A63: =TEXT("Counter starting at "&A60,) -> Counter starting at Final Maturity | C63: =MAX(F63:AP63) -> 19 | F63: =E63+F62 -> 0 | G63: =F63+G62 -> 0 | H63: 0 | I63: 0 | J63: 0 | K63: 0 | L63: 0 | M63: 0 | N63: 0 | O63: 0 | P63: 0 | Q63: 0 | R63: 0 | S63: 0 | T63: 0 | U63: 0 | V63: 0 | W63: 0 | X63: 1 | Y63: 2 | Z63: 3 | AA63: 4 | AB63: 5 | AC63: 6 | AD63: 7 | AE63: 8 | AF63: 9 | AG63: 10 | AH63: 11 | AI63: 12 | AJ63: 13 | AK63: 14 | AL63: 15 | AM63: 16 | AN63: 17 | AO63: 18 | AP63: 19

Sheet Operations
A1: =Input!H6 -> 0.09025597814 | E1: Operation Sheet
C3: Total
C4: Average | F4: =Input!D15 -> 2006 | G4: =F4+1 -> 2007 | H4: =G4+1 -> 2008 | I4: 2009 | J4: 2010 | K4: 2011 | L4: 2012 | M4: 2013 | N4: 2014 | O4: 2015 | P4: 2016 | Q4: 2017 | R4: 2018 | S4: 2019 | T4: 2020 | U4: 2021 | V4: 2022 | W4: 2023 | X4: 2024 | Y4: =X4+1 -> 2025 | Z4: 2026 | AA4: 2027 | AB4: =AA4+1 -> 2028 | AC4: 2029 | AD4: 2030 | AE4: 2031 | AF4: 2032 | AG4: =AF4+1 -> 2033 | AH4: 2034 | AI4: 2035 | AJ4: 2036 | AK4: 2037 | AL4: 2038 | AM4: 2039 | AN4: 2040 | AO4: 2041 | AP4: 2042
A5: =Input!$A$6 -> Scen SOREGIES spot 2005-Scen Gaz SOREGIES CATA | C5: Maximum | F5: 1 | G5: 2 | H5: 3 | I5: 4 | J5: 5 | K5: 6 | L5: 7 | M5: 8 | N5: 9 | O5: 10 | P5: 11 | Q5: 12 | R5: 13 | S5: 14 | T5: 15 | U5: 16 | V5: 17 | W5: 18 | X5: 19 | Y5: 20 | Z5: 21 | AA5: 22 | AB5: 23 | AC5: 24 | AD5: 25 | AE5: 26 | AF5: 27 | AG5: 28 | AH5: 29 | AI5: 30 | AJ5: 31 | AK5: 32 | AL5: 33 | AM5: 34 | AN5: 35 | AO5: 36 | AP5: 37
A6: Operation
A7: Sales and Costs
A8: Electricity Production ( Hours PCN/year) | C8: =AVERAGE(ADDRESS(8,5+MATCH(Input!D13,Operations!F4:AP4,0),1,1),ADDRESS(8,Input!D16+5+MATCH(Input!D13,Operations!F4:AP4,0),1,1)) ->  | F8: ='Sale Prices'!F40*Work!F29 -> 0 | G8: ='Sale Prices'!G40*Work!G29 -> 0 | H8: ='Sale Prices'!H40*Work!H29 -> 0 | I8: ='Sale Prices'!I40*Work!I29 -> 0 | J8: ='Sale Prices'!J40*Work!J29 -> 2250 | K8: ='Sale Prices'!K40*Work!K29 -> 4500 | L8: ='Sale Prices'!L40*Work!L29 -> 4500 | M8: ='Sale Prices'!M40*Work!M29 -> 4500 | N8: ='Sale Prices'!N40*Work!N29 -> 4500 | O8: ='Sale Prices'!O40*Work!O29 -> 4500 | P8: ='Sale Prices'!P40*Work!P29 -> 4500 | Q8: ='Sale Prices'!Q40*Work!Q29 -> 4500 | R8: ='Sale Prices'!R40*Work!R29 -> 4500 | S8: ='Sale Prices'!S40*Work!S29 -> 4500 | T8: ='Sale Prices'!T40*Work!T29 -> 4500 | U8: ='Sale Prices'!U40*Work!U29 -> 4500 | V8: ='Sale Prices'!V40*Work!V29 -> 4500 | W8: ='Sale Prices'!W40*Work!W29 -> 4500 | X8: ='Sale Prices'!X40*Work!X29 -> 4500 | Y8: ='Sale Prices'!Y40*Work!Y29 -> 4500 | Z8: ='Sale Prices'!Z40*Work!Z29 -> 4500 | AA8: ='Sale Prices'!AA40*Work!AA29 -> 4500 | AB8: ='Sale Prices'!AB40*Work!AB29 -> 4500 | AC8: ='Sale Prices'!AC40*Work!AC29 -> 4500 | AD8: ='Sale Prices'!AD40*Work!AD29 -> 4500 | AE8: ='Sale Prices'!AE40*Work!AE29 -> 4500 | AF8: ='Sale Prices'!AF40*Work!AF29 -> 4500 | AG8: ='Sale Prices'!AG40*Work!AG29 -> 4500 | AH8: ='Sale Prices'!AH40*Work!AH29 -> 4500 | AI8: ='Sale Prices'!AI40*Work!AI29 -> 2250 | AJ8: ='Sale Prices'!AJ40*Work!AJ29 -> 0 | AK8: ='Sale Prices'!AK40*Work!AK29 -> 0 | AL8: ='Sale Prices'!AL40*Work!AL29 -> 0 | AM8: ='Sale Prices'!AM40*Work!AM29 -> 0 | AN8: ='Sale Prices'!AN40*Work!AN29 -> 0 | AO8: ='Sale Prices'!AO40*Work!AO29 -> 0 | AP8: ='Sale Prices'!AP40*Work!AP29 -> 0
A9: Power Intalled | C9: =Input!$D$95 -> 827 | F9: =Work!F30*Work!F44 -> 0 | G9: =Work!G30*Work!G44 -> 0 | H9: =Work!H30*Work!H44 -> 0 | I9: =Work!I30*Work!I44 -> 0 | J9: =Work!J30*Work!J44 -> 817.3516667 | K9: =Work!K30*Work!K44 -> 806.325 | L9: =Work!L30*Work!L44 -> 806.325 | M9: =Work!M30*Work!M44 -> 806.325 | N9: =Work!N30*Work!N44 -> 806.325 | O9: =Work!O30*Work!O44 -> 806.325 | P9: =Work!P30*Work!P44 -> 806.325 | Q9: =Work!Q30*Work!Q44 -> 806.325 | R9: =Work!R30*Work!R44 -> 806.325 | S9: =Work!S30*Work!S44 -> 806.325 | T9: =Work!T30*Work!T44 -> 806.325 | U9: =Work!U30*Work!U44 -> 806.325 | V9: =Work!V30*Work!V44 -> 806.325 | W9: =Work!W30*Work!W44 -> 806.325 | X9: =Work!X30*Work!X44 -> 806.325 | Y9: =Work!Y30*Work!Y44 -> 806.325 | Z9: =Work!Z30*Work!Z44 -> 806.325 | AA9: =Work!AA30*Work!AA44 -> 806.325 | AB9: =Work!AB30*Work!AB44 -> 806.325 | AC9: =Work!AC30*Work!AC44 -> 806.325 | AD9: =Work!AD30*Work!AD44 -> 806.325 | AE9: =Work!AE30*Work!AE44 -> 806.325 | AF9: =Work!AF30*Work!AF44 -> 806.325 | AG9: =Work!AG30*Work!AG44 -> 806.325 | AH9: =Work!AH30*Work!AH44 -> 806.325 | AI9: =Work!AI30*Work!AI44 -> 806.325 | AJ9: =Work!AJ30*Work!AJ44 -> 0 | AK9: =Work!AK30*Work!AK44 -> 0 | AL9: =Work!AL30*Work!AL44 -> 0 | AM9: =Work!AM30*Work!AM44 -> 0 | AN9: =Work!AN30*Work!AN44 -> 0 | AO9: =Work!AO30*Work!AO44 -> 0 | AP9: =Work!AP30*Work!AP44 -> 0
A10: Electricity Price (€/MW) | C10: =AVERAGE(I10:AG10) -> 66.42 | F10: ='Sale Prices'!F62*Work!F28 -> 66.42 | G10: ='Sale Prices'!G62*Work!G28 -> 66.42 | H10: ='Sale Prices'!H62*Work!H28 -> 66.42 | I10: ='Sale Prices'!I62*Work!I28 -> 66.42 | J10: ='Sale Prices'!J62*Work!J28 -> 66.42 | K10: ='Sale Prices'!K62*Work!K28 -> 66.42 | L10: ='Sale Prices'!L62*Work!L28 -> 66.42 | M10: ='Sale Prices'!M62*Work!M28 -> 66.42 | N10: ='Sale Prices'!N62*Work!N28 -> 66.42 | O10: ='Sale Prices'!O62*Work!O28 -> 66.42 | P10: ='Sale Prices'!P62*Work!P28 -> 66.42 | Q10: ='Sale Prices'!Q62*Work!Q28 -> 66.42 | R10: ='Sale Prices'!R62*Work!R28 -> 66.42 | S10: ='Sale Prices'!S62*Work!S28 -> 66.42 | T10: ='Sale Prices'!T62*Work!T28 -> 66.42 | U10: ='Sale Prices'!U62*Work!U28 -> 66.42 | V10: ='Sale Prices'!V62*Work!V28 -> 66.42 | W10: ='Sale Prices'!W62*Work!W28 -> 66.42 | X10: ='Sale Prices'!X62*Work!X28 -> 66.42 | Y10: ='Sale Prices'!Y62*Work!Y28 -> 66.42 | Z10: ='Sale Prices'!Z62*Work!Z28 -> 66.42 | AA10: ='Sale Prices'!AA62*Work!AA28 -> 66.42 | AB10: ='Sale Prices'!AB62*Work!AB28 -> 66.42 | AC10: ='Sale Prices'!AC62*Work!AC28 -> 66.42 | AD10: ='Sale Prices'!AD62*Work!AD28 -> 66.42 | AE10: ='Sale Prices'!AE62*Work!AE28 -> 66.42 | AF10: ='Sale Prices'!AF62*Work!AF28 -> 66.42 | AG10: ='Sale Prices'!AG62*Work!AG28 -> 66.42 | AH10: ='Sale Prices'!AH62 -> 66.42 | AI10: ='Sale Prices'!AI62*Work!AI28 -> 33.21 | AJ10: ='Sale Prices'!AJ62*Work!AJ28 -> 0 | AK10: ='Sale Prices'!AK62*Work!AK28 -> 0 | AL10: ='Sale Prices'!AL62*Work!AL28 -> 0 | AM10: ='Sale Prices'!AM62*Work!AM28 -> 0 | AN10: ='Sale Prices'!AN62*Work!AN28 -> 0 | AO10: ='Sale Prices'!AO62*Work!AO28 -> 0 | AP10: ='Sale Prices'!AP62*Work!AP28 -> 0
A11: Sales | C11: =SUM(F11:AQ11) -> 6026709861 | F11: ='Sale Prices'!F87*Work!F29 -> 0 | G11: ='Sale Prices'!G87*Work!G29 -> 0 | H11: ='Sale Prices'!H87*Work!H29 -> 0 | I11: ='Sale Prices'!I87*Work!I29 -> 0 | J11: ='Sale Prices'!J87*Work!J29 -> 122149119.8 | K11: ='Sale Prices'!K87*Work!K29 -> 241002479.2 | L11: ='Sale Prices'!L87*Work!L29 -> 241002479.2 | M11: ='Sale Prices'!M87*Work!M29 -> 241002479.2 | N11: ='Sale Prices'!N87*Work!N29 -> 241002479.2 | O11: ='Sale Prices'!O87*Work!O29 -> 241002479.2 | P11: ='Sale Prices'!P87*Work!P29 -> 241002479.2 | Q11: ='Sale Prices'!Q87*Work!Q29 -> 241002479.2 | R11: ='Sale Prices'!R87*Work!R29 -> 241002479.2 | S11: ='Sale Prices'!S87*Work!S29 -> 241002479.2 | T11: ='Sale Prices'!T87*Work!T29 -> 241002479.2 | U11: ='Sale Prices'!U87*Work!U29 -> 241002479.2 | V11: ='Sale Prices'!V87*Work!V29 -> 241002479.2 | W11: ='Sale Prices'!W87*Work!W29 -> 241002479.2 | X11: ='Sale Prices'!X87*Work!X29 -> 241002479.2 | Y11: ='Sale Prices'!Y87*Work!Y29 -> 241002479.2 | Z11: ='Sale Prices'!Z87*Work!Z29 -> 241002479.2 | AA11: ='Sale Prices'!AA87*Work!AA29 -> 241002479.2 | AB11: ='Sale Prices'!AB87*Work!AB29 -> 241002479.2 | AC11: ='Sale Prices'!AC87*Work!AC29 -> 241002479.2 | AD11: ='Sale Prices'!AD87*Work!AD29 -> 241002479.2 | AE11: ='Sale Prices'!AE87*Work!AE29 -> 241002479.2 | AF11: ='Sale Prices'!AF87*Work!AF29 -> 241002479.2 | AG11: ='Sale Prices'!AG87*Work!AG29 -> 241002479.2 | AH11: ='Sale Prices'!AH87*Work!AH29 -> 241002479.2 | AI11: ='Sale Prices'!AI87*Work!AI29 -> 120501239.6 | AJ11: ='Sale Prices'!AJ87*Work!AJ29 -> 0 | AK11: ='Sale Prices'!AK87*Work!AK29 -> 0 | AL11: ='Sale Prices'!AL87*Work!AL29 -> 0 | AM11: ='Sale Prices'!AM87*Work!AM29 -> 0 | AN11: ='Sale Prices'!AN87*Work!AN29 -> 0 | AO11: ='Sale Prices'!AO87*Work!AO29 -> 0 | AP11: ='Sale Prices'!AP87*Work!AP29 -> 0
A12: Optional Evaluation | B12: 1 | F12: =3*F8*F9*$B$12 -> 0 | G12: =3*G8*G9*$B$12 -> 0 | H12: =0*H8*H9*$B$12 -> 0 | I12: =0*I8*I9*$B$12 -> 0 | J12: =0*J8*J9*$B$12 -> 0 | K12: 0 | L12: 0 | M12: 0 | N12: 0 | O12: 0 | P12: 0 | Q12: 0 | R12: 0 | S12: 0 | T12: 0 | U12: 0 | V12: 0 | W12: 0 | X12: 0 | Y12: 0 | Z12: 0 | AA12: 0 | AB12: 0 | AC12: 0 | AD12: 0 | AE12: 0 | AF12: 0 | AG12: 0 | AH12: =3*AH8*AH9*$B$12 -> 10885387.5 | AI12: 5442693.75 | AJ12: 0 | AK12: 0 | AL12: 0 | AM12: 0 | AN12: 0 | AO12: 0 | AP12: 0
A13: Total CA | C13: =SUM(F13:AQ13) -> 6043037943 | F13: =F12+F11 -> 0 | G13: 0 | H13: 0 | I13: 0 | J13: 122149119.8 | K13: 241002479.2 | L13: 241002479.2 | M13: 241002479.2 | N13: 241002479.2 | O13: 241002479.2 | P13: 241002479.2 | Q13: 241002479.2 | R13: 241002479.2 | S13: 241002479.2 | T13: 241002479.2 | U13: 241002479.2 | V13: 241002479.2 | W13: 241002479.2 | X13: 241002479.2 | Y13: 241002479.2 | Z13: 241002479.2 | AA13: 241002479.2 | AB13: 241002479.2 | AC13: 241002479.2 | AD13: 241002479.2 | AE13: 241002479.2 | AF13: 241002479.2 | AG13: 241002479.2 | AH13: 251887866.7 | AI13: 125943933.4 | AJ13: 0 | AK13: 0 | AL13: 0 | AM13: 0 | AN13: 0 | AO13: 0 | AP13: 0
A14: Cash adjusted Sales | C14: =SUM(F14:AQ14) -> 6043037943 | F14: =F13*(12-Input!$D$75)/12+E13*Input!$D$75/12 -> 0 | G14: =G13*(12-Input!$D$75)/12+F13*Input!$D$75/12 -> 0 | H14: =H13*(12-Input!$D$75)/12+G13*Input!$D$75/12 -> 0 | I14: =I13*(12-Input!$D$75)/12+H13*Input!$D$75/12 -> 0 | J14: =J13*(12-Input!$D$75)/12+I13*Input!$D$75/12 -> 111970026.5 | K14: =K13*(12-Input!$D$75)/12+J13*Input!$D$75/12 -> 231098032.6 | L14: =L13*(12-Input!$D$75)/12+K13*Input!$D$75/12 -> 241002479.2 | M14: =M13*(12-Input!$D$75)/12+L13*Input!$D$75/12 -> 241002479.2 | N14: =N13*(12-Input!$D$75)/12+M13*Input!$D$75/12 -> 241002479.2 | O14: =O13*(12-Input!$D$75)/12+N13*Input!$D$75/12 -> 241002479.2 | P14: =P13*(12-Input!$D$75)/12+O13*Input!$D$75/12 -> 241002479.2 | Q14: =Q13*(12-Input!$D$75)/12+P13*Input!$D$75/12 -> 241002479.2 | R14: =R13*(12-Input!$D$75)/12+Q13*Input!$D$75/12 -> 241002479.2 | S14: =S13*(12-Input!$D$75)/12+R13*Input!$D$75/12 -> 241002479.2 | T14: =T13*(12-Input!$D$75)/12+S13*Input!$D$75/12 -> 241002479.2 | U14: =U13*(12-Input!$D$75)/12+T13*Input!$D$75/12 -> 241002479.2 | V14: =V13*(12-Input!$D$75)/12+U13*Input!$D$75/12 -> 241002479.2 | W14: =W13*(12-Input!$D$75)/12+V13*Input!$D$75/12 -> 241002479.2 | X14: =X13*(12-Input!$D$75)/12+W13*Input!$D$75/12 -> 241002479.2 | Y14: =Y13*(12-Input!$D$75)/12+X13*Input!$D$75/12 -> 241002479.2 | Z14: =Z13*(12-Input!$D$75)/12+Y13*Input!$D$75/12 -> 241002479.2 | AA14: =AA13*(12-Input!$D$75)/12+Z13*Input!$D$75/12 -> 241002479.2 | AB14: =AB13*(12-Input!$D$75)/12+AA13*Input!$D$75/12 -> 241002479.2 | AC14: =AC13*(12-Input!$D$75)/12+AB13*Input!$D$75/12 -> 241002479.2 | AD14: =AD13*(12-Input!$D$75)/12+AC13*Input!$D$75/12 -> 241002479.2 | AE14: =AE13*(12-Input!$D$75)/12+AD13*Input!$D$75/12 -> 241002479.2 | AF14: =AF13*(12-Input!$D$75)/12+AE13*Input!$D$75/12 -> 241002479.2 | AG14: =AG13*(12-Input!$D$75)/12+AF13*Input!$D$75/12 -> 241002479.2 | AH14: =AH13*(12-Input!$D$75)/12+AG13*Input!$D$75/12 -> 250980751.1 | AI14: =AI13*(12-Input!$D$75)/12+AH13*Input!$D$75/12 -> 136439261.2 | AJ14: =AJ13*(12-Input!$D$75)/12+AI13*Input!$D$75/12 -> 10495327.78 | AK14: =AK13*(12-Input!$D$75)/12+AJ13*Input!$D$75/12 -> 0 | AL14: =AL13*(12-Input!$D$75)/12+AK13*Input!$D$75/12 -> 0 | AM14: =AM13*(12-Input!$D$75)/12+AL13*Input!$D$75/12 -> 0 | AN14: =AN13*(12-Input!$D$75)/12+AM13*Input!$D$75/12 -> 0 | AO14: =AO13*(12-Input!$D$75)/12+AN13*Input!$D$75/12 -> 0 | AP14: =AP13*(12-Input!$D$75)/12+AO13*Input!$D$75/12 -> 0
A17: Variable Cost
A18: Utilities | C18: =AVERAGE(J18:AH18) -> 871220.2363 | F18: =Input!$D$123*F8*F9*Work!F14 -> 0 | G18: =Input!$D$123*G8*G9*Work!G14 -> 0 | H18: =Input!$D$123*H8*H9*Work!H14 -> 0 | I18: =Input!$D$123*I8*I9*Work!I14 -> 0 | J18: =Input!$D$123*J8*J9*Work!J14 -> 373325.3737 | K18: =Input!$D$123*K8*K9*Work!K14 -> 747626.5558 | L18: =Input!$D$123*L8*L9*Work!L14 -> 758840.9541 | M18: =Input!$D$123*M8*M9*Work!M14 -> 770223.5685 | N18: =Input!$D$123*N8*N9*Work!N14 -> 781776.922 | O18: =Input!$D$123*O8*O9*Work!O14 -> 793503.5758 | P18: =Input!$D$123*P8*P9*Work!P14 -> 805406.1295 | Q18: =Input!$D$123*Q8*Q9*Work!Q14 -> 817487.2214 | R18: =Input!$D$123*R8*R9*Work!R14 -> 829749.5297 | S18: =Input!$D$123*S8*S9*Work!S14 -> 842195.7727 | T18: =Input!$D$123*T8*T9*Work!T14 -> 854828.7093 | U18: =Input!$D$123*U8*U9*Work!U14 -> 867651.1399 | V18: =Input!$D$123*V8*V9*Work!V14 -> 880665.907 | W18: =Input!$D$123*W8*W9*Work!W14 -> 893875.8956 | X18: =Input!$D$123*X8*X9*Work!X14 -> 907284.034 | Y18: =Input!$D$123*Y8*Y9*Work!Y14 -> 920893.2945 | Z18: =Input!$D$123*Z8*Z9*Work!Z14 -> 934706.694 | AA18: =Input!$D$123*AA8*AA9*Work!AA14 -> 948727.2944 | AB18: =Input!$D$123*AB8*AB9*Work!AB14 -> 962958.2038 | AC18: =Input!$D$123*AC8*AC9*Work!AC14 -> 977402.5768 | AD18: =Input!$D$123*AD8*AD9*Work!AD14 -> 992063.6155 | AE18: =Input!$D$123*AE8*AE9*Work!AE14 -> 1006944.57 | AF18: =Input!$D$123*AF8*AF9*Work!AF14 -> 1022048.738 | AG18: =Input!$D$123*AG8*AG9*Work!AG14 -> 1037379.469 | AH18: =Input!$D$123*AH8*AH9*Work!AH14 -> 1052940.161 | AI18: =Input!$D$123*AI8*AI9*Work!AI14 -> 534367.1319 | AJ18: =Input!$D$123*AJ8*AJ9*Work!AJ14 -> 0 | AK18: =Input!$D$123*AK8*AK9*Work!AK14 -> 0 | AL18: =Input!$D$123*AL8*AL9*Work!AL14 -> 0 | AM18: =Input!$D$123*AM8*AM9*Work!AM14 -> 0 | AN18: =Input!$D$123*AN8*AN9*Work!AN14 -> 0 | AO18: =Input!$D$123*AO8*AO9*Work!AO14 -> 0 | AP18: =Input!$D$123*AP8*AP9*Work!AP14 -> 0
A19: Gas | C19: 134226954.9 | F19: =INDEX('Fuel Prices'!$F$20:$AP$20,1,Operations!F5)*Operations!F8*Operations!F9/Work!F43 -> 0 | G19: =INDEX('Fuel Prices'!$F$20:$AP$20,1,Operations!G5)*Operations!G8*Operations!G9/Work!G43 -> 0 | H19: =INDEX('Fuel Prices'!$F$20:$AP$20,1,Operations!H5)*Operations!H8*Operations!H9/Work!H43 -> 0 | I19: =INDEX('Fuel Prices'!$F$20:$AP$20,1,Operations!I5)*Operations!I8*Operations!I9/Work!I43 -> 0 | J19: =INDEX('Fuel Prices'!$F$20:$AP$20,1,Operations!J5)*Operations!J8*Operations!J9/Work!J43 -> 68852649.1 | K19: =INDEX('Fuel Prices'!$F$20:$AP$20,1,Operations!K5)*Operations!K8*Operations!K9/Work!K43 -> 136950884.3 | L19: =INDEX('Fuel Prices'!$F$20:$AP$20,1,Operations!L5)*Operations!L8*Operations!L9/Work!L43 -> 136950884.3 | M19: =INDEX('Fuel Prices'!$F$20:$AP$20,1,Operations!M5)*Operations!M8*Operations!M9/Work!M43 -> 136950884.3 | N19: =INDEX('Fuel Prices'!$F$20:$AP$20,1,Operations!N5)*Operations!N8*Operations!N9/Work!N43 -> 136950884.3 | O19: =INDEX('Fuel Prices'!$F$20:$AP$20,1,Operations!O5)*Operations!O8*Operations!O9/Work!O43 -> 136950884.3 | P19: =INDEX('Fuel Prices'!$F$20:$AP$20,1,Operations!P5)*Operations!P8*Operations!P9/Work!P43 -> 136950884.3 | Q19: =INDEX('Fuel Prices'!$F$20:$AP$20,1,Operations!Q5)*Operations!Q8*Operations!Q9/Work!Q43 -> 136950884.3 | R19: =INDEX('Fuel Prices'!$F$20:$AP$20,1,Operations!R5)*Operations!R8*Operations!R9/Work!R43 -> 136950884.3 | S19: =INDEX('Fuel Prices'!$F$20:$AP$20,1,Operations!S5)*Operations!S8*Operations!S9/Work!S43 -> 136950884.3 | T19: =INDEX('Fuel Prices'!$F$20:$AP$20,1,Operations!T5)*Operations!T8*Operations!T9/Work!T43 -> 136950884.3 | U19: =INDEX('Fuel Prices'!$F$20:$AP$20,1,Operations!U5)*Operations!U8*Operations!U9/Work!U43 -> 136950884.3 | V19: =INDEX('Fuel Prices'!$F$20:$AP$20,1,Operations!V5)*Operations!V8*Operations!V9/Work!V43 -> 136950884.3 | W19: =INDEX('Fuel Prices'!$F$20:$AP$20,1,Operations!W5)*Operations!W8*Operations!W9/Work!W43 -> 136950884.3 | X19: =INDEX('Fuel Prices'!$F$20:$AP$20,1,Operations!X5)*Operations!X8*Operations!X9/Work!X43 -> 136950884.3 | Y19: =INDEX('Fuel Prices'!$F$20:$AP$20,1,Operations!Y5)*Operations!Y8*Operations!Y9/Work!Y43 -> 136950884.3 | Z19: =INDEX('Fuel Prices'!$F$20:$AP$20,1,Operations!Z5)*Operations!Z8*Operations!Z9/Work!Z43 -> 136950884.3 | AA19: =INDEX('Fuel Prices'!$F$20:$AP$20,1,Operations!AA5)*Operations!AA8*Operations!AA9/Work!AA43 -> 136950884.3 | AB19: =INDEX('Fuel Prices'!$F$20:$AP$20,1,Operations!AB5)*Operations!AB8*Operations!AB9/Work!AB43 -> 136950884.3 | AC19: =INDEX('Fuel Prices'!$F$20:$AP$20,1,Operations!AC5)*Operations!AC8*Operations!AC9/Work!AC43 -> 136950884.3 | AD19: =INDEX('Fuel Prices'!$F$20:$AP$20,1,Operations!AD5)*Operations!AD8*Operations!AD9/Work!AD43 -> 136950884.3 | AE19: =INDEX('Fuel Prices'!$F$20:$AP$20,1,Operations!AE5)*Operations!AE8*Operations!AE9/Work!AE43 -> 136950884.3 | AF19: =INDEX('Fuel Prices'!$F$20:$AP$20,1,Operations!AF5)*Operations!AF8*Operations!AF9/Work!AF43 -> 136950884.3 | AG19: =INDEX('Fuel Prices'!$F$20:$AP$20,1,Operations!AG5)*Operations!AG8*Operations!AG9/Work!AG43 -> 136950884.3 | AH19: =INDEX('Fuel Prices'!$F$20:$AP$20,1,Operations!AH5)*Operations!AH8*Operations!AH9/Work!AH43 -> 136950884.3 | AI19: =INDEX('Fuel Prices'!$F$20:$AP$20,1,Operations!AI5)*Operations!AI8*Operations!AI9/Work!AI43 -> 68475442.13 | AJ19: =INDEX('Fuel Prices'!$F$20:$AP$20,1,Operations!AJ5)*Operations!AJ8*Operations!AJ9/Work!AJ43 -> 0 | AK19: =INDEX('Fuel Prices'!$F$20:$AP$20,1,Operations!AK5)*Operations!AK8*Operations!AK9/Work!AK43 -> 0 | AL19: =INDEX('Fuel Prices'!$F$20:$AP$20,1,Operations!AL5)*Operations!AL8*Operations!AL9/Work!AL43 -> 0 | AM19: =INDEX('Fuel Prices'!$F$20:$AP$20,1,Operations!AM5)*Operations!AM8*Operations!AM9/Work!AM43 -> 0 | AN19: =INDEX('Fuel Prices'!$F$20:$AP$20,1,Operations!AN5)*Operations!AN8*Operations!AN9/Work!AN43 -> 0 | AO19: =INDEX('Fuel Prices'!$F$20:$AP$20,1,Operations!AO5)*Operations!AO8*Operations!AO9/Work!AO43 -> 0 | AP19: =INDEX('Fuel Prices'!$F$20:$AP$20,1,Operations!AP5)*Operations!AP8*Operations!AP9/Work!AP43 -> 0
A20: Savings on Balancing Downwards | C20: 0 | F20: =-IF(Input!$D$94=1,0,(Input!$D$123+Input!$D$81)*('Sale Prices'!F$40*(((Work!F44-Input!$D$101)*'Sale Prices'!$C$13*'Sale Prices'!$C$15)))) -> 0 | G20: =-IF(Input!$D$94=1,0,(Input!$D$123+Input!$D$81)*('Sale Prices'!G$40*(((Work!G44-Input!$D$101)*'Sale Prices'!$C$13*'Sale Prices'!$C$15)))) -> 0 | H20: =-IF(Input!$D$94=1,0,(Input!$D$123+Input!$D$81)*('Sale Prices'!H$40*(((Work!H44-Input!$D$101)*'Sale Prices'!$C$13*'Sale Prices'!$C$15)))) -> 0 | I20: =-IF(Input!$D$94=1,0,(Input!$D$123+Input!$D$81)*('Sale Prices'!I$40*(((Work!I44-Input!$D$101)*'Sale Prices'!$C$13*'Sale Prices'!$C$15)))) -> 0 | J20: =-IF(Input!$D$94=1,0,(Input!$D$123+Input!$D$81)*('Sale Prices'!J$40*(((Work!J44-Input!$D$101)*'Sale Prices'!$C$13*'Sale Prices'!$C$15)))) -> 0 | K20: =-IF(Input!$D$94=1,0,(Input!$D$123+Input!$D$81)*('Sale Prices'!K$40*(((Work!K44-Input!$D$101)*'Sale Prices'!$C$13*'Sale Prices'!$C$15)))) -> 0 | L20: =-IF(Input!$D$94=1,0,(Input!$D$123+Input!$D$81)*('Sale Prices'!L$40*(((Work!L44-Input!$D$101)*'Sale Prices'!$C$13*'Sale Prices'!$C$15)))) -> 0 | M20: =-IF(Input!$D$94=1,0,(Input!$D$123+Input!$D$81)*('Sale Prices'!M$40*(((Work!M44-Input!$D$101)*'Sale Prices'!$C$13*'Sale Prices'!$C$15)))) -> 0 | N20: =-IF(Input!$D$94=1,0,(Input!$D$123+Input!$D$81)*('Sale Prices'!N$40*(((Work!N44-Input!$D$101)*'Sale Prices'!$C$13*'Sale Prices'!$C$15)))) -> 0 | O20: =-IF(Input!$D$94=1,0,(Input!$D$123+Input!$D$81)*('Sale Prices'!O$40*(((Work!O44-Input!$D$101)*'Sale Prices'!$C$13*'Sale Prices'!$C$15)))) -> 0 | P20: =-IF(Input!$D$94=1,0,(Input!$D$123+Input!$D$81)*('Sale Prices'!P$40*(((Work!P44-Input!$D$101)*'Sale Prices'!$C$13*'Sale Prices'!$C$15)))) -> 0 | Q20: =-IF(Input!$D$94=1,0,(Input!$D$123+Input!$D$81)*('Sale Prices'!Q$40*(((Work!Q44-Input!$D$101)*'Sale Prices'!$C$13*'Sale Prices'!$C$15)))) -> 0 | R20: =-IF(Input!$D$94=1,0,(Input!$D$123+Input!$D$81)*('Sale Prices'!R$40*(((Work!R44-Input!$D$101)*'Sale Prices'!$C$13*'Sale Prices'!$C$15)))) -> 0 | S20: =-IF(Input!$D$94=1,0,(Input!$D$123+Input!$D$81)*('Sale Prices'!S$40*(((Work!S44-Input!$D$101)*'Sale Prices'!$C$13*'Sale Prices'!$C$15)))) -> 0 | T20: =-IF(Input!$D$94=1,0,(Input!$D$123+Input!$D$81)*('Sale Prices'!T$40*(((Work!T44-Input!$D$101)*'Sale Prices'!$C$13*'Sale Prices'!$C$15)))) -> 0 | U20: =-IF(Input!$D$94=1,0,(Input!$D$123+Input!$D$81)*('Sale Prices'!U$40*(((Work!U44-Input!$D$101)*'Sale Prices'!$C$13*'Sale Prices'!$C$15)))) -> 0 | V20: =-IF(Input!$D$94=1,0,(Input!$D$123+Input!$D$81)*('Sale Prices'!V$40*(((Work!V44-Input!$D$101)*'Sale Prices'!$C$13*'Sale Prices'!$C$15)))) -> 0 | W20: =-IF(Input!$D$94=1,0,(Input!$D$123+Input!$D$81)*('Sale Prices'!W$40*(((Work!W44-Input!$D$101)*'Sale Prices'!$C$13*'Sale Prices'!$C$15)))) -> 0 | X20: =-IF(Input!$D$94=1,0,(Input!$D$123+Input!$D$81)*('Sale Prices'!X$40*(((Work!X44-Input!$D$101)*'Sale Prices'!$C$13*'Sale Prices'!$C$15)))) -> 0 | Y20: =-IF(Input!$D$94=1,0,(Input!$D$123+Input!$D$81)*('Sale Prices'!Y$40*(((Work!Y44-Input!$D$101)*'Sale Prices'!$C$13*'Sale Prices'!$C$15)))) -> 0 | Z20: =-IF(Input!$D$94=1,0,(Input!$D$123+Input!$D$81)*('Sale Prices'!Z$40*(((Work!Z44-Input!$D$101)*'Sale Prices'!$C$13*'Sale Prices'!$C$15)))) -> 0 | AA20: =-IF(Input!$D$94=1,0,(Input!$D$123+Input!$D$81)*('Sale Prices'!AA$40*(((Work!AA44-Input!$D$101)*'Sale Prices'!$C$13*'Sale Prices'!$C$15)))) -> 0 | AB20: =-IF(Input!$D$94=1,0,(Input!$D$123+Input!$D$81)*('Sale Prices'!AB$40*(((Work!AB44-Input!$D$101)*'Sale Prices'!$C$13*'Sale Prices'!$C$15)))) -> 0 | AC20: =-IF(Input!$D$94=1,0,(Input!$D$123+Input!$D$81)*('Sale Prices'!AC$40*(((Work!AC44-Input!$D$101)*'Sale Prices'!$C$13*'Sale Prices'!$C$15)))) -> 0 | AD20: =-IF(Input!$D$94=1,0,(Input!$D$123+Input!$D$81)*('Sale Prices'!AD$40*(((Work!AD44-Input!$D$101)*'Sale Prices'!$C$13*'Sale Prices'!$C$15)))) -> 0 | AE20: =-IF(Input!$D$94=1,0,(Input!$D$123+Input!$D$81)*('Sale Prices'!AE$40*(((Work!AE44-Input!$D$101)*'Sale Prices'!$C$13*'Sale Prices'!$C$15)))) -> 0 | AF20: =-IF(Input!$D$94=1,0,(Input!$D$123+Input!$D$81)*('Sale Prices'!AF$40*(((Work!AF44-Input!$D$101)*'Sale Prices'!$C$13*'Sale Prices'!$C$15)))) -> 0 | AG20: =-IF(Input!$D$94=1,0,(Input!$D$123+Input!$D$81)*('Sale Prices'!AG$40*(((Work!AG44-Input!$D$101)*'Sale Prices'!$C$13*'Sale Prices'!$C$15)))) -> 0 | AH20: =-IF(Input!$D$94=1,0,(Input!$D$123+Input!$D$81)*('Sale Prices'!AH$40*(((Work!AH44-Input!$D$101)*'Sale Prices'!$C$13*'Sale Prices'!$C$15)))) -> 0 | AI20: =-IF(Input!$D$94=1,0,(Input!$D$123+Input!$D$81)*('Sale Prices'!AI$40*(((Work!AI44-Input!$D$101)*'Sale Prices'!$C$13*'Sale Prices'!$C$15)))) -> 0 | AJ20: =-IF(Input!$D$94=1,0,(Input!$D$123+Input!$D$81)*('Sale Prices'!AJ$40*(((Work!AJ44-Input!$D$101)*'Sale Prices'!$C$13*'Sale Prices'!$C$15)))) -> 0 | AK20: =-IF(Input!$D$94=1,0,(Input!$D$123+Input!$D$81)*('Sale Prices'!AK$40*(((Work!AK44-Input!$D$101)*'Sale Prices'!$C$13*'Sale Prices'!$C$15)))) -> 0 | AL20: =-IF(Input!$D$94=1,0,(Input!$D$123+Input!$D$81)*('Sale Prices'!AL$40*(((Work!AL44-Input!$D$101)*'Sale Prices'!$C$13*'Sale Prices'!$C$15)))) -> 0 | AM20: =-IF(Input!$D$94=1,0,(Input!$D$123+Input!$D$81)*('Sale Prices'!AM$40*(((Work!AM44-Input!$D$101)*'Sale Prices'!$C$13*'Sale Prices'!$C$15)))) -> 0 | AN20: =-IF(Input!$D$94=1,0,(Input!$D$123+Input!$D$81)*('Sale Prices'!AN$40*(((Work!AN44-Input!$D$101)*'Sale Prices'!$C$13*'Sale Prices'!$C$15)))) -> 0 | AO20: =-IF(Input!$D$94=1,0,(Input!$D$123+Input!$D$81)*('Sale Prices'!AO$40*(((Work!AO44-Input!$D$101)*'Sale Prices'!$C$13*'Sale Prices'!$C$15)))) -> 0 | AP20: =-IF(Input!$D$94=1,0,(Input!$D$123+Input!$D$81)*('Sale Prices'!AP$40*(((Work!AP44-Input!$D$101)*'Sale Prices'!$C$13*'Sale Prices'!$C$15)))) -> 0
A21: CO2 costs | C21: -621271.9239 | F21: ='Fuel Prices'!F48*(F8*F9*Input!$D$112/1000-'Fuel Prices'!F34*Work!F29) -> 0 | G21: ='Fuel Prices'!G48*(G8*G9*Input!$D$112/1000-'Fuel Prices'!G34*Work!G29) -> 0 | H21: ='Fuel Prices'!H48*(H8*H9*Input!$D$112/1000-'Fuel Prices'!H34*Work!H29) -> 0 | I21: ='Fuel Prices'!I48*(I8*I9*Input!$D$112/1000-'Fuel Prices'!I34*Work!I29) -> 0 | J21: ='Fuel Prices'!J48*(J8*J9*Input!$D$112/1000-'Fuel Prices'!J34*Work!J29) -> -131533.3163 | K21: ='Fuel Prices'!K48*(K8*K9*Input!$D$112/1000-'Fuel Prices'!K34*Work!K29) -> -590881.1625 | L21: ='Fuel Prices'!L48*(L8*L9*Input!$D$112/1000-'Fuel Prices'!L34*Work!L29) -> -611256.375 | M21: ='Fuel Prices'!M48*(M8*M9*Input!$D$112/1000-'Fuel Prices'!M34*Work!M29) -> -607860.5063 | N21: ='Fuel Prices'!N48*(N8*N9*Input!$D$112/1000-'Fuel Prices'!N34*Work!N29) -> -607860.5063 | O21: ='Fuel Prices'!O48*(O8*O9*Input!$D$112/1000-'Fuel Prices'!O34*Work!O29) -> -601068.7688 | P21: ='Fuel Prices'!P48*(P8*P9*Input!$D$112/1000-'Fuel Prices'!P34*Work!P29) -> -607860.5063 | Q21: ='Fuel Prices'!Q48*(Q8*Q9*Input!$D$112/1000-'Fuel Prices'!Q34*Work!Q29) -> -573901.8188 | R21: ='Fuel Prices'!R48*(R8*R9*Input!$D$112/1000-'Fuel Prices'!R34*Work!R29) -> -590881.1625 | S21: ='Fuel Prices'!S48*(S8*S9*Input!$D$112/1000-'Fuel Prices'!S34*Work!S29) -> -597672.9 | T21: ='Fuel Prices'!T48*(T8*T9*Input!$D$112/1000-'Fuel Prices'!T34*Work!T29) -> -597672.9 | U21: ='Fuel Prices'!U48*(U8*U9*Input!$D$112/1000-'Fuel Prices'!U34*Work!U29) -> -584089.425 | V21: ='Fuel Prices'!V48*(V8*V9*Input!$D$112/1000-'Fuel Prices'!V34*Work!V29) -> -607860.5063 | W21: ='Fuel Prices'!W48*(W8*W9*Input!$D$112/1000-'Fuel Prices'!W34*Work!W29) -> -618048.1125 | X21: ='Fuel Prices'!X48*(X8*X9*Input!$D$112/1000-'Fuel Prices'!X34*Work!X29) -> -635027.4563 | Y21: ='Fuel Prices'!Y48*(Y8*Y9*Input!$D$112/1000-'Fuel Prices'!Y34*Work!Y29) -> -655402.6688 | Z21: ='Fuel Prices'!Z48*(Z8*Z9*Input!$D$112/1000-'Fuel Prices'!Z34*Work!Z29) -> -655402.6688 | AA21: ='Fuel Prices'!AA48*(AA8*AA9*Input!$D$112/1000-'Fuel Prices'!AA34*Work!AA29) -> -655402.6688 | AB21: ='Fuel Prices'!AB48*(AB8*AB9*Input!$D$112/1000-'Fuel Prices'!AB34*Work!AB29) -> -679173.75 | AC21: ='Fuel Prices'!AC48*(AC8*AC9*Input!$D$112/1000-'Fuel Prices'!AC34*Work!AC29) -> -689361.3563 | AD21: ='Fuel Prices'!AD48*(AD8*AD9*Input!$D$112/1000-'Fuel Prices'!AD34*Work!AD29) -> -719924.175 | AE21: ='Fuel Prices'!AE48*(AE8*AE9*Input!$D$112/1000-'Fuel Prices'!AE34*Work!AE29) -> -726715.9125 | AF21: ='Fuel Prices'!AF48*(AF8*AF9*Input!$D$112/1000-'Fuel Prices'!AF34*Work!AF29) -> -719924.175 | AG21: ='Fuel Prices'!AG48*(AG8*AG9*Input!$D$112/1000-'Fuel Prices'!AG34*Work!AG29) -> -730111.7813 | AH21: ='Fuel Prices'!AH48*(AH8*AH9*Input!$D$112/1000-'Fuel Prices'!AH34*Work!AH29) -> -736903.5188 | AI21: ='Fuel Prices'!AI48*(AI8*AI9*Input!$D$112/1000-'Fuel Prices'!AI34*Work!AI29) -> -359962.0875 | AJ21: ='Fuel Prices'!AJ48*(AJ8*AJ9*Input!$D$112/1000-'Fuel Prices'!AJ34*Work!AJ29) -> 0 | AK21: ='Fuel Prices'!AK48*(AK8*AK9*Input!$D$112/1000-'Fuel Prices'!AK34*Work!AK29) -> 0 | AL21: ='Fuel Prices'!AL48*(AL8*AL9*Input!$D$112/1000-'Fuel Prices'!AL34*Work!AL29) -> 0 | AM21: ='Fuel Prices'!AM48*(AM8*AM9*Input!$D$112/1000-'Fuel Prices'!AM34*Work!AM29) -> 0 | AN21: ='Fuel Prices'!AN48*(AN8*AN9*Input!$D$112/1000-'Fuel Prices'!AN34*Work!AN29) -> 0 | AO21: ='Fuel Prices'!AO48*(AO8*AO9*Input!$D$112/1000-'Fuel Prices'!AO34*Work!AO29) -> 0 | AP21: ='Fuel Prices'!AP48*(AP8*AP9*Input!$D$112/1000-'Fuel Prices'!AP34*Work!AP29) -> 0
A22: Pollutant costs | C22: 5855.629708 | F22: =F8*F9*(Input!$D$110*Input!$D$73+Input!$D$111*Input!$D$74)*'Static Data'!$B$46/1000000 -> 0 | G22: =G8*G9*(Input!$D$110*Input!$D$73+Input!$D$111*Input!$D$74)*'Static Data'!$B$46/1000000 -> 0 | H22: =H8*H9*(Input!$D$110*Input!$D$73+Input!$D$111*Input!$D$74)*'Static Data'!$B$46/1000000 -> 0 | I22: =I8*I9*(Input!$D$110*Input!$D$73+Input!$D$111*Input!$D$74)*'Static Data'!$B$46/1000000 -> 0 | J22: =J8*J9*(Input!$D$110*Input!$D$73+Input!$D$111*Input!$D$74)*'Static Data'!$B$46/1000000 -> 3027.576829 | K22: =K8*K9*(Input!$D$110*Input!$D$73+Input!$D$111*Input!$D$74)*'Static Data'!$B$46/1000000 -> 5973.465244 | L22: =L8*L9*(Input!$D$110*Input!$D$73+Input!$D$111*Input!$D$74)*'Static Data'!$B$46/1000000 -> 5973.465244 | M22: =M8*M9*(Input!$D$110*Input!$D$73+Input!$D$111*Input!$D$74)*'Static Data'!$B$46/1000000 -> 5973.465244 | N22: =N8*N9*(Input!$D$110*Input!$D$73+Input!$D$111*Input!$D$74)*'Static Data'!$B$46/1000000 -> 5973.465244 | O22: =O8*O9*(Input!$D$110*Input!$D$73+Input!$D$111*Input!$D$74)*'Static Data'!$B$46/1000000 -> 5973.465244 | P22: =P8*P9*(Input!$D$110*Input!$D$73+Input!$D$111*Input!$D$74)*'Static Data'!$B$46/1000000 -> 5973.465244 | Q22: =Q8*Q9*(Input!$D$110*Input!$D$73+Input!$D$111*Input!$D$74)*'Static Data'!$B$46/1000000 -> 5973.465244 | R22: =R8*R9*(Input!$D$110*Input!$D$73+Input!$D$111*Input!$D$74)*'Static Data'!$B$46/1000000 -> 5973.465244 | S22: =S8*S9*(Input!$D$110*Input!$D$73+Input!$D$111*Input!$D$74)*'Static Data'!$B$46/1000000 -> 5973.465244 | T22: =T8*T9*(Input!$D$110*Input!$D$73+Input!$D$111*Input!$D$74)*'Static Data'!$B$46/1000000 -> 5973.465244 | U22: =U8*U9*(Input!$D$110*Input!$D$73+Input!$D$111*Input!$D$74)*'Static Data'!$B$46/1000000 -> 5973.465244 | V22: =V8*V9*(Input!$D$110*Input!$D$73+Input!$D$111*Input!$D$74)*'Static Data'!$B$46/1000000 -> 5973.465244 | W22: =W8*W9*(Input!$D$110*Input!$D$73+Input!$D$111*Input!$D$74)*'Static Data'!$B$46/1000000 -> 5973.465244 | X22: =X8*X9*(Input!$D$110*Input!$D$73+Input!$D$111*Input!$D$74)*'Static Data'!$B$46/1000000 -> 5973.465244 | Y22: =Y8*Y9*(Input!$D$110*Input!$D$73+Input!$D$111*Input!$D$74)*'Static Data'!$B$46/1000000 -> 5973.465244 | Z22: =Z8*Z9*(Input!$D$110*Input!$D$73+Input!$D$111*Input!$D$74)*'Static Data'!$B$46/1000000 -> 5973.465244 | AA22: =AA8*AA9*(Input!$D$110*Input!$D$73+Input!$D$111*Input!$D$74)*'Static Data'!$B$46/1000000 -> 5973.465244 | AB22: =AB8*AB9*(Input!$D$110*Input!$D$73+Input!$D$111*Input!$D$74)*'Static Data'!$B$46/1000000 -> 5973.465244 | AC22: =AC8*AC9*(Input!$D$110*Input!$D$73+Input!$D$111*Input!$D$74)*'Static Data'!$B$46/1000000 -> 5973.465244 | AD22: =AD8*AD9*(Input!$D$110*Input!$D$73+Input!$D$111*Input!$D$74)*'Static Data'!$B$46/1000000 -> 5973.465244 | AE22: =AE8*AE9*(Input!$D$110*Input!$D$73+Input!$D$111*Input!$D$74)*'Static Data'!$B$46/1000000 -> 5973.465244 | AF22: =AF8*AF9*(Input!$D$110*Input!$D$73+Input!$D$111*Input!$D$74)*'Static Data'!$B$46/1000000 -> 5973.465244 | AG22: =AG8*AG9*(Input!$D$110*Input!$D$73+Input!$D$111*Input!$D$74)*'Static Data'!$B$46/1000000 -> 5973.465244 | AH22: =AH8*AH9*(Input!$D$110*Input!$D$73+Input!$D$111*Input!$D$74)*'Static Data'!$B$46/1000000 -> 5973.465244 | AI22: =AI8*AI9*(Input!$D$110*Input!$D$73+Input!$D$111*Input!$D$74)*'Static Data'!$B$46/1000000 -> 2986.732622 | AJ22: =AJ8*AJ9*(Input!$D$110*Input!$D$73+Input!$D$111*Input!$D$74)*'Static Data'!$B$46/1000000 -> 0 | AK22: =AK8*AK9*(Input!$D$110*Input!$D$73+Input!$D$111*Input!$D$74)*'Static Data'!$B$46/1000000 -> 0 | AL22: =AL8*AL9*(Input!$D$110*Input!$D$73+Input!$D$111*Input!$D$74)*'Static Data'!$B$46/1000000 -> 0 | AM22: =AM8*AM9*(Input!$D$110*Input!$D$73+Input!$D$111*Input!$D$74)*'Static Data'!$B$46/1000000 -> 0 | AN22: =AN8*AN9*(Input!$D$110*Input!$D$73+Input!$D$111*Input!$D$74)*'Static Data'!$B$46/1000000 -> 0 | AO22: =AO8*AO9*(Input!$D$110*Input!$D$73+Input!$D$111*Input!$D$74)*'Static Data'!$B$46/1000000 -> 0 | AP22: =AP8*AP9*(Input!$D$110*Input!$D$73+Input!$D$111*Input!$D$74)*'Static Data'!$B$46/1000000 -> 0
A23: Gas Start Up Costs | C23: 6213068.592 | F23: =(INDEX('Fuel Prices'!$F$20:$AP$20,1,Operations!F5)*Input!$D$104*Input!$D$107+INDEX('Fuel Prices'!$F$20:$AP$20,1,Operations!F5)*Input!$D$105*Input!$D$108)*Work!F29/Work!F43 -> 0 | G23: =(INDEX('Fuel Prices'!$F$20:$AP$20,1,Operations!G5)*Input!$D$104*Input!$D$107+INDEX('Fuel Prices'!$F$20:$AP$20,1,Operations!G5)*Input!$D$105*Input!$D$108)*Work!G29/Work!G43 -> 0 | H23: =(INDEX('Fuel Prices'!$F$20:$AP$20,1,Operations!H5)*Input!$D$104*Input!$D$107+INDEX('Fuel Prices'!$F$20:$AP$20,1,Operations!H5)*Input!$D$105*Input!$D$108)*Work!H29/Work!H43 -> 0 | I23: =(INDEX('Fuel Prices'!$F$20:$AP$20,1,Operations!I5)*Input!$D$104*Input!$D$107+INDEX('Fuel Prices'!$F$20:$AP$20,1,Operations!I5)*Input!$D$105*Input!$D$108)*Work!I29/Work!I43 -> 0 | J23: =(INDEX('Fuel Prices'!$F$20:$AP$20,1,Operations!J5)*Input!$D$104*Input!$D$107+INDEX('Fuel Prices'!$F$20:$AP$20,1,Operations!J5)*Input!$D$105*Input!$D$108)*Work!J29/Work!J43 -> 3144911.798 | K23: =(INDEX('Fuel Prices'!$F$20:$AP$20,1,Operations!K5)*Input!$D$104*Input!$D$107+INDEX('Fuel Prices'!$F$20:$AP$20,1,Operations!K5)*Input!$D$105*Input!$D$108)*Work!K29/Work!K43 -> 6340908.458 | L23: =(INDEX('Fuel Prices'!$F$20:$AP$20,1,Operations!L5)*Input!$D$104*Input!$D$107+INDEX('Fuel Prices'!$F$20:$AP$20,1,Operations!L5)*Input!$D$105*Input!$D$108)*Work!L29/Work!L43 -> 6340908.458 | M23: =(INDEX('Fuel Prices'!$F$20:$AP$20,1,Operations!M5)*Input!$D$104*Input!$D$107+INDEX('Fuel Prices'!$F$20:$AP$20,1,Operations!M5)*Input!$D$105*Input!$D$108)*Work!M29/Work!M43 -> 6340908.458 | N23: =(INDEX('Fuel Prices'!$F$20:$AP$20,1,Operations!N5)*Input!$D$104*Input!$D$107+INDEX('Fuel Prices'!$F$20:$AP$20,1,Operations!N5)*Input!$D$105*Input!$D$108)*Work!N29/Work!N43 -> 6340908.458 | O23: =(INDEX('Fuel Prices'!$F$20:$AP$20,1,Operations!O5)*Input!$D$104*Input!$D$107+INDEX('Fuel Prices'!$F$20:$AP$20,1,Operations!O5)*Input!$D$105*Input!$D$108)*Work!O29/Work!O43 -> 6340908.458 | P23: =(INDEX('Fuel Prices'!$F$20:$AP$20,1,Operations!P5)*Input!$D$104*Input!$D$107+INDEX('Fuel Prices'!$F$20:$AP$20,1,Operations!P5)*Input!$D$105*Input!$D$108)*Work!P29/Work!P43 -> 6340908.458 | Q23: =(INDEX('Fuel Prices'!$F$20:$AP$20,1,Operations!Q5)*Input!$D$104*Input!$D$107+INDEX('Fuel Prices'!$F$20:$AP$20,1,Operations!Q5)*Input!$D$105*Input!$D$108)*Work!Q29/Work!Q43 -> 6340908.458 | R23: =(INDEX('Fuel Prices'!$F$20:$AP$20,1,Operations!R5)*Input!$D$104*Input!$D$107+INDEX('Fuel Prices'!$F$20:$AP$20,1,Operations!R5)*Input!$D$105*Input!$D$108)*Work!R29/Work!R43 -> 6340908.458 | S23: =(INDEX('Fuel Prices'!$F$20:$AP$20,1,Operations!S5)*Input!$D$104*Input!$D$107+INDEX('Fuel Prices'!$F$20:$AP$20,1,Operations!S5)*Input!$D$105*Input!$D$108)*Work!S29/Work!S43 -> 6340908.458 | T23: =(INDEX('Fuel Prices'!$F$20:$AP$20,1,Operations!T5)*Input!$D$104*Input!$D$107+INDEX('Fuel Prices'!$F$20:$AP$20,1,Operations!T5)*Input!$D$105*Input!$D$108)*Work!T29/Work!T43 -> 6340908.458 | U23: =(INDEX('Fuel Prices'!$F$20:$AP$20,1,Operations!U5)*Input!$D$104*Input!$D$107+INDEX('Fuel Prices'!$F$20:$AP$20,1,Operations!U5)*Input!$D$105*Input!$D$108)*Work!U29/Work!U43 -> 6340908.458 | V23: =(INDEX('Fuel Prices'!$F$20:$AP$20,1,Operations!V5)*Input!$D$104*Input!$D$107+INDEX('Fuel Prices'!$F$20:$AP$20,1,Operations!V5)*Input!$D$105*Input!$D$108)*Work!V29/Work!V43 -> 6340908.458 | W23: =(INDEX('Fuel Prices'!$F$20:$AP$20,1,Operations!W5)*Input!$D$104*Input!$D$107+INDEX('Fuel Prices'!$F$20:$AP$20,1,Operations!W5)*Input!$D$105*Input!$D$108)*Work!W29/Work!W43 -> 6340908.458 | X23: =(INDEX('Fuel Prices'!$F$20:$AP$20,1,Operations!X5)*Input!$D$104*Input!$D$107+INDEX('Fuel Prices'!$F$20:$AP$20,1,Operations!X5)*Input!$D$105*Input!$D$108)*Work!X29/Work!X43 -> 6340908.458 | Y23: =(INDEX('Fuel Prices'!$F$20:$AP$20,1,Operations!Y5)*Input!$D$104*Input!$D$107+INDEX('Fuel Prices'!$F$20:$AP$20,1,Operations!Y5)*Input!$D$105*Input!$D$108)*Work!Y29/Work!Y43 -> 6340908.458 | Z23: =(INDEX('Fuel Prices'!$F$20:$AP$20,1,Operations!Z5)*Input!$D$104*Input!$D$107+INDEX('Fuel Prices'!$F$20:$AP$20,1,Operations!Z5)*Input!$D$105*Input!$D$108)*Work!Z29/Work!Z43 -> 6340908.458 | AA23: =(INDEX('Fuel Prices'!$F$20:$AP$20,1,Operations!AA5)*Input!$D$104*Input!$D$107+INDEX('Fuel Prices'!$F$20:$AP$20,1,Operations!AA5)*Input!$D$105*Input!$D$108)*Work!AA29/Work!AA43 -> 6340908.458 | AB23: =(INDEX('Fuel Prices'!$F$20:$AP$20,1,Operations!AB5)*Input!$D$104*Input!$D$107+INDEX('Fuel Prices'!$F$20:$AP$20,1,Operations!AB5)*Input!$D$105*Input!$D$108)*Work!AB29/Work!AB43 -> 6340908.458 | AC23: =(INDEX('Fuel Prices'!$F$20:$AP$20,1,Operations!AC5)*Input!$D$104*Input!$D$107+INDEX('Fuel Prices'!$F$20:$AP$20,1,Operations!AC5)*Input!$D$105*Input!$D$108)*Work!AC29/Work!AC43 -> 6340908.458 | AD23: =(INDEX('Fuel Prices'!$F$20:$AP$20,1,Operations!AD5)*Input!$D$104*Input!$D$107+INDEX('Fuel Prices'!$F$20:$AP$20,1,Operations!AD5)*Input!$D$105*Input!$D$108)*Work!AD29/Work!AD43 -> 6340908.458 | AE23: =(INDEX('Fuel Prices'!$F$20:$AP$20,1,Operations!AE5)*Input!$D$104*Input!$D$107+INDEX('Fuel Prices'!$F$20:$AP$20,1,Operations!AE5)*Input!$D$105*Input!$D$108)*Work!AE29/Work!AE43 -> 6340908.458 | AF23: =(INDEX('Fuel Prices'!$F$20:$AP$20,1,Operations!AF5)*Input!$D$104*Input!$D$107+INDEX('Fuel Prices'!$F$20:$AP$20,1,Operations!AF5)*Input!$D$105*Input!$D$108)*Work!AF29/Work!AF43 -> 6340908.458 | AG23: =(INDEX('Fuel Prices'!$F$20:$AP$20,1,Operations!AG5)*Input!$D$104*Input!$D$107+INDEX('Fuel Prices'!$F$20:$AP$20,1,Operations!AG5)*Input!$D$105*Input!$D$108)*Work!AG29/Work!AG43 -> 6340908.458 | AH23: =(INDEX('Fuel Prices'!$F$20:$AP$20,1,Operations!AH5)*Input!$D$104*Input!$D$107+INDEX('Fuel Prices'!$F$20:$AP$20,1,Operations!AH5)*Input!$D$105*Input!$D$108)*Work!AH29/Work!AH43 -> 6340908.458 | AI23: =(INDEX('Fuel Prices'!$F$20:$AP$20,1,Operations!AI5)*Input!$D$104*Input!$D$107+INDEX('Fuel Prices'!$F$20:$AP$20,1,Operations!AI5)*Input!$D$105*Input!$D$108)*Work!AI29/Work!AI43 -> 3170454.229 | AJ23: =(INDEX('Fuel Prices'!$F$20:$AP$20,1,Operations!AJ5)*Input!$D$104*Input!$D$107+INDEX('Fuel Prices'!$F$20:$AP$20,1,Operations!AJ5)*Input!$D$105*Input!$D$108)*Work!AJ29/Work!AJ43 -> 0 | AK23: =(INDEX('Fuel Prices'!$F$20:$AP$20,1,Operations!AK5)*Input!$D$104*Input!$D$107+INDEX('Fuel Prices'!$F$20:$AP$20,1,Operations!AK5)*Input!$D$105*Input!$D$108)*Work!AK29/Work!AK43 -> 0 | AL23: =(INDEX('Fuel Prices'!$F$20:$AP$20,1,Operations!AL5)*Input!$D$104*Input!$D$107+INDEX('Fuel Prices'!$F$20:$AP$20,1,Operations!AL5)*Input!$D$105*Input!$D$108)*Work!AL29/Work!AL43 -> 0 | AM23: =(INDEX('Fuel Prices'!$F$20:$AP$20,1,Operations!AM5)*Input!$D$104*Input!$D$107+INDEX('Fuel Prices'!$F$20:$AP$20,1,Operations!AM5)*Input!$D$105*Input!$D$108)*Work!AM29/Work!AM43 -> 0 | AN23: =(INDEX('Fuel Prices'!$F$20:$AP$20,1,Operations!AN5)*Input!$D$104*Input!$D$107+INDEX('Fuel Prices'!$F$20:$AP$20,1,Operations!AN5)*Input!$D$105*Input!$D$108)*Work!AN29/Work!AN43 -> 0 | AO23: =(INDEX('Fuel Prices'!$F$20:$AP$20,1,Operations!AO5)*Input!$D$104*Input!$D$107+INDEX('Fuel Prices'!$F$20:$AP$20,1,Operations!AO5)*Input!$D$105*Input!$D$108)*Work!AO29/Work!AO43 -> 0 | AP23: =(INDEX('Fuel Prices'!$F$20:$AP$20,1,Operations!AP5)*Input!$D$104*Input!$D$107+INDEX('Fuel Prices'!$F$20:$AP$20,1,Operations!AP5)*Input!$D$105*Input!$D$108)*Work!AP29/Work!AP43 -> 0
A24: Total Variable Cost | C24: =SUM(F24:AQ24) -> 3589218973 | F24: =SUM(F18:F23) -> 0 | G24: 0 | H24: 0 | I24: 0 | J24: 72242380.54 | K24: 143454511.6 | L24: 143445350.8 | M24: 143460129.3 | N24: 143471682.6 | O24: 143490201 | P24: 143495311.8 | Q24: 143541351.6 | R24: 143536634.6 | S24: 143542289.1 | T24: 143554922 | U24: 143581327.9 | V24: 143570571.6 | W24: 143573594 | X24: 143570022.8 | Y24: 143563256.8 | Z24: 143577070.2 | AA24: 143591090.8 | AB24: 143581550.6 | AC24: 143585807.4 | AD24: 143569905.6 | AE24: 143577994.8 | AF24: 143599890.8 | AG24: 143605033.9 | AH24: 143613802.8 | AI24: 71823288.14 | AJ24: 0 | AK24: 0 | AL24: 0 | AM24: 0 | AN24: 0 | AO24: 0 | AP24: 0
A26: Unavailability Cost(Electricity-Gas savings) | C26: =AVERAGE(J26:AH26) -> 3221669.525 | F26: =F10*Input!$D$126*F8*F9*Input!$D$125-(INDEX('Fuel Prices'!$F$20:$AP$20,1,Operations!F5)*F8*Input!$D$125*F9/Work!F43) -> 0 | G26: =G10*Input!$D$126*G8*G9*Input!$D$125-(INDEX('Fuel Prices'!$F$20:$AP$20,1,Operations!G5)*G8*Input!$D$125*G9/Work!G43) -> 0 | H26: =H10*Input!$D$126*H8*H9*Input!$D$125-(INDEX('Fuel Prices'!$F$20:$AP$20,1,Operations!H5)*H8*Input!$D$125*H9/Work!H43) -> 0 | I26: =I10*Input!$D$126*I8*I9*Input!$D$125-(INDEX('Fuel Prices'!$F$20:$AP$20,1,Operations!I5)*I8*Input!$D$125*I9/Work!I43) -> 0 | J26: =J10*Input!$D$126*J8*J9*Input!$D$125-(INDEX('Fuel Prices'!$F$20:$AP$20,1,Operations!J5)*J8*Input!$D$125*J9/Work!J43) -> 1676675.014 | K26: =K10*Input!$D$126*K8*K9*Input!$D$125-(INDEX('Fuel Prices'!$F$20:$AP$20,1,Operations!K5)*K8*Input!$D$125*K9/Work!K43) -> 3286044.296 | L26: =L10*Input!$D$126*L8*L9*Input!$D$125-(INDEX('Fuel Prices'!$F$20:$AP$20,1,Operations!L5)*L8*Input!$D$125*L9/Work!L43) -> 3286044.296 | M26: =M10*Input!$D$126*M8*M9*Input!$D$125-(INDEX('Fuel Prices'!$F$20:$AP$20,1,Operations!M5)*M8*Input!$D$125*M9/Work!M43) -> 3286044.296 | N26: =N10*Input!$D$126*N8*N9*Input!$D$125-(INDEX('Fuel Prices'!$F$20:$AP$20,1,Operations!N5)*N8*Input!$D$125*N9/Work!N43) -> 3286044.296 | O26: =O10*Input!$D$126*O8*O9*Input!$D$125-(INDEX('Fuel Prices'!$F$20:$AP$20,1,Operations!O5)*O8*Input!$D$125*O9/Work!O43) -> 3286044.296 | P26: =P10*Input!$D$126*P8*P9*Input!$D$125-(INDEX('Fuel Prices'!$F$20:$AP$20,1,Operations!P5)*P8*Input!$D$125*P9/Work!P43) -> 3286044.296 | Q26: =Q10*Input!$D$126*Q8*Q9*Input!$D$125-(INDEX('Fuel Prices'!$F$20:$AP$20,1,Operations!Q5)*Q8*Input!$D$125*Q9/Work!Q43) -> 3286044.296 | R26: =R10*Input!$D$126*R8*R9*Input!$D$125-(INDEX('Fuel Prices'!$F$20:$AP$20,1,Operations!R5)*R8*Input!$D$125*R9/Work!R43) -> 3286044.296 | S26: =S10*Input!$D$126*S8*S9*Input!$D$125-(INDEX('Fuel Prices'!$F$20:$AP$20,1,Operations!S5)*S8*Input!$D$125*S9/Work!S43) -> 3286044.296 | T26: =T10*Input!$D$126*T8*T9*Input!$D$125-(INDEX('Fuel Prices'!$F$20:$AP$20,1,Operations!T5)*T8*Input!$D$125*T9/Work!T43) -> 3286044.296 | U26: =U10*Input!$D$126*U8*U9*Input!$D$125-(INDEX('Fuel Prices'!$F$20:$AP$20,1,Operations!U5)*U8*Input!$D$125*U9/Work!U43) -> 3286044.296 | V26: =V10*Input!$D$126*V8*V9*Input!$D$125-(INDEX('Fuel Prices'!$F$20:$AP$20,1,Operations!V5)*V8*Input!$D$125*V9/Work!V43) -> 3286044.296 | W26: =W10*Input!$D$126*W8*W9*Input!$D$125-(INDEX('Fuel Prices'!$F$20:$AP$20,1,Operations!W5)*W8*Input!$D$125*W9/Work!W43) -> 3286044.296 | X26: =X10*Input!$D$126*X8*X9*Input!$D$125-(INDEX('Fuel Prices'!$F$20:$AP$20,1,Operations!X5)*X8*Input!$D$125*X9/Work!X43) -> 3286044.296 | Y26: =Y10*Input!$D$126*Y8*Y9*Input!$D$125-(INDEX('Fuel Prices'!$F$20:$AP$20,1,Operations!Y5)*Y8*Input!$D$125*Y9/Work!Y43) -> 3286044.296 | Z26: =Z10*Input!$D$126*Z8*Z9*Input!$D$125-(INDEX('Fuel Prices'!$F$20:$AP$20,1,Operations!Z5)*Z8*Input!$D$125*Z9/Work!Z43) -> 3286044.296 | AA26: =AA10*Input!$D$126*AA8*AA9*Input!$D$125-(INDEX('Fuel Prices'!$F$20:$AP$20,1,Operations!AA5)*AA8*Input!$D$125*AA9/Work!AA43) -> 3286044.296 | AB26: =AB10*Input!$D$126*AB8*AB9*Input!$D$125-(INDEX('Fuel Prices'!$F$20:$AP$20,1,Operations!AB5)*AB8*Input!$D$125*AB9/Work!AB43) -> 3286044.296 | AC26: =AC10*Input!$D$126*AC8*AC9*Input!$D$125-(INDEX('Fuel Prices'!$F$20:$AP$20,1,Operations!AC5)*AC8*Input!$D$125*AC9/Work!AC43) -> 3286044.296 | AD26: =AD10*Input!$D$126*AD8*AD9*Input!$D$125-(INDEX('Fuel Prices'!$F$20:$AP$20,1,Operations!AD5)*AD8*Input!$D$125*AD9/Work!AD43) -> 3286044.296 | AE26: =AE10*Input!$D$126*AE8*AE9*Input!$D$125-(INDEX('Fuel Prices'!$F$20:$AP$20,1,Operations!AE5)*AE8*Input!$D$125*AE9/Work!AE43) -> 3286044.296 | AF26: =AF10*Input!$D$126*AF8*AF9*Input!$D$125-(INDEX('Fuel Prices'!$F$20:$AP$20,1,Operations!AF5)*AF8*Input!$D$125*AF9/Work!AF43) -> 3286044.296 | AG26: =AG10*Input!$D$126*AG8*AG9*Input!$D$125-(INDEX('Fuel Prices'!$F$20:$AP$20,1,Operations!AG5)*AG8*Input!$D$125*AG9/Work!AG43) -> 3286044.296 | AH26: =AH10*Input!$D$126*AH8*AH9*Input!$D$125-(INDEX('Fuel Prices'!$F$20:$AP$20,1,Operations!AH5)*AH8*Input!$D$125*AH9/Work!AH43) -> 3286044.296 | AI26: =AI10*Input!$D$126*AI8*AI9*Input!$D$125-(INDEX('Fuel Prices'!$F$20:$AP$20,1,Operations!AI5)*AI8*Input!$D$125*AI9/Work!AI43) -> 136756.6526 | AJ26: =AJ10*Input!$D$126*AJ8*AJ9*Input!$D$125-(INDEX('Fuel Prices'!$F$20:$AP$20,1,Operations!AJ5)*AJ8*Input!$D$125*AJ9/Work!AJ43) -> 0 | AK26: =AK10*Input!$D$126*AK8*AK9*Input!$D$125-(INDEX('Fuel Prices'!$F$20:$AP$20,1,Operations!AK5)*AK8*Input!$D$125*AK9/Work!AK43) -> 0 | AL26: =AL10*Input!$D$126*AL8*AL9*Input!$D$125-(INDEX('Fuel Prices'!$F$20:$AP$20,1,Operations!AL5)*AL8*Input!$D$125*AL9/Work!AL43) -> 0 | AM26: =AM10*Input!$D$126*AM8*AM9*Input!$D$125-(INDEX('Fuel Prices'!$F$20:$AP$20,1,Operations!AM5)*AM8*Input!$D$125*AM9/Work!AM43) -> 0 | AN26: =AN10*Input!$D$126*AN8*AN9*Input!$D$125-(INDEX('Fuel Prices'!$F$20:$AP$20,1,Operations!AN5)*AN8*Input!$D$125*AN9/Work!AN43) -> 0 | AO26: =AO10*Input!$D$126*AO8*AO9*Input!$D$125-(INDEX('Fuel Prices'!$F$20:$AP$20,1,Operations!AO5)*AO8*Input!$D$125*AO9/Work!AO43) -> 0 | AP26: =AP10*Input!$D$126*AP8*AP9*Input!$D$125-(INDEX('Fuel Prices'!$F$20:$AP$20,1,Operations!AP5)*AP8*Input!$D$125*AP9/Work!AP43) -> 0
A28: GROSS MARGIN | H28: =+H13-H24-H26 -> 0 | I28: 0 | J28: 48230064.28 | K28: 94261923.37 | L28: 94271084.18 | M28: 94256305.7 | N28: 94244752.35 | O28: 94226233.96 | P28: 94221123.14 | Q28: 94175083.36 | R28: 94179800.4 | S28: 94174145.89 | T28: 94161512.95 | U28: 94135107.05 | V28: 94145863.36 | W28: 94142840.98 | X28: 94146412.19 | Y28: 94153178.14 | Z28: 94139364.74 | AA28: 94125344.14 | AB28: 94134884.31 | AC28: 94130627.54 | AD28: 94146529.32 | AE28: 94138440.11 | AF28: 94116544.2 | AG28: 94111401.07 | AH28: 104988019.6 | AI28: 53983888.58 | AJ28: 0 | AK28: 0 | AL28: 0 | AM28: 0 | AN28: 0 | AO28: 0 | AP28: 0
A30: Fixed Cost
A31: Staff | C31: =AVERAGE(J31:AG31) -> 4132957.254 | F31: =Input!$D$121*Input!$D$120*Work!F16*Work!F29 -> 0 | G31: =Input!$D$121*Input!$D$120*Work!G16*Work!G29 -> 0 | H31: =Input!$D$121*Input!$D$120*Work!H16*Work!H29 -> 0 | I31: =Input!$D$121*Input!$D$120*Work!I16*Work!I29 -> 0 | J31: =Input!$D$121*Input!$D$120*Work!J16*Work!J29 -> 1657500 | K31: =Input!$D$121*Input!$D$120*Work!K16*Work!K29 -> 3381300 | L31: =Input!$D$121*Input!$D$120*Work!L16*Work!L29 -> 3448926 | M31: =Input!$D$121*Input!$D$120*Work!M16*Work!M29 -> 3517904.52 | N31: =Input!$D$121*Input!$D$120*Work!N16*Work!N29 -> 3588262.61 | O31: =Input!$D$121*Input!$D$120*Work!O16*Work!O29 -> 3660027.863 | P31: =Input!$D$121*Input!$D$120*Work!P16*Work!P29 -> 3733228.42 | Q31: =Input!$D$121*Input!$D$120*Work!Q16*Work!Q29 -> 3807892.988 | R31: =Input!$D$121*Input!$D$120*Work!R16*Work!R29 -> 3884050.848 | S31: =Input!$D$121*Input!$D$120*Work!S16*Work!S29 -> 3961731.865 | T31: =Input!$D$121*Input!$D$120*Work!T16*Work!T29 -> 4040966.502 | U31: =Input!$D$121*Input!$D$120*Work!U16*Work!U29 -> 4121785.832 | V31: =Input!$D$121*Input!$D$120*Work!V16*Work!V29 -> 4204221.549 | W31: =Input!$D$121*Input!$D$120*Work!W16*Work!W29 -> 4288305.98 | X31: =Input!$D$121*Input!$D$120*Work!X16*Work!X29 -> 4374072.1 | Y31: =Input!$D$121*Input!$D$120*Work!Y16*Work!Y29 -> 4461553.542 | Z31: =Input!$D$121*Input!$D$120*Work!Z16*Work!Z29 -> 4550784.612 | AA31: =Input!$D$121*Input!$D$120*Work!AA16*Work!AA29 -> 4641800.305 | AB31: =Input!$D$121*Input!$D$120*Work!AB16*Work!AB29 -> 4734636.311 | AC31: =Input!$D$121*Input!$D$120*Work!AC16*Work!AC29 -> 4829329.037 | AD31: =Input!$D$121*Input!$D$120*Work!AD16*Work!AD29 -> 4925915.618 | AE31: =Input!$D$121*Input!$D$120*Work!AE16*Work!AE29 -> 5024433.93 | AF31: =Input!$D$121*Input!$D$120*Work!AF16*Work!AF29 -> 5124922.609 | AG31: =Input!$D$121*Input!$D$120*Work!AG16*Work!AG29 -> 5227421.061 | AH31: =Input!$D$121*Input!$D$120*Work!AH16*Work!AH29 -> 5331969.482 | AI31: =Input!$D$121*Input!$D$120*Work!AI16*Work!AI29 -> 2719304.436 | AJ31: =Input!$D$121*Input!$D$120*Work!AJ16*Work!AJ29 -> 0 | AK31: =Input!$D$121*Input!$D$120*Work!AK16*Work!AK29 -> 0 | AL31: =Input!$D$121*Input!$D$120*Work!AL16*Work!AL29 -> 0 | AM31: =Input!$D$121*Input!$D$120*Work!AM16*Work!AM29 -> 0 | AN31: =Input!$D$121*Input!$D$120*Work!AN16*Work!AN29 -> 0 | AO31: =Input!$D$121*Input!$D$120*Work!AO16*Work!AO29 -> 0 | AP31: =Input!$D$121*Input!$D$120*Work!AP16*Work!AP29 -> 0
A32: Gas Transport Service | C32: =AVERAGE(J32:AH32) -> 2925300 | F32: =Input!$D$84*Work!F29 -> 0 | G32: =Input!$D$84*Work!G29 -> 0 | H32: =Input!$D$84*Work!H29 -> 0 | I32: =Input!$D$84*Work!I29 -> 0 | J32: =Input!$D$84*Work!J29 -> 1492500 | K32: =Input!$D$84*Work!K29 -> 2985000 | L32: =Input!$D$84*Work!L29 -> 2985000 | M32: =Input!$D$84*Work!M29 -> 2985000 | N32: =Input!$D$84*Work!N29 -> 2985000 | O32: =Input!$D$84*Work!O29 -> 2985000 | P32: =Input!$D$84*Work!P29 -> 2985000 | Q32: =Input!$D$84*Work!Q29 -> 2985000 | R32: =Input!$D$84*Work!R29 -> 2985000 | S32: =Input!$D$84*Work!S29 -> 2985000 | T32: =Input!$D$84*Work!T29 -> 2985000 | U32: =Input!$D$84*Work!U29 -> 2985000 | V32: =Input!$D$84*Work!V29 -> 2985000 | W32: =Input!$D$84*Work!W29 -> 2985000 | X32: =Input!$D$84*Work!X29 -> 2985000 | Y32: =Input!$D$84*Work!Y29 -> 2985000 | Z32: =Input!$D$84*Work!Z29 -> 2985000 | AA32: =Input!$D$84*Work!AA29 -> 2985000 | AB32: =Input!$D$84*Work!AB29 -> 2985000 | AC32: =Input!$D$84*Work!AC29 -> 2985000 | AD32: =Input!$D$84*Work!AD29 -> 2985000 | AE32: =Input!$D$84*Work!AE29 -> 2985000 | AF32: =Input!$D$84*Work!AF29 -> 2985000 | AG32: =Input!$D$84*Work!AG29 -> 2985000 | AH32: =Input!$D$84*Work!AH29 -> 2985000 | AI32: =Input!$D$84*Work!AI29 -> 1492500 | AJ32: =Input!$D$84*Work!AJ29 -> 0 | AK32: =Input!$D$84*Work!AK29 -> 0 | AL32: =Input!$D$84*Work!AL29 -> 0 | AM32: =Input!$D$84*Work!AM29 -> 0 | AN32: =Input!$D$84*Work!AN29 -> 0 | AO32: =Input!$D$84*Work!AO29 -> 0 | AP32: =Input!$D$84*Work!AP29 -> 0
A33: Gas Transport Maintenance | C33: =SUM(I33:AH33)/Input!D16 -> 528861.9 | F33: =Input!$D$116*Work!F29 -> 0 | G33: =Input!$D$116*Work!G29 -> 0 | H33: =Input!$D$116*Work!H29 -> 0 | I33: =Input!$D$116*Work!I29 -> 0 | J33: =Input!$D$116*Work!J29 -> 269827.5 | K33: =Input!$D$116*Work!K29 -> 539655 | L33: =Input!$D$116*Work!L29 -> 539655 | M33: =Input!$D$116*Work!M29 -> 539655 | N33: =Input!$D$116*Work!N29 -> 539655 | O33: =Input!$D$116*Work!O29 -> 539655 | P33: =Input!$D$116*Work!P29 -> 539655 | Q33: =Input!$D$116*Work!Q29 -> 539655 | R33: =Input!$D$116*Work!R29 -> 539655 | S33: =Input!$D$116*Work!S29 -> 539655 | T33: =Input!$D$116*Work!T29 -> 539655 | U33: =Input!$D$116*Work!U29 -> 539655 | V33: =Input!$D$116*Work!V29 -> 539655 | W33: =Input!$D$116*Work!W29 -> 539655 | X33: =Input!$D$116*Work!X29 -> 539655 | Y33: =Input!$D$116*Work!Y29 -> 539655 | Z33: =Input!$D$116*Work!Z29 -> 539655 | AA33: =Input!$D$116*Work!AA29 -> 539655 | AB33: =Input!$D$116*Work!AB29 -> 539655 | AC33: =Input!$D$116*Work!AC29 -> 539655 | AD33: =Input!$D$116*Work!AD29 -> 539655 | AE33: =Input!$D$116*Work!AE29 -> 539655 | AF33: =Input!$D$116*Work!AF29 -> 539655 | AG33: =Input!$D$116*Work!AG29 -> 539655 | AH33: =Input!$D$116*Work!AH29 -> 539655 | AI33: =Input!$D$116*Work!AI29 -> 269827.5 | AJ33: =Input!$D$116*Work!AJ29 -> 0 | AK33: =Input!$D$116*Work!AK29 -> 0 | AL33: =Input!$D$116*Work!AL29 -> 0 | AM33: =Input!$D$116*Work!AM29 -> 0 | AN33: =Input!$D$116*Work!AN29 -> 0 | AO33: =Input!$D$116*Work!AO29 -> 0 | AP33: =Input!$D$116*Work!AP29 -> 0
A34: Gas Storage Service | C34: =AVERAGE(J34:AH34) -> 0 | F34: =Input!$D$83*Work!F29 -> 0 | G34: =Input!$D$83*Work!G29 -> 0 | H34: =Input!$D$83*Work!H29 -> 0 | I34: =Input!$D$83*Work!I29 -> 0 | J34: =Input!$D$83*Work!J29 -> 0 | K34: =Input!$D$83*Work!K29 -> 0 | L34: =Input!$D$83*Work!L29 -> 0 | M34: =Input!$D$83*Work!M29 -> 0 | N34: =Input!$D$83*Work!N29 -> 0 | O34: =Input!$D$83*Work!O29 -> 0 | P34: =Input!$D$83*Work!P29 -> 0 | Q34: =Input!$D$83*Work!Q29 -> 0 | R34: =Input!$D$83*Work!R29 -> 0 | S34: =Input!$D$83*Work!S29 -> 0 | T34: =Input!$D$83*Work!T29 -> 0 | U34: =Input!$D$83*Work!U29 -> 0 | V34: =Input!$D$83*Work!V29 -> 0 | W34: =Input!$D$83*Work!W29 -> 0 | X34: =Input!$D$83*Work!X29 -> 0 | Y34: =Input!$D$83*Work!Y29 -> 0 | Z34: =Input!$D$83*Work!Z29 -> 0 | AA34: =Input!$D$83*Work!AA29 -> 0 | AB34: =Input!$D$83*Work!AB29 -> 0 | AC34: =Input!$D$83*Work!AC29 -> 0 | AD34: =Input!$D$83*Work!AD29 -> 0 | AE34: =Input!$D$83*Work!AE29 -> 0 | AF34: =Input!$D$83*Work!AF29 -> 0 | AG34: =Input!$D$83*Work!AG29 -> 0 | AH34: =Input!$D$83*Work!AH29 -> 0 | AI34: =Input!$D$83*Work!AI29 -> 0 | AJ34: =Input!$D$83*Work!AJ29 -> 0 | AK34: =Input!$D$83*Work!AK29 -> 0 | AL34: =Input!$D$83*Work!AL29 -> 0 | AM34: =Input!$D$83*Work!AM29 -> 0 | AN34: =Input!$D$83*Work!AN29 -> 0 | AO34: =Input!$D$83*Work!AO29 -> 0 | AP34: =Input!$D$83*Work!AP29 -> 0
A35: Other Expenses (hors TP,TF) (€) | C35: =AVERAGE(J35:AG35) -> 356944.0451 | F35: =Input!$D$124*Work!F29*Work!F14 -> 0 | G35: =Input!$D$124*Work!G29*Work!G14 -> 0 | H35: =Input!$D$124*Work!H29*Work!H14 -> 0 | I35: =Input!$D$124*Work!I29*Work!I14 -> 0 | J35: =Input!$D$124*Work!J29*Work!J14 -> 152250 | K35: =Input!$D$124*Work!K29*Work!K14 -> 309067.5 | L35: =Input!$D$124*Work!L29*Work!L14 -> 313703.5125 | M35: =Input!$D$124*Work!M29*Work!M14 -> 318409.0652 | N35: =Input!$D$124*Work!N29*Work!N14 -> 323185.2012 | O35: =Input!$D$124*Work!O29*Work!O14 -> 328032.9792 | P35: =Input!$D$124*Work!P29*Work!P14 -> 332953.4739 | Q35: =Input!$D$124*Work!Q29*Work!Q14 -> 337947.776 | R35: =Input!$D$124*Work!R29*Work!R14 -> 343016.9926 | S35: =Input!$D$124*Work!S29*Work!S14 -> 348162.2475 | T35: =Input!$D$124*Work!T29*Work!T14 -> 353384.6812 | U35: =Input!$D$124*Work!U29*Work!U14 -> 358685.4514 | V35: =Input!$D$124*Work!V29*Work!V14 -> 364065.7332 | W35: =Input!$D$124*Work!W29*Work!W14 -> 369526.7192 | X35: =Input!$D$124*Work!X29*Work!X14 -> 375069.62 | Y35: =Input!$D$124*Work!Y29*Work!Y14 -> 380695.6643 | Z35: =Input!$D$124*Work!Z29*Work!Z14 -> 386406.0993 | AA35: =Input!$D$124*Work!AA29*Work!AA14 -> 392202.1907 | AB35: =Input!$D$124*Work!AB29*Work!AB14 -> 398085.2236 | AC35: =Input!$D$124*Work!AC29*Work!AC14 -> 404056.502 | AD35: =Input!$D$124*Work!AD29*Work!AD14 -> 410117.3495 | AE35: =Input!$D$124*Work!AE29*Work!AE14 -> 416269.1097 | AF35: =Input!$D$124*Work!AF29*Work!AF14 -> 422513.1464 | AG35: =Input!$D$124*Work!AG29*Work!AG14 -> 428850.8436 | AH35: =Input!$D$124*Work!AH29*Work!AH14 -> 435283.6062 | AI35: =Input!$D$124*Work!AI29*Work!AI14 -> 220906.4302 | AJ35: =Input!$D$124*Work!AJ29*Work!AJ14 -> 0 | AK35: =Input!$D$124*Work!AK29*Work!AK14 -> 0 | AL35: =Input!$D$124*Work!AL29*Work!AL14 -> 0 | AM35: =Input!$D$124*Work!AM29*Work!AM14 -> 0 | AN35: =Input!$D$124*Work!AN29*Work!AN14 -> 0 | AO35: =Input!$D$124*Work!AO29*Work!AO14 -> 0 | AP35: =Input!$D$124*Work!AP29*Work!AP14 -> 0
A36: Maintenance(€) | C36: =AVERAGE(K36:AH36) -> 10060000 | F36: =Input!$D$115*Input!$D$47*Work!F29*Work!F14 -> 0 | G36: =Input!$D$115*Input!$D$47*Work!G29*Work!G14 -> 0 | H36: =Input!$D$115*Input!$D$47*Work!H29*Work!H14 -> 0 | I36: =Input!$D$115*Input!$D$47*Work!I29*Work!I14 -> 0 | J36: =Input!$D$115*Input!$D$47*Work!J29*Work!J14 -> 4153731.616 | K36: =Input!$D$115*Input!$D$47*Work!K29*Work!K14 -> 8432075.18 | L36: =Input!$D$115*Input!$D$47*Work!L29*Work!L14 -> 8558556.307 | M36: =Input!$D$115*Input!$D$47*Work!M29*Work!M14 -> 8686934.652 | N36: =Input!$D$115*Input!$D$47*Work!N29*Work!N14 -> 8817238.672 | O36: =Input!$D$115*Input!$D$47*Work!O29*Work!O14 -> 8949497.252 | P36: =Input!$D$115*Input!$D$47*Work!P29*Work!P14 -> 9083739.71 | Q36: =Input!$D$115*Input!$D$47*Work!Q29*Work!Q14 -> 9219995.806 | R36: =Input!$D$115*Input!$D$47*Work!R29*Work!R14 -> 9358295.743 | S36: =Input!$D$115*Input!$D$47*Work!S29*Work!S14 -> 9498670.179 | T36: =Input!$D$115*Input!$D$47*Work!T29*Work!T14 -> 9641150.232 | U36: =Input!$D$115*Input!$D$47*Work!U29*Work!U14 -> 9785767.486 | V36: =Input!$D$115*Input!$D$47*Work!V29*Work!V14 -> 9932553.998 | W36: =Input!$D$115*Input!$D$47*Work!W29*Work!W14 -> 10081542.31 | X36: =Input!$D$115*Input!$D$47*Work!X29*Work!X14 -> 10232765.44 | Y36: =Input!$D$115*Input!$D$47*Work!Y29*Work!Y14 -> 10386256.92 | Z36: =Input!$D$115*Input!$D$47*Work!Z29*Work!Z14 -> 10542050.78 | AA36: =Input!$D$115*Input!$D$47*Work!AA29*Work!AA14 -> 10700181.54 | AB36: =Input!$D$115*Input!$D$47*Work!AB29*Work!AB14 -> 10860684.26 | AC36: =Input!$D$115*Input!$D$47*Work!AC29*Work!AC14 -> 11023594.53 | AD36: =Input!$D$115*Input!$D$47*Work!AD29*Work!AD14 -> 11188948.44 | AE36: =Input!$D$115*Input!$D$47*Work!AE29*Work!AE14 -> 11356782.67 | AF36: =Input!$D$115*Input!$D$47*Work!AF29*Work!AF14 -> 11527134.41 | AG36: =Input!$D$115*Input!$D$47*Work!AG29*Work!AG14 -> 11700041.43 | AH36: =Input!$D$115*Input!$D$47*Work!AH29*Work!AH14 -> 11875542.05 | AI36: =Input!$D$115*Input!$D$47*Work!AI29*Work!AI14 -> 6026837.59 | AJ36: =Input!$D$115*Input!$D$47*Work!AJ29*Work!AJ14 -> 0 | AK36: =Input!$D$115*Input!$D$47*Work!AK29*Work!AK14 -> 0 | AL36: =Input!$D$115*Input!$D$47*Work!AL29*Work!AL14 -> 0 | AM36: =Input!$D$115*Input!$D$47*Work!AM29*Work!AM14 -> 0 | AN36: =Input!$D$115*Input!$D$47*Work!AN29*Work!AN14 -> 0 | AO36: =Input!$D$115*Input!$D$47*Work!AO29*Work!AO14 -> 0 | AP36: =Input!$D$115*Input!$D$47*Work!AP29*Work!AP14 -> 0
A37: Insurance | C37: =AVERAGE(J37:AG37) -> 2692210.048 | F37: =Input!$D$62*Input!$D$47*Work!F29*Work!F14 -> 0 | G37: =Input!$D$62*Input!$D$47*Work!G29*Work!G14 -> 0 | H37: =Input!$D$62*Input!$D$47*Work!H29*Work!H14 -> 0 | I37: =Input!$D$62*(Input!$D$47-Input!$D$34)*0.8*Work!I29*Work!I14 -> 0 | J37: =Input!$D$62*(Input!$D$47-Input!$D$34)*0.8*Work!J29*Work!J14 -> 1148328.388 | K37: =Input!$D$62*(Input!$D$47-Input!$D$34)*0.8*Work!K29*Work!K14 -> 2331106.627 | L37: =Input!$D$62*(Input!$D$47-Input!$D$34)*0.8*Work!L29*Work!L14 -> 2366073.227 | M37: =Input!$D$62*(Input!$D$47-Input!$D$34)*0.8*Work!M29*Work!M14 -> 2401564.325 | N37: =Input!$D$62*(Input!$D$47-Input!$D$34)*0.8*Work!N29*Work!N14 -> 2437587.79 | O37: =Input!$D$62*(Input!$D$47-Input!$D$34)*0.8*Work!O29*Work!O14 -> 2474151.607 | P37: =Input!$D$62*(Input!$D$47-Input!$D$34)*0.8*Work!P29*Work!P14 -> 2511263.881 | Q37: =Input!$D$62*(Input!$D$47-Input!$D$34)*0.8*Work!Q29*Work!Q14 -> 2548932.839 | R37: =Input!$D$62*(Input!$D$47-Input!$D$34)*0.8*Work!R29*Work!R14 -> 2587166.832 | S37: =Input!$D$62*(Input!$D$47-Input!$D$34)*0.8*Work!S29*Work!S14 -> 2625974.334 | T37: =Input!$D$62*(Input!$D$47-Input!$D$34)*0.8*Work!T29*Work!T14 -> 2665363.949 | U37: =Input!$D$62*(Input!$D$47-Input!$D$34)*0.8*Work!U29*Work!U14 -> 2705344.409 | V37: =Input!$D$62*(Input!$D$47-Input!$D$34)*0.8*Work!V29*Work!V14 -> 2745924.575 | W37: =Input!$D$62*(Input!$D$47-Input!$D$34)*0.8*Work!W29*Work!W14 -> 2787113.443 | X37: =Input!$D$62*(Input!$D$47-Input!$D$34)*0.8*Work!X29*Work!X14 -> 2828920.145 | Y37: =Input!$D$62*(Input!$D$47-Input!$D$34)*0.8*Work!Y29*Work!Y14 -> 2871353.947 | Z37: =Input!$D$62*(Input!$D$47-Input!$D$34)*0.8*Work!Z29*Work!Z14 -> 2914424.256 | AA37: =Input!$D$62*(Input!$D$47-Input!$D$34)*0.8*Work!AA29*Work!AA14 -> 2958140.62 | AB37: =Input!$D$62*(Input!$D$47-Input!$D$34)*0.8*Work!AB29*Work!AB14 -> 3002512.729 | AC37: =Input!$D$62*(Input!$D$47-Input!$D$34)*0.8*Work!AC29*Work!AC14 -> 3047550.42 | AD37: =Input!$D$62*(Input!$D$47-Input!$D$34)*0.8*Work!AD29*Work!AD14 -> 3093263.677 | AE37: =Input!$D$62*(Input!$D$47-Input!$D$34)*0.8*Work!AE29*Work!AE14 -> 3139662.632 | AF37: =Input!$D$62*(Input!$D$47-Input!$D$34)*0.8*Work!AF29*Work!AF14 -> 3186757.571 | AG37: =Input!$D$62*(Input!$D$47-Input!$D$34)*0.8*Work!AG29*Work!AG14 -> 3234558.935 | AH37: =Input!$D$62*(Input!$D$47-Input!$D$34)*0.8*Work!AH29*Work!AH14 -> 3283077.319 | AI37: =Input!$D$62*(Input!$D$47-Input!$D$34)*0.8*Work!AI29*Work!AI14 -> 1666161.739 | AJ37: =Input!$D$62*(Input!$D$47-Input!$D$34)*0.8*Work!AJ29*Work!AJ14 -> 0 | AK37: =Input!$D$62*(Input!$D$47-Input!$D$34)*0.8*Work!AK29*Work!AK14 -> 0 | AL37: =Input!$D$62*(Input!$D$47-Input!$D$34)*0.8*Work!AL29*Work!AL14 -> 0 | AM37: =Input!$D$62*(Input!$D$47-Input!$D$34)*0.8*Work!AM29*Work!AM14 -> 0 | AN37: =Input!$D$62*(Input!$D$47-Input!$D$34)*0.8*Work!AN29*Work!AN14 -> 0 | AO37: =Input!$D$62*(Input!$D$47-Input!$D$34)*0.8*Work!AO29*Work!AO14 -> 0 | AP37: =Input!$D$62*(Input!$D$47-Input!$D$34)*0.8*Work!AP29*Work!AP14 -> 0
A38: GER (€) | C38: =AVERAGE(J38:AG38) -> 0 | F38: =Input!$D$117*Work!F29*Work!F14 -> 0 | G38: =Input!$D$117*Work!G29*Work!G14 -> 0 | H38: =Input!$D$117*Work!H29*Work!H14 -> 0 | I38: =Input!$D$117*Work!I29*Work!I14 -> 0 | J38: =Input!$D$117*Work!J29*Work!J14 -> 0 | K38: =Input!$D$117*Work!K29*Work!K14 -> 0 | L38: =Input!$D$117*Work!L29*Work!L14 -> 0 | M38: =Input!$D$117*Work!M29*Work!M14 -> 0 | N38: =Input!$D$117*Work!N29*Work!N14 -> 0 | O38: =Input!$D$117*Work!O29*Work!O14 -> 0 | P38: =Input!$D$117*Work!P29*Work!P14 -> 0 | Q38: =Input!$D$117*Work!Q29*Work!Q14 -> 0 | R38: =Input!$D$117*Work!R29*Work!R14 -> 0 | S38: =Input!$D$117*Work!S29*Work!S14 -> 0 | T38: =Input!$D$117*Work!T29*Work!T14 -> 0 | U38: =Input!$D$117*Work!U29*Work!U14 -> 0 | V38: =Input!$D$117*Work!V29*Work!V14 -> 0 | W38: =Input!$D$117*Work!W29*Work!W14 -> 0 | X38: =Input!$D$117*Work!X29*Work!X14 -> 0 | Y38: =Input!$D$117*Work!Y29*Work!Y14 -> 0 | Z38: =Input!$D$117*Work!Z29*Work!Z14 -> 0 | AA38: =Input!$D$117*Work!AA29*Work!AA14 -> 0 | AB38: =Input!$D$117*Work!AB29*Work!AB14 -> 0 | AC38: =Input!$D$117*Work!AC29*Work!AC14 -> 0 | AD38: =Input!$D$117*Work!AD29*Work!AD14 -> 0 | AE38: =Input!$D$117*Work!AE29*Work!AE14 -> 0 | AF38: =Input!$D$117*Work!AF29*Work!AF14 -> 0 | AG38: =Input!$D$117*Work!AG29*Work!AG14 -> 0 | AH38: =Input!$D$117*Work!AH29*Work!AH14 -> 0 | AI38: =Input!$D$117*Work!AI29*Work!AI14 -> 0 | AJ38: =Input!$D$117*Work!AJ29*Work!AJ14 -> 0 | AK38: =Input!$D$117*Work!AK29*Work!AK14 -> 0 | AL38: =Input!$D$117*Work!AL29*Work!AL14 -> 0 | AM38: =Input!$D$117*Work!AM29*Work!AM14 -> 0 | AN38: =Input!$D$117*Work!AN29*Work!AN14 -> 0 | AO38: =Input!$D$117*Work!AO29*Work!AO14 -> 0 | AP38: =Input!$D$117*Work!AP29*Work!AP14 -> 0
A39: formation | C39: =AVERAGE(J39:AG39) -> 0 | F39: =Input!$D$121*Input!$D$120*Work!F16*Work!F31 -> 0 | G39: =Input!$D$121*Input!$D$120*Work!G16*Work!G31 -> 0 | H39: =Input!$D$121*Input!$D$120*Work!H16*Work!H31 -> 0 | I39: =Input!$D$121*Input!$D$120*Work!I16*Work!I31 -> 0 | J39: =Input!$D$121*Input!$D$120*Work!J16*Work!J31 -> 0 | K39: =Input!$D$121*Input!$D$120*Work!K16*Work!K31 -> 0 | L39: =Input!$D$121*Input!$D$120*Work!L16*Work!L31 -> 0 | M39: =Input!$D$121*Input!$D$120*Work!M16*Work!M31 -> 0 | N39: =Input!$D$121*Input!$D$120*Work!N16*Work!N31 -> 0 | O39: =Input!$D$121*Input!$D$120*Work!O16*Work!O31 -> 0 | P39: =Input!$D$121*Input!$D$120*Work!P16*Work!P31 -> 0 | Q39: =Input!$D$121*Input!$D$120*Work!Q16*Work!Q31 -> 0 | R39: =Input!$D$121*Input!$D$120*Work!R16*Work!R31 -> 0 | S39: =Input!$D$121*Input!$D$120*Work!S16*Work!S31 -> 0 | T39: =Input!$D$121*Input!$D$120*Work!T16*Work!T31 -> 0 | U39: =Input!$D$121*Input!$D$120*Work!U16*Work!U31 -> 0 | V39: =Input!$D$121*Input!$D$120*Work!V16*Work!V31 -> 0 | W39: =Input!$D$121*Input!$D$120*Work!W16*Work!W31 -> 0 | X39: =Input!$D$121*Input!$D$120*Work!X16*Work!X31 -> 0 | Y39: =Input!$D$121*Input!$D$120*Work!Y16*Work!Y31 -> 0 | Z39: =Input!$D$121*Input!$D$120*Work!Z16*Work!Z31 -> 0 | AA39: =Input!$D$121*Input!$D$120*Work!AA16*Work!AA31 -> 0 | AB39: =Input!$D$121*Input!$D$120*Work!AB16*Work!AB31 -> 0 | AC39: =Input!$D$121*Input!$D$120*Work!AC16*Work!AC31 -> 0 | AD39: =Input!$D$121*Input!$D$120*Work!AD16*Work!AD31 -> 0 | AE39: =Input!$D$121*Input!$D$120*Work!AE16*Work!AE31 -> 0 | AF39: =Input!$D$121*Input!$D$120*Work!AF16*Work!AF31 -> 0 | AG39: =Input!$D$121*Input!$D$120*Work!AG16*Work!AG31 -> 0 | AH39: =Input!$D$121*Input!$D$120*Work!AH16*Work!AH31 -> 0 | AI39: =Input!$D$121*Input!$D$120*Work!AI16*Work!AI31 -> 0 | AJ39: =Input!$D$121*Input!$D$120*Work!AJ16*Work!AJ31 -> 0 | AK39: =Input!$D$121*Input!$D$120*Work!AK16*Work!AK31 -> 0 | AL39: =Input!$D$121*Input!$D$120*Work!AL16*Work!AL31 -> 0 | AM39: =Input!$D$121*Input!$D$120*Work!AM16*Work!AM31 -> 0 | AN39: =Input!$D$121*Input!$D$120*Work!AN16*Work!AN31 -> 0 | AO39: =Input!$D$121*Input!$D$120*Work!AO16*Work!AO31 -> 0 | AP39: =Input!$D$121*Input!$D$120*Work!AP16*Work!AP31 -> 0
A40: Land Taxe (€) | C40: =AVERAGE(J40:AH40) -> 566161.0649 | F40: =Input!$D$69*0.045*0.15*Input!$D$47*Work!F30*Work!F14 -> 0 | G40: =Input!$D$69*0.045*0.15*Input!$D$47*Work!G30*Work!G14 -> 0 | H40: =Input!$D$69*0.045*0.15*Input!$D$47*Work!H30*Work!H14 -> 0 | I40: =Input!$D$69*Input!$D$47*Work!I29*Work!I14 -> 0 | J40: =Input!$D$69*Input!$D$47*Work!J29*Work!J14 -> 239387.3308 | K40: =Input!$D$69*Input!$D$47*Work!K29*Work!K14 -> 485956.2815 | L40: =Input!$D$69*Input!$D$47*Work!L29*Work!L14 -> 493245.6258 | M40: =Input!$D$69*Input!$D$47*Work!M29*Work!M14 -> 500644.3101 | N40: =Input!$D$69*Input!$D$47*Work!N29*Work!N14 -> 508153.9748 | O40: =Input!$D$69*Input!$D$47*Work!O29*Work!O14 -> 515776.2844 | P40: =Input!$D$69*Input!$D$47*Work!P29*Work!P14 -> 523512.9287 | Q40: =Input!$D$69*Input!$D$47*Work!Q29*Work!Q14 -> 531365.6226 | R40: =Input!$D$69*Input!$D$47*Work!R29*Work!R14 -> 539336.107 | S40: =Input!$D$69*Input!$D$47*Work!S29*Work!S14 -> 547426.1486 | T40: =Input!$D$69*Input!$D$47*Work!T29*Work!T14 -> 555637.5408 | U40: =Input!$D$69*Input!$D$47*Work!U29*Work!U14 -> 563972.1039 | V40: =Input!$D$69*Input!$D$47*Work!V29*Work!V14 -> 572431.6855 | W40: =Input!$D$69*Input!$D$47*Work!W29*Work!W14 -> 581018.1607 | X40: =Input!$D$69*Input!$D$47*Work!X29*Work!X14 -> 589733.4331 | Y40: =Input!$D$69*Input!$D$47*Work!Y29*Work!Y14 -> 598579.4346 | Z40: =Input!$D$69*Input!$D$47*Work!Z29*Work!Z14 -> 607558.1262 | AA40: =Input!$D$69*Input!$D$47*Work!AA29*Work!AA14 -> 616671.4981 | AB40: =Input!$D$69*Input!$D$47*Work!AB29*Work!AB14 -> 625921.5705 | AC40: =Input!$D$69*Input!$D$47*Work!AC29*Work!AC14 -> 635310.3941 | AD40: =Input!$D$69*Input!$D$47*Work!AD29*Work!AD14 -> 644840.05 | AE40: =Input!$D$69*Input!$D$47*Work!AE29*Work!AE14 -> 654512.6507 | AF40: =Input!$D$69*Input!$D$47*Work!AF29*Work!AF14 -> 664330.3405 | AG40: =Input!$D$69*Input!$D$47*Work!AG29*Work!AG14 -> 674295.2956 | AH40: =Input!$D$69*Input!$D$47*Work!AH29*Work!AH14 -> 684409.7251 | AI40: =Input!$D$69*Input!$D$47*Work!AI29*Work!AI14 -> 347337.9355 | AJ40: =Input!$D$69*Input!$D$47*Work!AJ29*Work!AJ14 -> 0 | AK40: =Input!$D$69*Input!$D$47*Work!AK29*Work!AK14 -> 0 | AL40: =Input!$D$69*Input!$D$47*Work!AL29*Work!AL14 -> 0 | AM40: =Input!$D$69*Input!$D$47*Work!AM29*Work!AM14 -> 0 | AN40: =Input!$D$69*Input!$D$47*Work!AN29*Work!AN14 -> 0 | AO40: =Input!$D$69*Input!$D$47*Work!AO29*Work!AO14 -> 0 | AP40: =Input!$D$69*Input!$D$47*Work!AP29*Work!AP14 -> 0
A41: Total Fixed Cost | C41: =SUM(F41:AH41) -> 527522808.5 | F41: =SUM(F31:F40) -> 0 | G41: =SUM(G31:G40) -> 0 | H41: 0 | I41: 0 | J41: 9113524.834 | K41: 18464160.59 | L41: 18705159.67 | M41: 18950111.87 | N41: 19199083.25 | O41: 19452140.98 | P41: 19709353.41 | Q41: 19970790.03 | R41: 20236521.52 | S41: 20506619.77 | T41: 20781157.91 | U41: 21060210.28 | V41: 21343852.54 | W41: 21632161.61 | X41: 21925215.74 | Y41: 22223094.51 | Z41: 22525878.87 | AA41: 22833651.15 | AB41: 23146495.1 | AC41: 23464495.88 | AD41: 23787740.14 | AE41: 24116315.99 | AF41: 24450313.08 | AG41: 24789822.56 | AH41: 25134937.18 | AI41: 12742875.63 | AJ41: 0 | AK41: 0 | AL41: 0 | AM41: 0 | AN41: 0 | AO41: 0 | AP41: 0
A44: Total Cost | C44: =SUM(F44:AQ44) -> 4210163152 | F44: =F24+F41 -> 0 | G44: =G24+G41 -> 0 | H44: =H24+H41 -> 0 | I44: =+I24+I26+I41 -> 0 | J44: 83032580.38 | K44: 165204716.5 | L44: 165436554.7 | M44: 165696285.4 | N44: 165956810.2 | O44: 166228386.3 | P44: 166490709.5 | Q44: 166798185.9 | R44: 167059200.4 | S44: 167334953.1 | T44: 167622124.2 | U44: 167927582.5 | V44: 168200468.4 | W44: 168491799.9 | X44: 168781282.8 | Y44: 169072395.6 | Z44: 169388993.4 | AA44: 169710786.3 | AB44: 170014090 | AC44: 170336347.6 | AD44: 170643690.1 | AE44: 170980355.1 | AF44: 171336248.1 | AG44: 171680900.7 | AH44: 172034784.3 | AI44: 84702920.42 | AJ44: 0 | AK44: 0 | AL44: 0 | AM44: 0 | AN44: 0 | AO44: 0 | AP44: 0
A45: Cash adjusted cost | C45: =SUM(F45:AQ45) -> 4210163152 | F45: =E44*Input!$D$76/12+F44*(12-Input!$D$76)/12 -> 0 | G45: =F44*Input!$D$76/12+G44*(12-Input!$D$76)/12 -> 0 | H45: =G44*Input!$D$76/12+H44*(12-Input!$D$76)/12 -> 0 | I45: =H44*Input!$D$76/12+I44*(12-Input!$D$76)/12 -> 0 | J45: =I44*Input!$D$76/12+J44*(12-Input!$D$76)/12 -> 76113198.69 | K45: =J44*Input!$D$76/12+K44*(12-Input!$D$76)/12 -> 158357038.5 | L45: =K44*Input!$D$76/12+L44*(12-Input!$D$76)/12 -> 165417234.9 | M45: =L44*Input!$D$76/12+M44*(12-Input!$D$76)/12 -> 165674641.2 | N45: =M44*Input!$D$76/12+N44*(12-Input!$D$76)/12 -> 165935099.8 | O45: =N44*Input!$D$76/12+O44*(12-Input!$D$76)/12 -> 166205754.9 | P45: =O44*Input!$D$76/12+P44*(12-Input!$D$76)/12 -> 166468849.3 | Q45: =P44*Input!$D$76/12+Q44*(12-Input!$D$76)/12 -> 166772562.9 | R45: =Q44*Input!$D$76/12+R44*(12-Input!$D$76)/12 -> 167037449.2 | S45: =R44*Input!$D$76/12+S44*(12-Input!$D$76)/12 -> 167311973.7 | T45: =S44*Input!$D$76/12+T44*(12-Input!$D$76)/12 -> 167598193.3 | U45: =T44*Input!$D$76/12+U44*(12-Input!$D$76)/12 -> 167902127.6 | V45: =U44*Input!$D$76/12+V44*(12-Input!$D$76)/12 -> 168177727.9 | W45: =V44*Input!$D$76/12+W44*(12-Input!$D$76)/12 -> 168467522.3 | X45: =W44*Input!$D$76/12+X44*(12-Input!$D$76)/12 -> 168757159.2 | Y45: =X44*Input!$D$76/12+Y44*(12-Input!$D$76)/12 -> 169048136.2 | Z45: =Y44*Input!$D$76/12+Z44*(12-Input!$D$76)/12 -> 169362610.2 | AA45: =Z44*Input!$D$76/12+AA44*(12-Input!$D$76)/12 -> 169683970.2 | AB45: =AA44*Input!$D$76/12+AB44*(12-Input!$D$76)/12 -> 169988814.7 | AC45: =AB44*Input!$D$76/12+AC44*(12-Input!$D$76)/12 -> 170309492.8 | AD45: =AC44*Input!$D$76/12+AD44*(12-Input!$D$76)/12 -> 170618078.2 | AE45: =AD44*Input!$D$76/12+AE44*(12-Input!$D$76)/12 -> 170952299.7 | AF45: =AE44*Input!$D$76/12+AF44*(12-Input!$D$76)/12 -> 171306590.4 | AG45: =AF44*Input!$D$76/12+AG44*(12-Input!$D$76)/12 -> 171652179.7 | AH45: =AG44*Input!$D$76/12+AH44*(12-Input!$D$76)/12 -> 172005294 | AI45: =AH44*Input!$D$76/12+AI44*(12-Input!$D$76)/12 -> 91980575.75 | AJ45: =AI44*Input!$D$76/12+AJ44*(12-Input!$D$76)/12 -> 7058576.702 | AK45: =AJ44*Input!$D$76/12+AK44*(12-Input!$D$76)/12 -> 0 | AL45: =AK44*Input!$D$76/12+AL44*(12-Input!$D$76)/12 -> 0 | AM45: =AL44*Input!$D$76/12+AM44*(12-Input!$D$76)/12 -> 0 | AN45: =AM44*Input!$D$76/12+AN44*(12-Input!$D$76)/12 -> 0 | AO45: =AN44*Input!$D$76/12+AO44*(12-Input!$D$76)/12 -> 0 | AP45: =AO44*Input!$D$76/12+AP44*(12-Input!$D$76)/12 -> 0
A47: Operating Profit (EBITDA) | C47: =SUM(F47:AQ47) -> 1832874791 | F47: =F13-F44 -> 0 | G47: 0 | H47: 0 | I47: 0 | J47: 39116539.44 | K47: 75797762.78 | L47: 75565924.51 | M47: 75306193.83 | N47: 75045669.1 | O47: 74774092.97 | P47: 74511769.73 | Q47: 74204293.33 | R47: 73943278.87 | S47: 73667526.12 | T47: 73380355.05 | U47: 73074896.77 | V47: 72802010.82 | W47: 72510679.37 | X47: 72221196.45 | Y47: 71930083.63 | Z47: 71613485.87 | AA47: 71291692.98 | AB47: 70988389.21 | AC47: 70666131.66 | AD47: 70358789.18 | AE47: 70022124.11 | AF47: 69666231.12 | AG47: 69321578.51 | AH47: 79853082.44 | AI47: 41241012.95 | AJ47: 0 | AK47: 0 | AL47: 0 | AM47: 0 | AN47: 0 | AO47: 0 | AP47: 0
A48: Operating CF (CASH EBITDA) | C48: =SUM(F48:AQ48) -> 1832874791 | F48: =F14-F45 -> 0 | G48: 0 | H48: 0 | I48: 0 | J48: 35856827.82 | K48: 72740994.17 | L48: 75585244.37 | M48: 75327838.05 | N48: 75067379.49 | O48: 74796724.32 | P48: 74533630 | Q48: 74229916.36 | R48: 73965030.08 | S48: 73690505.51 | T48: 73404285.97 | U48: 73100351.62 | V48: 72824751.32 | W48: 72534956.99 | X48: 72245320.02 | Y48: 71954343.03 | Z48: 71639869.01 | AA48: 71318509.06 | AB48: 71013664.53 | AC48: 70692986.46 | AD48: 70384401.06 | AE48: 70050179.53 | AF48: 69695888.87 | AG48: 69350299.56 | AH48: 78975457.11 | AI48: 44458685.41 | AJ48: 3436751.079 | AK48: 0 | AL48: 0 | AM48: 0 | AN48: 0 | AO48: 0 | AP48: 0
A50: =Tax!A25 -> Earnings after Tax | H50: =Tax!H25 -> 0 | I50: =Tax!I25 -> 0 | J50: =Tax!J25 -> 18423422.76 | K50: =Tax!K25 -> 35317648.44 | L50: =Tax!L25 -> 35172071.28 | M50: =Tax!M25 -> 35008979.76 | N50: =Tax!N25 -> 34845389.64 | O50: =Tax!O25 -> 34674860.06 | P50: =Tax!P25 -> 34510140.61 | Q50: =Tax!Q25 -> 34317068.34 | R50: =Tax!R25 -> 34153170.7 | S50: =Tax!S25 -> 33980018.52 | T50: =Tax!T25 -> 33799696.48 | U50: =Tax!U25 -> 33607891.44 | V50: =Tax!V25 -> 33436539.39 | W50: =Tax!W25 -> 33253604.94 | X50: =Tax!X25 -> 33071831.23 | Y50: =Tax!Y25 -> 32889034.07 | Z50: =Tax!Z25 -> 32690234.26 | AA50: =Tax!AA25 -> 32488172.31 | AB50: =Tax!AB25 -> 32297720.14 | AC50: =Tax!AC25 -> 32095366.4 | AD50: =Tax!AD25 -> 31902378.22 | AE50: =Tax!AE25 -> 31690977.64 | AF50: =Tax!AF25 -> 31467503.36 | AG50: =Tax!AG25 -> 31251087.19 | AH50: =Tax!AH25 -> 37864087.06 | AI50: =Tax!AI25 -> 19757433.85 | AJ50: =Tax!AJ25 -> 0 | AK50: =Tax!AK25 -> 0 | AL50: =Tax!AL25 -> 0 | AM50: =Tax!AM25 -> 0 | AN50: =Tax!AN25 -> 0 | AO50: =Tax!AO25 -> 0 | AP50: =Tax!AP25 -> 0
A54: Gas Cost | C54: =AVERAGE(J54:AG54) -> 37.73083287 | E54: €/MWh | J54: =J19/(J8*J9) -> 37.43942617 | K54: 37.74350273 | L54: 37.74350273 | M54: 37.74350273 | N54: 37.74350273 | O54: 37.74350273 | P54: 37.74350273 | Q54: 37.74350273 | R54: 37.74350273 | S54: 37.74350273 | T54: 37.74350273 | U54: 37.74350273 | V54: 37.74350273 | W54: 37.74350273 | X54: 37.74350273 | Y54: 37.74350273 | Z54: 37.74350273 | AA54: 37.74350273 | AB54: 37.74350273 | AC54: 37.74350273 | AD54: 37.74350273 | AE54: 37.74350273 | AF54: 37.74350273 | AG54: 37.74350273
A55: Start Up Cost | C55: =AVERAGE(J55:AG55) -> 1.74598589 | E55: €/MWh | J55: =J23/(J8*J9) -> 1.71008225 | K55: 1.747546918 | L55: 1.747546918 | M55: 1.747546918 | N55: 1.747546918 | O55: 1.747546918 | P55: 1.747546918 | Q55: 1.747546918 | R55: 1.747546918 | S55: 1.747546918 | T55: 1.747546918 | U55: 1.747546918 | V55: 1.747546918 | W55: 1.747546918 | X55: 1.747546918 | Y55: 1.747546918 | Z55: 1.747546918 | AA55: 1.747546918 | AB55: 1.747546918 | AC55: 1.747546918 | AD55: 1.747546918 | AE55: 1.747546918 | AF55: 1.747546918 | AG55: 1.747546918
A57: TOTAL FUEL COST | C57: =AVERAGE(J57:AG57) -> 39.47681876 | E57: €/MWh | J57: =SUM(J54:J55) -> 39.14950842 | K57: 39.49104965 | L57: 39.49104965 | M57: 39.49104965 | N57: 39.49104965 | O57: 39.49104965 | P57: 39.49104965 | Q57: 39.49104965 | R57: 39.49104965 | S57: 39.49104965 | T57: 39.49104965 | U57: 39.49104965 | V57: 39.49104965 | W57: 39.49104965 | X57: 39.49104965 | Y57: 39.49104965 | Z57: 39.49104965 | AA57: 39.49104965 | AB57: 39.49104965 | AC57: 39.49104965 | AD57: 39.49104965 | AE57: 39.49104965 | AF57: 39.49104965 | AG57: 39.49104965
A59: Other Variable Cost | C59: =AVERAGE(J59:AG59) -> 0.07082820115 | E59: €/MWh | J59: =(J18+J21)/(J8*J9) -> 0.1314772344 | K59: 0.04319884615 | L59: 0.04067413654 | M59: 0.0447470691 | N59: 0.04793115975 | O59: 0.05303480663 | P59: 0.05444334155 | Q59: 0.06713185065 | R59: 0.06583184123 | S59: 0.06739021629 | T59: 0.07087183876 | U59: 0.07814927532 | V59: 0.07518484778 | W59: 0.07601781281 | X59: 0.07503359282 | Y59: 0.0731689044 | Z59: 0.07697586105 | AA59: 0.08083992204 | AB59: 0.07821066189 | AC59: 0.07938382182 | AD59: 0.07500130992 | AE59: 0.07723068854 | AF59: 0.08326517451 | AG59: 0.08468261367
A61: TOTAL VARIABLE COST | C61: =AVERAGE(J61:AG61) -> 39.54764696 | E61: €/MWh | J61: =SUM(J57:J59) -> 39.28098565 | K61: 39.53424849 | L61: 39.53172378 | M61: 39.53579672 | N61: 39.53898081 | O61: 39.54408445 | P61: 39.54549299 | Q61: 39.5581815 | R61: 39.55688149 | S61: 39.55843986 | T61: 39.56192148 | U61: 39.56919892 | V61: 39.56623449 | W61: 39.56706746 | X61: 39.56608324 | Y61: 39.56421855 | Z61: 39.56802551 | AA61: 39.57188957 | AB61: 39.56926031 | AC61: 39.57043347 | AD61: 39.56605096 | AE61: 39.56828033 | AF61: 39.57431482 | AG61: 39.57573226
A63: Unavaibility Cost | C63: =AVERAGE(J63:AG63) -> 0.9058833426 | E63: €/MWh | J63: =J26/(J8*J9) -> 0.9117114766 | K63: 0.9056299454 | L63: 0.9056299454 | M63: 0.9056299454 | N63: 0.9056299454 | O63: 0.9056299454 | P63: 0.9056299454 | Q63: 0.9056299454 | R63: 0.9056299454 | S63: 0.9056299454 | T63: 0.9056299454 | U63: 0.9056299454 | V63: 0.9056299454 | W63: 0.9056299454 | X63: 0.9056299454 | Y63: 0.9056299454 | Z63: 0.9056299454 | AA63: 0.9056299454 | AB63: 0.9056299454 | AC63: 0.9056299454 | AD63: 0.9056299454 | AE63: 0.9056299454 | AF63: 0.9056299454 | AG63: 0.9056299454
A65: Fix Cost O&M | C65: =AVERAGE(J65:AG65) -> 5.870892286 | E65: €/MWh | J65: =+J41/(J8*J9) -> 4.955584783 | K65: 5.088700955 | L65: 5.155120019 | M65: 5.222628558 | N65: 5.291244776 | O65: 5.360987191 | P65: 5.431874634 | Q65: 5.503926259 | R65: 5.577161545 | S65: 5.651600306 | T65: 5.727262692 | U65: 5.804169199 | V65: 5.882340672 | W65: 5.961798313 | X65: 6.042563686 | Y65: 6.124658726 | Z65: 6.20810574 | AA65: 6.292927418 | AB65: 6.379146842 | AC65: 6.466787484 | AD65: 6.555873221 | AE65: 6.646428341 | AF65: 6.738477545 | AG65: 6.832045959
A67: TOTAL COST | C67: =AVERAGE(J67:AG67) -> 46.32442259 | E67: €/MWh | J67: =+J61+J65+J63 -> 45.14828191 | K67: 45.52857939 | L67: 45.59247375 | M67: 45.66405522 | N67: 45.73585553 | O67: 45.81070159 | P67: 45.88299757 | Q67: 45.9677377 | R67: 46.03967298 | S67: 46.11567011 | T67: 46.19481412 | U67: 46.27899807 | V67: 46.35420511 | W67: 46.43449572 | X67: 46.51427687 | Y67: 46.59450722 | Z67: 46.68176119 | AA67: 46.77044693 | AB67: 46.85403709 | AC67: 46.9428509 | AD67: 47.02755412 | AE67: 47.12033862 | AF67: 47.21842231 | AG67: 47.31340816
A69: Production | E69: MWh | J69: =J8*J9 -> 1839041.25 | K69: 3628462.5 | L69: 3628462.5 | M69: 3628462.5 | N69: 3628462.5 | O69: 3628462.5 | P69: 3628462.5 | Q69: 3628462.5 | R69: 3628462.5 | S69: 3628462.5 | T69: 3628462.5 | U69: 3628462.5 | V69: 3628462.5 | W69: 3628462.5 | X69: 3628462.5 | Y69: 3628462.5 | Z69: 3628462.5 | AA69: 3628462.5 | AB69: 3628462.5 | AC69: 3628462.5 | AD69: 3628462.5 | AE69: 3628462.5 | AF69: 3628462.5 | AG69: 3628462.5

Sheet Capex
E1: Capex Sheet
C3: Total
C4: Average | E4: Pre Période | F4: =Input!D15 -> 2006 | G4: =F4+1 -> 2007 | H4: =G4+1 -> 2008 | I4: 2009 | J4: 2010 | K4: 2011 | L4: 2012 | M4: 2013 | N4: 2014 | O4: 2015 | P4: 2016 | Q4: 2017 | R4: 2018 | S4: 2019 | T4: 2020 | U4: 2021 | V4: 2022 | W4: 2023 | X4: 2024 | Y4: =X4+1 -> 2025 | Z4: 2026 | AA4: 2027 | AB4: =AA4+1 -> 2028 | AC4: 2029 | AD4: 2030 | AE4: 2031 | AF4: 2032 | AG4: 2033 | AH4: =AG4+1 -> 2034 | AI4: 2035 | AJ4: 2036 | AK4: 2037 | AL4: 2038 | AM4: 2039 | AN4: 2040 | AO4: 2041 | AP4: 2042
A5: =Input!$A$6 -> Scen SOREGIES spot 2005-Scen Gaz SOREGIES CATA | C5: Maximum | E5: Single Counter | F5: 1 | G5: 2 | H5: 3 | I5: 4 | J5: 5 | K5: 6 | L5: 7 | M5: 8 | N5: 9 | O5: 10 | P5: 11 | Q5: 12 | R5: 13 | S5: 14 | T5: 15 | U5: 16 | V5: 17 | W5: 18 | X5: 19 | Y5: 20 | Z5: 21 | AA5: 22 | AB5: 23 | AC5: 24 | AD5: 25 | AE5: 26 | AF5: 27 | AG5: 28 | AH5: 29 | AI5: 30 | AJ5: 31 | AK5: 32 | AL5: 33 | AM5: 34 | AN5: 35 | AO5: 36 | AP5: 37
A6: Capex
A7: CCGT | C7: =SUM(F7:AQ7) -> 471711220.8 | F7: =Input!$D$47*INDEX('Static Data'!$D$4:$AN$4,1,Capex!F5)*Work!F20 -> 59216.68816 | G7: =Input!$D$47*INDEX('Static Data'!$D$4:$AN$4,1,Capex!G5)*Work!G20 -> 94292664.88 | H7: =Input!$D$47*INDEX('Static Data'!$D$4:$AN$4,1,Capex!H5)*Work!H20 -> 212264628.3 | I7: =Input!$D$47*INDEX('Static Data'!$D$4:$AN$4,1,Capex!I5)*Work!I20 -> 165094710.9 | J7: =Input!$D$47*INDEX('Static Data'!$D$4:$AN$4,1,Capex!J5)*Work!J20 -> 0 | K7: =Input!$D$47*INDEX('Static Data'!$D$4:$AN$4,1,Capex!K5)*Work!K20 -> 0 | L7: =Input!$D$47*INDEX('Static Data'!$D$4:$AN$4,1,Capex!L5)*Work!L20 -> 0 | M7: =Input!$D$47*INDEX('Static Data'!$D$4:$AN$4,1,Capex!M5)*Work!M20 -> 0 | N7: =Input!$D$47*INDEX('Static Data'!$D$4:$AN$4,1,Capex!N5)*Work!N20 -> 0 | O7: =Input!$D$47*INDEX('Static Data'!$D$4:$AN$4,1,Capex!O5)*Work!O20 -> 0 | P7: =Input!$D$47*INDEX('Static Data'!$D$4:$AN$4,1,Capex!P5)*Work!P20 -> 0 | Q7: =Input!$D$47*INDEX('Static Data'!$D$4:$AN$4,1,Capex!Q5)*Work!Q20 -> 0 | R7: =Input!$D$47*INDEX('Static Data'!$D$4:$AN$4,1,Capex!R5)*Work!R20 -> 0 | S7: =Input!$D$47*INDEX('Static Data'!$D$4:$AN$4,1,Capex!S5)*Work!S20 -> 0 | T7: =Input!$D$47*INDEX('Static Data'!$D$4:$AN$4,1,Capex!T5)*Work!T20 -> 0 | U7: =Input!$D$47*INDEX('Static Data'!$D$4:$AN$4,1,Capex!U5)*Work!U20 -> 0 | V7: =Input!$D$47*INDEX('Static Data'!$D$4:$AN$4,1,Capex!V5)*Work!V20 -> 0 | W7: =Input!$D$47*INDEX('Static Data'!$D$4:$AN$4,1,Capex!W5)*Work!W20 -> 0 | X7: =Input!$D$47*INDEX('Static Data'!$D$4:$AN$4,1,Capex!X5)*Work!X20 -> 0 | Y7: =Input!$D$47*INDEX('Static Data'!$D$4:$AN$4,1,Capex!Y5)*Work!Y20 -> 0 | Z7: =Input!$D$47*INDEX('Static Data'!$D$4:$AN$4,1,Capex!Z5)*Work!Z20 -> 0 | AA7: =Input!$D$47*INDEX('Static Data'!$D$4:$AN$4,1,Capex!AA5)*Work!AA20 -> 0 | AB7: =Input!$D$47*INDEX('Static Data'!$D$4:$AN$4,1,Capex!AB5)*Work!AB20 -> 0 | AC7: =Input!$D$47*INDEX('Static Data'!$D$4:$AN$4,1,Capex!AC5)*Work!AC20 -> 0 | AD7: =Input!$D$47*INDEX('Static Data'!$D$4:$AN$4,1,Capex!AD5)*Work!AD20 -> 0 | AE7: =Input!$D$47*INDEX('Static Data'!$D$4:$AN$4,1,Capex!AE5)*Work!AE20 -> 0 | AF7: =Input!$D$47*INDEX('Static Data'!$D$4:$AN$4,1,Capex!AF5)*Work!AF20 -> 0 | AG7: =Input!$D$47*INDEX('Static Data'!$D$4:$AN$4,1,Capex!AG5)*Work!AG20 -> 0 | AH7: =Input!$D$47*INDEX('Static Data'!$D$4:$AN$4,1,Capex!AH5)*Work!AH20 -> 0 | AI7: =Input!$D$47*INDEX('Static Data'!$D$4:$AN$4,1,Capex!AI5)*Work!AI20 -> 0 | AJ7: =Input!$D$47*INDEX('Static Data'!$D$4:$AN$4,1,Capex!AJ5)*Work!AJ20 -> 0 | AK7: =Input!$D$47*INDEX('Static Data'!$D$4:$AN$4,1,Capex!AK5)*Work!AK20 -> 0 | AL7: =Input!$D$47*INDEX('Static Data'!$D$4:$AN$4,1,Capex!AL5)*Work!AL20 -> 0 | AM7: =Input!$D$47*INDEX('Static Data'!$D$4:$AN$4,1,Capex!AM5)*Work!AM20 -> 0 | AN7: =Input!$D$47*INDEX('Static Data'!$D$4:$AN$4,1,Capex!AN5)*Work!AN20 -> 0 | AO7: =Input!$D$47*INDEX('Static Data'!$D$4:$AN$4,1,Capex!AO5)*Work!AO20 -> 0 | AP7: =Input!$D$47*INDEX('Static Data'!$D$4:$AN$4,1,Capex!AP5)*Work!AP20 -> 0
A8: Total Capex | C8: =SUM(F8:AQ8) -> 471711220.8 | F8: =SUM(F7:F7) -> 59216.68816 | G8: 94292664.88 | H8: 212264628.3 | I8: 165094710.9 | J8: 0 | K8: 0 | L8: 0 | M8: 0 | N8: 0 | O8: 0 | P8: 0 | Q8: 0 | R8: 0 | S8: 0 | T8: 0 | U8: 0 | V8: 0 | W8: 0 | X8: 0 | Y8: 0 | Z8: 0 | AA8: 0 | AB8: 0 | AC8: 0 | AD8: 0 | AE8: 0 | AF8: 0 | AG8: 0 | AH8: 0 | AI8: 0 | AJ8: 0 | AK8: 0 | AL8: 0 | AM8: 0 | AN8: 0 | AO8: 0 | AP8: 0
A10: Basis For Depreciation | C10: =SUM(F10:AQ10) -> 471711220.8 | F10: =F8 -> 59216.68816 | G10: =G8 -> 94292664.88 | H10: =H8 -> 212264628.3 | I10: 165094710.9 | J10: 0 | K10: 0 | L10: 0 | M10: 0 | N10: 0 | O10: 0 | P10: 0 | Q10: 0 | R10: 0 | S10: 0 | T10: 0 | U10: 0 | V10: 0 | W10: 0 | X10: 0 | Y10: 0 | Z10: 0 | AA10: 0 | AB10: 0 | AC10: 0 | AD10: 0 | AE10: 0 | AF10: 0 | AG10: 0 | AH10: =AH8 -> 0 | AI10: 0 | AJ10: 0 | AK10: 0 | AL10: 0 | AM10: 0 | AN10: 0 | AO10: 0 | AP10: 0

Sheet Tax
E1: Tax Sheet
C3: Total
C4: Average | E4: Pre Période | F4: =Input!D15 -> 2006 | G4: =F4+1 -> 2007 | H4: =G4+1 -> 2008 | I4: 2009 | J4: 2010 | K4: 2011 | L4: 2012 | M4: 2013 | N4: 2014 | O4: 2015 | P4: 2016 | Q4: 2017 | R4: 2018 | S4: 2019 | T4: 2020 | U4: 2021 | V4: 2022 | W4: 2023 | X4: 2024 | Y4: =X4+1 -> 2025 | Z4: 2026 | AA4: 2027 | AB4: =AA4+1 -> 2028 | AC4: 2029 | AD4: 2030 | AE4: 2031 | AF4: 2032 | AG4: =AF4+1 -> 2033 | AH4: 2034 | AI4: 2035 | AJ4: 2036 | AK4: 2037 | AL4: 2038 | AM4: 2039 | AN4: =AM4+1 -> 2040 | AO4: =AN4+1 -> 2041 | AP4: =AO4+1 -> 2042
A5: =Input!$A$6 -> Scen SOREGIES spot 2005-Scen Gaz SOREGIES CATA | C5: Maximum | E5: Single Counter | F5: 1 | G5: 2 | H5: 3 | I5: 4 | J5: 5 | K5: 6 | L5: 7 | M5: 8 | N5: 9 | O5: 10 | P5: 11 | Q5: 12 | R5: 13 | S5: 14 | T5: 15 | U5: 16 | V5: 17 | W5: 18 | X5: 19 | Y5: 20 | Z5: 21 | AA5: 22 | AB5: 23 | AC5: 24 | AD5: 25 | AE5: 26 | AF5: 27 | AG5: 28 | AH5: 29 | AI5: 30 | AJ5: 31 | AK5: 32 | AL5: 33 | AM5: 34 | AN5: 35 | AO5: 36 | AP5: 37
A6: Tax
A7: =Operations!A13 -> Total CA | D7: =Operations!D13 -> 0 | H7: =Operations!H13 -> 0 | I7: =Operations!I13 -> 0 | J7: =Operations!J13 -> 122149119.8 | K7: =Operations!K13 -> 241002479.2 | L7: =Operations!L13 -> 241002479.2 | M7: =Operations!M13 -> 241002479.2 | N7: =Operations!N13 -> 241002479.2 | O7: =Operations!O13 -> 241002479.2 | P7: =Operations!P13 -> 241002479.2 | Q7: =Operations!Q13 -> 241002479.2 | R7: =Operations!R13 -> 241002479.2 | S7: =Operations!S13 -> 241002479.2 | T7: =Operations!T13 -> 241002479.2 | U7: =Operations!U13 -> 241002479.2 | V7: =Operations!V13 -> 241002479.2 | W7: =Operations!W13 -> 241002479.2 | X7: =Operations!X13 -> 241002479.2 | Y7: =Operations!Y13 -> 241002479.2 | Z7: =Operations!Z13 -> 241002479.2 | AA7: =Operations!AA13 -> 241002479.2 | AB7: =Operations!AB13 -> 241002479.2 | AC7: =Operations!AC13 -> 241002479.2 | AD7: =Operations!AD13 -> 241002479.2 | AE7: =Operations!AE13 -> 241002479.2 | AF7: =Operations!AF13 -> 241002479.2 | AG7: =Operations!AG13 -> 241002479.2 | AH7: =Operations!AH13 -> 251887866.7 | AI7: =Operations!AI13 -> 125943933.4 | AJ7: =Operations!AJ13 -> 0 | AK7: =Operations!AK13 -> 0 | AL7: =Operations!AL13 -> 0 | AM7: =Operations!AM13 -> 0 | AN7: =Operations!AN13 -> 0 | AO7: =Operations!AO13 -> 0 | AP7: =Operations!AP13 -> 0
A8: =Operations!A44 -> Total Cost | H8: =Operations!H44 -> 0 | I8: =Operations!I44 -> 0 | J8: =Operations!J44 -> 83032580.38 | K8: =Operations!K44 -> 165204716.5 | L8: =Operations!L44 -> 165436554.7 | M8: =Operations!M44 -> 165696285.4 | N8: =Operations!N44 -> 165956810.2 | O8: =Operations!O44 -> 166228386.3 | P8: =Operations!P44 -> 166490709.5 | Q8: =Operations!Q44 -> 166798185.9 | R8: =Operations!R44 -> 167059200.4 | S8: =Operations!S44 -> 167334953.1 | T8: =Operations!T44 -> 167622124.2 | U8: =Operations!U44 -> 167927582.5 | V8: =Operations!V44 -> 168200468.4 | W8: =Operations!W44 -> 168491799.9 | X8: =Operations!X44 -> 168781282.8 | Y8: =Operations!Y44 -> 169072395.6 | Z8: =Operations!Z44 -> 169388993.4 | AA8: =Operations!AA44 -> 169710786.3 | AB8: =Operations!AB44 -> 170014090 | AC8: =Operations!AC44 -> 170336347.6 | AD8: =Operations!AD44 -> 170643690.1 | AE8: =Operations!AE44 -> 170980355.1 | AF8: =Operations!AF44 -> 171336248.1 | AG8: =Operations!AG44 -> 171680900.7 | AH8: =Operations!AH44 -> 172034784.3 | AI8: =Operations!AI44 -> 84702920.42 | AJ8: =Operations!AJ44 -> 0 | AK8: =Operations!AK44 -> 0 | AL8: =Operations!AL44 -> 0 | AM8: =Operations!AM44 -> 0 | AN8: =Operations!AN44 -> 0 | AO8: =Operations!AO44 -> 0 | AP8: =Operations!AP44 -> 0
A9: =Operations!A47 -> Operating Profit (EBITDA) | C9: =Operations!C47 -> 1832874791 | F9: =Operations!F47 -> 0 | G9: =Operations!G47 -> 0 | H9: =Operations!H47 -> 0 | I9: =Operations!I47 -> 0 | J9: =Operations!J47 -> 39116539.44 | K9: =Operations!K47 -> 75797762.78 | L9: =Operations!L47 -> 75565924.51 | M9: =Operations!M47 -> 75306193.83 | N9: =Operations!N47 -> 75045669.1 | O9: =Operations!O47 -> 74774092.97 | P9: =Operations!P47 -> 74511769.73 | Q9: =Operations!Q47 -> 74204293.33 | R9: =Operations!R47 -> 73943278.87 | S9: =Operations!S47 -> 73667526.12 | T9: =Operations!T47 -> 73380355.05 | U9: =Operations!U47 -> 73074896.77 | V9: =Operations!V47 -> 72802010.82 | W9: =Operations!W47 -> 72510679.37 | X9: =Operations!X47 -> 72221196.45 | Y9: =Operations!Y47 -> 71930083.63 | Z9: =Operations!Z47 -> 71613485.87 | AA9: =Operations!AA47 -> 71291692.98 | AB9: =Operations!AB47 -> 70988389.21 | AC9: =Operations!AC47 -> 70666131.66 | AD9: =Operations!AD47 -> 70358789.18 | AE9: =Operations!AE47 -> 70022124.11 | AF9: =Operations!AF47 -> 69666231.12 | AG9: =Operations!AG47 -> 69321578.51 | AH9: =Operations!AH47 -> 79853082.44 | AI9: =Operations!AI47 -> 41241012.95 | AJ9: =Operations!AJ47 -> 0 | AK9: =Operations!AK47 -> 0 | AL9: =Operations!AL47 -> 0 | AM9: =Operations!AM47 -> 0 | AN9: =Operations!AN47 -> 0 | AO9: =Operations!AO47 -> 0 | AP9: =Operations!AP47 -> 0
A10: Interest received | C10: =SUM(F10:AQ10) -> 0 | F10: =DSRA!F22 -> 0 | G10: =DSRA!G22 -> 0 | H10: =DSRA!H22 -> 0 | I10: =DSRA!I22 -> 0 | J10: =DSRA!J22 -> 0 | K10: =DSRA!K22 -> 0 | L10: =DSRA!L22 -> 0 | M10: =DSRA!M22 -> 0 | N10: =DSRA!N22 -> 0 | O10: =DSRA!O22 -> 0 | P10: =DSRA!P22 -> 0 | Q10: =DSRA!Q22 -> 0 | R10: =DSRA!R22 -> 0 | S10: =DSRA!S22 -> 0 | T10: =DSRA!T22 -> 0 | U10: =DSRA!U22 -> 0 | V10: =DSRA!V22 -> 0 | W10: =DSRA!W22 -> 0 | X10: =DSRA!X22 -> 0 | Y10: =DSRA!Y22 -> 0 | Z10: =DSRA!Z22 -> 0 | AA10: =DSRA!AA22 -> 0 | AB10: =DSRA!AB22 -> 0 | AC10: =DSRA!AC22 -> 0 | AD10: =DSRA!AD22 -> 0 | AE10: =DSRA!AE22 -> 0 | AF10: =DSRA!AF22 -> 0 | AG10: =DSRA!AG22 -> 0 | AH10: =DSRA!AH22 -> 0 | AI10: =DSRA!AI22 -> 0 | AJ10: =DSRA!AJ22 -> 0 | AK10: =DSRA!AK22 -> 0 | AL10: =DSRA!AL22 -> 0 | AM10: =DSRA!AM22 -> 0 | AN10: =DSRA!AN22 -> 0 | AO10: =DSRA!AO22 -> 0 | AP10: =DSRA!AP22 -> 0
A12: Interest On debt (not capitalized) | F12: =Finance!F68-Work!F35 -> 0 | G12: =Finance!G68-Work!G35 -> 0 | H12: =Finance!H68-Work!H35 -> 0 | I12: =Finance!I68-Work!I35 -> 0 | J12: =Finance!J68-Work!J35 -> 0 | K12: =Finance!K68-Work!K35 -> 0 | L12: =Finance!L68-Work!L35 -> 0 | M12: =Finance!M68-Work!M35 -> 0 | N12: =Finance!N68-Work!N35 -> 0 | O12: =Finance!O68-Work!O35 -> 0 | P12: =Finance!P68-Work!P35 -> 0 | Q12: =Finance!Q68-Work!Q35 -> 0 | R12: =Finance!R68-Work!R35 -> 0 | S12: =Finance!S68-Work!S35 -> 0 | T12: =Finance!T68-Work!T35 -> 0 | U12: =Finance!U68-Work!U35 -> 0 | V12: =Finance!V68-Work!V35 -> 0 | W12: =Finance!W68-Work!W35 -> 0 | X12: =Finance!X68-Work!X35 -> 0 | Y12: =Finance!Y68-Work!Y35 -> 0 | Z12: =Finance!Z68-Work!Z35 -> 0 | AA12: =Finance!AA68-Work!AA35 -> 0 | AB12: =Finance!AB68-Work!AB35 -> 0 | AC12: =Finance!AC68-Work!AC35 -> 0 | AD12: =Finance!AD68-Work!AD35 -> 0 | AE12: =Finance!AE68-Work!AE35 -> 0 | AF12: =Finance!AF68-Work!AF35 -> 0 | AG12: =Finance!AG68-Work!AG35 -> 0 | AH12: =Finance!AH68-Work!AH35 -> 0 | AI12: =Finance!AI68-Work!AI35 -> 0 | AJ12: =Finance!AJ68-Work!AJ35 -> 0 | AK12: =Finance!AK68-Work!AK35 -> 0 | AL12: =Finance!AL68-Work!AL35 -> 0 | AM12: =Finance!AM68-Work!AM35 -> 0 | AN12: =Finance!AN68-Work!AN35 -> 0 | AO12: =Finance!AO68-Work!AO35 -> 0 | AP12: =Finance!AP68-Work!AP35 -> 0
A13: ="Trade Taxe ("&Input!D70&")" -> Trade Taxe (0,035) | C13: =SUM(F13:AQ13) -> 64150617.68 | F13: =Tax!F9*Input!$D$70 -> 0 | G13: =Tax!G9*Input!$D$70 -> 0 | H13: =Tax!H9*Input!$D$70 -> 0 | I13: =Tax!I9*Input!$D$70 -> 0 | J13: =Tax!J9*Input!$D$70 -> 1369078.88 | K13: =Tax!K9*Input!$D$70 -> 2652921.697 | L13: =Tax!L9*Input!$D$70 -> 2644807.358 | M13: =Tax!M9*Input!$D$70 -> 2635716.784 | N13: =Tax!N9*Input!$D$70 -> 2626598.418 | O13: =Tax!O9*Input!$D$70 -> 2617093.254 | P13: =Tax!P9*Input!$D$70 -> 2607911.94 | Q13: =Tax!Q9*Input!$D$70 -> 2597150.266 | R13: =Tax!R9*Input!$D$70 -> 2588014.761 | S13: =Tax!S9*Input!$D$70 -> 2578363.414 | T13: =Tax!T9*Input!$D$70 -> 2568312.427 | U13: =Tax!U9*Input!$D$70 -> 2557621.387 | V13: =Tax!V9*Input!$D$70 -> 2548070.379 | W13: =Tax!W9*Input!$D$70 -> 2537873.778 | X13: =Tax!X9*Input!$D$70 -> 2527741.876 | Y13: =Tax!Y9*Input!$D$70 -> 2517552.927 | Z13: =Tax!Z9*Input!$D$70 -> 2506472.005 | AA13: =Tax!AA9*Input!$D$70 -> 2495209.254 | AB13: =Tax!AB9*Input!$D$70 -> 2484593.622 | AC13: =Tax!AC9*Input!$D$70 -> 2473314.608 | AD13: =Tax!AD9*Input!$D$70 -> 2462557.621 | AE13: =Tax!AE9*Input!$D$70 -> 2450774.344 | AF13: =Tax!AF9*Input!$D$70 -> 2438318.089 | AG13: =Tax!AG9*Input!$D$70 -> 2426255.248 | AH13: =Tax!AH9*Input!$D$70 -> 2794857.885 | AI13: =Tax!AI9*Input!$D$70 -> 1443435.453 | AJ13: =Tax!AJ9*Input!$D$70 -> 0 | AK13: =Tax!AK9*Input!$D$70 -> 0 | AL13: =Tax!AL9*Input!$D$70 -> 0 | AM13: =Tax!AM9*Input!$D$70 -> 0 | AN13: =Tax!AN9*Input!$D$70 -> 0 | AO13: =Tax!AO9*Input!$D$70 -> 0 | AP13: =Tax!AP9*Input!$D$70 -> 0
A14: =Work!A37 -> Depreciation on Material Assets | C14: =SUM(F14:AQ14) -> 471711220.8 | F14: =Work!F37 -> 0 | G14: =Work!G37 -> 0 | H14: =Work!H37 -> 0 | I14: =Work!I37 -> 0 | J14: =Work!J37 -> 9434224.415 | K14: =Work!K37 -> 18868448.83 | L14: =Work!L37 -> 18868448.83 | M14: =Work!M37 -> 18868448.83 | N14: =Work!N37 -> 18868448.83 | O14: =Work!O37 -> 18868448.83 | P14: =Work!P37 -> 18868448.83 | Q14: =Work!Q37 -> 18868448.83 | R14: =Work!R37 -> 18868448.83 | S14: =Work!S37 -> 18868448.83 | T14: =Work!T37 -> 18868448.83 | U14: =Work!U37 -> 18868448.83 | V14: =Work!V37 -> 18868448.83 | W14: =Work!W37 -> 18868448.83 | X14: =Work!X37 -> 18868448.83 | Y14: =Work!Y37 -> 18868448.83 | Z14: =Work!Z37 -> 18868448.83 | AA14: =Work!AA37 -> 18868448.83 | AB14: =Work!AB37 -> 18868448.83 | AC14: =Work!AC37 -> 18868448.83 | AD14: =Work!AD37 -> 18868448.83 | AE14: =Work!AE37 -> 18868448.83 | AF14: =Work!AF37 -> 18868448.83 | AG14: =Work!AG37 -> 18868448.83 | AH14: =Work!AH37 -> 18868448.83 | AI14: =Work!AI37 -> 9434224.415 | AJ14: =Work!AJ37 -> 0 | AK14: =Work!AK37 -> 0 | AL14: =Work!AL37 -> 0 | AM14: =Work!AM37 -> 0 | AN14: =Work!AN37 -> 0 | AO14: =Work!AO37 -> 0 | AP14: =Work!AP37 -> 0
A15: Earnings before Tax | C15: =SUM(F15:AQ15) -> 1297012952 | F15: =F9+F10-F12-F13-F14 -> 0 | G15: =G9+G10-G12-G13-G14 -> 0 | H15: 0 | I15: 0 | J15: 28313236.15 | K15: 54276392.25 | L15: 54052668.32 | M15: 53802028.21 | N15: 53550621.85 | O15: 53288550.89 | P15: 53035408.95 | Q15: 52738694.23 | R15: 52486815.28 | S15: 52220713.87 | T15: 51943593.79 | U15: 51648826.55 | V15: 51385491.61 | W15: 51104356.76 | X15: 50825005.74 | Y15: 50544081.87 | Z15: 50238565.03 | AA15: 49928034.9 | AB15: 49635346.76 | AC15: 49324368.22 | AD15: 49027782.73 | AE15: 48702900.94 | AF15: 48359464.2 | AG15: 48026874.43 | AH15: 58189775.72 | AI15: 30363353.08 | AJ15: 0 | AK15: 0 | AL15: 0 | AM15: 0 | AN15: 0 | AO15: 0 | AP15: 0
A17: Loss carried forward (if figure <0) | F17: =MIN(0,E17+F15) -> 0 | G17: =MIN(0,F17+G15) -> 0 | H17: 0 | I17: 0 | J17: 0 | K17: 0 | L17: 0 | M17: 0 | N17: 0 | O17: 0 | P17: 0 | Q17: 0 | R17: 0 | S17: 0 | T17: 0 | U17: 0 | V17: 0 | W17: 0 | X17: 0 | Y17: 0 | Z17: 0 | AA17: 0 | AB17: 0 | AC17: 0 | AD17: 0 | AE17: 0 | AF17: 0 | AG17: 0 | AH17: 0 | AI17: 0 | AJ17: 0 | AK17: 0 | AL17: 0 | AM17: 0 | AN17: 0 | AO17: 0 | AP17: 0
A18: Basis for Tax Payments | F18: =MAX(0,E17+F15) -> 0 | G18: =MAX(0,F17+G15) -> 0 | H18: 0 | I18: 0 | J18: 28313236.15 | K18: 54276392.25 | L18: 54052668.32 | M18: 53802028.21 | N18: 53550621.85 | O18: 53288550.89 | P18: 53035408.95 | Q18: 52738694.23 | R18: 52486815.28 | S18: 52220713.87 | T18: 51943593.79 | U18: 51648826.55 | V18: 51385491.61 | W18: 51104356.76 | X18: 50825005.74 | Y18: 50544081.87 | Z18: 50238565.03 | AA18: 49928034.9 | AB18: 49635346.76 | AC18: 49324368.22 | AD18: 49027782.73 | AE18: 48702900.94 | AF18: 48359464.2 | AG18: 48026874.43 | AH18: 58189775.72 | AI18: 30363353.08 | AJ18: 0 | AK18: 0 | AL18: 0 | AM18: 0 | AN18: 0 | AO18: 0 | AP18: 0
A20: Tax Payable | B20: =Input!D71 -> 0.3493 | C20: =AVERAGE(J20:AG20) -> 17588125.68 | F20: =F18*Input!$D$71 -> 0 | G20: =G18*Input!$D$71 -> 0 | H20: =H18*Input!$D$71 -> 0 | I20: =I18*Input!$D$71 -> 0 | J20: =J18*Input!$D$71 -> 9889813.385 | K20: =K18*Input!$D$71 -> 18958743.81 | L20: =L18*Input!$D$71 -> 18880597.05 | M20: =M18*Input!$D$71 -> 18793048.45 | N20: =N18*Input!$D$71 -> 18705232.21 | O20: =O18*Input!$D$71 -> 18613690.82 | P20: =P18*Input!$D$71 -> 18525268.35 | Q20: =Q18*Input!$D$71 -> 18421625.89 | R20: =R18*Input!$D$71 -> 18333644.58 | S20: =S18*Input!$D$71 -> 18240695.36 | T20: =T18*Input!$D$71 -> 18143897.31 | U20: =U18*Input!$D$71 -> 18040935.11 | V20: =V18*Input!$D$71 -> 17948952.22 | W20: =W18*Input!$D$71 -> 17850751.82 | X20: =X18*Input!$D$71 -> 17753174.5 | Y20: =Y18*Input!$D$71 -> 17655047.8 | Z20: =Z18*Input!$D$71 -> 17548330.76 | AA20: =AA18*Input!$D$71 -> 17439862.59 | AB20: =AB18*Input!$D$71 -> 17337626.62 | AC20: =AC18*Input!$D$71 -> 17229001.82 | AD20: =AD18*Input!$D$71 -> 17125404.51 | AE20: =AE18*Input!$D$71 -> 17011923.3 | AF20: =AF18*Input!$D$71 -> 16891960.85 | AG20: =AG18*Input!$D$71 -> 16775787.24 | AH20: =AH18*Input!$D$71 -> 20325688.66 | AI20: =AI18*Input!$D$71 -> 10605919.23 | AJ20: =AJ18*Input!$D$71 -> 0 | AK20: =AK18*Input!$D$71 -> 0 | AL20: =AL18*Input!$D$71 -> 0 | AM20: =AM18*Input!$D$71 -> 0 | AN20: =AN18*Input!$D$71 -> 0 | AO20: =AO18*Input!$D$71 -> 0 | AP20: =AP18*Input!$D$71 -> 0
A21: Tax paid | F21: =E20 -> 0 | G21: =F20 -> 0 | H21: 0 | I21: 0 | J21: 0 | K21: 9889813.385 | L21: 18958743.81 | M21: 18880597.05 | N21: 18793048.45 | O21: 18705232.21 | P21: 18613690.82 | Q21: 18525268.35 | R21: 18421625.89 | S21: 18333644.58 | T21: 18240695.36 | U21: 18143897.31 | V21: 18040935.11 | W21: 17948952.22 | X21: 17850751.82 | Y21: 17753174.5 | Z21: 17655047.8 | AA21: 17548330.76 | AB21: 17439862.59 | AC21: 17337626.62 | AD21: 17229001.82 | AE21: 17125404.51 | AF21: 17011923.3 | AG21: 16891960.85 | AH21: 16775787.24 | AI21: 20325688.66 | AJ21: 10605919.23 | AK21: 0 | AL21: 0 | AM21: 0 | AN21: 0 | AO21: 0 | AP21: 0
A25: Earnings after Tax | C25: =SUM(F25:AQ25) -> 843966328.1 | F25: =F15-F20 -> 0 | G25: =G15-G20 -> 0 | H25: 0 | I25: =I15-I20 -> 0 | J25: 18423422.76 | K25: 35317648.44 | L25: 35172071.28 | M25: 35008979.76 | N25: 34845389.64 | O25: 34674860.06 | P25: 34510140.61 | Q25: 34317068.34 | R25: 34153170.7 | S25: 33980018.52 | T25: 33799696.48 | U25: 33607891.44 | V25: 33436539.39 | W25: 33253604.94 | X25: 33071831.23 | Y25: 32889034.07 | Z25: 32690234.26 | AA25: 32488172.31 | AB25: 32297720.14 | AC25: 32095366.4 | AD25: 31902378.22 | AE25: 31690977.64 | AF25: 31467503.36 | AG25: 31251087.19 | AH25: 37864087.06 | AI25: 19757433.85 | AJ25: 0 | AK25: 0 | AL25: 0 | AM25: 0 | AN25: 0 | AO25: 0 | AP25: 0
A27: =Operations!A48 -> Operating CF (CASH EBITDA) | C27: =Operations!C48 -> 1832874791 | F27: =Operations!F48 -> 0 | G27: =Operations!G48 -> 0 | H27: =Operations!H48 -> 0 | I27: =Operations!I48 -> 0 | J27: =Operations!J48 -> 35856827.82 | K27: =Operations!K48 -> 72740994.17 | L27: =Operations!L48 -> 75585244.37 | M27: =Operations!M48 -> 75327838.05 | N27: =Operations!N48 -> 75067379.49 | O27: =Operations!O48 -> 74796724.32 | P27: =Operations!P48 -> 74533630 | Q27: =Operations!Q48 -> 74229916.36 | R27: =Operations!R48 -> 73965030.08 | S27: =Operations!S48 -> 73690505.51 | T27: =Operations!T48 -> 73404285.97 | U27: =Operations!U48 -> 73100351.62 | V27: =Operations!V48 -> 72824751.32 | W27: =Operations!W48 -> 72534956.99 | X27: =Operations!X48 -> 72245320.02 | Y27: =Operations!Y48 -> 71954343.03 | Z27: =Operations!Z48 -> 71639869.01 | AA27: =Operations!AA48 -> 71318509.06 | AB27: =Operations!AB48 -> 71013664.53 | AC27: =Operations!AC48 -> 70692986.46 | AD27: =Operations!AD48 -> 70384401.06 | AE27: =Operations!AE48 -> 70050179.53 | AF27: =Operations!AF48 -> 69695888.87 | AG27: =Operations!AG48 -> 69350299.56 | AH27: =Operations!AH48 -> 78975457.11 | AI27: =Operations!AI48 -> 44458685.41 | AJ27: =Operations!AJ48 -> 3436751.079 | AK27: =Operations!AK48 -> 0 | AL27: =Operations!AL48 -> 0 | AM27: =Operations!AM48 -> 0 | AN27: =Operations!AN48 -> 0 | AO27: =Operations!AO48 -> 0 | AP27: =Operations!AP48 -> 0
A28: Tax Paid (IS+TP) | C28: =SUM(F28:AQ28) -> 517197241.9 | F28: =F21+F13 -> 0 | G28: =G21+G13 -> 0 | H28: 0 | I28: =I21+I13 -> 0 | J28: 1369078.88 | K28: 12542735.08 | L28: 21603551.17 | M28: 21516313.83 | N28: 21419646.87 | O28: 21322325.47 | P28: 21221602.76 | Q28: 21122418.61 | R28: 21009640.66 | S28: 20912007.99 | T28: 20809007.78 | U28: 20701518.7 | V28: 20589005.49 | W28: 20486826 | X28: 20378493.69 | Y28: 20270727.43 | Z28: 20161519.8 | AA28: 20043540.02 | AB28: 19924456.21 | AC28: 19810941.23 | AD28: 19691559.44 | AE28: 19576178.85 | AF28: 19450241.39 | AG28: 19318216.09 | AH28: 19570645.13 | AI28: 21769124.11 | AJ28: 10605919.23 | AK28: 0 | AL28: 0 | AM28: 0 | AN28: 0 | AO28: 0 | AP28: 0
A29: Operating CF after Tax | C29: =SUM(F29:AQ29) -> 1315677549 | F29: =F27-F28 -> 0 | G29: =G27-G28 -> 0 | H29: 0 | I29: 0 | J29: 34487748.94 | K29: 60198259.09 | L29: 53981693.2 | M29: 53811524.22 | N29: 53647732.62 | O29: 53474398.85 | P29: 53312027.23 | Q29: 53107497.75 | R29: 52955389.42 | S29: 52778497.52 | T29: 52595278.19 | U29: 52398832.93 | V29: 52235745.83 | W29: 52048130.99 | X29: 51866826.33 | Y29: 51683615.6 | Z29: 51478349.21 | AA29: 51274969.04 | AB29: 51089208.31 | AC29: 50882045.23 | AD29: 50692841.62 | AE29: 50474000.68 | AF29: 50245647.48 | AG29: 50032083.47 | AH29: 59404811.99 | AI29: 22689561.3 | AJ29: -7169168.153 | AK29: 0 | AL29: 0 | AM29: 0 | AN29: 0 | AO29: 0 | AP29: 0

Sheet IRR
E1: IRR Sheet
C3: Total
C4: Average | E4: Pre Période | F4: =Input!D15 -> 2006 | G4: =F4+1 -> 2007 | H4: =G4+1 -> 2008 | I4: 2009 | J4: 2010 | K4: 2011 | L4: 2012 | M4: 2013 | N4: 2014 | O4: 2015 | P4: 2016 | Q4: 2017 | R4: 2018 | S4: 2019 | T4: 2020 | U4: 2021 | V4: 2022 | W4: 2023 | X4: 2024 | Y4: =X4+1 -> 2025 | Z4: 2026 | AA4: 2027 | AB4: =AA4+1 -> 2028 | AC4: 2029 | AD4: 2030 | AE4: 2031 | AF4: 2032 | AG4: =AF4+1 -> 2033 | AH4: 2034 | AI4: 2035 | AJ4: 2036 | AK4: 2037 | AL4: 2038 | AM4: 2039 | AN4: 2040 | AO4: 2041 | AP4: =AO4+1 -> 2042
A5: =Input!$A$6 -> Scen SOREGIES spot 2005-Scen Gaz SOREGIES CATA | C5: Maximum | E5: Single Counter | F5: 1 | G5: 2 | H5: 3 | I5: 4 | J5: 5 | K5: 6 | L5: 7 | M5: 8 | N5: 9 | O5: 10 | P5: 11 | Q5: 12 | R5: 13 | S5: 14 | T5: 15 | U5: 16 | V5: 17 | W5: 18 | X5: 19 | Y5: 20 | Z5: 21 | AA5: 22 | AB5: 23 | AC5: 24 | AD5: 25 | AE5: 26 | AF5: 27 | AG5: 28 | AH5: 29 | AI5: 30 | AJ5: 31 | AK5: 32 | AL5: 33 | AM5: 34 | AN5: 35 | AO5: 36 | AP5: 37
A7: Project IRR (excluding Debt after Tax)
A8: =Capex!A8 -> Total Capex | C8: =Capex!C8 -> 471711220.8 | F8: =Capex!F8 -> 59216.68816 | G8: =Capex!G8 -> 94292664.88 | H8: =Capex!H8 -> 212264628.3 | I8: =Capex!I8 -> 165094710.9 | J8: =Capex!J8 -> 0 | K8: =Capex!K8 -> 0 | L8: =Capex!L8 -> 0 | M8: =Capex!M8 -> 0 | N8: =Capex!N8 -> 0 | O8: =Capex!O8 -> 0 | P8: =Capex!P8 -> 0 | Q8: =Capex!Q8 -> 0 | R8: =Capex!R8 -> 0 | S8: =Capex!S8 -> 0 | T8: =Capex!T8 -> 0 | U8: =Capex!U8 -> 0 | V8: =Capex!V8 -> 0 | W8: =Capex!W8 -> 0 | X8: =Capex!X8 -> 0 | Y8: =Capex!Y8 -> 0 | Z8: =Capex!Z8 -> 0 | AA8: =Capex!AA8 -> 0 | AB8: =Capex!AB8 -> 0 | AC8: =Capex!AC8 -> 0 | AD8: =Capex!AD8 -> 0 | AE8: =Capex!AE8 -> 0 | AF8: =Capex!AF8 -> 0 | AG8: =Capex!AG8 -> 0 | AH8: =Capex!AH8 -> 0 | AI8: =Capex!AI8 -> 0 | AJ8: =Capex!AJ8 -> 0 | AK8: =Capex!AK8 -> 0 | AL8: =Capex!AL8 -> 0 | AM8: =Capex!AM8 -> 0 | AN8: =Capex!AN8 -> 0 | AO8: =Capex!AO8 -> 0 | AP8: =Capex!AP8 -> 0
A9: =Tax!A29 -> Operating CF after Tax | C9: =Tax!C29 -> 1315677549 | F9: =Tax!F29 -> 0 | G9: =Tax!G29 -> 0 | H9: =Tax!H29 -> 0 | I9: =Tax!I29 -> 0 | J9: =Tax!J29 -> 34487748.94 | K9: =Tax!K29 -> 60198259.09 | L9: =Tax!L29 -> 53981693.2 | M9: =Tax!M29 -> 53811524.22 | N9: =Tax!N29 -> 53647732.62 | O9: =Tax!O29 -> 53474398.85 | P9: =Tax!P29 -> 53312027.23 | Q9: =Tax!Q29 -> 53107497.75 | R9: =Tax!R29 -> 52955389.42 | S9: =Tax!S29 -> 52778497.52 | T9: =Tax!T29 -> 52595278.19 | U9: =Tax!U29 -> 52398832.93 | V9: =Tax!V29 -> 52235745.83 | W9: =Tax!W29 -> 52048130.99 | X9: =Tax!X29 -> 51866826.33 | Y9: =Tax!Y29 -> 51683615.6 | Z9: =Tax!Z29 -> 51478349.21 | AA9: =Tax!AA29 -> 51274969.04 | AB9: =Tax!AB29 -> 51089208.31 | AC9: =Tax!AC29 -> 50882045.23 | AD9: =Tax!AD29 -> 50692841.62 | AE9: =Tax!AE29 -> 50474000.68 | AF9: =Tax!AF29 -> 50245647.48 | AG9: =Tax!AG29 -> 50032083.47 | AH9: =Tax!AH29 -> 59404811.99 | AI9: =Tax!AI29 -> 22689561.3 | AJ9: =Tax!AJ29 -> -7169168.153 | AK9: =Tax!AK29 -> 0 | AL9: =Tax!AL29 -> 0 | AM9: =Tax!AM29 -> 0 | AN9: =Tax!AN29 -> 0 | AO9: =Tax!AO29 -> 0 | AP9: =Tax!AP29 -> 0
A11: Total Cash Flows | C11: =SUM(F11:AQ11) -> 843966328.1 | F11: =F9-F8 -> -59216.68816 | G11: =G9-G8 -> -94292664.88 | H11: -212264628.3 | I11: -165094710.9 | J11: 34487748.94 | K11: 60198259.09 | L11: 53981693.2 | M11: 53811524.22 | N11: 53647732.62 | O11: 53474398.85 | P11: 53312027.23 | Q11: 53107497.75 | R11: 52955389.42 | S11: 52778497.52 | T11: 52595278.19 | U11: 52398832.93 | V11: 52235745.83 | W11: 52048130.99 | X11: 51866826.33 | Y11: 51683615.6 | Z11: 51478349.21 | AA11: 51274969.04 | AB11: 51089208.31 | AC11: 50882045.23 | AD11: 50692841.62 | AE11: 50474000.68 | AF11: 50245647.48 | AG11: 50032083.47 | AH11: 59404811.99 | AI11: 22689561.3 | AJ11: -7169168.153 | AK11: 0 | AL11: 0 | AM11: 0 | AN11: 0 | AO11: 0 | AP11: 0
A14: Project IRR | C14: =IRR(F11:AQ11) -> 0.09025597814
A15: ="VAN "&Input!D66 -> VAN 0,07 | C15: =NPV(Input!D66,F11:AQ11) -> 81071596.22
A18: Equity IRR (after Tax)
A19: Drawdown on Equity | C19: =CF_Cascade!C9 -> 306616509.9 | F19: =CF_Cascade!F9 -> 59216.68816 | G19: =CF_Cascade!G9 -> 94292664.88 | H19: =CF_Cascade!H9 -> 212264628.3 | I19: =CF_Cascade!I9 -> 0 | J19: =CF_Cascade!J9 -> 0 | K19: =CF_Cascade!K9 -> 0 | L19: =CF_Cascade!L9 -> 0 | M19: =CF_Cascade!M9 -> 0 | N19: =CF_Cascade!N9 -> 0 | O19: =CF_Cascade!O9 -> 0 | P19: =CF_Cascade!P9 -> 0 | Q19: =CF_Cascade!Q9 -> 0 | R19: =CF_Cascade!R9 -> 0 | S19: =CF_Cascade!S9 -> 0 | T19: =CF_Cascade!T9 -> 0 | U19: =CF_Cascade!U9 -> 0 | V19: =CF_Cascade!V9 -> 0 | W19: =CF_Cascade!W9 -> 0 | X19: =CF_Cascade!X9 -> 0 | Y19: =CF_Cascade!Y9 -> 0 | Z19: =CF_Cascade!Z9 -> 0 | AA19: =CF_Cascade!AA9 -> 0 | AB19: =CF_Cascade!AB9 -> 0 | AC19: =CF_Cascade!AC9 -> 0 | AD19: =CF_Cascade!AD9 -> 0 | AE19: =CF_Cascade!AE9 -> 0 | AF19: =CF_Cascade!AF9 -> 0 | AG19: =CF_Cascade!AG9 -> 0 | AH19: =CF_Cascade!AH9 -> 0 | AI19: =CF_Cascade!AI9 -> 0 | AJ19: =CF_Cascade!AJ9 -> 0 | AK19: =CF_Cascade!AK9 -> 0 | AL19: =CF_Cascade!AL9 -> 0 | AM19: =CF_Cascade!AM9 -> 0 | AN19: =CF_Cascade!AN9 -> 0 | AO19: =CF_Cascade!AO9 -> 0 | AP19: =CF_Cascade!AP9 -> 0
A20: CF available for Distribution | C20: =CF_Cascade!C38:AM38 -> 1150582838 | F20: =CF_Cascade!F38:AP38 -> 0 | G20: =CF_Cascade!G38:AQ38 -> 0 | H20: =CF_Cascade!H38:AR38 -> 0 | I20: =CF_Cascade!I38:AS38 -> -165094710.9 | J20: =CF_Cascade!J38:AT38 -> 34487748.94 | K20: =CF_Cascade!K38:AU38 -> 60198259.09 | L20: =CF_Cascade!L38:AV38 -> 53981693.2 | M20: =CF_Cascade!M38:AW38 -> 53811524.22 | N20: =CF_Cascade!N38:AX38 -> 53647732.62 | O20: =CF_Cascade!O38:AY38 -> 53474398.85 | P20: =CF_Cascade!P38:AZ38 -> 53312027.23 | Q20: =CF_Cascade!Q38:BA38 -> 53107497.75 | R20: =CF_Cascade!R38:BB38 -> 52955389.42 | S20: =CF_Cascade!S38:BC38 -> 52778497.52 | T20: =CF_Cascade!T38:BD38 -> 52595278.19 | U20: =CF_Cascade!U38:BE38 -> 52398832.93 | V20: =CF_Cascade!V38:BF38 -> 52235745.83 | W20: =CF_Cascade!W38:BG38 -> 52048130.99 | X20: =CF_Cascade!X38:BH38 -> 51866826.33 | Y20: =CF_Cascade!Y38:BI38 -> 51683615.6 | Z20: =CF_Cascade!Z38:BJ38 -> 51478349.21 | AA20: =CF_Cascade!AA38:BK38 -> 51274969.04 | AB20: =CF_Cascade!AB38:BL38 -> 51089208.31 | AC20: =CF_Cascade!AC38:BM38 -> 50882045.23 | AD20: =CF_Cascade!AD38:BN38 -> 50692841.62 | AE20: =CF_Cascade!AE38:BO38 -> 50474000.68 | AF20: =CF_Cascade!AF38:BP38 -> 50245647.48 | AG20: =CF_Cascade!AG38:BQ38 -> 50032083.47 | AH20: =CF_Cascade!AH38:BR38 -> 59404811.99 | AI20: =CF_Cascade!AI38:BS38 -> 15520393.14 | AJ20: =CF_Cascade!AJ38:BT38 -> 0 | AK20: =CF_Cascade!AK38:BU38 -> 0 | AL20: =CF_Cascade!AL38:BV38 -> 0 | AM20: =CF_Cascade!AM38:BW38 -> 0 | AN20: =CF_Cascade!AN38:BX38 -> 0 | AO20: =CF_Cascade!AO38:BY38 -> 0 | AP20: =CF_Cascade!AP38:BZ38 -> 0
A22: Total Cash Flows | C22: =SUM(F22:AP22) -> 843966328.1 | F22: =F20-F19 -> -59216.68816 | G22: =G20-G19 -> -94292664.88 | H22: -212264628.3 | I22: -165094710.9 | J22: 34487748.94 | K22: =K20-K19 -> 60198259.09 | L22: 53981693.2 | M22: 53811524.22 | N22: 53647732.62 | O22: 53474398.85 | P22: 53312027.23 | Q22: 53107497.75 | R22: 52955389.42 | S22: 52778497.52 | T22: 52595278.19 | U22: 52398832.93 | V22: 52235745.83 | W22: 52048130.99 | X22: 51866826.33 | Y22: 51683615.6 | Z22: 51478349.21 | AA22: 51274969.04 | AB22: 51089208.31 | AC22: 50882045.23 | AD22: 50692841.62 | AE22: 50474000.68 | AF22: 50245647.48 | AG22: 50032083.47 | AH22: 59404811.99 | AI22: 15520393.14 | AJ22: 0 | AK22: 0 | AL22: 0 | AM22: 0 | AN22: 0 | AO22: 0 | AP22: 0
A24: Equity IRR | C24: =IRR(F22:AP22) -> 0.0902423538
A25: ="VAN "&Input!D66 -> VAN 0,07 | C25: =NPV(Input!D66,F22:AP22) -> 81009983.59

Sheet Finance
E1: Finance Sheet
C3: Total
C4: Average | E4: Pre Période | F4: =Input!D15 -> 2006 | G4: =F4+1 -> 2007 | H4: =G4+1 -> 2008 | I4: 2009 | J4: 2010 | K4: 2011 | L4: 2012 | M4: 2013 | N4: 2014 | O4: 2015 | P4: 2016 | Q4: 2017 | R4: 2018 | S4: 2019 | T4: 2020 | U4: 2021 | V4: 2022 | W4: 2023 | X4: 2024 | Y4: =X4+1 -> 2025 | Z4: 2026 | AA4: 2027 | AB4: =AA4+1 -> 2028 | AC4: 2029 | AD4: 2030 | AE4: 2031 | AF4: 2032 | AG4: 2033 | AH4: 2034 | AI4: 2035 | AJ4: 2036 | AK4: 2037 | AL4: 2038 | AM4: 2039 | AN4: 2040 | AO4: 2041 | AP4: =AO4+1 -> 2042
A5: =Input!$A$6 -> Scen SOREGIES spot 2005-Scen Gaz SOREGIES CATA | C5: Maximum | E5: Single Counter | F5: 1 | G5: 2 | H5: 3 | I5: 4 | J5: 5 | K5: 6 | L5: 7 | M5: 8 | N5: 9 | O5: 10 | P5: 11 | Q5: 12 | R5: 13 | S5: 14 | T5: 15 | U5: 16 | V5: 17 | W5: 18 | X5: 19 | Y5: 20 | Z5: 21 | AA5: 22 | AB5: 23 | AC5: 24 | AD5: 25 | AE5: 26 | AF5: 27 | AG5: 28 | AH5: 29 | AI5: 30 | AJ5: 31 | AK5: 32 | AL5: 33 | AM5: 34 | AN5: 35 | AO5: 36 | AP5: 37
A8: Funding Requirement (excl. Interest)
A10: =Capex!A8 -> Total Capex | C10: =Capex!C8 -> 471711220.8 | F10: =Capex!F8 -> 59216.68816 | G10: =Capex!G8 -> 94292664.88 | H10: =Capex!H8 -> 212264628.3 | I10: =Capex!I8 -> 165094710.9 | J10: =Capex!J8 -> 0 | K10: =Capex!K8 -> 0 | L10: =Capex!L8 -> 0 | M10: =Capex!M8 -> 0 | N10: =Capex!N8 -> 0 | O10: =Capex!O8 -> 0 | P10: =Capex!P8 -> 0 | Q10: =Capex!Q8 -> 0 | R10: =Capex!R8 -> 0 | S10: =Capex!S8 -> 0 | T10: =Capex!T8 -> 0 | U10: =Capex!U8 -> 0 | V10: =Capex!V8 -> 0 | W10: =Capex!W8 -> 0 | X10: =Capex!X8 -> 0 | Y10: =Capex!Y8 -> 0 | Z10: =Capex!Z8 -> 0 | AA10: =Capex!AA8 -> 0 | AB10: =Capex!AB8 -> 0 | AC10: =Capex!AC8 -> 0 | AD10: =Capex!AD8 -> 0 | AE10: =Capex!AE8 -> 0 | AF10: =Capex!AF8 -> 0 | AG10: =Capex!AG8 -> 0 | AH10: =Capex!AH8 -> 0 | AI10: =Capex!AI8 -> 0 | AJ10: =Capex!AJ8 -> 0 | AK10: =Capex!AK8 -> 0 | AL10: =Capex!AL8 -> 0 | AM10: =Capex!AM8 -> 0 | AN10: =Capex!AN8 -> 0 | AO10: =Capex!AO8 -> 0 | AP10: =Capex!AP8 -> 0
A11: Funding Requirement (excl. Interest) | C11: =SUM(F11:AP11) -> 471711220.8 | F11: =F10 -> 59216.68816 | G11: 94292664.88 | H11: 212264628.3 | I11: 165094710.9 | J11: 0 | K11: 0 | L11: 0 | M11: 0 | N11: 0 | O11: 0 | P11: 0 | Q11: 0 | R11: 0 | S11: 0 | T11: 0 | U11: 0 | V11: 0 | W11: 0 | X11: 0 | Y11: 0 | Z11: 0 | AA11: 0 | AB11: 0 | AC11: 0 | AD11: 0 | AE11: 0 | AF11: 0 | AG11: 0 | AH11: 0 | AI11: 0 | AJ11: 0 | AK11: 0 | AL11: 0 | AM11: 0 | AN11: 0 | AO11: 0 | AP11: 0
A14: Drawdowns on Equity and Debt (excl. Interest)
A16: Equity
A17: Total (End of Pre-Period) | C17: =MAX(F17:AP17) -> 306616509.9 | F17: =E59 -> 0 | G17: =F59 -> 59216.68816 | H17: =G59 -> 94351881.57 | I17: 306616509.9 | J17: 306616509.9 | K17: 306616509.9 | L17: 306616509.9 | M17: 306616509.9 | N17: 306616509.9 | O17: 306616509.9 | P17: 306616509.9 | Q17: 306616509.9 | R17: 306616509.9 | S17: 306616509.9 | T17: 306616509.9 | U17: 306616509.9 | V17: 306616509.9 | W17: 306616509.9 | X17: 306616509.9 | Y17: 306616509.9 | Z17: 306616509.9 | AA17: 306616509.9 | AB17: 306616509.9 | AC17: 306616509.9 | AD17: 306616509.9 | AE17: 306616509.9 | AF17: 306616509.9 | AG17: 306616509.9 | AH17: =AG59 -> 306616509.9 | AI17: 306616509.9 | AJ17: 306616509.9 | AK17: 306616509.9 | AL17: 306616509.9 | AM17: 306616509.9 | AN17: 306616509.9 | AO17: 306616509.9 | AP17: 306616509.9
A18: Maximum Equity available | C18: =MAX(F18:AP18) -> 471699174 | F18: =(Input!$D$52-Finance!F17)*Work!F53 -> 471699174 | G18: =(Input!$D$52-Finance!G17)*Work!G53 -> 471639957.3 | H18: =(Input!$D$52-Finance!H17)*Work!H53 -> 377347292.4 | I18: =(Input!$D$52-Finance!I17)*Work!I53 -> 0 | J18: =(Input!$D$52-Finance!J17)*Work!J53 -> 0 | K18: =(Input!$D$52-Finance!K17)*Work!K53 -> 0 | L18: =(Input!$D$52-Finance!L17)*Work!L53 -> 0 | M18: =(Input!$D$52-Finance!M17)*Work!M53 -> 0 | N18: =(Input!$D$52-Finance!N17)*Work!N53 -> 0 | O18: =(Input!$D$52-Finance!O17)*Work!O53 -> 0 | P18: =(Input!$D$52-Finance!P17)*Work!P53 -> 0 | Q18: =(Input!$D$52-Finance!Q17)*Work!Q53 -> 0 | R18: =(Input!$D$52-Finance!R17)*Work!R53 -> 0 | S18: =(Input!$D$52-Finance!S17)*Work!S53 -> 0 | T18: =(Input!$D$52-Finance!T17)*Work!T53 -> 0 | U18: =(Input!$D$52-Finance!U17)*Work!U53 -> 0 | V18: =(Input!$D$52-Finance!V17)*Work!V53 -> 0 | W18: =(Input!$D$52-Finance!W17)*Work!W53 -> 0 | X18: =(Input!$D$52-Finance!X17)*Work!X53 -> 0 | Y18: =(Input!$D$52-Finance!Y17)*Work!Y53 -> 0 | Z18: =(Input!$D$52-Finance!Z17)*Work!Z53 -> 0 | AA18: =(Input!$D$52-Finance!AA17)*Work!AA53 -> 0 | AB18: =(Input!$D$52-Finance!AB17)*Work!AB53 -> 0 | AC18: =(Input!$D$52-Finance!AC17)*Work!AC53 -> 0 | AD18: =(Input!$D$52-Finance!AD17)*Work!AD53 -> 0 | AE18: =(Input!$D$52-Finance!AE17)*Work!AE53 -> 0 | AF18: =(Input!$D$52-Finance!AF17)*Work!AF53 -> 0 | AG18: =(Input!$D$52-Finance!AG17)*Work!AG53 -> 0 | AH18: =(Input!$D$52-Finance!AH17)*Work!AH53 -> 0 | AI18: =(Input!$D$52-Finance!AI17)*Work!AI53 -> 0 | AJ18: =(Input!$D$52-Finance!AJ17)*Work!AJ53 -> 0 | AK18: =(Input!$D$52-Finance!AK17)*Work!AK53 -> 0 | AL18: =(Input!$D$52-Finance!AL17)*Work!AL53 -> 0 | AM18: =(Input!$D$52-Finance!AM17)*Work!AM53 -> 0 | AN18: =(Input!$D$52-Finance!AN17)*Work!AN53 -> 0 | AO18: =(Input!$D$52-Finance!AO17)*Work!AO53 -> 0 | AP18: =(Input!$D$52-Finance!AP17)*Work!AP53 -> 0
A19: Drawdown on Equity | C19: =SUM(F19:AP19) -> 306616509.9 | F19: =MIN(F18,F11) -> 59216.68816 | G19: =MIN(G18,G11) -> 94292664.88 | H19: 212264628.3 | I19: 0 | J19: 0 | K19: 0 | L19: 0 | M19: 0 | N19: 0 | O19: 0 | P19: 0 | Q19: 0 | R19: 0 | S19: 0 | T19: 0 | U19: 0 | V19: 0 | W19: 0 | X19: 0 | Y19: 0 | Z19: 0 | AA19: 0 | AB19: 0 | AC19: 0 | AD19: 0 | AE19: 0 | AF19: 0 | AG19: 0 | AH19: 0 | AI19: 0 | AJ19: 0 | AK19: 0 | AL19: 0 | AM19: 0 | AN19: 0 | AO19: 0 | AP19: 0
A20: Remaining Funding Requirement after Equity | F20: =F11-F19 -> 0 | G20: =G11-G19 -> 0 | H20: 0 | I20: 165094710.9 | J20: 0 | K20: 0 | L20: 0 | M20: 0 | N20: 0 | O20: 0 | P20: 0 | Q20: 0 | R20: 0 | S20: 0 | T20: 0 | U20: 0 | V20: 0 | W20: 0 | X20: 0 | Y20: 0 | Z20: 0 | AA20: 0 | AB20: 0 | AC20: 0 | AD20: 0 | AE20: 0 | AF20: 0 | AG20: 0 | AH20: 0 | AI20: 0 | AJ20: 0 | AK20: 0 | AL20: 0 | AM20: 0 | AN20: 0 | AO20: 0 | AP20: 0
A22: Debt
A23: Total (End of Pre-Period) | C23: =MAX(F23:AP23) -> 0 | F23: =E60 -> 0 | G23: =F60 -> 0 | H23: 0 | I23: 0 | J23: 0 | K23: 0 | L23: 0 | M23: 0 | N23: 0 | O23: 0 | P23: 0 | Q23: 0 | R23: 0 | S23: 0 | T23: 0 | U23: 0 | V23: 0 | W23: 0 | X23: 0 | Y23: 0 | Z23: 0 | AA23: 0 | AB23: 0 | AC23: 0 | AD23: 0 | AE23: 0 | AF23: 0 | AG23: 0 | AH23: 0 | AI23: 0 | AJ23: 0 | AK23: 0 | AL23: 0 | AM23: 0 | AN23: 0 | AO23: 0 | AP23: 0
A24: Maximum Debt available | C24: =MAX(F24:AP24) -> 0 | F24: =(Input!$D$55-Finance!F23)*Work!F53 -> 0 | G24: =(Input!$D$55-Finance!G23)*Work!G53 -> 0 | H24: =(Input!$D$55-Finance!H23)*Work!H53 -> 0 | I24: =(Input!$D$55-Finance!I23)*Work!I53 -> 0 | J24: =(Input!$D$55-Finance!J23)*Work!J53 -> 0 | K24: =(Input!$D$55-Finance!K23)*Work!K53 -> 0 | L24: =(Input!$D$55-Finance!L23)*Work!L53 -> 0 | M24: =(Input!$D$55-Finance!M23)*Work!M53 -> 0 | N24: =(Input!$D$55-Finance!N23)*Work!N53 -> 0 | O24: =(Input!$D$55-Finance!O23)*Work!O53 -> 0 | P24: =(Input!$D$55-Finance!P23)*Work!P53 -> 0 | Q24: =(Input!$D$55-Finance!Q23)*Work!Q53 -> 0 | R24: =(Input!$D$55-Finance!R23)*Work!R53 -> 0 | S24: =(Input!$D$55-Finance!S23)*Work!S53 -> 0 | T24: =(Input!$D$55-Finance!T23)*Work!T53 -> 0 | U24: =(Input!$D$55-Finance!U23)*Work!U53 -> 0 | V24: =(Input!$D$55-Finance!V23)*Work!V53 -> 0 | W24: =(Input!$D$55-Finance!W23)*Work!W53 -> 0 | X24: =(Input!$D$55-Finance!X23)*Work!X53 -> 0 | Y24: =(Input!$D$55-Finance!Y23)*Work!Y53 -> 0 | Z24: =(Input!$D$55-Finance!Z23)*Work!Z53 -> 0 | AA24: =(Input!$D$55-Finance!AA23)*Work!AA53 -> 0 | AB24: =(Input!$D$55-Finance!AB23)*Work!AB53 -> 0 | AC24: =(Input!$D$55-Finance!AC23)*Work!AC53 -> 0 | AD24: =(Input!$D$55-Finance!AD23)*Work!AD53 -> 0 | AE24: =(Input!$D$55-Finance!AE23)*Work!AE53 -> 0 | AF24: =(Input!$D$55-Finance!AF23)*Work!AF53 -> 0 | AG24: =(Input!$D$55-Finance!AG23)*Work!AG53 -> 0 | AH24: =(Input!$D$55-Finance!AH23)*Work!AH53 -> 0 | AI24: =(Input!$D$55-Finance!AI23)*Work!AI53 -> 0 | AJ24: =(Input!$D$55-Finance!AJ23)*Work!AJ53 -> 0 | AK24: =(Input!$D$55-Finance!AK23)*Work!AK53 -> 0 | AL24: =(Input!$D$55-Finance!AL23)*Work!AL53 -> 0 | AM24: =(Input!$D$55-Finance!AM23)*Work!AM53 -> 0 | AN24: =(Input!$D$55-Finance!AN23)*Work!AN53 -> 0 | AO24: =(Input!$D$55-Finance!AO23)*Work!AO53 -> 0 | AP24: =(Input!$D$55-Finance!AP23)*Work!AP53 -> 0
A25: Drawdown on Debt | C25: =SUM(F25:AP25) -> 0 | F25: =MIN(F20,F24) -> 0 | G25: =MIN(G20,G24) -> 0 | H25: 0 | I25: 0 | J25: 0 | K25: 0 | L25: 0 | M25: 0 | N25: 0 | O25: 0 | P25: 0 | Q25: 0 | R25: 0 | S25: 0 | T25: 0 | U25: 0 | V25: 0 | W25: 0 | X25: 0 | Y25: 0 | Z25: 0 | AA25: 0 | AB25: 0 | AC25: 0 | AD25: 0 | AE25: 0 | AF25: 0 | AG25: 0 | AH25: 0 | AI25: 0 | AJ25: 0 | AK25: 0 | AL25: 0 | AM25: 0 | AN25: 0 | AO25: 0 | AP25: 0
A26: Total (End of Period, before Interest) | C26: =MAX(F26:AP26) -> 0 | F26: =F23+F25 -> 0 | G26: =G23+G25 -> 0 | H26: 0 | I26: 0 | J26: 0 | K26: 0 | L26: 0 | M26: 0 | N26: 0 | O26: 0 | P26: 0 | Q26: 0 | R26: 0 | S26: 0 | T26: 0 | U26: 0 | V26: 0 | W26: 0 | X26: 0 | Y26: 0 | Z26: 0 | AA26: 0 | AB26: 0 | AC26: 0 | AD26: 0 | AE26: 0 | AF26: 0 | AG26: 0 | AH26: 0 | AI26: 0 | AJ26: 0 | AK26: 0 | AL26: 0 | AM26: 0 | AN26: 0 | AO26: 0 | AP26: 0
A27: Total (Average of Period, before Interest) | C27: =MAX(F27:AP27) -> 0 | F27: =F23+F25/2 -> 0 | G27: =G23+G25/2 -> 0 | H27: 0 | I27: 0 | J27: 0 | K27: 0 | L27: 0 | M27: 0 | N27: 0 | O27: 0 | P27: 0 | Q27: 0 | R27: 0 | S27: 0 | T27: 0 | U27: 0 | V27: 0 | W27: 0 | X27: 0 | Y27: 0 | Z27: 0 | AA27: 0 | AB27: 0 | AC27: 0 | AD27: 0 | AE27: 0 | AF27: 0 | AG27: 0 | AH27: 0 | AI27: 0 | AJ27: 0 | AK27: 0 | AL27: 0 | AM27: 0 | AN27: 0 | AO27: 0 | AP27: 0
A28: Funding Requirement after Debt | C28: =SUM(F28:AP28) -> 165094710.9 | F28: =F20-F25 -> 0 | G28: =G20-G25 -> 0 | H28: 0 | I28: 165094710.9 | J28: 0 | K28: 0 | L28: 0 | M28: 0 | N28: 0 | O28: 0 | P28: 0 | Q28: 0 | R28: 0 | S28: 0 | T28: 0 | U28: 0 | V28: 0 | W28: 0 | X28: 0 | Y28: 0 | Z28: 0 | AA28: 0 | AB28: 0 | AC28: 0 | AD28: 0 | AE28: 0 | AF28: 0 | AG28: 0 | AH28: 0 | AI28: 0 | AJ28: 0 | AK28: 0 | AL28: 0 | AM28: 0 | AN28: 0 | AO28: 0 | AP28: 0
A29: Check (Debt sufficient for Inv.)? | C29: =AND(F29:AP29) -> FALSE | F29: =F28=0 -> TRUE | G29: TRUE | H29: TRUE | I29: FALSE | J29: TRUE | K29: TRUE | L29: TRUE | M29: TRUE | N29: TRUE | O29: TRUE | P29: TRUE | Q29: TRUE | R29: TRUE | S29: TRUE | T29: TRUE | U29: TRUE | V29: TRUE | W29: TRUE | X29: TRUE | Y29: TRUE | Z29: TRUE | AA29: TRUE | AB29: TRUE | AC29: TRUE | AD29: TRUE | AE29: TRUE | AF29: TRUE | AG29: TRUE | AH29: TRUE | AI29: TRUE | AJ29: TRUE | AK29: TRUE | AL29: TRUE | AM29: TRUE | AN29: TRUE | AO29: TRUE | AP29: TRUE
A31: Funding Requirement for Interest and Fees
A32: Arranging Fee | C32: =SUM(F32:AP32) -> 0 | F32: =Input!$D63*Input!$D$55*Work!F$49 -> 0 | G32: =Input!$D63*Input!$D$55*Work!G$49 -> 0 | H32: =Input!$D63*Input!$D$55*Work!H$49 -> 0 | I32: =Input!$D63*Input!$D$55*Work!I$49 -> 0 | J32: =Input!$D63*Input!$D$55*Work!J$49 -> 0 | K32: =Input!$D63*Input!$D$55*Work!K$49 -> 0 | L32: =Input!$D63*Input!$D$55*Work!L$49 -> 0 | M32: =Input!$D63*Input!$D$55*Work!M$49 -> 0 | N32: =Input!$D63*Input!$D$55*Work!N$49 -> 0 | O32: =Input!$D63*Input!$D$55*Work!O$49 -> 0 | P32: =Input!$D63*Input!$D$55*Work!P$49 -> 0 | Q32: =Input!$D63*Input!$D$55*Work!Q$49 -> 0 | R32: =Input!$D63*Input!$D$55*Work!R$49 -> 0 | S32: =Input!$D63*Input!$D$55*Work!S$49 -> 0 | T32: =Input!$D63*Input!$D$55*Work!T$49 -> 0 | U32: =Input!$D63*Input!$D$55*Work!U$49 -> 0 | V32: =Input!$D63*Input!$D$55*Work!V$49 -> 0 | W32: =Input!$D63*Input!$D$55*Work!W$49 -> 0 | X32: =Input!$D63*Input!$D$55*Work!X$49 -> 0 | Y32: =Input!$D63*Input!$D$55*Work!Y$49 -> 0 | Z32: =Input!$D63*Input!$D$55*Work!Z$49 -> 0 | AA32: =Input!$D63*Input!$D$55*Work!AA$49 -> 0 | AB32: =Input!$D63*Input!$D$55*Work!AB$49 -> 0 | AC32: =Input!$D63*Input!$D$55*Work!AC$49 -> 0 | AD32: =Input!$D63*Input!$D$55*Work!AD$49 -> 0 | AE32: =Input!$D63*Input!$D$55*Work!AE$49 -> 0 | AF32: =Input!$D63*Input!$D$55*Work!AF$49 -> 0 | AG32: =Input!$D63*Input!$D$55*Work!AG$49 -> 0 | AH32: =Input!$D63*Input!$D$55*Work!AH$49 -> 0 | AI32: =Input!$D63*Input!$D$55*Work!AI$49 -> 0 | AJ32: =Input!$D63*Input!$D$55*Work!AJ$49 -> 0 | AK32: =Input!$D63*Input!$D$55*Work!AK$49 -> 0 | AL32: =Input!$D63*Input!$D$55*Work!AL$49 -> 0 | AM32: =Input!$D63*Input!$D$55*Work!AM$49 -> 0 | AN32: =Input!$D63*Input!$D$55*Work!AN$49 -> 0 | AO32: =Input!$D63*Input!$D$55*Work!AO$49 -> 0 | AP32: =Input!$D63*Input!$D$55*Work!AP$49 -> 0
A33: Agency Fee | C33: =SUM(F33:AP33) -> 0 | F33: =Input!$D64*Input!$D$55*Work!F$49 -> 0 | G33: =Input!$D64*Input!$D$55*Work!G$49 -> 0 | H33: =Input!$D64*Input!$D$55*Work!H$49 -> 0 | I33: =Input!$D64*Input!$D$55*Work!I$49 -> 0 | J33: =Input!$D64*Input!$D$55*Work!J$49 -> 0 | K33: =Input!$D64*Input!$D$55*Work!K$49 -> 0 | L33: =Input!$D64*Input!$D$55*Work!L$49 -> 0 | M33: =Input!$D64*Input!$D$55*Work!M$49 -> 0 | N33: =Input!$D64*Input!$D$55*Work!N$49 -> 0 | O33: =Input!$D64*Input!$D$55*Work!O$49 -> 0 | P33: =Input!$D64*Input!$D$55*Work!P$49 -> 0 | Q33: =Input!$D64*Input!$D$55*Work!Q$49 -> 0 | R33: =Input!$D64*Input!$D$55*Work!R$49 -> 0 | S33: =Input!$D64*Input!$D$55*Work!S$49 -> 0 | T33: =Input!$D64*Input!$D$55*Work!T$49 -> 0 | U33: =Input!$D64*Input!$D$55*Work!U$49 -> 0 | V33: =Input!$D64*Input!$D$55*Work!V$49 -> 0 | W33: =Input!$D64*Input!$D$55*Work!W$49 -> 0 | X33: =Input!$D64*Input!$D$55*Work!X$49 -> 0 | Y33: =Input!$D64*Input!$D$55*Work!Y$49 -> 0 | Z33: =Input!$D64*Input!$D$55*Work!Z$49 -> 0 | AA33: =Input!$D64*Input!$D$55*Work!AA$49 -> 0 | AB33: =Input!$D64*Input!$D$55*Work!AB$49 -> 0 | AC33: =Input!$D64*Input!$D$55*Work!AC$49 -> 0 | AD33: =Input!$D64*Input!$D$55*Work!AD$49 -> 0 | AE33: =Input!$D64*Input!$D$55*Work!AE$49 -> 0 | AF33: =Input!$D64*Input!$D$55*Work!AF$49 -> 0 | AG33: =Input!$D64*Input!$D$55*Work!AG$49 -> 0 | AH33: =Input!$D64*Input!$D$55*Work!AH$49 -> 0 | AI33: =Input!$D64*Input!$D$55*Work!AI$49 -> 0 | AJ33: =Input!$D64*Input!$D$55*Work!AJ$49 -> 0 | AK33: =Input!$D64*Input!$D$55*Work!AK$49 -> 0 | AL33: =Input!$D64*Input!$D$55*Work!AL$49 -> 0 | AM33: =Input!$D64*Input!$D$55*Work!AM$49 -> 0 | AN33: =Input!$D64*Input!$D$55*Work!AN$49 -> 0 | AO33: =Input!$D64*Input!$D$55*Work!AO$49 -> 0 | AP33: =Input!$D64*Input!$D$55*Work!AP$49 -> 0
A34: Interest | C34: =SUM(F34:AP34) -> 0 | F34: =F27*Input!$D$60 -> 0 | G34: =G27*Input!$D$60 -> 0 | H34: =H27*Input!$D$60 -> 0 | I34: =I27*Input!$D$60 -> 0 | J34: =J27*Input!$D$60 -> 0 | K34: =K27*Input!$D$60 -> 0 | L34: =L27*Input!$D$60 -> 0 | M34: =M27*Input!$D$60 -> 0 | N34: =N27*Input!$D$60 -> 0 | O34: =O27*Input!$D$60 -> 0 | P34: =P27*Input!$D$60 -> 0 | Q34: =Q27*Input!$D$60 -> 0 | R34: =R27*Input!$D$60 -> 0 | S34: =S27*Input!$D$60 -> 0 | T34: =T27*Input!$D$60 -> 0 | U34: =U27*Input!$D$60 -> 0 | V34: =V27*Input!$D$60 -> 0 | W34: =W27*Input!$D$60 -> 0 | X34: =X27*Input!$D$60 -> 0 | Y34: =Y27*Input!$D$60 -> 0 | Z34: =Z27*Input!$D$60 -> 0 | AA34: =AA27*Input!$D$60 -> 0 | AB34: =AB27*Input!$D$60 -> 0 | AC34: =AC27*Input!$D$60 -> 0 | AD34: =AD27*Input!$D$60 -> 0 | AE34: =AE27*Input!$D$60 -> 0 | AF34: =AF27*Input!$D$60 -> 0 | AG34: =AG27*Input!$D$60 -> 0 | AH34: =AH27*Input!$D$60 -> 0 | AI34: =AI27*Input!$D$60 -> 0 | AJ34: =AJ27*Input!$D$60 -> 0 | AK34: =AK27*Input!$D$60 -> 0 | AL34: =AL27*Input!$D$60 -> 0 | AM34: =AM27*Input!$D$60 -> 0 | AN34: =AN27*Input!$D$60 -> 0 | AO34: =AO27*Input!$D$60 -> 0 | AP34: =AP27*Input!$D$60 -> 0
A35: Commitment Fee | C35: =SUM(F35:AP35) -> 0 | F35: =Input!$D65*Input!$D$55*Work!F$49 -> 0 | G35: =Input!$D65*Input!$D$55*Work!G$49 -> 0 | H35: =Input!$D65*Input!$D$55*Work!H$49 -> 0 | I35: =Input!$D65*Input!$D$55*Work!I$49 -> 0 | J35: =Input!$D65*Input!$D$55*Work!J$49 -> 0 | K35: =Input!$D65*Input!$D$55*Work!K$49 -> 0 | L35: =Input!$D65*Input!$D$55*Work!L$49 -> 0 | M35: =Input!$D65*Input!$D$55*Work!M$49 -> 0 | N35: =Input!$D65*Input!$D$55*Work!N$49 -> 0 | O35: =Input!$D65*Input!$D$55*Work!O$49 -> 0 | P35: =Input!$D65*Input!$D$55*Work!P$49 -> 0 | Q35: =Input!$D65*Input!$D$55*Work!Q$49 -> 0 | R35: =Input!$D65*Input!$D$55*Work!R$49 -> 0 | S35: =Input!$D65*Input!$D$55*Work!S$49 -> 0 | T35: =Input!$D65*Input!$D$55*Work!T$49 -> 0 | U35: =Input!$D65*Input!$D$55*Work!U$49 -> 0 | V35: =Input!$D65*Input!$D$55*Work!V$49 -> 0 | W35: =Input!$D65*Input!$D$55*Work!W$49 -> 0 | X35: =Input!$D65*Input!$D$55*Work!X$49 -> 0 | Y35: =Input!$D65*Input!$D$55*Work!Y$49 -> 0 | Z35: =Input!$D65*Input!$D$55*Work!Z$49 -> 0 | AA35: =Input!$D65*Input!$D$55*Work!AA$49 -> 0 | AB35: =Input!$D65*Input!$D$55*Work!AB$49 -> 0 | AC35: =Input!$D65*Input!$D$55*Work!AC$49 -> 0 | AD35: =Input!$D65*Input!$D$55*Work!AD$49 -> 0 | AE35: =Input!$D65*Input!$D$55*Work!AE$49 -> 0 | AF35: =Input!$D65*Input!$D$55*Work!AF$49 -> 0 | AG35: =Input!$D65*Input!$D$55*Work!AG$49 -> 0 | AH35: =Input!$D65*Input!$D$55*Work!AH$49 -> 0 | AI35: =Input!$D65*Input!$D$55*Work!AI$49 -> 0 | AJ35: =Input!$D65*Input!$D$55*Work!AJ$49 -> 0 | AK35: =Input!$D65*Input!$D$55*Work!AK$49 -> 0 | AL35: =Input!$D65*Input!$D$55*Work!AL$49 -> 0 | AM35: =Input!$D65*Input!$D$55*Work!AM$49 -> 0 | AN35: =Input!$D65*Input!$D$55*Work!AN$49 -> 0 | AO35: =Input!$D65*Input!$D$55*Work!AO$49 -> 0 | AP35: =Input!$D65*Input!$D$55*Work!AP$49 -> 0
A36: Funding Requirement for Interest | C36: =SUM(F36:AP36) -> 0 | F36: =SUM(F32:F35)*Work!F53 -> 0 | G36: =SUM(G32:G35)*Work!G53 -> 0 | H36: =SUM(H32:H35)*Work!H53 -> 0 | I36: =SUM(I32:I35)*Work!I53 -> 0 | J36: =SUM(J32:J35)*Work!J53 -> 0 | K36: =SUM(K32:K35)*Work!K53 -> 0 | L36: =SUM(L32:L35)*Work!L53 -> 0 | M36: =SUM(M32:M35)*Work!M53 -> 0 | N36: =SUM(N32:N35)*Work!N53 -> 0 | O36: =SUM(O32:O35)*Work!O53 -> 0 | P36: =SUM(P32:P35)*Work!P53 -> 0 | Q36: =SUM(Q32:Q35)*Work!Q53 -> 0 | R36: =SUM(R32:R35)*Work!R53 -> 0 | S36: =SUM(S32:S35)*Work!S53 -> 0 | T36: =SUM(T32:T35)*Work!T53 -> 0 | U36: =SUM(U32:U35)*Work!U53 -> 0 | V36: =SUM(V32:V35)*Work!V53 -> 0 | W36: =SUM(W32:W35)*Work!W53 -> 0 | X36: =SUM(X32:X35)*Work!X53 -> 0 | Y36: =SUM(Y32:Y35)*Work!Y53 -> 0 | Z36: =SUM(Z32:Z35)*Work!Z53 -> 0 | AA36: =SUM(AA32:AA35)*Work!AA53 -> 0 | AB36: =SUM(AB32:AB35)*Work!AB53 -> 0 | AC36: =SUM(AC32:AC35)*Work!AC53 -> 0 | AD36: =SUM(AD32:AD35)*Work!AD53 -> 0 | AE36: =SUM(AE32:AE35)*Work!AE53 -> 0 | AF36: =SUM(AF32:AF35)*Work!AF53 -> 0 | AG36: =SUM(AG32:AG35)*Work!AG53 -> 0 | AH36: =SUM(AH32:AH35)*Work!AH53 -> 0 | AI36: =SUM(AI32:AI35)*Work!AI53 -> 0 | AJ36: =SUM(AJ32:AJ35)*Work!AJ53 -> 0 | AK36: =SUM(AK32:AK35)*Work!AK53 -> 0 | AL36: =SUM(AL32:AL35)*Work!AL53 -> 0 | AM36: =SUM(AM32:AM35)*Work!AM53 -> 0 | AN36: =SUM(AN32:AN35)*Work!AN53 -> 0 | AO36: =SUM(AO32:AO35)*Work!AO53 -> 0 | AP36: =SUM(AP32:AP35)*Work!AP53 -> 0
A38: Equity and Debt Drawdowns for Interest and Fees
A39: Equity
A40: Maximum Equity available | C40: =MAX(F40:AP40) -> 471639957.3 | F40: =F18-F19 -> 471639957.3 | G40: =G18-G19 -> 377347292.4 | H40: 165082664.1 | I40: 0 | J40: 0 | K40: 0 | L40: 0 | M40: 0 | N40: 0 | O40: 0 | P40: 0 | Q40: 0 | R40: 0 | S40: 0 | T40: 0 | U40: 0 | V40: 0 | W40: 0 | X40: 0 | Y40: 0 | Z40: 0 | AA40: 0 | AB40: 0 | AC40: 0 | AD40: 0 | AE40: 0 | AF40: 0 | AG40: 0 | AH40: 0 | AI40: 0 | AJ40: 0 | AK40: 0 | AL40: 0 | AM40: 0 | AN40: 0 | AO40: 0 | AP40: 0
A41: Drawdown on Equity | C41: =SUM(F41:AP41) -> 0 | F41: =MIN(F36,F40) -> 0 | G41: 0 | H41: 0 | I41: 0 | J41: 0 | K41: 0 | L41: 0 | M41: 0 | N41: 0 | O41: 0 | P41: 0 | Q41: 0 | R41: 0 | S41: 0 | T41: 0 | U41: 0 | V41: 0 | W41: 0 | X41: 0 | Y41: 0 | Z41: 0 | AA41: 0 | AB41: 0 | AC41: 0 | AD41: 0 | AE41: 0 | AF41: 0 | AG41: 0 | AH41: 0 | AI41: 0 | AJ41: 0 | AK41: 0 | AL41: 0 | AM41: 0 | AN41: 0 | AO41: 0 | AP41: 0
A42: Funding Requirement after Equity | C42: =SUM(F42:AP42) -> 0 | F42: =F36-F41 -> 0 | G42: 0 | H42: 0 | I42: 0 | J42: 0 | K42: 0 | L42: 0 | M42: 0 | N42: 0 | O42: 0 | P42: 0 | Q42: 0 | R42: 0 | S42: 0 | T42: 0 | U42: 0 | V42: 0 | W42: 0 | X42: 0 | Y42: 0 | Z42: 0 | AA42: 0 | AB42: 0 | AC42: 0 | AD42: 0 | AE42: 0 | AF42: 0 | AG42: 0 | AH42: 0 | AI42: 0 | AJ42: 0 | AK42: 0 | AL42: 0 | AM42: 0 | AN42: 0 | AO42: 0 | AP42: 0
A44: Debt
A45: Maximum Debt available | C45: =MAX(F45:AP45) -> 0 | F45: =F24-F25 -> 0 | G45: =G24-G25 -> 0 | H45: 0 | I45: 0 | J45: 0 | K45: 0 | L45: 0 | M45: 0 | N45: 0 | O45: 0 | P45: 0 | Q45: 0 | R45: 0 | S45: 0 | T45: 0 | U45: 0 | V45: 0 | W45: 0 | X45: 0 | Y45: 0 | Z45: 0 | AA45: 0 | AB45: 0 | AC45: 0 | AD45: 0 | AE45: 0 | AF45: 0 | AG45: 0 | AH45: 0 | AI45: 0 | AJ45: 0 | AK45: 0 | AL45: 0 | AM45: 0 | AN45: 0 | AO45: 0 | AP45: 0
A46: Drawdown on Debt | C46: =SUM(F46:AP46) -> 0 | F46: =MIN(F42,F45) -> 0 | G46: 0 | H46: 0 | I46: 0 | J46: 0 | K46: 0 | L46: 0 | M46: 0 | N46: 0 | O46: 0 | P46: 0 | Q46: 0 | R46: 0 | S46: 0 | T46: 0 | U46: 0 | V46: 0 | W46: 0 | X46: 0 | Y46: 0 | Z46: 0 | AA46: 0 | AB46: 0 | AC46: 0 | AD46: 0 | AE46: 0 | AF46: 0 | AG46: 0 | AH46: 0 | AI46: 0 | AJ46: 0 | AK46: 0 | AL46: 0 | AM46: 0 | AN46: 0 | AO46: 0 | AP46: 0
A47: Total (End of Period after Interest, before Repayment) | C47: =MAX(F47:AP47) -> 0 | F47: =F26+F46 -> 0 | G47: 0 | H47: 0 | I47: =I26+I46 -> 0 | J47: =J26+J46 -> 0 | K47: 0 | L47: 0 | M47: 0 | N47: 0 | O47: 0 | P47: 0 | Q47: 0 | R47: 0 | S47: 0 | T47: 0 | U47: 0 | V47: 0 | W47: 0 | X47: 0 | Y47: 0 | Z47: 0 | AA47: 0 | AB47: 0 | AC47: 0 | AD47: 0 | AE47: 0 | AF47: 0 | AG47: 0 | AH47: 0 | AI47: 0 | AJ47: 0 | AK47: 0 | AL47: 0 | AM47: 0 | AN47: 0 | AO47: 0 | AP47: 0
A48: Funding Requirement after Debt | C48: =SUM(F48:AP48) -> 0 | F48: =F42-F46 -> 0 | G48: =G42-G46 -> 0 | H48: 0 | I48: 0 | J48: 0 | K48: 0 | L48: 0 | M48: 0 | N48: 0 | O48: 0 | P48: 0 | Q48: 0 | R48: 0 | S48: 0 | T48: 0 | U48: 0 | V48: 0 | W48: 0 | X48: 0 | Y48: 0 | Z48: 0 | AA48: 0 | AB48: 0 | AC48: 0 | AD48: 0 | AE48: 0 | AF48: 0 | AG48: 0 | AH48: 0 | AI48: 0 | AJ48: 0 | AK48: 0 | AL48: 0 | AM48: 0 | AN48: 0 | AO48: 0 | AP48: 0
A49: Check (Debt sufficient for Interest) | C49: =AND(F49:K49) -> TRUE | F49: =F48=0 -> TRUE | G49: TRUE | H49: TRUE | I49: TRUE | J49: =J48=0 -> TRUE | K49: TRUE | L49: TRUE | M49: TRUE | N49: TRUE | O49: TRUE | P49: TRUE | Q49: TRUE | R49: TRUE | S49: TRUE | T49: TRUE | U49: TRUE | V49: TRUE | W49: TRUE | X49: TRUE | Y49: TRUE | Z49: TRUE | AA49: TRUE | AB49: TRUE | AC49: TRUE | AD49: TRUE | AE49: TRUE | AF49: TRUE | AG49: TRUE | AH49: TRUE | AI49: TRUE | AJ49: TRUE | AK49: TRUE | AL49: TRUE | AM49: TRUE | AN49: TRUE | AO49: TRUE | AP49: TRUE
A50: Finance
A51: Repayment
A53: Debt
A54: Number of Instalments | C54: =Input!D58 -> 15
A55: Total Outstanding prior to first Repayment | C55: =SUM(F55:AP55) -> 0 | F55: =IF(Work!F56=1,F47,0) -> 0 | G55: =IF(Work!G56=1,G47,0) -> 0 | H55: =IF(Work!H56=1,H47,0) -> 0 | I55: =IF(Work!I56=1,I47,0) -> 0 | J55: =IF(Work!J56=1,J47,0) -> 0 | K55: =IF(Work!K56=1,K47,0) -> 0 | L55: =IF(Work!L56=1,L47,0) -> 0 | M55: =IF(Work!M56=1,M47,0) -> 0 | N55: =IF(Work!N56=1,N47,0) -> 0 | O55: =IF(Work!O56=1,O47,0) -> 0 | P55: =IF(Work!P56=1,P47,0) -> 0 | Q55: =IF(Work!Q56=1,Q47,0) -> 0 | R55: =IF(Work!R56=1,R47,0) -> 0 | S55: =IF(Work!S56=1,S47,0) -> 0 | T55: =IF(Work!T56=1,T47,0) -> 0 | U55: =IF(Work!U56=1,U47,0) -> 0 | V55: =IF(Work!V56=1,V47,0) -> 0 | W55: =IF(Work!W56=1,W47,0) -> 0 | X55: =IF(Work!X56=1,X47,0) -> 0 | Y55: =IF(Work!Y56=1,Y47,0) -> 0 | Z55: =IF(Work!Z56=1,Z47,0) -> 0 | AA55: =IF(Work!AA56=1,AA47,0) -> 0 | AB55: =IF(Work!AB56=1,AB47,0) -> 0 | AC55: =IF(Work!AC56=1,AC47,0) -> 0 | AD55: =IF(Work!AD56=1,AD47,0) -> 0 | AE55: =IF(Work!AE56=1,AE47,0) -> 0 | AF55: =IF(Work!AF56=1,AF47,0) -> 0 | AG55: =IF(Work!AG56=1,AG47,0) -> 0 | AH55: =IF(Work!AH56=1,AH47,0) -> 0 | AI55: =IF(Work!AI56=1,AI47,0) -> 0 | AJ55: =IF(Work!AJ56=1,AJ47,0) -> 0 | AK55: =IF(Work!AK56=1,AK47,0) -> 0 | AL55: =IF(Work!AL56=1,AL47,0) -> 0 | AM55: =IF(Work!AM56=1,AM47,0) -> 0 | AN55: =IF(Work!AN56=1,AN47,0) -> 0 | AO55: =IF(Work!AO56=1,AO47,0) -> 0 | AP55: =IF(Work!AP56=1,AP47,0) -> 0
